{"text_format":"1","workbook":"xlsx","n_sheets":25,"sheets":["Instruções","Diretório","E1GC","_E1GC","E1G2G","_E1G2G","E2G","_E2G","E1G Flex","_E1G Flex","E1GM","_E1GM","E1GMI","_E1GMI","Biodiesel","_Biodiesel","BioQavHEFA","_BioQavHEFA","Biometano","_Biometano","Dados auxiliares","_Emissões Agrícolas","FE's queima combustíveis","Enderecos","Listas"],"not_rendered":{"charts":0,"images":6,"macros":1,"external_links":0,"defined_names":6,"comments":2,"pivot_tables":0},"unopened":[],"bounds":{"document_bytes":16777216,"sheet_cells":100000,"rows_first":2000,"rows_last":500,"rows_between":2000,"halvings":0,"cell_chars":16384,"cell_head_chars":4096},"cells_cut":0,"cells_raw":0,"read":"whole","date_system":"1900"}

{"sheet":"Instruções","index":0,"n_rows":14,"n_cols":11,"rows_kept":14,"cut":false,"hidden":false,"merged":[]}
[null,".."]
[null,"Instruções"]
[]
[null,"A RenovaCalc é uma ferramenta de cálculo de emissões de Gases de Efeito Estufa (GEE) de biocombustíveis, de acordo com o referencial metodológico estabelecido pelo programa RenovaBio."]
[]
[null,"O responsável pelo preenchimento deve estar atento às seguintes diretrizes:"]
[]
[null,"1. Só devem ser preenchidas as células demarcadas em pontilhado:",null,null,null,null," Ao optar pelo \"padrão\", estas células serão automaticamente preenchidas pela RenovaCalc "]
[]
[null,"2. A unidade de preenchimento de cada parâmetro é padrão estará sempre indicada ao lado da célula que deve ser preenchida. Por exemplo:",null,null,null,null,null,null,"Ureia",null," kg N/TC"]
[]
[null,"2.1. O usuário deve sempre inserir os dados na unidade pré-indicada, sendo considerado incorreto qualquer dado que esteja em outra unidade "]
[]
[null,"2.2. Ao selecionar a célula a ser preenchida, orientações de como preencher cada parâmetro serão fornecidas.    Por exemplo:"]

{"sheet":"Diretório","index":1,"n_rows":3,"n_cols":2,"rows_kept":3,"cut":false,"hidden":false,"merged":[]}
[null,".."]
[null,"DIRETÓRIO DE ROTAS DE PRODUÇÃO DE BIOCOMBUSTÍVEIS"]
[null,"."]

{"sheet":"E1GC","index":2,"n_rows":151,"n_cols":46,"rows_kept":151,"cut":false,"hidden":false,"merged":[[128,2,128,4],[133,2,133,4],[23,19,23,25],[23,10,23,16],[12,2,12,3],[51,1,51,7],[69,1,69,7],[23,1,23,7],[39,19,39,25],[43,19,43,25],[46,19,46,25],[24,19,24,20],[14,3,14,5],[27,3,27,6],[27,12,27,13],[27,21,27,22],[22,30,22,36],[23,30,23,36],[51,30,51,36],[141,2,141,4],[146,2,146,4],[118,2,118,4],[123,2,123,4],[139,1,139,7],[104,1,104,7],[22,1,22,7],[39,10,39,16],[113,2,113,4],[105,2,105,4],[109,2,109,4],[22,10,22,16],[22,19,22,25],[147,2,147,4],[69,30,69,36],[76,30,76,36],[39,30,39,36],[43,30,43,36],[46,30,46,36],[95,1,95,7],[51,19,51,25],[69,10,69,16],[69,19,69,25],[76,10,76,16],[76,19,76,25],[94,1,94,7],[76,1,76,7],[39,1,39,7],[46,1,46,7],[3,2,3,7],[5,2,5,7],[7,2,7,7],[9,2,9,3],[51,10,51,16],[43,10,43,16],[46,10,46,16],[43,1,43,7],[24,1,24,2],[24,10,24,11],[51,39,51,45],[69,39,69,45],[76,39,76,45],[22,39,22,45],[23,39,23,45],[39,39,39,45],[43,39,43,45],[46,39,46,45]]}
[]
[null,"Produção de Etanol de cana-de-açúcar"]
[]
[null,"Nome da Usina:","Usina Hipotética"]
[]
[null,"CNPJ","00.000.000/0000-00"]
[]
[null,"Responsável pelo preenchimento:","GT ACV RenovaCalc"]
[]
[null,"Telefone :","(00) 0000-0000"]
[]
[]
[null,null,"Etanol Anidro"]
[]
[null,"Intensidade de Carbono\n(g CO₂eq/MJ)",{"$f":"SUM(C17:C20)","v":30.354216586413958},"Nota de Eficiência Energético-Ambiental\n(g CO₂eq/MJ)",null,null,{"$f":"G18-C15","v":57.045783413586051}]
[]
[null,"agrícola",{"$f":"IF(C13=\"Etanol Anidro\",_E1GC!C5,IF(C13=\"Etanol Hidratado\",_E1GC!E5,\"\"))","v":28.062836016932998},null,null,null,"Fóssil de referência: Gasolina"]
[null,"industrial",{"$f":"IF(C13=\"Etanol Anidro\",_E1GC!C6,IF(C13=\"Etanol Hidratado\",_E1GC!E6,\"\"))","v":1.0496980705767953},null,null,null,87.4]
[null,"transporte",{"$f":"IF(C13=\"Etanol Anidro\",_E1GC!C7,IF(C13=\"Etanol Hidratado\",_E1GC!E7,\"\"))","v":0.80268195850394575},null,null,null,"Redução de emissões"]
[null,"uso",{"$f":"IF(C13=\"Etanol Anidro\",_E1GC!C8,IF(C13=\"Etanol Hidratado\",_E1GC!E8,\"\"))","v":0.43900054040021891},null,null,null,{"$f":"(G18-C15)/G18","v":0.65269775072752911}]
[]
[]
[null,"Usina - Área de cana própria",null,null,null,null,null,null,null,null,"Fornecedores - Dados consolidados",null,null,null,null,null,null,null,null,"Média ponderada - RenovaCalc",null,null,null,null,null,null,null,null,null,null,"Default - Cana",null,null,null,null,null,null,null,null,"Guarda dados de preenchimento"]
[null,"Informações gerais",null,null,null,null,null,null,null,null,"Informações gerais",null,null,null,null,null,null,null,null,"Informações gerais",null,null,null,null,null,null,null,null,null,null,"Informações gerais",null,null,null,null,null,null,null,null,"Informações gerais"]
[null,"Houve supressão de vegetação nativa a partir de 26 de dezembro de 2017?",null,"Não",null,null,null,null,null,null,"Houve supressão de vegetação nativa a partir de 26 de dezembro de 2017?",null,"Não",null,null,null,null,null,null,"Houve supressão de vegetação nativa a partir de 26 de dezembro de 2017?",null,{"$f":"IF(OR(D25=\"Sim\",M25=\"Sim\"),\"Sim\",\"Não\")","v":"Não"}]
[null,null,"Usina atende ao ZAE Cana?","Sim",null,null,null,null,null,null,null,"Usina atende ao ZAE Cana?","Sim",null,null,null,null,null,null,null,"Usina atende ao ZAE Cana?",{"$f":"IF(OR(D26=Listas!$B$4,M26=Listas!$B$4),Listas!$B$4,Listas!$B$3)","v":"Sim"}]
[]
[null,null,"Número de registro no CAR","UF-1302405-E6D3.395B.6D27.4F42.AE22.DD56.987C.DD51",null,null,null,null,null,null,null,"Número de registro no CAR","Cadastro de fornecedores",null,null,null,null,null,null,null,"Número de registro no CAR","Cadastro de fornecedores"]
[]
[null,null,"Situação do CAR","Ativo",null,null,null,null,null,null,null,"Situação do CAR","Ativo",null,null,null,null,null,null,null,"Situação do CAR",{"$f":"IF(AND(D30=Listas!$B$7,M30=Listas!$B$7),Listas!$B$7,IF(OR(D30=Listas!$B$9,M30=Listas!$B$9),Listas!$B$9,Listas!$B$8))","v":"Ativo"}]
[]
[null,null,"Sistema de plantio","Convencional",null,null,null,null,null,null,null,"Sistema de plantio","Convencional",null,null,null,null,null,null,null,"Sistema de plantio","Convencional"]
[null,null,"Área total",20000,"ha",null,null,null,null,null,null,"Área total",0,"ha",null,null,null,null,null,null,"Área total",{"$f":"D33+M33","v":20000},"ha"]
[]
[null,null,"Produção total colhida para moagem",1334704.0020000001,"t cana",null,null,null,null,null,null,"Produção total colhida para moagem",0,"t cana",null,null,null,null,null,null,"Produção total colhida para moagem",{"$f":"D35+M35","v":1334704.0020000001},"t cana"]
[null,null,"Teor de impurezas vegetais (base úmida)",50,"kg/t cana","Umidade",0.5,null,null,null,null,"Teor de impurezas vegetais (base úmida)",0,"kg/t cana","Umidade",0,null,null,null,null,"Teor de impurezas vegetais (base úmida)",{"$f":"D36*($D$35/$V$35)+M36*($M$35/$V$35)","v":50},"kg/t cana","Umidade",{"$f":"IF((D36*$D$35+M36*$M$35)<>0,(G36*D36*$D$35+P36*M36*$M$35)/(D36*$D$35+M36*$M$35),0)","v":0.5}]
[null,null,"Teor de impurezas minerais",20,"kg/t cana",null,null,null,null,null,null,"Teor de impurezas minerais",0,"kg/t cana",null,null,null,null,null,null,"Teor de impurezas minerais",20,"kg/t cana"]
[null,null,"Palha recolhida (base seca)",0,"t palha",null,null,null,null,null,null,"Palha recolhida (base seca)",0,"t palha",null,null,null,null,null,null,"Palha recolhida (base seca)",{"$f":"D38+M38","v":0},"t palha"]
[]
[null,"Tipo de preenchimento",null,null,null,null,null,null,null,null,"Tipo de preenchimento",null,null,null,null,null,null,null,null,"Tipo de preenchimento",null,null,null,null,null,null,null,null,null,null,"Tipo de preenchimento",null,null,null,null,null,null,null,null,"Tipo de preenchimento"]
[null,"Tipo de dados forneceidos pela usina:",null,null,null,null,null,null,null,null,"Tipo de dados forneceidos pelos fornecedores:",null,null,null,null,null,null,null,null,"Tipo de dados forneceidos:",null,null,null,null,null,null,null,null,null,null,null,null,"Padrão",null,null,null,null,null,null,null,null,"Padrão"]
[null,{"$f":"AP41","v":"Padrão"},null,null,null,null,null,null,null,null,"Em função das informações de cada fornecedor",null,null,null,null,null,null,null,null,"Em função das informações da usina e de cada fornecedor"]
[]
[null,"Área Queimada",null,null,null,null,null,null,null,null,"Área Queimada",null,null,null,null,null,null,null,null,"Área Queimada",null,null,null,null,null,null,null,null,null,null,"Área Queimada",null,null,null,null,null,null,null,null,"Área Queimada"]
[null,null,"Área queimada",20000,"ha",null,null,null,null,null,null,"Área queimada",0,"ha",null,null,null,null,null,null,"Área queimada",{"$f":"D45+M45","v":20000},"ha",null,null,null,null,null,null,null,null,"Área queimada",1,"% da área total",null,null,null,null,null,null,"Área queimada",3680,"% da área total"]
[]
[null,"Corretivos",null,null,null,null,null,null,null,null,"Corretivos",null,null,null,null,null,null,null,null,"Corretivos",null,null,null,null,null,null,null,null,null,null,"Corretivos",null,null,null,null,null,null,null,null,"Corretivos"]
[null,null,"Calcário calcítico",0,"kg/t cana",null,null,null,null,null,null,"Calcário calcítico",0,"kg/t cana",null,null,null,null,null,null,"Calcário calcítico",{"$f":"D48*($D$35/$V$35)+M48*($M$35/$V$35)","v":0},"kg/t cana",null,null,null,null,null,null,null,null,"Calcário calcítico",0,"kg/t cana",null,null,null,null,null,null,"Calcário calcítico",0,"kg/t cana"]
[null,null,"Calcário dolomítico",8.1059999999999999,"kg/t cana",null,null,null,null,null,null,"Calcário dolomítico",5.79,"kg/t cana",null,null,null,null,null,null,"Calcário dolomítico",{"$f":"D49*($D$35/$V$35)+M49*($M$35/$V$35)","v":8.1059999999999999},"kg/t cana",null,null,null,null,null,null,null,null,"Calcário dolomítico",8.1059999999999999,"kg/t cana",null,null,null,null,null,null,"Calcário dolomítico",5.79,"kg/t cana"]
[null,null,"Gesso",3.9060000000000001,"kg/t cana",null,null,null,null,null,null,"Gesso",2.79,"kg/t cana",null,null,null,null,null,null,"Gesso",{"$f":"D50*($D$35/$V$35)+M50*($M$35/$V$35)","v":3.9060000000000001},"kg/t cana",null,null,null,null,null,null,null,null,"Gesso",3.9060000000000001,"kg/t cana",null,null,null,null,null,null,"Gesso",2.79,"kg/t cana"]
[]
[null,"Fertilizantes Sintéticos",null,null,null,null,null,null,null,null,"Fertilizantes Sintéticos",null,null,null,null,null,null,null,null,"Fertilizantes Sintéticos",null,null,null,null,null,null,null,null,null,null,"Fertilizantes Sintéticos",null,null,null,null,null,null,null,null,"Fertilizantes Sintéticos"]
[null,null,"Ureia",1.5498000000000001,"kg N/t cana",null,null,null,null,null,null,"Ureia",1.107,"kg N/t cana",null,null,null,null,null,null,"Ureia",{"$f":"D53*($D$35/$V$35)+M53*($M$35/$V$35)","v":1.5498000000000001},"kg N/t cana",null,null,null,null,null,null,null,null,"Ureia",1.5498000000000001," kg N/TC",null,null,null,null,null,null,"Ureia",1.107," kg N/TC"]
[null,null,"Fosfato monoamônico (MAP)",0,"kg N/t cana",null,null,null,null,null,null,"Fosfato monoamônico (MAP)",0,"kg N/t cana",null,null,null,null,null,null,"Fosfato monoamônico (MAP)",0,"kg N/t cana",null,null,null,null,null,null,null,null,"Fosfato monoamônico (MAP)",0," kg N/TC",null,null,null,null,null,null,"Fosfato monoamônico (MAP)",0," kg N/TC"]
[null,null,"Fosfato monoamônico (MAP)",0,"kg P₂O₅/t cana",null,null,null,null,null,null,"Fosfato monoamônico (MAP)",0,"kg P₂O₅/t cana",null,null,null,null,null,null,"Fosfato monoamônico (MAP)",0,"kg P₂O₅/t cana",null,null,null,null,null,null,null,null,"Fosfato monoamônico (MAP)",0," kg P2O5/TC",null,null,null,null,null,null,"Fosfato monoamônico (MAP)",0," kg P2O5/TC"]
[null,null,"Fosfato diamônico (DAP)",0,"kg N/t cana",null,null,null,null,null,null,"Fosfato diamônico (DAP)",0,"kg N/t cana",null,null,null,null,null,null,"Fosfato diamônico (DAP)",0,"kg N/t cana",null,null,null,null,null,null,null,null,"Fosfato diamônico (DAP)",0," kg N/TC",null,null,null,null,null,null,"Fosfato diamônico (DAP)",0," kg N/TC"]
[null,null,"Fosfato diamônico (DAP)",0,"kg P₂O₅/t cana",null,null,null,null,null,null,"Fosfato diamônico (DAP)",0,"kg P₂O₅/t cana",null,null,null,null,null,null,"Fosfato diamônico (DAP)",0,"kg P₂O₅/t cana",null,null,null,null,null,null,null,null,"Fosfato diamônico (DAP)",0," kg P2O5/TC",null,null,null,null,null,null,"Fosfato diamônico (DAP)",0," kg P2O5/TC"]
[null,null,"Nitrato de amônio",0,"kg N/t cana",null,null,null,null,null,null,"Nitrato de amônio",0,"kg N/t cana",null,null,null,null,null,null,"Nitrato de amônio",0,"kg N/t cana",null,null,null,null,null,null,null,null,"Nitrato de amônio",0," kg N/TC",null,null,null,null,null,null,"Nitrato de amônio",0," kg N/TC"]
[null,null,"Solução de nitrato de amônio e ureia (UAN)",0,"kg N/t cana",null,null,null,null,null,null,"Solução de nitrato de amônio e ureia (UAN)",0,"kg N/t cana",null,null,null,null,null,null,"Solução de nitrato de amônio e ureia (UAN)",0,"kg N/t cana",null,null,null,null,null,null,null,null,"Solução de nitrato de amônio e ureia (UAN)",0," kg N/TC",null,null,null,null,null,null,"Solução de nitrato de amônio e ureia (UAN)",0," kg N/TC"]
[null,null,"Amônia anidra",0,"kg N/t cana",null,null,null,null,null,null,"Amônia anidra",0,"kg N/t cana",null,null,null,null,null,null,"Amônia anidra",0,"kg N/t cana",null,null,null,null,null,null,null,null,"Amônia anidra",0," kg N/TC",null,null,null,null,null,null,"Amônia anidra",0," kg N/TC"]
[null,null,"Sulfato de amônio",0,"kg N/t cana",null,null,null,null,null,null,"Sulfato de amônio",0,"kg N/t cana",null,null,null,null,null,null,"Sulfato de amônio",0,"kg N/t cana",null,null,null,null,null,null,null,null,"Sulfato de amônio",0," kg N/TC",null,null,null,null,null,null,"Sulfato de amônio",0," kg N/TC"]
[null,null,"Nitrato de amônio e cálcio (CAN)",0,"kg N/t cana",null,null,null,null,null,null,"Nitrato de amônio e cálcio (CAN)",0,"kg N/t cana",null,null,null,null,null,null,"Nitrato de amônio e cálcio (CAN)",0,"kg N/t cana",null,null,null,null,null,null,null,null,"Nitrato de amônio e cálcio (CAN)",0," kg N/TC",null,null,null,null,null,null,"Nitrato de amônio e cálcio (CAN)",0," kg N/TC"]
[null,null,"Superfosfato simples (SSP)",0.62145836671396526,"kg P₂O₅/t cana",null,null,null,null,null,null,"Superfosfato simples (SSP)",0.443898833367118,"kg P₂O₅/t cana",null,null,null,null,null,null,"Superfosfato simples (SSP)",0.62145836671396526,"kg P₂O₅/t cana",null,null,null,null,null,null,null,null,"Superfosfato simples (SSP)",0.62145836671396526," kg P2O5/TC",null,null,null,null,null,null,"Superfosfato simples (SSP)",0.443898833367118," kg P2O5/TC"]
[null,null,"Superfosfato triplo (TSP)",0,"kg P₂O₅/t cana",null,null,null,null,null,null,"Superfosfato triplo (TSP)",0,"kg P₂O₅/t cana",null,null,null,null,null,null,"Superfosfato triplo (TSP)",0,"kg P₂O₅/t cana",null,null,null,null,null,null,null,null,"Superfosfato triplo (TSP)",0," kg P2O5/TC",null,null,null,null,null,null,"Superfosfato triplo (TSP)",0," kg P2O5/TC"]
[null,null,"Cloreto de potássio (KCl)",1.8846868622743767,"kg K₂O/t cana",null,null,null,null,null,null,"Cloreto de potássio (KCl)",1.3462049016245501,"kg K₂O/t cana",null,null,null,null,null,null,"Cloreto de potássio (KCl)",1.8846868622743767,"kg K₂O/t cana",null,null,null,null,null,null,null,null,"Cloreto de potássio (KCl)",1.8846868622743767," kg K2O/TC",null,null,null,null,null,null,"Cloreto de potássio (KCl)",1.3462049016245501," kg K2O/TC"]
[null,"Outros","especificar",0,"kg N/t cana",null,null,null,null,null,"Outros","especificar",0,"kg N/t cana",null,null,null,null,null,"Outros","especificar",0,"kg N/t cana",null,null,null,null,null,null,null,"Outros ","especificar",0," kg N /TC",null,null,null,null,null,"Outros ","especificar",0," kg N /TC"]
[null,"Outros","especificar",0,"kg P₂O₅/t cana",null,null,null,null,null,"Outros","especificar",0,"kg P₂O₅/t cana",null,null,null,null,null,"Outros","especificar",0,"kg P₂O₅/t cana",null,null,null,null,null,null,null,"Outros ","especificar",0," kg P2O5/TC",null,null,null,null,null,"Outros ","especificar",0," kg P2O5/TC"]
[null,"Outros","especificar",0,"kg K₂O/t cana",null,null,null,null,null,"Outros","especificar",0,"kg K₂O/t cana",null,null,null,null,null,"Outros","especificar",0,"kg K₂O/t cana",null,null,null,null,null,null,null,"Outros ","especificar",0," kg K2O/TC",null,null,null,null,null,"Outros ","especificar",0," kg K2O/TC"]
[]
[null,"Fertilizantes Orgânicos/Organominerais",null,null,null,null,null,null,null,null,"Fertilizantes Orgânicos/Organominerais",null,null,null,null,null,null,null,null,"Fertilizantes Orgânicos/Organominerais",null,null,null,null,null,null,null,null,null,null,"Fertilizantes Orgânicos/Organominerais",null,null,null,null,null,null,null,null,"Fertilizantes Orgânicos/Organominerais"]
[null,null,"Vinhaça",616.28,"L/t cana","Concentração de N",0.375,"g N/L",null,null,null,"Vinhaça",440.2,"L/t cana","Concentração de N",0.375,"g N/L",null,null,null,"Vinhaça",{"$f":"D71*($D$35/$V$35)+M71*($M$35/$V$35)","v":616.28},"L/t cana","Concentração de N",{"$f":"IF((D71*$D$35+M71*$M$35)<>0,(G71*D71*$D$35+P71*M71*$M$35)/(D71*$D$35+M71*$M$35),0)","v":0.375},"g N/L",null,null,null,null,null,"Vinhaça",616.28,"L/t cana","Concentração de N",0.375,"g N/L",null,null,null,"Vinhaça",440.2,"L/t cana","Concentração de N",0.375,"g N/L"]
[null,null,"Torta de Filtro (base úmida)",42.800000000000011,"kg/t cana","Concentração de N",14,"g N/kg",null,null,null,"Torta de Filtro (base úmida)",30.571428571428577,"kg/t cana","Concentração de N",14,"g N/kg",null,null,null,"Torta de Filtro (base úmida)",42.800000000000011,"kg/t cana","Concentração de N",13.999999999999998,"g N/kg",null,null,null,null,null,"Torta de Filtro (base úmida)",42.800000000000011,"kg/t cana","Concentração de N",14,"g N/kg",null,null,null,"Torta de Filtro (base úmida)",30.571428571428577,"kg/t cana","Concentração de N",14,"g N/kg"]
[null,null,"Cinzas e fuligem (base úmida)",10.08,"kg/t cana","Concentração de N",null,"g N/kg",null,null,null,"Cinzas e fuligem (base úmida)",7.2,"kg/t cana","Concentração de N",null,"g N/kg",null,null,null,"Cinzas e fuligem (base úmida)",10.08,"kg/t cana","Concentração de N",0,"g N/kg",null,null,null,null,null,"Cinzas e fuligem (base úmida)",10.08,"kg/t cana","Concentração de N",null,"g N/kg",null,null,null,"Cinzas e fuligem (base úmida)",7.2,"kg/t cana","Concentração de N",null,"g N/kg"]
[null,"Outros","especificar",0,"kg/t cana","Concentração de N",null,"g N/kg",null,null,"Outros","especificar",0,"kg/t cana","Concentração de N",null,"g N/kg",null,null,"Outros","especificar",0,"kg/t cana","Concentração de N",{"$f":"IF((D74*$D$35+M74*$M$35)<>0,(G74*D74*$D$35+P74*M74*$M$35)/(D74*$D$35+M74*$M$35),0)","v":0},"g N/kg",null,null,null,null,"Outros","especificar",0,"kg/t cana","Concentração de N",null,"g N/kg",null,null,"Outros","especificar",0,"kg/t cana","Concentração de N",null,"g N/kg"]
[null,"Outros","especificar",0,"kg/t cana","Concentração de N",null,"g N/kg",null,null,"Outros","especificar",0,"kg/t cana","Concentração de N",null,"g N/kg",null,null,"Outros","especificar",0,"kg/t cana","Concentração de N",{"$f":"IF((D75*$D$35+M75*$M$35)<>0,(G75*D75*$D$35+P75*M75*$M$35)/(D75*$D$35+M75*$M$35),0)","v":0},"g N/kg",null,null,null,null,"Outros","especificar",0,"kg/t cana","Concentração de N",null,"g N/kg",null,null,"Outros","especificar",0,"kg/t cana","Concentração de N",null,"g N/kg"]
[]
[null,"Combustíveis e eletricidade da rede",null,null,null,null,null,null,null,null,"Combustíveis e eletricidade da rede",null,null,null,null,null,null,null,null,"Combustíveis e eletricidade da rede",null,null,null,null,null,null,null,null,null,null,"Combustíveis e eletricidade da rede",null,null,null,null,null,null,null,null,"Combustíveis e eletricidade da rede"]
[null,null,"Diesel - B8",4.452,"L/t cana",null,null,null,null,null,null,"Diesel - B8",3.18,"L/t cana",null,null,null,null,null,null,"Diesel - B8",{"$f":"D78*($D$35/$V$35)+M78*($M$35/$V$35)","v":4.452},"L/t cana",null,null,null,null,null,null,null,null,"Diesel - B8",4.452,"L/t cana",null,null,null,null,null,null,"Diesel - B8",3.18,"L/t cana"]
[null,null,"Diesel - B10",0,"L/t cana",null,null,null,null,null,null,"Diesel - B10",0,"L/t cana",null,null,null,null,null,null,"Diesel - B10",0,"L/t cana",null,null,null,null,null,null,null,null,"Diesel - B10",0,"L/t cana",null,null,null,null,null,null,"Diesel - B10",0,"L/t cana"]
[null,null,"Diesel - BX",0,"L/t cana","Teor de biodiesel na mistura",0.11,null,null,null,null,"Diesel - BX",0,"L/t cana","Teor de biodiesel na mistura",0.11,null,null,null,null,"Diesel - BX",0,"L/t cana","Teor médio de biodiesel na mistura",{"$f":"IF((D80*$D$35+M80*$M$35)<>0,(G80*D80*$D$35+P80*M80*$M$35)/(D80*$D$35+M80*$M$35),0)","v":0},"%",null,null,null,null,null,"Diesel - BX",0,"L/t cana","Teor médio de biodiesel na mistura",0.11,"%",null,null,null,"Diesel - BX",0,"L/t cana","Teor médio de biodiesel na mistura",0.11,"%"]
[null,null,"Diesel - B20",0,"L/t cana",null,null,null,null,null,null,"Diesel - B20",0,"L/t cana",null,null,null,null,null,null,"Diesel - B20",0,"L/t cana",null,null,null,null,null,null,null,null,"Diesel - B20",0,"L/t cana",null,null,null,null,null,null,"Diesel - B20",0,"L/t cana"]
[null,null,"Diesel - B30",0,"L/t cana",null,null,null,null,null,null,"Diesel - B30",0,"L/t cana",null,null,null,null,null,null,"Diesel - B30",0,"L/t cana",null,null,null,null,null,null,null,null,"Diesel - B30",0,"L/t cana",null,null,null,null,null,null,"Diesel - B30",0,"L/t cana"]
[null,null,"Biodiesel - B100",0,"L/t cana",null,null,null,null,null,null,"Biodiesel - B100",0,"L/t cana",null,null,null,null,null,null,"Biodiesel - B100",0,"L/t cana",null,null,null,null,null,null,null,null,"Biodiesel - B100",0,"L/t cana",null,null,null,null,null,null,"Biodiesel - B100",0,"L/t cana"]
[null,null,"Gasolina C",0,"L/t cana",null,null,null,null,null,null,"Gasolina C",0,"L/t cana",null,null,null,null,null,null,"Gasolina C",0,"L/t cana",null,null,null,null,null,null,null,null,"Gasolina C",0,"L/t cana",null,null,null,null,null,null,"Gasolina C",0,"L/t cana"]
[null,null,"Etanol hidratado",0,"L/t cana",null,null,null,null,null,null,"Etanol hidratado",0,"L/t cana",null,null,null,null,null,null,"Etanol hidratado",0,"L/t cana",null,null,null,null,null,null,null,null,"Etanol hidratado",0,"L/t cana",null,null,null,null,null,null,"Etanol hidratado",0,"L/t cana"]
[null,null,"Biometano de terceiros",0,"Nm³/t cana",null,null,null,null,null,null,"Biometano de terceiros",0,"Nm³/t cana",null,null,null,null,null,null,"Biometano de terceiros",0,"Nm³/t cana",null,null,null,null,null,null,null,null,"Biometano de terceiros",0,"Nm³/t cana",null,null,null,null,null,null,"Biometano de terceiros",0,"Nm³/t cana"]
[null,null,"Biometano próprio",0,"Nm³/t cana",null,null,null,null,null,null,"Biometano próprio",0,"Nm³/t cana",null,null,null,null,null,null,"Biometano próprio",0,"Nm³/t cana",null,null,null,null,null,null,null,null,"Biometano próprio",0,"Nm³/t cana",null,null,null,null,null,null,"Biometano próprio",0,"Nm³/t cana"]
[null,null,"Eletricidade da rede - mix médio",0,"kWh/t cana",null,null,null,null,null,null,"Eletricidade da rede - mix médio",0,"kWh/t cana",null,null,null,null,null,null,"Eletricidade da rede - mix médio",0,"kWh/t cana",null,null,null,null,null,null,null,null,"Eletricidade da rede - mix médio",0,"kWh/t cana",null,null,null,null,null,null,"Eletricidade da rede - mix médio",0,"kWh/t cana"]
[null,null,"Eletricidade - PCH",0,"kWh/t cana",null,null,null,null,null,null,"Eletricidade - PCH",0,"kWh/t cana",null,null,null,null,null,null,"Eletricidade - PCH",0,"kWh/t cana",null,null,null,null,null,null,null,null,"Eletricidade - PCH",0,"kWh/t cana",null,null,null,null,null,null,"Eletricidade - PCH",0,"kWh/t cana"]
[null,null,"Eletricidade - biomassa",0,"kWh/t cana",null,null,null,null,null,null,"Eletricidade - biomassa",0,"kWh/t cana",null,null,null,null,null,null,"Eletricidade - biomassa",0,"kWh/t cana",null,null,null,null,null,null,null,null,"Eletricidade - biomassa",0,"kWh/t cana",null,null,null,null,null,null,"Eletricidade - biomassa",0,"kWh/t cana"]
[null,null,"Eletricidade - eólica",0,"kWh/t cana",null,null,null,null,null,null,"Eletricidade - eólica",0,"kWh/t cana",null,null,null,null,null,null,"Eletricidade - eólica",0,"kWh/t cana",null,null,null,null,null,null,null,null,"Eletricidade - eólica",0,"kWh/t cana",null,null,null,null,null,null,"Eletricidade - eólica",0,"kWh/t cana"]
[null,null,"Eletricidade - solar",0,"kWh/t cana",null,null,null,null,null,null,"Eletricidade - solar",0,"kWh/t cana",null,null,null,null,null,null,"Eletricidade - solar",0,"kWh/t cana",null,null,null,null,null,null,null,null,"Eletricidade - solar",0,"kWh/t cana",null,null,null,null,null,null,"Eletricidade - solar",0,"kWh/t cana"]
[]
[]
[null,"Fase industrial - processamento do etanol"]
[null,"Processamento e rendimentos"]
[null,null,"Quantidade de cana processada",2000000,"t cana"]
[null,null,"Quantidade de palha processada (base seca)",0,"t palha"]
[null,null,"Rendimento Etanol Anidro",17.534766118836913,"L/t cana"]
[null,null,"Rendimento Etanol Hidratado",25.080346106304077,"L/t cana"]
[null,null,"Rendimento Açúcar",58.45,"kg/t cana"]
[null,null,"Rendimento Energia Elétrica Comercializada",30.81,"kWh/t cana"]
[null,null,"Rendimento Bagaço Comercializado (base úmida)",0,"kg/t cana","Umidade",0.5]
[]
[null,"Combustíveis"]
[null,null,"Bagaço próprio"]
[null,null,"Quantidade (base úmida)",300,"kg/t cana"]
[null,null,"Umidade",0.5]
[]
[null,null,"Palha própria"]
[null,null,"Quantidade (base úmida)",0,"kg/t cana"]
[null,null,"Umidade",0]
[]
[null,null,"Bagaço de terceiros"]
[null,null,"Quantidade (base úmida)",0,"kg/t cana"]
[null,null,"Umidade",0]
[null,null,"Distância de transporte",0," km"]
[]
[null,null,"Palha de terceiros"]
[null,null,"Quantidade (base úmida)",0,"kg/t cana"]
[null,null,"Umidade",0]
[null,null,"Distância de transporte",0," km"]
[]
[null,null,"Cavaco de madeira"]
[null,null,"Quantidade (base úmida)",0,"kg/t cana"]
[null,null,"Umidade",0]
[null,null,"Distância de transporte",0," km"]
[]
[null,null,"Lenha"]
[null,null,"Quantidade (base úmida)",0,"kg/t cana"]
[null,null,"Umidade",0]
[null,null,"Distância de transporte",0," km"]
[]
[null,null,"Resíduos florestais"]
[null,null,"Quantidade (base úmida)",0,"kg/t cana"]
[null,null,"Umidade",0]
[null,null,"Distância de transporte",0," km"]
[]
[]
[null,"Distribuição dos biocombustíveis"]
[]
[null,null,"Etanol anidro"]
[null,null,"Rodoviário",1]
[null,null,"Rodoviário + Dutoviário",0]
[null,null,"Rodoviário + Ferroviário",0]
[]
[]
[null,null,"Etanol hidradado"]
[null,null,"Rodoviário",1,"%"]
[null,null,"Rodoviário + Dutoviário",0,"%"]
[null,null,"Rodoviário + Ferroviário",0,"%"]

{"sheet":"_E1GC","index":3,"n_rows":159,"n_cols":7,"rows_kept":159,"cut":false,"hidden":false,"merged":[[1,1,1,5],[10,1,10,5],[88,1,88,5],[131,1,131,5],[3,4,3,5],[2,4,2,5],[3,2,3,3],[2,2,2,3]]}
[]
[null,"Emissões totais - g CO₂ eq"]
[null,null,"Anidro",null,"Hidratado"]
[null,"Total",{"$f":"C5+C6+C7+C8","v":30.354216586413958},null,{"$f":"E5+E6+E7+E8","v":30.635551287760904}]
[null,"Agrícola",{"$f":"$G$86","v":28.062836016932998},{"$f":"C5/$C$4","v":0.92451195164409072},{"$f":"$G$86","v":28.062836016932998},{"$f":"E5/$E$4","v":0.91602190387689475}]
[null,"Industrial",{"$f":"($G$129-$G$97)","v":1.0496980705767953},{"$f":"C6/$C$4","v":3.4581622872343301E-2},{"$f":"($G$129-$G$97)","v":1.0496980705767953},{"$f":"E6/$E$4","v":3.426405030929397E-2}]
[null,"Transporte",{"$f":"$D$159","v":0.80268195850394575},{"$f":"C7/$C$4","v":2.6443837093236423E-2},{"$f":"$E$159","v":0.86001638411137038},{"$f":"E7/$E$4","v":2.8072495775682427E-2}]
[null,"Uso",{"$f":"'FE''s queima combustíveis'!$I$7","v":0.43900054040021891},{"$f":"C8/$C$4","v":1.4462588390329541E-2},{"$f":"'FE''s queima combustíveis'!$I$8","v":0.66300081613973838},{"$f":"E8/$E$4","v":2.1641550038128787E-2}]
[]
[]
[null,"Etapa agrícola - Cana-de-açúcar"]
[null,"Produto",null,"1 ha médio","1 t cana"]
[null,"Produção de cana","kg",{"$f":"(E1GC!V35/E1GC!V33)*1000","v":66735.200100000002},1000]
[null,"Entradas da natureza",null,"1 ha médio","1 t cana"]
[null,"Ocupação total","ha",1,{"$f":"(D15*E13)/D13","v":1.4984595813027314E-2}]
[null,"Entradas da tecnosfera",null,"1 ha médio","1 t cana","g CO2 eq/t cana"]
[null,"Fertilizantes e corretivos",null,null,null,null,"1 MJ"]
[null,"Calcário calcítico","kg",null,{"$f":"E1GC!V48","v":0},{"$f":"E18*'Dados auxiliares'!$H$48","v":0},{"$f":"(F18/$E$91)*$F$91","v":0}]
[null,"Calcário dolomítico","kg",null,{"$f":"E1GC!V49","v":8.1059999999999999},{"$f":"E19*'Dados auxiliares'!$H$49","v":298.58968145809342},0.15046962707653402]
[null,"Gesso","kg",null,{"$f":"E1GC!V50","v":3.9060000000000001},{"$f":"E20*'Dados auxiliares'!$H$50","v":11.049583125960888},5.5682656017965746E-3]
[null,"N - Ureia","kg N",null,{"$f":"E1GC!V53","v":1.5498000000000001},{"$f":"E21*'Dados auxiliares'!$H$51","v":4976.7398224015105},2.5079506481163887]
[null,"N - Fosfato monoamônico (MAP)","kg N",null,{"$f":"E1GC!V54","v":0},{"$f":"E22*'Dados auxiliares'!$H$52","v":0},0]
[null,"P₂O₅ - Fosfato monoamônico (MAP)","kg P₂O₅",null,{"$f":"E1GC!V55","v":0},{"$f":"E23*'Dados auxiliares'!$H$53","v":0},0]
[null,"N - Fosfato diamônico (DAP)","kg N",null,{"$f":"E1GC!V56","v":0},{"$f":"E24*'Dados auxiliares'!$H$54","v":0},0]
[null,"P₂O₅ - Fosfato diamônico (DAP)","kg P₂O₅",null,{"$f":"E1GC!V57","v":0},{"$f":"E25*'Dados auxiliares'!$H$55","v":0},0]
[null,"N - Nitrato de amônio","kg N",null,{"$f":"E1GC!V58","v":0},{"$f":"E26*'Dados auxiliares'!$H$56","v":0},0]
[null,"N - Solução de nitrato de amônio e ureia (UAN)","kg N",null,{"$f":"E1GC!V59","v":0},{"$f":"E27*'Dados auxiliares'!$H$57","v":0},0]
[null,"N - Amônia anidra","kg N",null,{"$f":"E1GC!V60","v":0},{"$f":"E28*'Dados auxiliares'!$H$58","v":0},0]
[null,"N - Sulfato de amônio","kg N",null,{"$f":"E1GC!V61","v":0},{"$f":"E29*'Dados auxiliares'!$H$59","v":0},0]
[null,"N - Nitrato de amônio e cálcio (CAN)","kg N",null,{"$f":"E1GC!V62","v":0},{"$f":"E30*'Dados auxiliares'!$H$60","v":0},0]
[null,"P₂O₅ - Superfosfato simples (SSP)","kg P₂O₅",null,{"$f":"E1GC!V63","v":0.62145836671396526},{"$f":"E31*'Dados auxiliares'!$H$62","v":1471.3998899702644},0.74148909514594907]
[null,"P₂O₅ - Superfosfato triplo (TSP)","kg P₂O₅",null,{"$f":"E1GC!V64","v":0},{"$f":"E32*'Dados auxiliares'!$H$63","v":0},0]
[null,"K₂O - Cloreto de potássio (KCl)","kg K₂O",null,{"$f":"E1GC!V65","v":1.8846868622743767},{"$f":"E33*'Dados auxiliares'!H$64","v":857.92408660060732},0.43233750322643766]
[null,"N - Outros","kg N",null,{"$f":"E1GC!V66","v":0},{"$f":"E34*'Dados auxiliares'!H$65","v":0},0]
[null,"P₂O₅ - Outros","kg P₂O₅",null,{"$f":"E1GC!V67","v":0},{"$f":"E35*'Dados auxiliares'!H$66","v":0},0]
[null,"K₂O - Outros","kg K₂O",null,{"$f":"E1GC!V68","v":0},{"$f":"E36*'Dados auxiliares'!H$67","v":0},0]
[null,"Vinhaça","L",null,{"$f":"E1GC!V71","v":616.28},0,0]
[null,"Torta de filtro","kg",null,{"$f":"E1GC!V72","v":42.800000000000011},0,0]
[null,"Cinzas e fuligem","kg",null,{"$f":"E1GC!V73","v":10.08},0,0]
[null,"Outros Fertilizantes Orgânicos/Organominerais","kg",null,{"$f":"E1GC!V74+E1GC!V74","v":0},0,0]
[null,"Agrotóxico"]
[null,"Herbicidas e Inseticidas - Total","kg",{"$f":"SUM(D43:D56)","v":1.0831569385065971},{"$f":"SUM(E43:E56)","v":1.6230668925597439E-2},{"$f":"SUM(F43:F56)","v":173.16442846013771},{"$f":"(F42/$E$91)*$F$91","v":8.7263521117272744E-2}]
[null,"Herbicida, Roundup Ready, como glifosato","kg",0.17411826749021314,{"$f":"D43*$E$15","v":2.6090918620054176E-3},{"$f":"E43*'Dados auxiliares'!$H$68","v":30.019445344830356},1.5127832696773797E-2]
[null,"Herbicida, Boral 500 SC, como sulfentrazone","kg",0.51076802087864281,{"$f":"D44*$E$15","v":7.6536523470863583E-3},{"$f":"E44*'Dados auxiliares'!$H$70","v":82.219524027433749},4.1433250668290122E-2]
[null,"Herbicida, Hexaron, como hexazinona","kg",7.3793224880382789E-3,{"$f":"D45*$E$15","v":1.1057616485723669E-4},{"$f":"E45*'Dados auxiliares'!$H$70","v":1.1878668158741317},5.9860701122806906E-4]
[null,"Herbicida, Combine 500 SC, como tebuthiuron","kg",0.17491467014644049,2.6210256339134061E-3,{"$f":"E46*'Dados auxiliares'!$H$70","v":28.156423928257052},1.4188992022781101E-2]
[null,"Herbicida, Goal, como oxifluorfen","kg",4.4723166594171377E-3,6.7015857489234344E-5,{"$f":"E47*'Dados auxiliares'!$H$70","v":0.71991928234795854},3.6279212801701156E-4]
[null,"Herbicida, Diuron, como diuron","kg",9.3173263737857046E-3,1.3961636976923825E-4,{"$f":"E48*'Dados auxiliares'!$H$70","v":1.4998318382249138},7.5581693336877406E-4]
[null,"Herbicida, Herburon, como diuron","kg",4.6586631868928516E-2,{"$f":"D49*$E$15","v":6.9808184884619106E-4},{"$f":"E49*'Dados auxiliares'!$H$70","v":7.4991591911245674},3.7790846668438699E-3]
[null,"Herbicida, Hexaron, como diuron","kg",2.616305245759026E-2,{"$f":"D50*$E$15","v":3.92042766312021E-4},{"$f":"E50*'Dados auxiliares'!$H$70","v":4.2115278017355582},2.1223339488995177E-3]
[null,"Herbicida, Herbipak, como ametrina","kg",4.6586631868928516E-2,6.9808184884619106E-4,{"$f":"E51*'Dados auxiliares'!$H$70","v":7.4991591911245674},3.7790846668438699E-3]
[null,"Herbicida, Nortox, como 2,4 D","kg",3.7548825286356391E-2,5.6265397017003012E-4,{"$f":"E52*'Dados auxiliares'!$H$69","v":2.8592224926993826},1.4408607159644786E-3]
[null,"Inseticida, Actara, como thiamethoxan","kg",9.3173263737857046E-3,1.3961636976923825E-4,{"$f":"E53*'Dados auxiliares'!$H$70","v":1.4998318382249138},7.5581693336877406E-4]
[null,"Inseticida, Mirex, como sulfluramida","kg",6.987994780339279E-5,1.0471227732692868E-6,{"$f":"E54*'Dados auxiliares'!$H$70","v":1.1248738786686854E-2},5.6686270002658056E-6]
[null,"Inseticida, Regent 800 WG, como fipronil","kg",3.4051201391909529E-2,{"$f":"D55*$E$15","v":5.1024348980575733E-4},{"$f":"E55*'Dados auxiliares'!$H$70","v":5.4813016018289185},2.7622167112193426E-3]
[null,"Inseticida, Regent 800 WG, como fipronil","kg",1.8634652747571412E-3,{"$f":"D56*$E$15","v":2.7923273953847651E-5},{"$f":"E56*'Dados auxiliares'!$H$70","v":0.2999663676449828},1.5116338667375484E-4]
[null,"Combustíveis e eletricidade"]
[null,"Diesel B0","kg",null,{"$f":"(E1GC!$V$78*(1-0.08)+E1GC!$V$79*(1-0.1)+E1GC!$V$80*(1-E1GC!$Y$80)+E1GC!V81*(1-0.2)+E1GC!$V$82*(1-0.3)+E1GC!$V$83*(1-1))*('Dados auxiliares'!$D$24)","v":3.4405055999999998},{"$f":"E58*'Dados auxiliares'!$H$112","v":1913.3659911362952},{"$f":"(F58/$E$91)*$F$91","v":0.96421103951513476}]
[null,"Biodiesel B100","kg",null,{"$f":"(E1GC!$V$78*(0.08)+E1GC!$V$79*(0.1)+E1GC!$V$80*(E1GC!$Y$80)+E1GC!V82*(0.2)+E1GC!$V$82*(0.3)+E1GC!$V$83*(1))*('Dados auxiliares'!$D$17)","v":0.3134208},{"$f":"E59*'Dados auxiliares'!$H$113","v":309.31189543340491},0.15587292008525896]
[null,"Gasolina A","kg",null,{"$f":"E1GC!V84*(1-'FE''s queima combustíveis'!$D$16)*'Dados auxiliares'!$D$22","v":0},{"$f":"E60*'Dados auxiliares'!$H$116","v":0},0]
[null,"Etanol anidro","kg",null,{"$f":"E1GC!V84*('FE''s queima combustíveis'!$D$16)*'Dados auxiliares'!$D$15","v":0},{"$f":"E61*'Dados auxiliares'!$H$117","v":0},0]
[null,"Etanol hidratado","kg",null,{"$f":"E1GC!V85*'Dados auxiliares'!$D$16","v":0},{"$f":"E62*'Dados auxiliares'!$H$118","v":0},0]
[null,"Biometano de terceiros","Nm³",null,{"$f":"E1GC!V86","v":0},{"$f":"E63*'Dados auxiliares'!$F$18","v":0},0]
[null,"Eletricidade da rede - mix médio","kWh",null,{"$f":"E1GC!V88","v":0},{"$f":"E64*'Dados auxiliares'!$H$103","v":0},0]
[null,"Eletricidade - PCH","kWh",null,{"$f":"E1GC!V89","v":0},{"$f":"E65*'Dados auxiliares'!$H$104","v":0},0]
[null,"Eletricidade - biomassa","kWh",null,{"$f":"E1GC!V90","v":0},{"$f":"E66*'Dados auxiliares'!$H$105","v":0},0]
[null,"Eletricidade - eólica","kWh",null,{"$f":"E1GC!V91","v":0},{"$f":"E67*'Dados auxiliares'!$H$106","v":0},0]
[null,"Eletricidade - solar","kWh",null,{"$f":"E1GC!V92","v":0},{"$f":"E68*'Dados auxiliares'!$H$107","v":0},0]
[null,"Emissões",null,"1 ha médio","1 t cana","g CO2 eq/t cana"]
[null,"N2O - Fertilizantes sintéticos","kg",{"$f":"'_Emissões Agrícolas'!$C$54","v":2.1534815087869048},{"$f":"D70*$E$15","v":3.2269049999999994E-2},{"$f":"E70*1000*'Dados auxiliares'!$D$9","v":8551.298249999998},{"$f":"(F70/$E$91)*$F$91","v":4.309293785419392}]
[null,"N2O - Fertilizantes organominerais","kg",{"$f":"'_Emissões Agrícolas'!$C$58","v":1.2408009853582902},{"$f":"D71*$E$15","v":1.8592901250000002E-2},{"$f":"E71*1000*'Dados auxiliares'!$D$9","v":4927.1188312499999},{"$f":"(F71/$E$91)*$F$91","v":2.4829449212028694}]
[null,"N2O - Resíduos culturais","kg",{"$f":"'_Emissões Agrícolas'!$C$62","v":0.4278792421231597},{"$f":"D72*$E$15","v":6.4115974999999987E-3},{"$f":"E72*1000*'Dados auxiliares'!$D$9","v":1699.0733374999995},0.85622158884009614]
[null,"CO2 - Calcário ","kg",null,{"$f":"$E$18*'_Emissões Agrícolas'!$E$79+$E$19*'_Emissões Agrícolas'!$E$80","v":3.8638599999999999},{"$f":"E73*1000","v":3863.8599999999997},{"$f":"(F73/$E$91)*$F$91","v":1.9471321662451164}]
[null,"CO2 - Uréia","kg",null,{"$f":"$E$21*'_Emissões Agrícolas'!$E$81","v":2.4181276595744685},{"$f":"E74*1000","v":2418.1276595744685},1.2185778335769071]
[null,"N2O - queima palha","kg",{"$f":"'_Emissões Agrícolas'!C73","v":0.65400496098000016},{"$f":"D75*$E$15","v":9.8000000000000014E-3},{"$f":"E75*1000*'Dados auxiliares'!$D$9","v":2597},1.3087177681744597]
[null,"CH4 bio - queima palha","kg",{"$f":"'_Emissões Agrícolas'!C74","v":25.225905637800007},{"$f":"D76*$E$15","v":0.37800000000000011},{"$f":"E76*1000*'Dados auxiliares'!$D$8","v":10584.000000000004},5.3336422250128939]
[null,"CO₂ eq - queima do diesel","kg",null,{"$f":"$E$58*'FE''s queima combustíveis'!$I$53/1000","v":10.857100306751999},{"$f":"E77*1000","v":10857.100306752},5.4712668780511038]
[null,"CO₂ eq - queima do biodiesel","kg",null,{"$f":"$E$59*'FE''s queima combustíveis'!$I$54/1000","v":5.1846215416934396E-3},{"$f":"E78*1000","v":5.1846215416934394},2.6127094081148496E-3]
[null,"CO₂ eq - queima da gasolina A","kg",null,{"$f":"$E$60*'FE''s queima combustíveis'!$I$9/1000","v":0},0,0]
[null,"CO₂ eq - queima do etanol anidro","kg",null,{"$f":"$E$61*'FE''s queima combustíveis'!$I$7/1000","v":0},0,0]
[null,"CO₂ eq - queima do etanol hidratado","kg",null,{"$f":"$E$62*'FE''s queima combustíveis'!$I$8/1000","v":0},0,0]
[null,"CO₂ eq - queima do biometano","kg",null,{"$f":"($E$63+E1GC!V87)*'FE''s queima combustíveis'!$I$55/1000","v":0},0,0]
[]
[null,"Emissões do processo","g CO2 eq/t cana",null,null,{"$f":"SUM(F70:F82)","v":45502.763006618159},{"$f":"(F84/$E$91)*$F$91","v":22.930409875930952}]
[null,"Emissões background","g CO2 eq/t cana",null,null,{"$f":"SUM(F18:F68)","v":10184.709807046413},{"$f":"(F85/$E$91)*$F$91","v":5.1324261410020453}]
[null,"Emissões totais","g CO2 eq/t cana",null,null,{"$f":"F84+F85","v":55687.472813664572},{"$f":"(F86/$E$91)*$F$91","v":28.062836016932998}]
[]
[]
[null,"Etapa industrial - Etanol"]
[null,"Produtos","Unidade","1 TC","MJ","Alocação"]
[null,"Etanol anidro","kg",{"$f":"E1GC!D99*'Dados auxiliares'!$D$15","v":13.87},{"$f":"D91*'Dados auxiliares'!$F$15","v":391.97820048267573},{"$f":"E91/SUM($E$91:$E$95)","v":0.19753131910232125}]
[null,"Etanol hidratado","kg",{"$f":"E1GC!D100*'Dados auxiliares'!$D$16","v":20.29},{"$f":"D92*'Dados auxiliares'!$F$16","v":535.18542479744713},{"$f":"E92/SUM($E$91:$E$95)","v":0.26969837300747596}]
[null,"Açúcar","kg",{"$f":"E1GC!D101","v":58.45},{"$f":"D93*'Dados auxiliares'!D33","v":946.30550000000017},{"$f":"E93/SUM($E$91:$E$95)","v":0.47687594222996393}]
[null,"Energia elétrica comercializada","kWh",{"$f":"E1GC!D102","v":30.81},{"$f":"CONVERT(D94,\"kWh\",\"MJ\")","v":110.91594471290919},{"$f":"E94/SUM($E$91:$E$95)","v":5.5894365660238844E-2}]
[null,"Bagaço comercializado","kg base úmida",{"$f":"E1GC!D103","v":0},"-","-","Resíduo"]
[null,"Entradas ","Unidade","1 TC",null,"g CO2 eq/t cana"]
[null,"Cana-de-açúcar","t",1,null,{"$f":"D97*F86","v":55687.472813664572},{"$f":"(F97/$E$91)*$F$91","v":28.062836016932998}]
[null,"Água","kg",1500,null,{"$f":"D98*'Dados auxiliares'!$H$79","v":13.202358602448482},6.6531233287775342E-3]
[null,"Cal (CaO)","kg",0.82,null,{"$f":"D99*'Dados auxiliares'!$H$80","v":788.62446998560051},0.39741503900166392]
[null,"Ácido sulfúrico","kg",0.26500000000000001,null,{"$f":"D100*'Dados auxiliares'!$H$84","v":28.980362820546588},1.4604203215784296E-2]
[null,"Ácido fosfórico","kg",{"$f":"176.5/1000","v":0.17649999999999999},null,{"$f":"D101*'Dados auxiliares'!$H$85","v":267.03160716266467},0.13456642624488316]
[null,"Floculante ","kg",{"$f":"2.555/1000","v":2.555E-3},null,{"$f":"D102*'Dados auxiliares'!$H$87","v":5.495541825757118},2.7693928506408358E-3]
[null,"Antibióticos","kg",{"$f":"0.297/1000","v":2.9700000000000001E-4},null,{"$f":"D103*'Dados auxiliares'!$H$88","v":0.63881640792558292},3.2192159555394456E-4]
[null,"Óleo lubrificante","kg",{"$f":"13/1000","v":1.2999999999999999E-2},null,{"$f":"D104*'Dados auxiliares'!$H$89","v":14.708242207038198},7.4119899557044348E-3]
[null,"Zeolita","kg",{"$f":"(D91*0.03)/67.2","v":6.191964285714285E-3},null,{"$f":"D105*'Dados auxiliares'!$H$90","v":31.023780241083561},1.5633951650922517E-2]
[null,"Bagaço próprio","kg base seca",{"$f":"E1GC!$D$107*(1-E1GC!$D$108)","v":150},null,0,0]
[null,"Palha própria","kg base seca",{"$f":"E1GC!$D$111*(1-E1GC!$D$112)","v":0},null,0,0]
[null,"Bagaço de terceiros","kg base seca",{"$f":"E1GC!$D$115*(1-E1GC!$D$116)","v":0},null,0,0]
[null,"Transporte de bagaço de terceiros","tkm",{"$f":"((D108/1000)*E1GC!$D$117)","v":0},null,{"$f":"D109*'Dados auxiliares'!$H$125","v":0},0]
[null,"Palha de terceiros","kg base seca",{"$f":"E1GC!$D$120*(1-E1GC!$D$121)","v":0},null,{"$f":"D110*'Dados auxiliares'!$H$74","v":0},0]
[null,"Transporte de palha de terceiros","tkm",{"$f":"((D110/1000)*E1GC!$D$122)","v":0},null,{"$f":"D111*'Dados auxiliares'!$H$125","v":0},0]
[null,"Cavaco de madeira","kg base seca",{"$f":"E1GC!$D$125*(1-E1GC!$D$126)","v":0},null,{"$f":"D112*'Dados auxiliares'!$H$119","v":0},0]
[null,"Transporte de cavaco de madeira","tkm",{"$f":"((D112/1000)*E1GC!$D$127)","v":0},null,{"$f":"D113*'Dados auxiliares'!$H$125","v":0},0]
[null,"Lenha","kg base seca",{"$f":"E1GC!$D$130*(1-E1GC!$D$131)","v":0},null,{"$f":"D114*'Dados auxiliares'!$H$120","v":0},0]
[null,"Transporte de lenha","tkm",{"$f":"((D114/1000)*E1GC!$D$132)","v":0},null,{"$f":"D115*'Dados auxiliares'!$H$125","v":0},0]
[null,"Resíduos florestais","kg base seca",{"$f":"E1GC!$D$135*(1-E1GC!$D$136)","v":0},null,0,0]
[null,"Transporte de resíduos florestais","tkm",{"$f":"((D116/1000)*E1GC!$D$137)","v":0},null,{"$f":"D117*'Dados auxiliares'!$H$125","v":0},0]
[null,"Emissões","Unidade","1 TC",null,"g CO2 eq/t cana"]
[null,"CO₂ eq - queima do bagaço próprio","kg",{"$f":"$D$106*'FE''s queima combustíveis'!$I$33/1000","v":0.93330000000000002},null,{"$f":"D119*1000","v":933.30000000000007},0.47032202273285456]
[null,"CO₂ eq - queima da palha própria","kg",{"$f":"$D$107*'FE''s queima combustíveis'!$I$34/1000","v":0},null,{"$f":"D120*1000","v":0},0]
[null,"CO₂ eq - queima do bagaço de terceiros","kg",{"$f":"$D$108*'FE''s queima combustíveis'!$I$33/1000","v":0},null,0,0]
[null,"CO₂ eq - queima da palha de terceiros","kg",{"$f":"$D$110*'FE''s queima combustíveis'!$I$34/1000","v":0},null,0,0]
[null,"CO₂ eq - queima dos cavacos de madeira","kg",{"$f":"$D$112*'FE''s queima combustíveis'!$I$35/1000","v":0},null,0,0]
[null,"CO₂ eq - queima da lenha","kg",{"$f":"$D$114*'FE''s queima combustíveis'!$I$36/1000","v":0},null,0,0]
[null,"CO₂ eq - queima dos resíduos florestais","kg",{"$f":"$D$116*'FE''s queima combustíveis'!$I$37/1000","v":0},null,0,0]
[]
[null,"Emissões do processo","g CO2 eq/t cana",null,null,{"$f":"SUM(F119:F125)","v":933.30000000000007},0.47032202273285456]
[null,"Emissões background","g CO2 eq/t cana",null,null,{"$f":"SUM(F97:F117)","v":56837.177992917648},28.642212064776931]
[null,"Emissões totais","g CO2 eq/t cana",null,null,{"$f":"F127+F128","v":57770.477992917651},29.112534087509793]
[]
[]
[null,"Etapa distribuição"]
[null,"Sistema logiístico rodoviário"]
[null,"Parâmetro","Unidade","Etanol anidro","Etanol hidratado"]
[null,"Massa","kg/t cana",{"$f":"$D$91*E1GC!$D$143","v":13.87},{"$f":"$D$92*E1GC!$D$149","v":20.29}]
[null,"Distância de transporte rodoviário","km",700,700]
[null,"Transporte rodoviário","tkm/t cana",{"$f":"D135/1000*D136","v":9.7089999999999996},{"$f":"E135/1000*E136","v":14.202999999999999}]
[null,"Emissões","g CO2 eq/t cana",{"$f":"D137*'Dados auxiliares'!$H$126","v":314.63382965428644},{"$f":"E137*'Dados auxiliares'!$H$126","v":460.26823386340823}]
[null,"Emissões","g CO2 eq/MJ",{"$f":"D138/$E$91","v":0.80268195850394575},{"$f":"E138/$E$92","v":0.86001638411137038}]
[null,"Sistema logiístico rodoviário + dutoviário"]
[null,"Parâmetro","Unidade","Etanol anidro","Etanol hidratado"]
[null,"Massa","kg/t cana",{"$f":"$D$91*E1GC!$D$144","v":0},{"$f":"$D$92*E1GC!$D$150","v":0}]
[null,"Distância de transporte rodoviário","km",400,400]
[null,"Transporte rodoviário","tkm/t cana",{"$f":"D142/1000*D143","v":0},{"$f":"E142/1000*E143","v":0}]
[null,"Distância de transporte dutoviário","km",300,300]
[null,"Transporte dutoviário","tkm/t cana",{"$f":"D142/1000*D145","v":0},{"$f":"E142/1000*E145","v":0}]
[null,"Emissões","g CO2 eq/t cana",{"$f":"D144*'Dados auxiliares'!$H$126+D146*'Dados auxiliares'!$H$130","v":0},{"$f":"E144*'Dados auxiliares'!$H$126+E146*'Dados auxiliares'!$H$130","v":0}]
[null,"Emissões","g CO2 eq/MJ",{"$f":"D147/$E$91","v":0},{"$f":"E147/$E$92","v":0}]
[null,"Sistema logiístico rodoviário + ferroviário"]
[null,"Parâmetro","Unidade","Etanol anidro","Etanol hidratado"]
[null,"Massa","kg/t cana",{"$f":"$D$91*E1GC!$D$145","v":0},{"$f":"$D$92*E1GC!$D$151","v":0}]
[null,"Distância de transporte rodoviário","km",400,400]
[null,"Transporte rodoviário","tkm/t cana",{"$f":"D151/1000*D152","v":0},{"$f":"E151/1000*E152","v":0}]
[null,"Distância de transporte ferroviário","km",300,300]
[null,"Transporte ferroviário","tkm/t cana",{"$f":"D151/1000*D154","v":0},{"$f":"E151/1000*E154","v":0}]
[null,"Emissões","g CO2 eq/t cana",{"$f":"D153*'Dados auxiliares'!$H$126+D155*'Dados auxiliares'!$H$129","v":0},{"$f":"E153*'Dados auxiliares'!$H$126+E155*'Dados auxiliares'!$H$129","v":0}]
[null,"Emissões","g CO2 eq/MJ",{"$f":"D156/$E$91","v":0},{"$f":"E156/$E$92","v":0}]
[]
[null,"Emissões totais","g CO2 eq/MJ",{"$f":"D139+D148+D157","v":0.80268195850394575},{"$f":"E139+E148+E157","v":0.86001638411137038}]

{"sheet":"E1G2G","index":4,"n_rows":162,"n_cols":46,"rows_kept":162,"cut":false,"hidden":false,"merged":[[14,3,14,5],[27,3,27,6],[27,12,27,13],[27,21,27,22],[3,2,3,7],[5,2,5,7],[7,2,7,7],[9,2,9,3],[12,2,12,3],[22,10,22,16],[22,19,22,25],[24,1,24,2],[24,10,24,11],[24,19,24,20],[22,30,22,36],[23,1,23,7],[23,10,23,16],[23,19,23,25],[23,30,23,36],[22,1,22,7],[39,1,39,7],[39,10,39,16],[39,19,39,25],[39,30,39,36],[43,1,43,7],[43,10,43,16],[43,19,43,25],[43,30,43,36],[46,19,46,25],[46,30,46,36],[51,1,51,7],[51,10,51,16],[51,19,51,25],[51,30,51,36],[46,1,46,7],[46,10,46,16],[69,30,69,36],[76,1,76,7],[76,10,76,16],[76,19,76,25],[76,30,76,36],[158,2,158,4],[124,2,124,4],[129,2,129,4],[134,2,134,4],[139,2,139,4],[144,2,144,4],[150,1,150,7],[152,2,152,4],[157,2,157,4],[120,2,120,4],[69,1,69,7],[69,10,69,16],[69,19,69,25],[94,1,94,7],[95,1,95,7],[109,1,109,7],[115,1,115,7],[116,2,116,4],[51,39,51,45],[69,39,69,45],[76,39,76,45],[22,39,22,45],[23,39,23,45],[39,39,39,45],[43,39,43,45],[46,39,46,45]]}
[]
[null,"Produção de Etanol de primeira e segunda geração em usina integrada"]
[]
[null,"Nome da Usina:","Usina Hipotética"]
[]
[null,"CNPJ","00.000.000/0000-00"]
[]
[null,"Responsável pelo preenchimento:","GT ACV RenovaCalc"]
[]
[null,"Telefone :","(00) 0000-0000"]
[]
[]
[null,null,"Etanol Anidro"]
[]
[null,"Intensidade de Carbono\n(g CO₂eq/MJ)",{"$f":"SUM(C17:C20)","v":18.62689279148076},"Nota de Eficiência Energético-Ambiental\n(g CO₂eq/MJ)",null,null,{"$f":"G18-C15","v":68.773107208519249}]
[]
[null,"agrícola",{"$f":"IF(C13=\"Etanol Anidro\",_E1G2G!C5,IF(C13=\"Etanol Hidratado\",_E1G2G!E5,\"\"))","v":16.549569998590528},null,null,null,"Fóssil de referência: Gasolina"]
[null,"industrial",{"$f":"IF(C13=\"Etanol Anidro\",_E1G2G!C6,IF(C13=\"Etanol Hidratado\",_E1G2G!E6,\"\"))","v":0.83564029398606721},null,null,null,87.4]
[null,"transporte",{"$f":"IF(C13=\"Etanol Anidro\",_E1G2G!C7,IF(C13=\"Etanol Hidratado\",_E1G2G!E7,\"\"))","v":0.80268195850394575},null,null,null,"Redução de emissões"]
[null,"uso",{"$f":"IF(C13=\"Etanol Anidro\",_E1G2G!C8,IF(C13=\"Etanol Hidratado\",_E1G2G!E8,\"\"))","v":0.43900054040021891},null,null,null,{"$f":"(G18-C15)/G18","v":0.78687765684804623}]
[]
[]
[null,"Usina - Área de cana própria",null,null,null,null,null,null,null,null,"Fornecedores - Dados consolidados",null,null,null,null,null,null,null,null,"Média ponderada - RenovaCalc",null,null,null,null,null,null,null,null,null,null,"Default - Cana",null,null,null,null,null,null,null,null,"Guarda dados de preenchimento"]
[null,"Informações gerais",null,null,null,null,null,null,null,null,"Informações gerais",null,null,null,null,null,null,null,null,"Informações gerais",null,null,null,null,null,null,null,null,null,null,"Informações gerais",null,null,null,null,null,null,null,null,"Informações gerais"]
[null,"Houve supressão de vegetação nativa a partir de 26 de dezembro de 2017?",null,"Não",null,null,null,null,null,null,"Houve supressão de vegetação nativa a partir de 26 de dezembro de 2017?",null,"Não",null,null,null,null,null,null,"Houve supressão de vegetação nativa a partir de 26 de dezembro de 2017?",null,{"$f":"IF(OR(D25=\"Sim\",M25=\"Sim\"),\"Sim\",\"Não\")","v":"Não"}]
[null,null,"Usina atende ao ZAE Cana?","Sim",null,null,null,null,null,null,null,"Usina atende ao ZAE Cana?","Sim",null,null,null,null,null,null,null,"Usina atende ao ZAE Cana?",{"$f":"IF(OR(D26=Listas!$B$4,M26=Listas!$B$4),Listas!$B$4,Listas!$B$3)","v":"Sim"}]
[]
[null,null,"Número de registro no CAR","UF-1302405-E6D3.395B.6D27.4F42.AE22.DD56.987C.DD51",null,null,null,null,null,null,null,"Número de registro no CAR","Cadastro de fornecedores",null,null,null,null,null,null,null,"Número de registro no CAR","Cadastro de fornecedores"]
[]
[null,null,"Situação do CAR","Ativo",null,null,null,null,null,null,null,"Situação do CAR","Ativo",null,null,null,null,null,null,null,"Situação do CAR",{"$f":"IF(AND(D30=Listas!$B$7,M30=Listas!$B$7),Listas!$B$7,IF(OR(D30=Listas!$B$9,M30=Listas!$B$9),Listas!$B$9,Listas!$B$8))","v":"Ativo"}]
[]
[null,null,"Sistema de plantio","Convencional",null,null,null,null,null,null,null,"Sistema de plantio","Convencional",null,null,null,null,null,null,null,"Sistema de plantio","Convencional"]
[null,null,"Área total",20000,"ha",null,null,null,null,null,null,"Área total",20000,"ha",null,null,null,null,null,null,"Área total",{"$f":"D33+M33","v":40000},"ha"]
[]
[null,null,"Produção total colhida para moagem",1334704.0020000001,"t cana",null,null,null,null,null,null,"Produção total colhida para moagem",1334704.0020000001,"t cana",null,null,null,null,null,null,"Produção total colhida para moagem",{"$f":"D35+M35","v":2669408.0040000002},"t cana"]
[null,null,"Teor de impurezas vegetais (base úmida)",50,"kg/t cana","Umidade",0.5,null,null,null,null,"Teor de impurezas vegetais (base úmida)",50,"kg/t cana","Umidade",0.5,null,null,null,null,"Teor de impurezas vegetais (base úmida)",{"$f":"D36*($D$35/$V$35)+M36*($M$35/$V$35)","v":50},"kg/t cana","Umidade",{"$f":"IF((D36*$D$35+M36*$M$35)<>0,(G36*D36*$D$35+P36*M36*$M$35)/(D36*$D$35+M36*$M$35),0)","v":0.5}]
[null,null,"Teor de impurezas minerais",20,"kg/t cana",null,null,null,null,null,null,"Teor de impurezas minerais",20,"kg/t cana",null,null,null,null,null,null,"Teor de impurezas minerais",20,"kg/t cana"]
[null,null,"Palha recolhida (base seca)",0,"t palha",null,null,null,null,null,null,"Palha recolhida (base seca)",0,"t palha",null,null,null,null,null,null,"Palha recolhida (base seca)",{"$f":"D38+M38","v":0},"t palha"]
[]
[null,"Tipo de preenchimento",null,null,null,null,null,null,null,null,"Tipo de preenchimento",null,null,null,null,null,null,null,null,"Tipo de preenchimento",null,null,null,null,null,null,null,null,null,null,"Tipo de preenchimento",null,null,null,null,null,null,null,null,"Tipo de preenchimento"]
[null,"Tipo de dados forneceidos pela usina:",null,null,null,null,null,null,null,null,"Tipo de dados forneceidos pelos fornecedores:",null,null,null,null,null,null,null,null,"Tipo de dados forneceidos:",null,null,null,null,null,null,null,null,null,null,null,null,"Padrão",null,null,null,null,null,null,null,null,"Primários"]
[null,{"$f":"AP41","v":"Primários"},null,null,null,null,null,null,null,null,"Em função das informações de cada fornecedor",null,null,null,null,null,null,null,null,"Em função das informações da usina e de cada fornecedor"]
[]
[null,"Área Queimada",null,null,null,null,null,null,null,null,"Área Queimada",null,null,null,null,null,null,null,null,"Área Queimada",null,null,null,null,null,null,null,null,null,null,"Área Queimada",null,null,null,null,null,null,null,null,"Área Queimada"]
[null,null,"Área queimada",3680,"ha",null,null,null,null,null,null,"Área queimada",3680,"ha",null,null,null,null,null,null,"Área queimada",{"$f":"D45+M45","v":7360},"ha",null,null,null,null,null,null,null,null,"Área queimada",1,"% da área total",null,null,null,null,null,null,"Área queimada",3680,"% da área total"]
[]
[null,"Corretivos",null,null,null,null,null,null,null,null,"Corretivos",null,null,null,null,null,null,null,null,"Corretivos",null,null,null,null,null,null,null,null,null,null,"Corretivos",null,null,null,null,null,null,null,null,"Corretivos"]
[null,null,"Calcário calcítico",0,"kg/t cana",null,null,null,null,null,null,"Calcário calcítico",0,"kg/t cana",null,null,null,null,null,null,"Calcário calcítico",{"$f":"D48*($D$35/$V$35)+M48*($M$35/$V$35)","v":0},"kg/t cana",null,null,null,null,null,null,null,null,"Calcário calcítico",0,"kg/t cana",null,null,null,null,null,null,"Calcário calcítico",0,"kg/t cana"]
[null,null,"Calcário dolomítico",5.79,"kg/t cana",null,null,null,null,null,null,"Calcário dolomítico",5.79,"kg/t cana",null,null,null,null,null,null,"Calcário dolomítico",{"$f":"D49*($D$35/$V$35)+M49*($M$35/$V$35)","v":5.79},"kg/t cana",null,null,null,null,null,null,null,null,"Calcário dolomítico",8.1059999999999999,"kg/t cana",null,null,null,null,null,null,"Calcário dolomítico",5.79,"kg/t cana"]
[null,null,"Gesso",2.79,"kg/t cana",null,null,null,null,null,null,"Gesso",2.79,"kg/t cana",null,null,null,null,null,null,"Gesso",{"$f":"D50*($D$35/$V$35)+M50*($M$35/$V$35)","v":2.79},"kg/t cana",null,null,null,null,null,null,null,null,"Gesso",3.9060000000000001,"kg/t cana",null,null,null,null,null,null,"Gesso",2.79,"kg/t cana"]
[]
[null,"Fertilizantes Sintéticos",null,null,null,null,null,null,null,null,"Fertilizantes Sintéticos",null,null,null,null,null,null,null,null,"Fertilizantes Sintéticos",null,null,null,null,null,null,null,null,null,null,"Fertilizantes Sintéticos",null,null,null,null,null,null,null,null,"Fertilizantes Sintéticos"]
[null,null,"Ureia",1.107,"kg N/t cana",null,null,null,null,null,null,"Ureia",1.107,"kg N/t cana",null,null,null,null,null,null,"Ureia",{"$f":"D53*($D$35/$V$35)+M53*($M$35/$V$35)","v":1.107},"kg N/t cana",null,null,null,null,null,null,null,null,"Ureia",1.5498000000000001," kg N/TC",null,null,null,null,null,null,"Ureia",1.107," kg N/TC"]
[null,null,"Fosfato monoamônico (MAP)",0,"kg N/t cana",null,null,null,null,null,null,"Fosfato monoamônico (MAP)",0,"kg N/t cana",null,null,null,null,null,null,"Fosfato monoamônico (MAP)",0,"kg N/t cana",null,null,null,null,null,null,null,null,"Fosfato monoamônico (MAP)",0," kg N/TC",null,null,null,null,null,null,"Fosfato monoamônico (MAP)",0," kg N/TC"]
[null,null,"Fosfato monoamônico (MAP)",0,"kg P₂O₅/t cana",null,null,null,null,null,null,"Fosfato monoamônico (MAP)",0,"kg P₂O₅/t cana",null,null,null,null,null,null,"Fosfato monoamônico (MAP)",0,"kg P₂O₅/t cana",null,null,null,null,null,null,null,null,"Fosfato monoamônico (MAP)",0," kg P2O5/TC",null,null,null,null,null,null,"Fosfato monoamônico (MAP)",0," kg P2O5/TC"]
[null,null,"Fosfato diamônico (DAP)",0,"kg N/t cana",null,null,null,null,null,null,"Fosfato diamônico (DAP)",0,"kg N/t cana",null,null,null,null,null,null,"Fosfato diamônico (DAP)",0,"kg N/t cana",null,null,null,null,null,null,null,null,"Fosfato diamônico (DAP)",0," kg N/TC",null,null,null,null,null,null,"Fosfato diamônico (DAP)",0," kg N/TC"]
[null,null,"Fosfato diamônico (DAP)",0,"kg P₂O₅/t cana",null,null,null,null,null,null,"Fosfato diamônico (DAP)",0,"kg P₂O₅/t cana",null,null,null,null,null,null,"Fosfato diamônico (DAP)",0,"kg P₂O₅/t cana",null,null,null,null,null,null,null,null,"Fosfato diamônico (DAP)",0," kg P2O5/TC",null,null,null,null,null,null,"Fosfato diamônico (DAP)",0," kg P2O5/TC"]
[null,null,"Nitrato de amônio",0,"kg N/t cana",null,null,null,null,null,null,"Nitrato de amônio",0,"kg N/t cana",null,null,null,null,null,null,"Nitrato de amônio",0,"kg N/t cana",null,null,null,null,null,null,null,null,"Nitrato de amônio",0," kg N/TC",null,null,null,null,null,null,"Nitrato de amônio",0," kg N/TC"]
[null,null,"Solução de nitrato de amônio e ureia (UAN)",0,"kg N/t cana",null,null,null,null,null,null,"Solução de nitrato de amônio e ureia (UAN)",0,"kg N/t cana",null,null,null,null,null,null,"Solução de nitrato de amônio e ureia (UAN)",0,"kg N/t cana",null,null,null,null,null,null,null,null,"Solução de nitrato de amônio e ureia (UAN)",0," kg N/TC",null,null,null,null,null,null,"Solução de nitrato de amônio e ureia (UAN)",0," kg N/TC"]
[null,null,"Amônia anidra",0,"kg N/t cana",null,null,null,null,null,null,"Amônia anidra",0,"kg N/t cana",null,null,null,null,null,null,"Amônia anidra",0,"kg N/t cana",null,null,null,null,null,null,null,null,"Amônia anidra",0," kg N/TC",null,null,null,null,null,null,"Amônia anidra",0," kg N/TC"]
[null,null,"Sulfato de amônio",0,"kg N/t cana",null,null,null,null,null,null,"Sulfato de amônio",0,"kg N/t cana",null,null,null,null,null,null,"Sulfato de amônio",0,"kg N/t cana",null,null,null,null,null,null,null,null,"Sulfato de amônio",0," kg N/TC",null,null,null,null,null,null,"Sulfato de amônio",0," kg N/TC"]
[null,null,"Nitrato de amônio e cálcio (CAN)",0,"kg N/t cana",null,null,null,null,null,null,"Nitrato de amônio e cálcio (CAN)",0,"kg N/t cana",null,null,null,null,null,null,"Nitrato de amônio e cálcio (CAN)",0,"kg N/t cana",null,null,null,null,null,null,null,null,"Nitrato de amônio e cálcio (CAN)",0," kg N/TC",null,null,null,null,null,null,"Nitrato de amônio e cálcio (CAN)",0," kg N/TC"]
[null,null,"Superfosfato simples (SSP)",0.443898833367118,"kg P₂O₅/t cana",null,null,null,null,null,null,"Superfosfato simples (SSP)",0.443898833367118,"kg P₂O₅/t cana",null,null,null,null,null,null,"Superfosfato simples (SSP)",0.443898833367118,"kg P₂O₅/t cana",null,null,null,null,null,null,null,null,"Superfosfato simples (SSP)",0.62145836671396526," kg P2O5/TC",null,null,null,null,null,null,"Superfosfato simples (SSP)",0.443898833367118," kg P2O5/TC"]
[null,null,"Superfosfato triplo (TSP)",0,"kg P₂O₅/t cana",null,null,null,null,null,null,"Superfosfato triplo (TSP)",0,"kg P₂O₅/t cana",null,null,null,null,null,null,"Superfosfato triplo (TSP)",0,"kg P₂O₅/t cana",null,null,null,null,null,null,null,null,"Superfosfato triplo (TSP)",0," kg P2O5/TC",null,null,null,null,null,null,"Superfosfato triplo (TSP)",0," kg P2O5/TC"]
[null,null,"Cloreto de potássio (KCl)",1.3462049016245501,"kg K₂O/t cana",null,null,null,null,null,null,"Cloreto de potássio (KCl)",1.3462049016245501,"kg K₂O/t cana",null,null,null,null,null,null,"Cloreto de potássio (KCl)",1.3462049016245501,"kg K₂O/t cana",null,null,null,null,null,null,null,null,"Cloreto de potássio (KCl)",1.8846868622743767," kg K2O/TC",null,null,null,null,null,null,"Cloreto de potássio (KCl)",1.3462049016245501," kg K2O/TC"]
[null,"Outros","especificar",0,"kg N/t cana",null,null,null,null,null,"Outros","especificar",0,"kg N/t cana",null,null,null,null,null,"Outros","especificar",0,"kg N/t cana",null,null,null,null,null,null,null,"Outros ","especificar",0," kg N /TC",null,null,null,null,null,"Outros ","especificar",0," kg N /TC"]
[null,"Outros","especificar",0,"kg P₂O₅/t cana",null,null,null,null,null,"Outros","especificar",0,"kg P₂O₅/t cana",null,null,null,null,null,"Outros","especificar",0,"kg P₂O₅/t cana",null,null,null,null,null,null,null,"Outros ","especificar",0," kg P2O5/TC",null,null,null,null,null,"Outros ","especificar",0," kg P2O5/TC"]
[null,"Outros","especificar",0,"kg K₂O/t cana",null,null,null,null,null,"Outros","especificar",0,"kg K₂O/t cana",null,null,null,null,null,"Outros","especificar",0,"kg K₂O/t cana",null,null,null,null,null,null,null,"Outros ","especificar",0," kg K2O/TC",null,null,null,null,null,"Outros ","especificar",0," kg K2O/TC"]
[]
[null,"Fertilizantes Orgânicos/Organominerais",null,null,null,null,null,null,null,null,"Fertilizantes Orgânicos/Organominerais",null,null,null,null,null,null,null,null,"Fertilizantes Orgânicos/Organominerais",null,null,null,null,null,null,null,null,null,null,"Fertilizantes Orgânicos/Organominerais",null,null,null,null,null,null,null,null,"Fertilizantes Orgânicos/Organominerais"]
[null,null,"Vinhaça",440.2,"L/t cana","Concentração de N",0.375,"g N/L",null,null,null,"Vinhaça",440.2,"L/t cana","Concentração de N",0.375,"g N/L",null,null,null,"Vinhaça",{"$f":"D71*($D$35/$V$35)+M71*($M$35/$V$35)","v":440.2},"L/t cana","Concentração de N",{"$f":"IF((D71*$D$35+M71*$M$35)<>0,(G71*D71*$D$35+P71*M71*$M$35)/(D71*$D$35+M71*$M$35),0)","v":0.375},"g N/L",null,null,null,null,null,"Vinhaça",616.28,"L/t cana","Concentração de N",0.375,"g N/L",null,null,null,"Vinhaça",440.2,"L/t cana","Concentração de N",0.375,"g N/L"]
[null,null,"Torta de Filtro (base úmida)",30.571428571428577,"kg/t cana","Concentração de N",14,"g N/kg",null,null,null,"Torta de Filtro (base úmida)",30.571428571428577,"kg/t cana","Concentração de N",14,"g N/kg",null,null,null,"Torta de Filtro (base úmida)",30.571428571428577,"kg/t cana","Concentração de N",13.999999999999998,"g N/kg",null,null,null,null,null,"Torta de Filtro (base úmida)",42.800000000000011,"kg/t cana","Concentração de N",14,"g N/kg",null,null,null,"Torta de Filtro (base úmida)",30.571428571428577,"kg/t cana","Concentração de N",14,"g N/kg"]
[null,null,"Cinzas e fuligem (base úmida)",7.2,"kg/t cana","Concentração de N",null,"g N/kg",null,null,null,"Cinzas e fuligem (base úmida)",7.2,"kg/t cana","Concentração de N",null,"g N/kg",null,null,null,"Cinzas e fuligem (base úmida)",7.2,"kg/t cana","Concentração de N",0,"g N/kg",null,null,null,null,null,"Cinzas e fuligem (base úmida)",10.08,"kg/t cana","Concentração de N",null,"g N/kg",null,null,null,"Cinzas e fuligem (base úmida)",7.2,"kg/t cana","Concentração de N",null,"g N/kg"]
[null,"Outros","especificar",0,"kg/t cana","Concentração de N",null,"g N/kg",null,null,"Outros","especificar",0,"kg/t cana","Concentração de N",null,"g N/kg",null,null,"Outros","especificar",0,"kg/t cana","Concentração de N",{"$f":"IF((D74*$D$35+M74*$M$35)<>0,(G74*D74*$D$35+P74*M74*$M$35)/(D74*$D$35+M74*$M$35),0)","v":0},"g N/kg",null,null,null,null,"Outros","especificar",0,"kg/t cana","Concentração de N",null,"g N/kg",null,null,"Outros","especificar",0,"kg/t cana","Concentração de N",null,"g N/kg"]
[null,"Outros","especificar",0,"kg/t cana","Concentração de N",null,"g N/kg",null,null,"Outros","especificar",0,"kg/t cana","Concentração de N",null,"g N/kg",null,null,"Outros","especificar",0,"kg/t cana","Concentração de N",{"$f":"IF((D75*$D$35+M75*$M$35)<>0,(G75*D75*$D$35+P75*M75*$M$35)/(D75*$D$35+M75*$M$35),0)","v":0},"g N/kg",null,null,null,null,"Outros","especificar",0,"kg/t cana","Concentração de N",null,"g N/kg",null,null,"Outros","especificar",0,"kg/t cana","Concentração de N",null,"g N/kg"]
[]
[null,"Combustíveis e eletricidade da rede",null,null,null,null,null,null,null,null,"Combustíveis e eletricidade da rede",null,null,null,null,null,null,null,null,"Combustíveis e eletricidade da rede",null,null,null,null,null,null,null,null,null,null,"Combustíveis e eletricidade da rede",null,null,null,null,null,null,null,null,"Combustíveis e eletricidade da rede"]
[null,null,"Diesel - B8",3.18,"L/t cana",null,null,null,null,null,null,"Diesel - B8",3.18,"L/t cana",null,null,null,null,null,null,"Diesel - B8",{"$f":"D78*($D$35/$V$35)+M78*($M$35/$V$35)","v":3.18},"L/t cana",null,null,null,null,null,null,null,null,"Diesel - B8",4.452,"L/t cana",null,null,null,null,null,null,"Diesel - B8",3.18,"L/t cana"]
[null,null,"Diesel - B10",0,"L/t cana",null,null,null,null,null,null,"Diesel - B10",0,"L/t cana",null,null,null,null,null,null,"Diesel - B10",0,"L/t cana",null,null,null,null,null,null,null,null,"Diesel - B10",0,"L/t cana",null,null,null,null,null,null,"Diesel - B10",0,"L/t cana"]
[null,null,"Diesel - BX",0,"L/t cana","Teor de biodiesel na mistura",0.11,null,null,null,null,"Diesel - BX",0,"L/t cana","Teor de biodiesel na mistura",0.11,null,null,null,null,"Diesel - BX",0,"L/t cana","Teor médio de biodiesel na mistura",{"$f":"IF((D80*$D$35+M80*$M$35)<>0,(G80*D80*$D$35+P80*M80*$M$35)/(D80*$D$35+M80*$M$35),0)","v":0},"%",null,null,null,null,null,"Diesel - BX",0,"L/t cana","Teor médio de biodiesel na mistura",0.11,"%",null,null,null,"Diesel - BX",0,"L/t cana","Teor médio de biodiesel na mistura",0.11,"%"]
[null,null,"Diesel - B20",0,"L/t cana",null,null,null,null,null,null,"Diesel - B20",0,"L/t cana",null,null,null,null,null,null,"Diesel - B20",0,"L/t cana",null,null,null,null,null,null,null,null,"Diesel - B20",0,"L/t cana",null,null,null,null,null,null,"Diesel - B20",0,"L/t cana"]
[null,null,"Diesel - B30",0,"L/t cana",null,null,null,null,null,null,"Diesel - B30",0,"L/t cana",null,null,null,null,null,null,"Diesel - B30",0,"L/t cana",null,null,null,null,null,null,null,null,"Diesel - B30",0,"L/t cana",null,null,null,null,null,null,"Diesel - B30",0,"L/t cana"]
[null,null,"Biodiesel - B100",0,"L/t cana",null,null,null,null,null,null,"Biodiesel - B100",0,"L/t cana",null,null,null,null,null,null,"Biodiesel - B100",0,"L/t cana",null,null,null,null,null,null,null,null,"Biodiesel - B100",0,"L/t cana",null,null,null,null,null,null,"Biodiesel - B100",0,"L/t cana"]
[null,null,"Gasolina C",0,"L/t cana",null,null,null,null,null,null,"Gasolina C",0,"L/t cana",null,null,null,null,null,null,"Gasolina C",0,"L/t cana",null,null,null,null,null,null,null,null,"Gasolina C",0,"L/t cana",null,null,null,null,null,null,"Gasolina C",0,"L/t cana"]
[null,null,"Etanol hidratado",0,"L/t cana",null,null,null,null,null,null,"Etanol hidratado",0,"L/t cana",null,null,null,null,null,null,"Etanol hidratado",0,"L/t cana",null,null,null,null,null,null,null,null,"Etanol hidratado",0,"L/t cana",null,null,null,null,null,null,"Etanol hidratado",0,"L/t cana"]
[null,null,"Biometano de terceiros",0,"Nm³/t cana",null,null,null,null,null,null,"Biometano de terceiros",0,"Nm³/t cana",null,null,null,null,null,null,"Biometano de terceiros",0,"Nm³/t cana",null,null,null,null,null,null,null,null,"Biometano de terceiros",0,"Nm³/t cana",null,null,null,null,null,null,"Biometano de terceiros",0,"Nm³/t cana"]
[null,null,"Biometano próprio",0,"Nm³/t cana",null,null,null,null,null,null,"Biometano próprio",0,"Nm³/t cana",null,null,null,null,null,null,"Biometano próprio",0,"Nm³/t cana",null,null,null,null,null,null,null,null,"Biometano próprio",0,"Nm³/t cana",null,null,null,null,null,null,"Biometano próprio",0,"Nm³/t cana"]
[null,null,"Eletricidade da rede - mix médio",0,"kWh/t cana",null,null,null,null,null,null,"Eletricidade da rede - mix médio",0,"kWh/t cana",null,null,null,null,null,null,"Eletricidade da rede - mix médio",0,"kWh/t cana",null,null,null,null,null,null,null,null,"Eletricidade da rede - mix médio",0,"kWh/t cana",null,null,null,null,null,null,"Eletricidade da rede - mix médio",0,"kWh/t cana"]
[null,null,"Eletricidade - PCH",0,"kWh/t cana",null,null,null,null,null,null,"Eletricidade - PCH",0,"kWh/t cana",null,null,null,null,null,null,"Eletricidade - PCH",0,"kWh/t cana",null,null,null,null,null,null,null,null,"Eletricidade - PCH",0,"kWh/t cana",null,null,null,null,null,null,"Eletricidade - PCH",0,"kWh/t cana"]
[null,null,"Eletricidade - biomassa",0,"kWh/t cana",null,null,null,null,null,null,"Eletricidade - biomassa",0,"kWh/t cana",null,null,null,null,null,null,"Eletricidade - biomassa",0,"kWh/t cana",null,null,null,null,null,null,null,null,"Eletricidade - biomassa",0,"kWh/t cana",null,null,null,null,null,null,"Eletricidade - biomassa",0,"kWh/t cana"]
[null,null,"Eletricidade - eólica",0,"kWh/t cana",null,null,null,null,null,null,"Eletricidade - eólica",0,"kWh/t cana",null,null,null,null,null,null,"Eletricidade - eólica",0,"kWh/t cana",null,null,null,null,null,null,null,null,"Eletricidade - eólica",0,"kWh/t cana",null,null,null,null,null,null,"Eletricidade - eólica",0,"kWh/t cana"]
[null,null,"Eletricidade - solar",0,"kWh/t cana",null,null,null,null,null,null,"Eletricidade - solar",0,"kWh/t cana",null,null,null,null,null,null,"Eletricidade - solar",0,"kWh/t cana",null,null,null,null,null,null,null,null,"Eletricidade - solar",0,"kWh/t cana",null,null,null,null,null,null,"Eletricidade - solar",0,"kWh/t cana"]
[]
[]
[null,"Fase industrial - processamento do etanol"]
[null,"Processamento e rendimentos"]
[null,null,"Quantidade de cana processada",2000000,"t cana"]
[null,null,"Quantidade de palha própria processada (base seca)",0,"t palha"]
[null,null,"Quantidade de bagaço próprio processado (base úmida)",0,"t bagaço","Umidade",0.5]
[null,null,"Quantidade de bagaço de terceiros processado (base úmida)",0,"t bagaço","Umidade",0.5]
[null,null,"Distância de transporte - bagaço de terceiros",0,"km"]
[null,null,"Quantidade de palha de terceiros processada (base seca)",0,"t palha"]
[null,null,"Distância de transporte - palha de terceiros",0,"km"]
[null,null,"Rendimento Etanol Anidro",28.466699999999999,"L/t cana"]
[null,null,"Rendimento Etanol Hidratado",60.973759999999999,"L/t cana"]
[null,null,"Rendimento Açúcar",0,"kg/t cana"]
[null,null,"Rendimento Energia Elétrica Comercializada",68.599999999999994,"kWh/t cana"]
[null,null,"Rendimento Bagaço Comercializado (base úmida)",0,"kg/t cana","Umidade",0.5]
[]
[null,"Insumos industriais"]
[null,null,"Enzimas",0,"kg/t cana"]
[null,null,"Ácido sulfúrico",0,"kg/t cana"]
[null,null,"Amônia",0,"kg/t cana"]
[null,null,"Hidróxido de sódio",0,"kg/t cana"]
[]
[null,"Combustíveis"]
[null,null,"Bagaço próprio"]
[null,null,"Quantidade (base úmida)",251.6,"kg/t cana"]
[null,null,"Umidade",0.5]
[]
[null,null,"Palha própria"]
[null,null,"Quantidade (base úmida)",0,"kg/t cana"]
[null,null,"Umidade",0]
[]
[null,null,"Bagaço de terceiros"]
[null,null,"Quantidade (base úmida)",0,"kg/t cana"]
[null,null,"Umidade",0]
[null,null,"Distância de transporte",0," km"]
[]
[null,null,"Palha de terceiros"]
[null,null,"Quantidade (base úmida)",0,"kg/t cana"]
[null,null,"Umidade",0]
[null,null,"Distância de transporte",0," km"]
[]
[null,null,"Cavaco de madeira"]
[null,null,"Quantidade (base úmida)",0,"kg/t cana"]
[null,null,"Umidade",0]
[null,null,"Distância de transporte",0," km"]
[]
[null,null,"Lenha"]
[null,null,"Quantidade (base úmida)",0,"kg/t cana"]
[null,null,"Umidade",0]
[null,null,"Distância de transporte",0," km"]
[]
[null,null,"Resíduos florestais"]
[null,null,"Quantidade (base úmida)",0,"kg/t cana"]
[null,null,"Umidade",0]
[null,null,"Distância de transporte",0," km"]
[]
[]
[null,"Distribuição dos biocombustíveis"]
[]
[null,null,"Etanol anidro"]
[null,null,"Rodoviário",1]
[null,null,"Rodoviário + Dutoviário",0]
[null,null,"Rodoviário + Ferroviário",0]
[]
[]
[null,null,"Etanol hidradado"]
[null,null,"Rodoviário",1,"%"]
[null,null,"Rodoviário + Dutoviário",0,"%"]
[null,null,"Rodoviário + Ferroviário",0,"%"]

{"sheet":"_E1G2G","index":5,"n_rows":169,"n_cols":7,"rows_kept":169,"cut":false,"hidden":false,"merged":[[88,1,88,5],[141,1,141,5],[1,1,1,5],[2,2,2,3],[2,4,2,5],[3,2,3,3],[3,4,3,5],[10,1,10,5]]}
[]
[null,"Emissões totais - g CO₂ eq"]
[null,null,"Anidro",null,"Hidratado"]
[null,"Total",{"$f":"C5+C6+C7+C8","v":18.62689279148076},null,{"$f":"E5+E6+E7+E8","v":18.908227492827706}]
[null,"Agrícola",{"$f":"$G$86","v":16.549569998590528},{"$f":"C5/$C$4","v":0.88847722397155138},{"$f":"$G$86","v":16.549569998590528},{"$f":"E5/$E$4","v":0.87525760967642963}]
[null,"Industrial",{"$f":"($G$139-$G$97)","v":0.83564029398606721},{"$f":"C6/$C$4","v":4.4862033799231274E-2},{"$f":"($G$139-$G$97)","v":0.83564029398606721},{"$f":"E6/$E$4","v":4.4194533533248606E-2}]
[null,"Transporte",{"$f":"$D$169","v":0.80268195850394575},{"$f":"C7/$C$4","v":4.3092638557036322E-2},{"$f":"$E$169","v":0.86001638411137049},{"$f":"E7/$E$4","v":4.5483712549872435E-2}]
[null,"Uso",{"$f":"'FE''s queima combustíveis'!$I$7","v":0.43900054040021891},{"$f":"C8/$C$4","v":2.3568103672180967E-2},{"$f":"'FE''s queima combustíveis'!$I$8","v":0.66300081613973838},{"$f":"E8/$E$4","v":3.5064144240449228E-2}]
[]
[]
[null,"Etapa agrícola - Cana-de-açúcar"]
[null,"Produto",null,"1 ha médio","1 t cana"]
[null,"Produção de cana","kg",{"$f":"(E1G2G!V35/E1G2G!V33)*1000","v":66735.200100000002},1000]
[null,"Entradas da natureza",null,"1 ha médio","1 t cana"]
[null,"Ocupação total","ha",1,{"$f":"(D15*E13)/D13","v":1.4984595813027314E-2}]
[null,"Entradas da tecnosfera",null,"1 ha médio","1 t cana","g CO2 eq/t cana"]
[null,"Fertilizantes e corretivos",null,null,null,null,"1 MJ"]
[null,"Calcário calcítico","kg",null,{"$f":"E1G2G!V48","v":0},{"$f":"E18*'Dados auxiliares'!$H$48","v":0},{"$f":"(F18/$E$91)*$F$91","v":0}]
[null,"Calcário dolomítico","kg",null,{"$f":"E1G2G!V49","v":5.79},{"$f":"E19*'Dados auxiliares'!$H$49","v":213.27834389863816},9.7635989614775598E-2]
[null,"Gesso","kg",null,{"$f":"E1G2G!V50","v":2.79},{"$f":"E20*'Dados auxiliares'!$H$50","v":7.8925593756863481},3.6131087252100169E-3]
[null,"N - Ureia","kg N",null,{"$f":"E1G2G!V53","v":1.107},{"$f":"E21*'Dados auxiliares'!$H$51","v":3554.8141588582216},1.6273466492298414]
[null,"N - Fosfato monoamônico (MAP)","kg N",null,{"$f":"E1G2G!V54","v":0},{"$f":"E22*'Dados auxiliares'!$H$52","v":0},0]
[null,"P₂O₅ - Fosfato monoamônico (MAP)","kg P₂O₅",null,{"$f":"E1G2G!V55","v":0},{"$f":"E23*'Dados auxiliares'!$H$53","v":0},0]
[null,"N - Fosfato diamônico (DAP)","kg N",null,{"$f":"E1G2G!V56","v":0},{"$f":"E24*'Dados auxiliares'!$H$54","v":0},0]
[null,"P₂O₅ - Fosfato diamônico (DAP)","kg P₂O₅",null,{"$f":"E1G2G!V57","v":0},{"$f":"E25*'Dados auxiliares'!$H$55","v":0},0]
[null,"N - Nitrato de amônio","kg N",null,{"$f":"E1G2G!V58","v":0},{"$f":"E26*'Dados auxiliares'!$H$56","v":0},0]
[null,"N - Solução de nitrato de amônio e ureia (UAN)","kg N",null,{"$f":"E1G2G!V59","v":0},{"$f":"E27*'Dados auxiliares'!$H$57","v":0},0]
[null,"N - Amônia anidra","kg N",null,{"$f":"E1G2G!V60","v":0},{"$f":"E28*'Dados auxiliares'!$H$58","v":0},0]
[null,"N - Sulfato de amônio","kg N",null,{"$f":"E1G2G!V61","v":0},{"$f":"E29*'Dados auxiliares'!$H$59","v":0},0]
[null,"N - Nitrato de amônio e cálcio (CAN)","kg N",null,{"$f":"E1G2G!V62","v":0},{"$f":"E30*'Dados auxiliares'!$H$60","v":0},0]
[null,"P₂O₅ - Superfosfato simples (SSP)","kg P₂O₅",null,{"$f":"E1G2G!V63","v":0.443898833367118},{"$f":"E31*'Dados auxiliares'!$H$62","v":1050.9999214073316},0.48113378759366587]
[null,"P₂O₅ - Superfosfato triplo (TSP)","kg P₂O₅",null,{"$f":"E1G2G!V64","v":0},{"$f":"E32*'Dados auxiliares'!$H$63","v":0},0]
[null,"K₂O - Cloreto de potássio (KCl)","kg K₂O",null,{"$f":"E1G2G!V65","v":1.3462049016245501},{"$f":"E33*'Dados auxiliares'!H$64","v":612.80291900043176},0.28053302713127626]
[null,"N - Outros","kg N",null,{"$f":"E1G2G!V66","v":0},{"$f":"E34*'Dados auxiliares'!H$65","v":0},0]
[null,"P₂O₅ - Outros","kg P₂O₅",null,{"$f":"E1G2G!V67","v":0},{"$f":"E35*'Dados auxiliares'!H$66","v":0},0]
[null,"K₂O - Outros","kg K₂O",null,{"$f":"E1G2G!V68","v":0},{"$f":"E36*'Dados auxiliares'!H$67","v":0},0]
[null,"Vinhaça","L",null,{"$f":"E1G2G!V71","v":440.2},0,0]
[null,"Torta de filtro","kg",null,{"$f":"E1G2G!V72","v":30.571428571428577},0,0]
[null,"Cinzas e fuligem","kg",null,{"$f":"E1G2G!V73","v":7.2},0,0]
[null,"Outros Fertilizantes Orgânicos/Organominerais","kg",null,{"$f":"E1G2G!V74+E1G2G!V74","v":0},0,0]
[null,"Agroquímicos"]
[null,"Herbicidas e Inseticidas - Total","kg",{"$f":"SUM(D43:D56)","v":1.0831569385065971},{"$f":"SUM(E43:E56)","v":1.6230668925597439E-2},{"$f":"SUM(F43:F56)","v":173.16442846013771},{"$f":"(F42/$E$91)*$F$91","v":7.9272372570642957E-2}]
[null,"Herbicida, Roundup Ready, como glifosato","kg",0.17411826749021314,{"$f":"D43*$E$15","v":2.6090918620054176E-3},{"$f":"E43*'Dados auxiliares'!$H$68","v":30.019445344830356},1.3742502873719545E-2]
[null,"Herbicida, Boral 500 SC, como sulfentrazone","kg",0.51076802087864281,{"$f":"D44*$E$15","v":7.6536523470863583E-3},{"$f":"E44*'Dados auxiliares'!$H$70","v":82.219524027433749},3.7639004726562737E-2]
[null,"Herbicida, Hexaron, como hexazinona","kg",7.3793224880382789E-3,{"$f":"D45*$E$15","v":1.1057616485723669E-4},{"$f":"E45*'Dados auxiliares'!$H$70","v":1.1878668158741317},5.4378963179469732E-4]
[null,"Herbicida, Combine 500 SC, como tebuthiuron","kg",0.17491467014644049,2.6210256339134061E-3,{"$f":"E46*'Dados auxiliares'!$H$70","v":28.156423928257052},1.2889636444078176E-2]
[null,"Herbicida, Goal, como oxifluorfen","kg",4.4723166594171377E-3,6.7015857489234344E-5,{"$f":"E47*'Dados auxiliares'!$H$70","v":0.71991928234795854},3.2956947381496804E-4]
[null,"Herbicida, Diuron, como diuron","kg",9.3173263737857046E-3,1.3961636976923825E-4,{"$f":"E48*'Dados auxiliares'!$H$70","v":1.4998318382249138},6.8660307044785028E-4]
[null,"Herbicida, Herburon, como diuron","kg",4.6586631868928516E-2,{"$f":"D49*$E$15","v":6.9808184884619106E-4},{"$f":"E49*'Dados auxiliares'!$H$70","v":7.4991591911245674},3.4330153522392501E-3]
[null,"Herbicida, Hexaron, como diuron","kg",2.616305245759026E-2,{"$f":"D50*$E$15","v":3.92042766312021E-4},{"$f":"E50*'Dados auxiliares'!$H$70","v":4.2115278017355582},1.9279814218175634E-3]
[null,"Herbicida, Herbipak, como ametrina","kg",4.6586631868928516E-2,6.9808184884619106E-4,{"$f":"E51*'Dados auxiliares'!$H$70","v":7.4991591911245674},3.4330153522392501E-3]
[null,"Herbicida, Nortox, como 2,4 D","kg",3.7548825286356391E-2,5.6265397017003012E-4,{"$f":"E52*'Dados auxiliares'!$H$69","v":2.8592224926993826},1.3089140345922963E-3]
[null,"Inseticida, Actara, como thiamethoxan","kg",9.3173263737857046E-3,1.3961636976923825E-4,{"$f":"E53*'Dados auxiliares'!$H$70","v":1.4998318382249138},6.8660307044785028E-4]
[null,"Inseticida, Mirex, como sulfluramida","kg",6.987994780339279E-5,1.0471227732692868E-6,{"$f":"E54*'Dados auxiliares'!$H$70","v":1.1248738786686854E-2},5.1495230283588765E-6]
[null,"Inseticida, Regent 800 WG, como fipronil","kg",3.4051201391909529E-2,{"$f":"D55*$E$15","v":5.1024348980575733E-4},{"$f":"E55*'Dados auxiliares'!$H$70","v":5.4813016018289185},2.50926698177085E-3]
[null,"Inseticida, Regent 800 WG, como fipronil","kg",1.8634652747571412E-3,{"$f":"D56*$E$15","v":2.7923273953847651E-5},{"$f":"E56*'Dados auxiliares'!$H$70","v":0.2999663676449828},1.3732061408957007E-4]
[null,"Combustíveis e eletricidade"]
[null,"Diesel B0","kg",null,{"$f":"(E1G2G!$V$78*(1-0.08)+E1G2G!$V$79*(1-0.1)+E1G2G!$V$80*(1-E1G2G!$Y$80)+E1G2G!V81*(1-0.2)+E1G2G!$V$82*(1-0.3)+E1G2G!$V$83*(1-1))*('Dados auxiliares'!$D$24)","v":2.4575040000000001},{"$f":"E58*'Dados auxiliares'!$H$112","v":1366.6899936687823},{"$f":"(F58/$E$91)*$F$91","v":0.62565250455939514}]
[null,"Biodiesel B100","kg",null,{"$f":"(E1G2G!$V$78*(0.08)+E1G2G!$V$79*(0.1)+E1G2G!$V$80*(E1G2G!$Y$80)+E1G2G!V82*(0.2)+E1G2G!$V$82*(0.3)+E1G2G!$V$83*(1))*('Dados auxiliares'!$D$17)","v":0.22387200000000002},{"$f":"E59*'Dados auxiliares'!$H$113","v":220.93706816671781},0.10114205173731362]
[null,"Gasolina A","kg",null,{"$f":"E1G2G!V84*(1-'FE''s queima combustíveis'!$D$16)*'Dados auxiliares'!$D$22","v":0},{"$f":"E60*'Dados auxiliares'!$H$116","v":0},0]
[null,"Etanol anidro","kg",null,{"$f":"E1G2G!V84*('FE''s queima combustíveis'!$D$16)*'Dados auxiliares'!$D$15","v":0},{"$f":"E61*'Dados auxiliares'!$H$117","v":0},0]
[null,"Etanol hidratado","kg",null,{"$f":"E1G2G!V85*'Dados auxiliares'!$D$16","v":0},{"$f":"E62*'Dados auxiliares'!$H$118","v":0},0]
[null,"Biometano de terceiros","Nm³",null,{"$f":"E1G2G!V86","v":0},{"$f":"E63*'Dados auxiliares'!$F$18","v":0},0]
[null,"Eletricidade da rede - mix médio","kWh",null,{"$f":"E1G2G!V88","v":0},{"$f":"E64*'Dados auxiliares'!$H$103","v":0},0]
[null,"Eletricidade - PCH","kWh",null,{"$f":"E1G2G!V89","v":0},{"$f":"E65*'Dados auxiliares'!$H$104","v":0},0]
[null,"Eletricidade - biomassa","kWh",null,{"$f":"E1G2G!V90","v":0},{"$f":"E66*'Dados auxiliares'!$H$105","v":0},0]
[null,"Eletricidade - eólica","kWh",null,{"$f":"E1G2G!V91","v":0},{"$f":"E67*'Dados auxiliares'!$H$106","v":0},0]
[null,"Eletricidade - solar","kWh",null,{"$f":"E1G2G!V92","v":0},{"$f":"E68*'Dados auxiliares'!$H$107","v":0},0]
[null,"Emissões",null,"1 ha médio","1 t cana","g CO2 eq/t cana"]
[null,"N2O - Fertilizantes sintéticos","kg",{"$f":"'_Emissões Agrícolas'!$D$54","v":1.538201077704932},{"$f":"D70*$E$15","v":2.3049321428571426E-2},{"$f":"E70*1000*'Dados auxiliares'!$D$9","v":6108.0701785714273},{"$f":"(F70/$E$91)*$F$91","v":2.7961933012980804}]
[null,"N2O - Fertilizantes organominerais","kg",{"$f":"'_Emissões Agrícolas'!$D$58","v":0.88628641811306441},{"$f":"D71*$E$15","v":1.328064375E-2},{"$f":"E71*1000*'Dados auxiliares'!$D$9","v":3519.3705937499999},{"$f":"(F71/$E$91)*$F$91","v":1.611121056459571}]
[null,"N2O - Resíduos culturais","kg",{"$f":"'_Emissões Agrícolas'!$D$62","v":1.1279183042966199},{"$f":"D72*$E$15","v":1.6901399899999999E-2},{"$f":"E72*1000*'Dados auxiliares'!$D$9","v":4478.8709734999993},2.0503675706634086]
[null,"CO2 - Calcário ","kg",null,{"$f":"$E$18*'_Emissões Agrícolas'!$E$79+$E$19*'_Emissões Agrícolas'!$E$80","v":2.7599},{"$f":"E73*1000","v":2759.9},1.2634455182467299]
[null,"CO2 - Uréia","kg",null,{"$f":"$E$21*'_Emissões Agrícolas'!$E$81","v":1.7272340425531918},{"$f":"E74*1000","v":1727.2340425531918},0.79070477554513263]
[null,"N2O - queima palha","kg",{"$f":"'_Emissões Agrícolas'!D73","v":0.12033691282032004},{"$f":"D75*$E$15","v":1.8032000000000005E-3},{"$f":"E75*1000*'Dados auxiliares'!$D$9","v":477.84800000000007},0.21875245987288069]
[null,"CH4 bio - queima palha","kg",{"$f":"'_Emissões Agrícolas'!D74","v":4.6415666373552016},{"$f":"D76*$E$15","v":6.9552000000000017E-2},{"$f":"E76*1000*'Dados auxiliares'!$D$8","v":1947.4560000000006},0.89151945910457053]
[null,"CO₂ eq - queima do diesel","kg",null,{"$f":"$E$58*'FE''s queima combustíveis'!$I$53/1000","v":7.7550716476800003},{"$f":"E77*1000","v":7755.0716476800008},3.5501686716705603]
[null,"CO₂ eq - queima do biodiesel","kg",null,{"$f":"$E$59*'FE''s queima combustíveis'!$I$54/1000","v":3.7033011012096002E-3},{"$f":"E78*1000","v":3.7033011012096},1.6953219968264966E-3]
[null,"CO₂ eq - queima da gasolina A","kg",null,{"$f":"$E$60*'FE''s queima combustíveis'!$I$9/1000","v":0},0,0]
[null,"CO₂ eq - queima do etanol anidro","kg",null,{"$f":"$E$61*'FE''s queima combustíveis'!$I$7/1000","v":0},0,0]
[null,"CO₂ eq - queima do etanol hidratado","kg",null,{"$f":"$E$62*'FE''s queima combustíveis'!$I$8/1000","v":0},0,0]
[null,"CO₂ eq - queima do biometano","kg",null,{"$f":"($E$63+E1G2G!V87)*'FE''s queima combustíveis'!$I$55/1000","v":0},0,0]
[]
[null,"Emissões do processo","g CO2 eq/t cana",null,null,{"$f":"SUM(F70:F82)","v":28777.524737155833},{"$f":"(F84/$E$91)*$F$91","v":13.173968134857763}]
[null,"Emissões background","g CO2 eq/t cana",null,null,{"$f":"SUM(F18:F68)","v":7373.7438212960869},{"$f":"(F85/$E$91)*$F$91","v":3.3756018637327645}]
[null,"Emissões totais","g CO2 eq/t cana",null,null,{"$f":"F84+F85","v":36151.26855845192},{"$f":"(F86/$E$91)*$F$91","v":16.549569998590528}]
[]
[]
[null,"Etapa industrial - Etanol"]
[null,"Produtos","Unidade","1 TC","MJ","Alocação"]
[null,"Etanol anidro","kg",{"$f":"E1G2G!D104*'Dados auxiliares'!$D$15","v":22.517159700000001},{"$f":"D91*'Dados auxiliares'!$F$15","v":636.3544152261735},{"$f":"E91/SUM($E$91:$E$95)","v":0.29131458891047773}]
[null,"Etanol hidratado","kg",{"$f":"E1G2G!D105*'Dados auxiliares'!$D$16","v":49.327771840000004},{"$f":"D92*'Dados auxiliares'!$F$16","v":1301.1091437408552},{"$f":"E92/SUM($E$91:$E$95)","v":0.59563046357086258}]
[null,"Açúcar","kg",{"$f":"E1G2G!D106","v":0},{"$f":"D93*'Dados auxiliares'!D33","v":0},{"$f":"E93/SUM($E$91:$E$95)","v":0}]
[null,"Energia elétrica comercializada","kWh",{"$f":"E1G2G!D107","v":68.599999999999994},{"$f":"CONVERT(D94,\"kWh\",\"MJ\")","v":246.95987690053781},{"$f":"E94/SUM($E$91:$E$95)","v":0.11305494751865959}]
[null,"Bagaço comercializado","kg base úmida",{"$f":"E1G2G!D108","v":0},"-","-","Resíduo"]
[null,"Entradas ","Unidade","1 TC",null,"g CO2 eq/t cana"]
[null,"Cana-de-açúcar","t",1,null,{"$f":"D97*F86","v":36151.26855845192},{"$f":"(F97/$E$91)*$F$91","v":16.549569998590528}]
[null,"Bagaço próprio","kg base seca",{"$f":"(E1G2G!$D$99*1-E1G2G!$G$99)*1000/E1G2G!$D$97","v":-2.5000000000000001E-4},null,0,{"$f":"(F98/$E$91)*$F$91","v":0}]
[null,"Bagaço de terceiros","kg base seca",{"$f":"(E1G2G!$D$100*1-E1G2G!$G$100)*1000/E1G2G!$D$97","v":-2.5000000000000001E-4},null,0,0]
[null,"Transporte de bagaço de terceiros","tkm",{"$f":"D99/1000*E1G2G!$D$101","v":0},null,{"$f":"D100*'Dados auxiliares'!$H$125","v":0},0]
[null,"Palha de terceiros","kg base seca",{"$f":"E1G2G!$D$102*1000/E1G2G!$D$97","v":0},null,{"$f":"D101*'Dados auxiliares'!$H$74","v":0},0]
[null,"Transporte de palha de terceiros","tkm",{"$f":"D101/1000*E1G2G!$D$103","v":0},null,{"$f":"D102*'Dados auxiliares'!$H$125","v":0},0]
[null,"Água","kg",2008.2,null,{"$f":"D103*'Dados auxiliares'!$H$79","v":17.675317696958029},8.0915253914303903E-3]
[null,"Cal (CaO)","kg",0.62,null,{"$f":"D104*'Dados auxiliares'!$H$80","v":596.27703828179551},0.27296769870305748]
[null,"Ácido sulfúrico","kg",0.48,null,{"$f":"D105*'Dados auxiliares'!$H$84","v":52.492732656084385},2.40304749501263E-2]
[null,"Ácido fosfórico","kg",0.2,null,{"$f":"D106*'Dados auxiliares'!$H$85","v":302.58539055259456},0.13851956794833581]
[null,"Floculante ","kg",2.5699999999999998E-3,null,{"$f":"D107*'Dados auxiliares'!$H$87","v":5.5278052807028546},2.5305557475432542E-3]
[null,"Antibióticos","kg",1.41E-3,null,{"$f":"D108*'Dados auxiliares'!$H$88","v":3.0327647648992317},1.3883593790023302E-3]
[null,"Óleo lubrificante","kg",{"$f":"13/1000","v":1.2999999999999999E-2},null,{"$f":"D109*'Dados auxiliares'!$H$89","v":14.708242207038198},6.7332376889632957E-3]
[null,"Zeolita","kg",{"$f":"(D91*0.03)/67.2","v":1.00523034375E-2},null,{"$f":"D110*'Dados auxiliares'!$H$90","v":50.365350698354952},2.3056587780267899E-2]
[null,"Enzimas","kg",{"$f":"E1G2G!D111","v":0},null,{"$f":"D111*'Dados auxiliares'!$H$95","v":0},0]
[null,"Ácido sulfúrico","kg",{"$f":"E1G2G!D112","v":0},null,{"$f":"D112*'Dados auxiliares'!$H$84","v":0},0]
[null,"Amônia","kg",{"$f":"E1G2G!D113","v":0},null,{"$f":"D113*'Dados auxiliares'!$H$91","v":0},0]
[null,"Hidróxido de sódio","kg",{"$f":"E1G2G!D114","v":0},null,{"$f":"D114*'Dados auxiliares'!$H$93","v":0},0]
[null,"Combustíveis e eletricidade"]
[null,"Bagaço próprio","kg base seca",{"$f":"E1G2G!$D$118*(1-E1G2G!$D$119)","v":125.8},null,0,0]
[null,"Palha própria","kg base seca",{"$f":"E1G2G!$D$122*(1-E1G2G!$D$123)","v":0},null,0,0]
[null,"Bagaço de terceiros","kg base seca",{"$f":"E1G2G!$D$126*(1-E1G2G!$D$127)","v":0},null,0,0]
[null,"Transporte de bagaço de terceiros","tkm",{"$f":"((D118/1000)*E1G2G!$D$128)","v":0},null,{"$f":"D119*'Dados auxiliares'!$H$125","v":0},0]
[null,"Palha de terceiros","kg base seca",{"$f":"E1G2G!$D$131*(1-E1G2G!$D$132)","v":0},null,{"$f":"D120*'Dados auxiliares'!$H$74","v":0},0]
[null,"Transporte de palha de terceiros","tkm",{"$f":"((D120/1000)*E1G2G!$D$133)","v":0},null,{"$f":"D121*'Dados auxiliares'!$H$125","v":0},0]
[null,"Cavaco de madeira","kg base seca",{"$f":"E1G2G!$D$136*(1-E1G2G!$D$137)","v":0},null,{"$f":"D122*'Dados auxiliares'!$H$119","v":0},0]
[null,"Transporte de cavaco de madeira","tkm",{"$f":"((D122/1000)*E1G2G!$D$138)","v":0},null,{"$f":"D123*'Dados auxiliares'!$H$125","v":0},0]
[null,"Lenha","kg base seca",{"$f":"E1G2G!$D$141*(1-E1G2G!$D$142)","v":0},null,{"$f":"D124*'Dados auxiliares'!$H$120","v":0},0]
[null,"Transporte de lenha","tkm",{"$f":"((D124/1000)*E1G2G!$D$143)","v":0},null,{"$f":"D125*'Dados auxiliares'!$H$125","v":0},0]
[null,"Resíduos florestais","kg base seca",{"$f":"E1G2G!$D$146*(1-E1G2G!$D$147)","v":0},null,0,0]
[null,"Transporte de resíduos florestais","tkm",{"$f":"((D126/1000)*E1G2G!$D$148)","v":0},null,{"$f":"D127*'Dados auxiliares'!$H$125","v":0},0]
[null,"Emissões","Unidade","1 TC",null,"g CO2 eq/t cana"]
[null,"CO₂ eq - queima do bagaço próprio","kg",{"$f":"$D$116*'FE''s queima combustíveis'!$I$33/1000","v":0.78272760000000008},null,{"$f":"D129*1000","v":782.72760000000005},0.35832228639734015]
[null,"CO₂ eq - queima da palha própria","kg",{"$f":"$D$117*'FE''s queima combustíveis'!$I$34/1000","v":0},null,{"$f":"D130*1000","v":0},0]
[null,"CO₂ eq - queima do bagaço de terceiros","kg",{"$f":"$D$118*'FE''s queima combustíveis'!$I$33/1000","v":0},null,0,0]
[null,"CO₂ eq - queima da palha de terceiros","kg",{"$f":"$D$120*'FE''s queima combustíveis'!$I$34/1000","v":0},null,0,0]
[null,"CO₂ eq - queima dos cavacos de madeira","kg",{"$f":"$D$122*'FE''s queima combustíveis'!$I$35/1000","v":0},null,0,0]
[null,"CO₂ eq - queima da lenha","kg",{"$f":"$D$124*'FE''s queima combustíveis'!$I$36/1000","v":0},null,0,0]
[null,"CO₂ eq - queima dos resíduos florestais","kg",{"$f":"$D$126*'FE''s queima combustíveis'!$I$37/1000","v":0},null,0,0]
[]
[null,"Emissões do processo","g CO2 eq/t cana",null,null,{"$f":"SUM(F129:F135)","v":782.72760000000005},0.35832228639734015]
[null,"Emissões background","g CO2 eq/t cana",null,null,{"$f":"SUM(F97:F127)","v":37193.933200590356},17.026888006179256]
[null,"Emissões totais","g CO2 eq/t cana",null,null,{"$f":"F137+F138","v":37976.660800590354},17.385210292576595]
[]
[]
[null,"Etapa distribuição"]
[null,"Sistema logiístico rodoviário"]
[null,"Parâmetro","Unidade","Etanol anidro","Etanol hidratado"]
[null,"Massa","kg/t cana",{"$f":"$D$91*E1G2G!$D$154","v":22.517159700000001},{"$f":"$D$92*E1G2G!$D$160","v":49.327771840000004}]
[null,"Distância de transporte rodoviário","km",700,700]
[null,"Transporte rodoviário","tkm/t cana",{"$f":"D145/1000*D146","v":15.762011790000001},{"$f":"E145/1000*E146","v":34.529440288000004}]
[null,"Emissões","g CO2 eq/t cana",{"$f":"D147*'Dados auxiliares'!$H$126","v":510.79020831637808},{"$f":"E147*'Dados auxiliares'!$H$126","v":1118.9751811342517}]
[null,"Emissões","g CO2 eq/MJ",{"$f":"D148/$E$91","v":0.80268195850394575},{"$f":"E148/$E$92","v":0.86001638411137049}]
[null,"Sistema logiístico rodoviário + dutoviário"]
[null,"Parâmetro","Unidade","Etanol anidro","Etanol hidratado"]
[null,"Massa","kg/t cana",{"$f":"$D$91*E1G2G!$D$155","v":0},{"$f":"$D$92*E1G2G!$D$161","v":0}]
[null,"Distância de transporte rodoviário","km",400,400]
[null,"Transporte rodoviário","tkm/t cana",{"$f":"D152/1000*D153","v":0},{"$f":"E152/1000*E153","v":0}]
[null,"Distância de transporte dutoviário","km",300,300]
[null,"Transporte dutoviário","tkm/t cana",{"$f":"D152/1000*D155","v":0},{"$f":"E152/1000*E155","v":0}]
[null,"Emissões","g CO2 eq/t cana",{"$f":"D154*'Dados auxiliares'!$H$126+D156*'Dados auxiliares'!$H$130","v":0},{"$f":"E154*'Dados auxiliares'!$H$126+E156*'Dados auxiliares'!$H$130","v":0}]
[null,"Emissões","g CO2 eq/MJ",{"$f":"D157/$E$91","v":0},{"$f":"E157/$E$92","v":0}]
[null,"Sistema logiístico rodoviário + ferroviário"]
[null,"Parâmetro","Unidade","Etanol anidro","Etanol hidratado"]
[null,"Massa","kg/t cana",{"$f":"$D$91*E1G2G!$D$156","v":0},{"$f":"$D$92*E1G2G!$D$162","v":0}]
[null,"Distância de transporte rodoviário","km",400,400]
[null,"Transporte rodoviário","tkm/t cana",{"$f":"D161/1000*D162","v":0},{"$f":"E161/1000*E162","v":0}]
[null,"Distância de transporte ferroviário","km",300,300]
[null,"Transporte ferroviário","tkm/t cana",{"$f":"D161/1000*D164","v":0},{"$f":"E161/1000*E164","v":0}]
[null,"Emissões","g CO2 eq/t cana",{"$f":"D163*'Dados auxiliares'!$H$126+D165*'Dados auxiliares'!$H$129","v":0},{"$f":"E163*'Dados auxiliares'!$H$126+E165*'Dados auxiliares'!$H$129","v":0}]
[null,"Emissões","g CO2 eq/MJ",{"$f":"D166/$E$91","v":0},{"$f":"E166/$E$92","v":0}]
[]
[null,"Emissões totais","g CO2 eq/MJ",{"$f":"D149+D158+D167","v":0.80268195850394575},{"$f":"E149+E158+E167","v":0.86001638411137049}]

{"sheet":"E2G","index":6,"n_rows":82,"n_cols":7,"rows_kept":82,"cut":false,"hidden":false,"merged":[[78,2,78,4],[24,1,24,7],[36,1,36,7],[42,1,42,7],[44,2,44,4],[49,2,49,4],[54,2,54,4],[59,2,59,4],[64,2,64,4],[70,1,70,7],[72,2,72,4],[77,2,77,4],[23,1,23,7],[3,2,3,7],[5,2,5,7],[7,2,7,7],[9,2,9,3],[12,2,12,3],[14,3,14,5]]}
[]
[null,"Produção de Etanol de segunda geração"]
[]
[null,"Nome da Usina:","Usina Hipotética"]
[]
[null,"CNPJ","00.000.000/0000-00"]
[]
[null,"Responsável pelo preenchimento:","GT ACV RenovaCalc"]
[]
[null,"Telefone :","(00) 0000-0000"]
[]
[]
[null,null,"Etanol Anidro"]
[]
[null,"Intensidade de Carbono\n(g CO₂eq/MJ)",{"$f":"SUM(C17:C20)","v":4.4148690289033103},"Nota de Eficiência Energético-Ambiental\n(g CO₂eq/MJ)",null,null,{"$f":"G18-C15","v":82.985130971096694}]
[]
[null,null,null,null,null,null,"Fóssil de referência: Gasolina"]
[null,"industrial",{"$f":"IF(C13=\"Etanol Anidro\",_E2G!C5,IF(C13=\"Etanol Hidratado\",_E2G!E5,\"\"))","v":3.1731865299991457},null,null,null,87.4]
[null,"transporte",{"$f":"IF(C13=\"Etanol Anidro\",_E2G!C6,IF(C13=\"Etanol Hidratado\",_E2G!E6,\"\"))","v":0.80268195850394575},null,null,null,"Redução de emissões"]
[null,"uso",{"$f":"IF(C13=\"Etanol Anidro\",_E2G!C7,IF(C13=\"Etanol Hidratado\",_E2G!E7,\"\"))","v":0.43900054040021891},null,null,null,{"$f":"(G18-C15)/G18","v":0.94948662438325726}]
[]
[]
[]
[null,"Fase industrial - processamento do etanol"]
[null,"Processamento e rendimentos"]
[null,null,"Quantidade de bagaço de terceiros processada (base úmida)",2,"t bagaço","Umidade",0.5]
[null,null,"Distância de transporte ",0,"km"]
[null,null,"Quantidade de palha de terceiros processada (base seca)",0,"t palha"]
[null,null,"Distância de transporte",0,"km"]
[]
[null,null,"Quantidade de material lignocelulósico (MLC) processado (base seca)",{"$f":"D26*(1-G26)+D28","v":1},"t MLC"]
[]
[null,null,"Rendimento Etanol Anidro",80.025284450063197,"L/t MLC"]
[null,null,"Rendimento Etanol Hidratado",167.49072929542601,"L/t MLC"]
[null,null,"Rendimento Energia Elétrica Comercializada",348.9,"kWh/t MLC"]
[]
[null,"Insumos industriais"]
[null,null,"Enzimas",4.3383799999999999,"kg/t MLC"]
[null,null,"Ácido sulfúrico",0,"kg/t MLC"]
[null,null,"Amônia",0,"kg/t MLC"]
[null,null,"Hidróxido de sódio",0,"kg/t MLC"]
[]
[null,"Combustíveis"]
[]
[null,null,"Bagaço de terceiros"]
[null,null,"Quantidade (base úmida)",378.3,"kg/t MLC"]
[null,null,"Umidade",0.5]
[null,null,"Distância de transporte",100," km"]
[]
[null,null,"Palha de terceiros"]
[null,null,"Quantidade (base úmida)",0,"kg/t MLC"]
[null,null,"Umidade",0]
[null,null,"Distância de transporte",0," km"]
[]
[null,null,"Cavaco de madeira"]
[null,null,"Quantidade (base úmida)",0,"kg/t MLC"]
[null,null,"Umidade",0]
[null,null,"Distância de transporte",0," km"]
[]
[null,null,"Lenha"]
[null,null,"Quantidade (base úmida)",0,"kg/t MLC"]
[null,null,"Umidade",0]
[null,null,"Distância de transporte",0," km"]
[]
[null,null,"Resíduos florestais"]
[null,null,"Quantidade (base úmida)",0,"kg/t MLC"]
[null,null,"Umidade",0]
[null,null,"Distância de transporte",0," km"]
[]
[]
[null,"Distribuição dos biocombustíveis"]
[]
[null,null,"Etanol anidro"]
[null,null,"Rodoviário",1]
[null,null,"Rodoviário + Dutoviário",0]
[null,null,"Rodoviário + Ferroviário",0]
[]
[]
[null,null,"Etanol hidradado"]
[null,null,"Rodoviário",1,"%"]
[null,null,"Rodoviário + Dutoviário",0,"%"]
[null,null,"Rodoviário + Ferroviário",0,"%"]

{"sheet":"_E2G","index":7,"n_rows":81,"n_cols":7,"rows_kept":81,"cut":false,"hidden":false,"merged":[[53,1,53,5],[1,1,1,5],[2,2,2,3],[2,4,2,5],[3,2,3,3],[3,4,3,5],[10,1,10,5]]}
[]
[null,"Emissões totais - g CO₂ eq"]
[null,null,"Anidro",null,"Hidratado"]
[null,"Total",{"$f":"C5+C6+C7","v":4.4148690289033103},null,{"$f":"E5+E6+E7","v":4.6962037302502546}]
[null,"Industrial",{"$f":"($G$51-$G$17)","v":3.1731865299991457},{"$f":"C5/$C$4","v":0.71874986760080428},{"$f":"($G$51-$G$17)","v":3.1731865299991457},{"$f":"E5/$E$4","v":0.67569183797527688}]
[null,"Transporte",{"$f":"$D$81","v":0.80268195850394575},{"$f":"C6/$C$4","v":0.18181331161783942},{"$f":"$E$81","v":0.86001638411137038},{"$f":"E6/$E$4","v":0.18313012669608802}]
[null,"Uso",{"$f":"'FE''s queima combustíveis'!$I$7","v":0.43900054040021891},{"$f":"C7/$C$4","v":9.943682078135628E-2},{"$f":"'FE''s queima combustíveis'!$I$8","v":0.66300081613973838},{"$f":"E7/$E$4","v":0.1411780353286351}]
[]
[]
[]
[null,"Etapa industrial - Etanol"]
[null,"Produtos","Unidade","1 TC","MJ","Alocação"]
[null,"Etanol anidro","kg",{"$f":"E2G!D33*'Dados auxiliares'!$D$15","v":63.29999999999999},{"$f":"D13*'Dados auxiliares'!$F$15","v":1788.9127678841651},{"$f":"E13/SUM($E$13:$E$15)","v":0.27026895052374716}]
[null,"Etanol hidratado","kg",{"$f":"E2G!D34*'Dados auxiliares'!$D$16","v":135.49999999999966},{"$f":"D14*'Dados auxiliares'!$F$16","v":3574.0574204067966},{"$f":"E14/SUM($E$13:$E$15)","v":0.53996861415855424}]
[null,"Energia elétrica comercializada","kWh",{"$f":"E2G!D35","v":348.9},{"$f":"CONVERT(D15,\"kWh\",\"MJ\")","v":1256.0393739154174},{"$f":"E15/SUM($E$13:$E$15)","v":0.18976243531769876}]
[null,"Entradas ","Unidade","1 TC",null,"g CO2 eq/t cana"]
[null,"MLC","t",1,null,0,{"$f":"(F17/$E$13)*$F$13","v":0}]
[null,"Bagaço de terceiros","kg base seca",{"$f":"(E2G!$D$26*1-E2G!$G$26)*1000/E2G!$D$31","v":1500},null,0,0]
[null,"Transporte de bagaço de terceiros","tkm",{"$f":"D18/1000*E2G!$D$27","v":0},null,{"$f":"D19*'Dados auxiliares'!$H$125","v":0},0]
[null,"Palha de terceiros","kg base seca",{"$f":"E2G!$D$28*1000/E2G!$D$31","v":0},null,{"$f":"D20*'Dados auxiliares'!$H$74","v":0},0]
[null,"Transporte de palha de terceiros","tkm",{"$f":"D20/1000*E2G!$D$29","v":0},null,{"$f":"D21*'Dados auxiliares'!$H$125","v":0},0]
[null,"Água","kg",4311.6885916272331,null,{"$f":"D22*'Dados auxiliares'!$H$79","v":37.949639312499187},5.73343170996252E-3]
[null,"Ácido sulfúrico","kg",0.61908314763588068,null,{"$f":"D23*'Dados auxiliares'!$H$84","v":67.702846168203138},1.0228546360587986E-2]
[null,"Amônia","kg",3.7977109730580301,null,{"$f":"D24*'Dados auxiliares'!$H$91","v":11618.480177121233},{"$f":"(F24/$E$13)*$F$13","v":1.755320047195752}]
[null,"Antibióticos","kg",2.8199479845661701E-3,null,{"$f":"D25*'Dados auxiliares'!$H$88","v":6.0654176499580732},{"$f":"(F25/$E$13)*$F$13","v":9.1636333094165061E-4}]
[null,"Zeolita","kg",{"$f":"(0.4464/1000)*D13","v":2.8257119999999997E-2},null,{"$f":"D26*'Dados auxiliares'!$H$90","v":141.57747698068326},2.1389525978187267E-2]
[null,"Enzimas","kg",{"$f":"E2G!D38","v":4.3383799999999999},null,{"$f":"D27*'Dados auxiliares'!$H$95","v":5683.2777999999998},0.85862964036956879]
[null,"Ácido sulfúrico","kg",{"$f":"E2G!D39","v":0},null,{"$f":"D28*'Dados auxiliares'!$H$84","v":0},0]
[null,"Amônia","kg",{"$f":"E2G!D40","v":0},null,{"$f":"D29*'Dados auxiliares'!$H$91","v":0},0]
[null,"Hidróxido de sódio","kg",{"$f":"E2G!D41","v":0},null,{"$f":"D30*'Dados auxiliares'!$H$93","v":0},0]
[null,"Combustíveis e eletricidade"]
[null,"Bagaço de terceiros","kg base seca",{"$f":"E2G!$D$46*(1-E2G!$D$47)","v":189.15},null,0,{"$f":"(F32/$E$13)*$F$13","v":0}]
[null,"Transporte de bagaço de terceiros","tkm",{"$f":"((D32/1000)*E2G!$D$48)","v":18.915000000000003},null,{"$f":"D33*'Dados auxiliares'!$H$125","v":2271.407327496247},0.34316423116619532]
[null,"Palha de terceiros","kg base seca",{"$f":"E2G!$D$51*(1-E2G!$D$52)","v":0},null,{"$f":"D34*'Dados auxiliares'!$H$74","v":0},0]
[null,"Transporte de palha de terceiros","tkm",{"$f":"((D34/1000)*E2G!$D$53)","v":0},null,{"$f":"D35*'Dados auxiliares'!$H$125","v":0},0]
[null,"Cavaco de madeira","kg base seca",{"$f":"E2G!$D$56*(1-E2G!$D$57)","v":0},null,{"$f":"D36*'Dados auxiliares'!$H$119","v":0},0]
[null,"Transporte de cavaco de madeira","tkm",{"$f":"((D36/1000)*E2G!$D$58)","v":0},null,{"$f":"D37*'Dados auxiliares'!$H$125","v":0},0]
[null,"Lenha","kg base seca",{"$f":"E2G!$D$61*(1-E2G!$D$62)","v":0},null,{"$f":"D38*'Dados auxiliares'!$H$120","v":0},0]
[null,"Transporte de lenha","tkm",{"$f":"((D38/1000)*E2G!$D$63)","v":0},null,{"$f":"D39*'Dados auxiliares'!$H$125","v":0},0]
[null,"Resíduos florestais","kg base seca",{"$f":"E2G!$D$66*(1-E2G!$D$67)","v":0},null,0,0]
[null,"Transporte de resíduos florestais","tkm",{"$f":"((D40/1000)*E2G!$D$68)","v":0},null,{"$f":"D41*'Dados auxiliares'!$H$125","v":0},0]
[null,"Emissões","Unidade","1 TC",null,"g CO2 eq/t cana"]
[null,"CO₂ eq - queima do bagaço de terceiros","kg",{"$f":"$D$32*'FE''s queima combustíveis'!$I$33/1000","v":1.1768913000000001},null,{"$f":"D43*1000","v":1176.8913},{"$f":"(F43/$E$13)*$F$13","v":0.17780474388795042}]
[null,"CO₂ eq - queima da palha de terceiros","kg",{"$f":"$D$34*'FE''s queima combustíveis'!$I$34/1000","v":0},null,0,{"$f":"(F44/$E$13)*$F$13","v":0}]
[null,"CO₂ eq - queima dos cavacos de madeira","kg",{"$f":"$D$36*'FE''s queima combustíveis'!$I$35/1000","v":0},null,0,{"$f":"(F45/$E$13)*$F$13","v":0}]
[null,"CO₂ eq - queima da lenha","kg",{"$f":"$D$38*'FE''s queima combustíveis'!$I$36/1000","v":0},null,0,{"$f":"(F46/$E$13)*$F$13","v":0}]
[null,"CO₂ eq - queima dos resíduos florestais","kg",{"$f":"$D$40*'FE''s queima combustíveis'!$I$37/1000","v":0},null,0,{"$f":"(F47/$E$13)*$F$13","v":0}]
[]
[null,"Emissões do processo","g CO2 eq/t cana",null,null,{"$f":"SUM(F43:F47)","v":1176.8913},{"$f":"(F49/$E$13)*$F$13","v":0.17780474388795042}]
[null,"Emissões background","g CO2 eq/t cana",null,null,{"$f":"SUM(F17:F41)","v":19826.460684728823},{"$f":"(F50/$E$13)*$F$13","v":2.9953817861111953}]
[null,"Emissões totais","g CO2 eq/t cana",null,null,{"$f":"F49+F50","v":21003.351984728823},{"$f":"(F51/$E$13)*$F$13","v":3.1731865299991457}]
[]
[]
[null,"Etapa distribuição"]
[null,"Sistema logiístico rodoviário"]
[null,"Parâmetro","Unidade","Etanol anidro","Etanol hidratado"]
[null,"Massa","kg/t cana",{"$f":"$D$13*E2G!$D$74","v":63.29999999999999},{"$f":"$D$14*E2G!$D$80","v":135.49999999999966}]
[null,"Distância de transporte rodoviário","km",700,700]
[null,"Transporte rodoviário","tkm/t cana",{"$f":"D57/1000*D58","v":44.309999999999995},{"$f":"E57/1000*E58","v":94.849999999999753}]
[null,"Emissões","g CO2 eq/t cana",{"$f":"D59*'Dados auxiliares'!$H$126","v":1435.9280041179761},{"$f":"E59*'Dados auxiliares'!$H$126","v":3073.7479393046651}]
[null,"Emissões","g CO2 eq/MJ",{"$f":"D60/$E$13","v":0.80268195850394575},{"$f":"E60/$E$14","v":0.86001638411137038}]
[null,"Sistema logiístico rodoviário + dutoviário"]
[null,"Parâmetro","Unidade","Etanol anidro","Etanol hidratado"]
[null,"Massa","kg/t cana",{"$f":"$D$13*E2G!$D$75","v":0},{"$f":"$D$14*E2G!$D$81","v":0}]
[null,"Distância de transporte rodoviário","km",400,400]
[null,"Transporte rodoviário","tkm/t cana",{"$f":"D64/1000*D65","v":0},{"$f":"E64/1000*E65","v":0}]
[null,"Distância de transporte dutoviário","km",300,300]
[null,"Transporte dutoviário","tkm/t cana",{"$f":"D64/1000*D67","v":0},{"$f":"E64/1000*E67","v":0}]
[null,"Emissões","g CO2 eq/t cana",{"$f":"D66*'Dados auxiliares'!$H$126+D68*'Dados auxiliares'!$H$130","v":0},{"$f":"E66*'Dados auxiliares'!$H$126+E68*'Dados auxiliares'!$H$130","v":0}]
[null,"Emissões","g CO2 eq/MJ",{"$f":"D69/$E$13","v":0},{"$f":"E69/$E$14","v":0}]
[null,"Sistema logiístico rodoviário + ferroviário"]
[null,"Parâmetro","Unidade","Etanol anidro","Etanol hidratado"]
[null,"Massa","kg/t cana",{"$f":"$D$13*E2G!$D$76","v":0},{"$f":"$D$14*E2G!$D$82","v":0}]
[null,"Distância de transporte rodoviário","km",400,400]
[null,"Transporte rodoviário","tkm/t cana",{"$f":"D73/1000*D74","v":0},{"$f":"E73/1000*E74","v":0}]
[null,"Distância de transporte ferroviário","km",300,300]
[null,"Transporte ferroviário","tkm/t cana",{"$f":"D73/1000*D76","v":0},{"$f":"E73/1000*E76","v":0}]
[null,"Emissões","g CO2 eq/t cana",{"$f":"D75*'Dados auxiliares'!$H$126+D77*'Dados auxiliares'!$H$129","v":0},{"$f":"E75*'Dados auxiliares'!$H$126+E77*'Dados auxiliares'!$H$129","v":0}]
[null,"Emissões","g CO2 eq/MJ",{"$f":"D78/$E$13","v":0},{"$f":"E78/$E$14","v":0}]
[]
[null,"Emissões totais","g CO2 eq/MJ",{"$f":"D61+D70+D79","v":0.80268195850394575},{"$f":"E61+E70+E79","v":0.86001638411137038}]

{"sheet":"E1G Flex","index":8,"n_rows":229,"n_cols":46,"rows_kept":229,"cut":false,"hidden":false,"merged":[[14,3,14,5],[99,3,99,4],[28,12,28,13],[28,21,28,22],[28,3,28,6],[23,10,23,16],[23,19,23,25],[40,1,40,7],[40,10,40,16],[40,19,40,25],[47,1,47,7],[47,10,47,16],[47,19,47,25],[25,1,25,2],[25,10,25,11],[3,2,3,7],[5,2,5,7],[7,2,7,7],[9,2,9,3],[12,2,12,3],[23,30,23,36],[24,1,24,7],[24,10,24,16],[24,19,24,25],[24,30,24,36],[23,1,23,7],[40,30,40,36],[44,1,44,7],[44,10,44,16],[44,19,44,25],[44,30,44,36],[47,30,47,36],[52,1,52,7],[52,10,52,16],[52,19,52,25],[52,30,52,36],[70,30,70,36],[77,1,77,7],[77,10,77,16],[77,19,77,25],[77,30,77,36],[70,19,70,25],[109,1,109,7],[109,10,109,16],[70,1,70,7],[70,10,70,16],[121,10,121,16],[97,1,97,2],[95,1,95,7],[95,10,95,16],[96,1,96,7],[96,10,96,16],[225,2,225,4],[187,2,187,4],[191,2,191,4],[196,2,196,4],[201,2,201,4],[206,2,206,4],[211,2,211,4],[217,1,217,7],[219,2,219,4],[224,2,224,4],[183,2,183,4],[113,1,113,7],[113,10,113,16],[118,1,118,7],[118,10,118,16],[121,1,121,7],[139,1,139,7],[139,10,139,16],[146,1,146,7],[146,10,146,16],[165,1,165,7],[166,1,166,7],[182,1,182,7],[52,39,52,45],[70,39,70,45],[77,39,77,45],[23,39,23,45],[24,39,24,45],[40,39,40,45],[44,39,44,45],[47,39,47,45]]}
[]
[null,"Produção de Etanol de cana-de-açúcar e milho em usinas flex"]
[]
[null,"Nome da Usina:","Usina Hipotética"]
[]
[null,"CNPJ","00.000.000/0000-00"]
[]
[null,"Responsável pelo preenchimento:","GT ACV RenovaCalc"]
[]
[null,"Telefone :","(00) 0000-0000"]
[]
[]
[null,null,"Etanol Anidro"]
[]
[null,"Intensidade de Carbono\n(g CO₂eq/MJ)",{"$f":"SUM(C17:C21)","v":22.547811782163262},"Nota de Eficiência Energético-Ambiental\n(g CO₂eq/MJ)",null,null,{"$f":"G18-C15","v":64.852188217836741}]
[]
[null,"agrícola - cana-de-açúcar",{"$f":"IF($C$13=\"Etanol Anidro\",'_E1G Flex'!C5,IF($C$13=\"Etanol Hidratado\",'_E1G Flex'!E5,\"\"))","v":9.4087310398467192},null,null,null,"Fóssil de referência: Gasolina"]
[null,"agrícola - milho",{"$f":"IF($C$13=\"Etanol Anidro\",'_E1G Flex'!C6,IF($C$13=\"Etanol Hidratado\",'_E1G Flex'!E6,\"\"))","v":8.9926874745689975},null,null,null,87.4]
[null,"industrial",{"$f":"IF($C$13=\"Etanol Anidro\",'_E1G Flex'!C7,IF($C$13=\"Etanol Hidratado\",'_E1G Flex'!E7,\"\"))","v":2.904710768843378},null,null,null,"Redução de emissões"]
[null,"transporte",{"$f":"IF($C$13=\"Etanol Anidro\",'_E1G Flex'!C8,IF($C$13=\"Etanol Hidratado\",'_E1G Flex'!E8,\"\"))","v":0.80268195850394564},null,null,null,{"$f":"(G18-C15)/G18","v":0.74201588349927616}]
[null,"uso",{"$f":"IF($C$13=\"Etanol Anidro\",'_E1G Flex'!C9,IF($C$13=\"Etanol Hidratado\",'_E1G Flex'!E9,\"\"))","v":0.43900054040021891}]
[]
[]
[null,"Usina - Área de cana própria",null,null,null,null,null,null,null,null,"Fornecedores - Dados consolidados",null,null,null,null,null,null,null,null,"Média ponderada - RenovaCalc",null,null,null,null,null,null,null,null,null,null,"Default - Cana",null,null,null,null,null,null,null,null,"Guarda dados de preenchimento"]
[null,"Informações gerais",null,null,null,null,null,null,null,null,"Informações gerais",null,null,null,null,null,null,null,null,"Informações gerais",null,null,null,null,null,null,null,null,null,null,"Informações gerais",null,null,null,null,null,null,null,null,"Informações gerais"]
[null,"Houve supressão de vegetação nativa a partir de 26 de dezembro de 2017?",null,"Não",null,null,null,null,null,null,"Houve supressão de vegetação nativa a partir de 26 de dezembro de 2017?",null,"Não",null,null,null,null,null,null,null,"Houve avanço sobre vegetação nativa?",{"$f":"IF(OR(D26=\"Sim\",M26=\"Sim\"),\"Sim\",\"Não\")","v":"Não"}]
[null,null,"Usina atende ao ZAE Cana?","Sim",null,null,null,null,null,null,null,"Usina atende ao ZAE Cana?","Sim",null,null,null,null,null,null,null,"Usina atende ao ZAE Cana?",{"$f":"IF(OR(D27=Listas!$B$4,M27=Listas!$B$4),Listas!$B$4,Listas!$B$3)","v":"Sim"}]
[]
[null,null,"Número de registro no CAR","UF-1302405-E6D3.395B.6D27.4F42.AE22.DD56.987C.DD51",null,null,null,null,null,null,null,"Número de registro no CAR","Cadastro de fornecedores",null,null,null,null,null,null,null,"Número de registro no CAR","Cadastro de fornecedores"]
[]
[null,null,"Situação do CAR","Ativo",null,null,null,null,null,null,null,"Situação do CAR","Ativo",null,null,null,null,null,null,null,"Situação do CAR",{"$f":"IF(AND(D31=Listas!$B$7,M31=Listas!$B$7),Listas!$B$7,IF(OR(D31=Listas!$B$9,M31=Listas!$B$9),Listas!$B$9,Listas!$B$8))","v":"Ativo"}]
[]
[null,null,"Sistema de plantio","Convencional",null,null,null,null,null,null,null,"Sistema de plantio","Convencional",null,null,null,null,null,null,null,"Sistema de plantio","Convencional"]
[null,null,"Área total",20000,"ha",null,null,null,null,null,null,"Área total",20000,"ha",null,null,null,null,null,null,"Área total",{"$f":"D34+M34","v":40000},"ha"]
[]
[null,null,"Produção total colhida para moagem",1334704.0020000001,"t cana",null,null,null,null,null,null,"Produção total colhida para moagem",1334704.0020000001,"t cana",null,null,null,null,null,null,"Produção total colhida para moagem",{"$f":"D36+M36","v":2669408.0040000002},"t cana"]
[null,null,"Teor de impurezas vegetais (base úmida)",50,"kg/t cana","Umidade",0.5,null,null,null,null,"Teor de impurezas vegetais (base úmida)",50,"kg/t cana","Umidade",0.5,null,null,null,null,"Teor de impurezas vegetais (base úmida)",{"$f":"D37*($D$36/$V$36)+M37*($M$36/$V$36)","v":50},"kg/t cana","Umidade",{"$f":"IF((D37*$D$36+M37*$M$36)<>0,(G37*D37*$D$36+P37*M37*$M$36)/(D37*$D$36+M37*$M$36),0)","v":0.5}]
[null,null,"Teor de impurezas minerais",20,"kg/t cana",null,null,null,null,null,null,"Teor de impurezas minerais",20,"kg/t cana",null,null,null,null,null,null,"Teor de impurezas minerais",20,"kg/t cana"]
[null,null,"Palha recolhida (base seca)",0,"t palha",null,null,null,null,null,null,"Palha recolhida (base seca)",0,"t palha",null,null,null,null,null,null,"Palha recolhida (base seca)",{"$f":"D39+M39","v":0},"t palha"]
[]
[null,"Tipo de preenchimento",null,null,null,null,null,null,null,null,"Tipo de preenchimento",null,null,null,null,null,null,null,null,"Tipo de preenchimento",null,null,null,null,null,null,null,null,null,null,"Tipo de preenchimento",null,null,null,null,null,null,null,null,"Tipo de preenchimento"]
[null,"Tipo de dados forneceidos pela usina:",null,null,null,null,null,null,null,null,"Tipo de dados forneceidos pelos fornecedores:",null,null,null,null,null,null,null,null,"Tipo de dados forneceidos:",null,null,null,null,null,null,null,null,null,null,null,null,"Padrão",null,null,null,null,null,null,null,null,"Primários"]
[null,{"$f":"AP42","v":"Primários"},null,null,null,null,null,null,null,null,"Em função das informações de cada fornecedor",null,null,null,null,null,null,null,null,"Em função das informações da usina e de cada fornecedor"]
[]
[null,"Área Queimada",null,null,null,null,null,null,null,null,"Área Queimada",null,null,null,null,null,null,null,null,"Área Queimada",null,null,null,null,null,null,null,null,null,null,"Área Queimada",null,null,null,null,null,null,null,null,"Área Queimada"]
[null,null,"Área queimada",3680,"ha",null,null,null,null,null,null,"Área queimada",3680,"ha",null,null,null,null,null,null,"Área queimada",{"$f":"D46+M46","v":7360},"ha",null,null,null,null,null,null,null,null,"Área queimada",1,"% da área total",null,null,null,null,null,null,"Área queimada",3680,"% da área total"]
[]
[null,"Corretivos",null,null,null,null,null,null,null,null,"Corretivos",null,null,null,null,null,null,null,null,"Corretivos",null,null,null,null,null,null,null,null,null,null,"Corretivos",null,null,null,null,null,null,null,null,"Corretivos"]
[null,null,"Calcário calcítico",0,"kg/t cana",null,null,null,null,null,null,"Calcário calcítico",0,"kg/t cana",null,null,null,null,null,null,"Calcário calcítico",{"$f":"D49*($D$36/$V$36)+M49*($M$36/$V$36)","v":0},"kg/t cana",null,null,null,null,null,null,null,null,"Calcário calcítico",0,"kg/t cana",null,null,null,null,null,null,"Calcário calcítico",0,"kg/t cana"]
[null,null,"Calcário dolomítico",5.79,"kg/t cana",null,null,null,null,null,null,"Calcário dolomítico",5.79,"kg/t cana",null,null,null,null,null,null,"Calcário dolomítico",{"$f":"D50*($D$36/$V$36)+M50*($M$36/$V$36)","v":5.79},"kg/t cana",null,null,null,null,null,null,null,null,"Calcário dolomítico",8.1059999999999999,"kg/t cana",null,null,null,null,null,null,"Calcário dolomítico",5.79,"kg/t cana"]
[null,null,"Gesso",2.79,"kg/t cana",null,null,null,null,null,null,"Gesso",2.79,"kg/t cana",null,null,null,null,null,null,"Gesso",{"$f":"D51*($D$36/$V$36)+M51*($M$36/$V$36)","v":2.79},"kg/t cana",null,null,null,null,null,null,null,null,"Gesso",3.9060000000000001,"kg/t cana",null,null,null,null,null,null,"Gesso",2.79,"kg/t cana"]
[]
[null,"Fertilizantes Sintéticos",null,null,null,null,null,null,null,null,"Fertilizantes Sintéticos",null,null,null,null,null,null,null,null,"Fertilizantes Sintéticos",null,null,null,null,null,null,null,null,null,null,"Fertilizantes Sintéticos",null,null,null,null,null,null,null,null,"Fertilizantes Sintéticos"]
[null,null,"Ureia",1.107,"kg N/t cana",null,null,null,null,null,null,"Ureia",1.107,"kg N/t cana",null,null,null,null,null,null,"Ureia",{"$f":"D54*($D$36/$V$36)+M54*($M$36/$V$36)","v":1.107},"kg N/t cana",null,null,null,null,null,null,null,null,"Ureia",1.5498000000000001," kg N/TC",null,null,null,null,null,null,"Ureia",1.107," kg N/TC"]
[null,null,"Fosfato monoamônico (MAP)",0,"kg N/t cana",null,null,null,null,null,null,"Fosfato monoamônico (MAP)",0,"kg N/t cana",null,null,null,null,null,null,"Fosfato monoamônico (MAP)",0,"kg N/t cana",null,null,null,null,null,null,null,null,"Fosfato monoamônico (MAP)",0," kg N/TC",null,null,null,null,null,null,"Fosfato monoamônico (MAP)",0," kg N/TC"]
[null,null,"Fosfato monoamônico (MAP)",0,"kg P₂O₅/t cana",null,null,null,null,null,null,"Fosfato monoamônico (MAP)",0,"kg P₂O₅/t cana",null,null,null,null,null,null,"Fosfato monoamônico (MAP)",0,"kg P₂O₅/t cana",null,null,null,null,null,null,null,null,"Fosfato monoamônico (MAP)",0," kg P2O5/TC",null,null,null,null,null,null,"Fosfato monoamônico (MAP)",0," kg P2O5/TC"]
[null,null,"Fosfato diamônico (DAP)",0,"kg N/t cana",null,null,null,null,null,null,"Fosfato diamônico (DAP)",0,"kg N/t cana",null,null,null,null,null,null,"Fosfato diamônico (DAP)",0,"kg N/t cana",null,null,null,null,null,null,null,null,"Fosfato diamônico (DAP)",0," kg N/TC",null,null,null,null,null,null,"Fosfato diamônico (DAP)",0," kg N/TC"]
[null,null,"Fosfato diamônico (DAP)",0,"kg P₂O₅/t cana",null,null,null,null,null,null,"Fosfato diamônico (DAP)",0,"kg P₂O₅/t cana",null,null,null,null,null,null,"Fosfato diamônico (DAP)",0,"kg P₂O₅/t cana",null,null,null,null,null,null,null,null,"Fosfato diamônico (DAP)",0," kg P2O5/TC",null,null,null,null,null,null,"Fosfato diamônico (DAP)",0," kg P2O5/TC"]
[null,null,"Nitrato de amônio",0,"kg N/t cana",null,null,null,null,null,null,"Nitrato de amônio",0,"kg N/t cana",null,null,null,null,null,null,"Nitrato de amônio",0,"kg N/t cana",null,null,null,null,null,null,null,null,"Nitrato de amônio",0," kg N/TC",null,null,null,null,null,null,"Nitrato de amônio",0," kg N/TC"]
[null,null,"Solução de nitrato de amônio e ureia (UAN)",0,"kg N/t cana",null,null,null,null,null,null,"Solução de nitrato de amônio e ureia (UAN)",0,"kg N/t cana",null,null,null,null,null,null,"Solução de nitrato de amônio e ureia (UAN)",0,"kg N/t cana",null,null,null,null,null,null,null,null,"Solução de nitrato de amônio e ureia (UAN)",0," kg N/TC",null,null,null,null,null,null,"Solução de nitrato de amônio e ureia (UAN)",0," kg N/TC"]
[null,null,"Amônia anidra",0,"kg N/t cana",null,null,null,null,null,null,"Amônia anidra",0,"kg N/t cana",null,null,null,null,null,null,"Amônia anidra",0,"kg N/t cana",null,null,null,null,null,null,null,null,"Amônia anidra",0," kg N/TC",null,null,null,null,null,null,"Amônia anidra",0," kg N/TC"]
[null,null,"Sulfato de amônio",0,"kg N/t cana",null,null,null,null,null,null,"Sulfato de amônio",0,"kg N/t cana",null,null,null,null,null,null,"Sulfato de amônio",0,"kg N/t cana",null,null,null,null,null,null,null,null,"Sulfato de amônio",0," kg N/TC",null,null,null,null,null,null,"Sulfato de amônio",0," kg N/TC"]
[null,null,"Nitrato de amônio e cálcio (CAN)",0,"kg N/t cana",null,null,null,null,null,null,"Nitrato de amônio e cálcio (CAN)",0,"kg N/t cana",null,null,null,null,null,null,"Nitrato de amônio e cálcio (CAN)",0,"kg N/t cana",null,null,null,null,null,null,null,null,"Nitrato de amônio e cálcio (CAN)",0," kg N/TC",null,null,null,null,null,null,"Nitrato de amônio e cálcio (CAN)",0," kg N/TC"]
[null,null,"Superfosfato simples (SSP)",0.443898833367118,"kg P₂O₅/t cana",null,null,null,null,null,null,"Superfosfato simples (SSP)",0.443898833367118,"kg P₂O₅/t cana",null,null,null,null,null,null,"Superfosfato simples (SSP)",0.443898833367118,"kg P₂O₅/t cana",null,null,null,null,null,null,null,null,"Superfosfato simples (SSP)",0.62145836671396526," kg P2O5/TC",null,null,null,null,null,null,"Superfosfato simples (SSP)",0.443898833367118," kg P2O5/TC"]
[null,null,"Superfosfato triplo (TSP)",0,"kg P₂O₅/t cana",null,null,null,null,null,null,"Superfosfato triplo (TSP)",0,"kg P₂O₅/t cana",null,null,null,null,null,null,"Superfosfato triplo (TSP)",0,"kg P₂O₅/t cana",null,null,null,null,null,null,null,null,"Superfosfato triplo (TSP)",0," kg P2O5/TC",null,null,null,null,null,null,"Superfosfato triplo (TSP)",0," kg P2O5/TC"]
[null,null,"Cloreto de potássio (KCl)",1.3462049016245501,"kg K₂O/t cana",null,null,null,null,null,null,"Cloreto de potássio (KCl)",1.3462049016245501,"kg K₂O/t cana",null,null,null,null,null,null,"Cloreto de potássio (KCl)",1.3462049016245501,"kg K₂O/t cana",null,null,null,null,null,null,null,null,"Cloreto de potássio (KCl)",1.8846868622743767," kg K2O/TC",null,null,null,null,null,null,"Cloreto de potássio (KCl)",1.3462049016245501," kg K2O/TC"]
[null,"Outros","especificar",0,"kg N/t cana",null,null,null,null,null,"Outros","especificar",0,"kg N/t cana",null,null,null,null,null,"Outros","especificar",0,"kg N/t cana",null,null,null,null,null,null,null,"Outros ","especificar",0," kg N /TC",null,null,null,null,null,"Outros ","especificar",0," kg N /TC"]
[null,"Outros","especificar",0,"kg P₂O₅/t cana",null,null,null,null,null,"Outros","especificar",0,"kg P₂O₅/t cana",null,null,null,null,null,"Outros","especificar",0,"kg P₂O₅/t cana",null,null,null,null,null,null,null,"Outros ","especificar",0," kg P2O5/TC",null,null,null,null,null,"Outros ","especificar",0," kg P2O5/TC"]
[null,"Outros","especificar",0,"kg K₂O/t cana",null,null,null,null,null,"Outros","especificar",0,"kg K₂O/t cana",null,null,null,null,null,"Outros","especificar",0,"kg K₂O/t cana",null,null,null,null,null,null,null,"Outros ","especificar",0," kg K2O/TC",null,null,null,null,null,"Outros ","especificar",0," kg K2O/TC"]
[]
[null,"Fertilizantes Orgânicos/Organominerais",null,null,null,null,null,null,null,null,"Fertilizantes Orgânicos/Organominerais",null,null,null,null,null,null,null,null,"Fertilizantes Orgânicos/Organominerais",null,null,null,null,null,null,null,null,null,null,"Fertilizantes Orgânicos/Organominerais",null,null,null,null,null,null,null,null,"Fertilizantes Orgânicos/Organominerais"]
[null,null,"Vinhaça",440.2,"L/t cana","Concentração de N",0.375,"g N/L",null,null,null,"Vinhaça",440.2,"L/t cana","Concentração de N",0.375,"g N/L",null,null,null,"Vinhaça",{"$f":"D72*($D$36/$V$36)+M72*($M$36/$V$36)","v":440.2},"L/t cana","Concentração de N",{"$f":"IF((D72*$D$36+M72*$M$36)<>0,(G72*D72*$D$36+P72*M72*$M$36)/(D72*$D$36+M72*$M$36),0)","v":0.375},"g N/L",null,null,null,null,null,"Vinhaça",616.28,"L/t cana","Concentração de N",0.375,"g N/L",null,null,null,"Vinhaça",440.2,"L/t cana","Concentração de N",0.375,"g N/L"]
[null,null,"Torta de Filtro (base úmida)",30.571428571428577,"kg/t cana","Concentração de N",14,"g N/kg",null,null,null,"Torta de Filtro (base úmida)",30.571428571428577,"kg/t cana","Concentração de N",14,"g N/kg",null,null,null,"Torta de Filtro (base úmida)",30.571428571428577,"kg/t cana","Concentração de N",13.999999999999998,"g N/kg",null,null,null,null,null,"Torta de Filtro (base úmida)",42.800000000000011,"kg/t cana","Concentração de N",14,"g N/kg",null,null,null,"Torta de Filtro (base úmida)",30.571428571428577,"kg/t cana","Concentração de N",14,"g N/kg"]
[null,null,"Cinzas e fuligem (base úmida)",7.2,"kg/t cana","Concentração de N",null,"g N/kg",null,null,null,"Cinzas e fuligem (base úmida)",7.2,"kg/t cana","Concentração de N",null,"g N/kg",null,null,null,"Cinzas e fuligem (base úmida)",7.2,"kg/t cana","Concentração de N",0,"g N/kg",null,null,null,null,null,"Cinzas e fuligem (base úmida)",10.08,"kg/t cana","Concentração de N",null,"g N/kg",null,null,null,"Cinzas e fuligem (base úmida)",7.2,"kg/t cana","Concentração de N",null,"g N/kg"]
[null,"Outros","especificar",0,"kg/t cana","Concentração de N",null,"g N/kg",null,null,"Outros","especificar",0,"kg/t cana","Concentração de N",null,"g N/kg",null,null,"Outros","especificar",0,"kg/t cana","Concentração de N",{"$f":"IF((D75*$D$36+M75*$M$36)<>0,(G75*D75*$D$36+P75*M75*$M$36)/(D75*$D$36+M75*$M$36),0)","v":0},"g N/kg",null,null,null,null,"Outros","especificar",0,"kg/t cana","Concentração de N",null,"g N/kg",null,null,"Outros","especificar",0,"kg/t cana","Concentração de N",null,"g N/kg"]
[null,"Outros","especificar",0,"kg/t cana","Concentração de N",null,"g N/kg",null,null,"Outros","especificar",0,"kg/t cana","Concentração de N",null,"g N/kg",null,null,"Outros","especificar",0,"kg/t cana","Concentração de N",{"$f":"IF((D76*$D$36+M76*$M$36)<>0,(G76*D76*$D$36+P76*M76*$M$36)/(D76*$D$36+M76*$M$36),0)","v":0},"g N/kg",null,null,null,null,"Outros","especificar",0,"kg/t cana","Concentração de N",null,"g N/kg",null,null,"Outros","especificar",0,"kg/t cana","Concentração de N",null,"g N/kg"]
[]
[null,"Combustíveis e eletricidade da rede",null,null,null,null,null,null,null,null,"Combustíveis e eletricidade da rede",null,null,null,null,null,null,null,null,"Combustíveis e eletricidade da rede",null,null,null,null,null,null,null,null,null,null,"Combustíveis e eletricidade da rede",null,null,null,null,null,null,null,null,"Combustíveis e eletricidade da rede"]
[null,null,"Diesel - B8",3.18,"L/t cana",null,null,null,null,null,null,"Diesel - B8",3.18,"L/t cana",null,null,null,null,null,null,"Diesel - B8",{"$f":"D79*($D$36/$V$36)+M79*($M$36/$V$36)","v":3.18},"L/t cana",null,null,null,null,null,null,null,null,"Diesel - B8",4.452,"L/t cana",null,null,null,null,null,null,"Diesel - B8",3.18,"L/t cana"]
[null,null,"Diesel - B10",0,"L/t cana",null,null,null,null,null,null,"Diesel - B10",0,"L/t cana",null,null,null,null,null,null,"Diesel - B10",0,"L/t cana",null,null,null,null,null,null,null,null,"Diesel - B10",0,"L/t cana",null,null,null,null,null,null,"Diesel - B10",0,"L/t cana"]
[null,null,"Diesel - BX",0,"L/t cana","Teor de biodiesel na mistura",0.11,null,null,null,null,"Diesel - BX",0,"L/t cana","Teor de biodiesel na mistura",0.11,null,null,null,null,"Diesel - BX",0,"L/t cana","Teor médio de biodiesel na mistura",{"$f":"IF((D81*$D$36+M81*$M$36)<>0,(G81*D81*$D$36+P81*M81*$M$36)/(D81*$D$36+M81*$M$36),0)","v":0},"%",null,null,null,null,null,"Diesel - BX",0,"L/t cana","Teor médio de biodiesel na mistura",0.11,"%",null,null,null,"Diesel - BX",0,"L/t cana","Teor médio de biodiesel na mistura",0.11,"%"]
[null,null,"Diesel - B20",0,"L/t cana",null,null,null,null,null,null,"Diesel - B20",0,"L/t cana",null,null,null,null,null,null,"Diesel - B20",0,"L/t cana",null,null,null,null,null,null,null,null,"Diesel - B20",0,"L/t cana",null,null,null,null,null,null,"Diesel - B20",0,"L/t cana"]
[null,null,"Diesel - B30",0,"L/t cana",null,null,null,null,null,null,"Diesel - B30",0,"L/t cana",null,null,null,null,null,null,"Diesel - B30",0,"L/t cana",null,null,null,null,null,null,null,null,"Diesel - B30",0,"L/t cana",null,null,null,null,null,null,"Diesel - B30",0,"L/t cana"]
[null,null,"Biodiesel - B100",0,"L/t cana",null,null,null,null,null,null,"Biodiesel - B100",0,"L/t cana",null,null,null,null,null,null,"Biodiesel - B100",0,"L/t cana",null,null,null,null,null,null,null,null,"Biodiesel - B100",0,"L/t cana",null,null,null,null,null,null,"Biodiesel - B100",0,"L/t cana"]
[null,null,"Gasolina C",0,"L/t cana",null,null,null,null,null,null,"Gasolina C",0,"L/t cana",null,null,null,null,null,null,"Gasolina C",0,"L/t cana",null,null,null,null,null,null,null,null,"Gasolina C",0,"L/t cana",null,null,null,null,null,null,"Gasolina C",0,"L/t cana"]
[null,null,"Etanol hidratado",0,"L/t cana",null,null,null,null,null,null,"Etanol hidratado",0,"L/t cana",null,null,null,null,null,null,"Etanol hidratado",0,"L/t cana",null,null,null,null,null,null,null,null,"Etanol hidratado",0,"L/t cana",null,null,null,null,null,null,"Etanol hidratado",0,"L/t cana"]
[null,null,"Biometano de terceiros",0,"Nm³/t cana",null,null,null,null,null,null,"Biometano de terceiros",0,"Nm³/t cana",null,null,null,null,null,null,"Biometano de terceiros",0,"Nm³/t cana",null,null,null,null,null,null,null,null,"Biometano de terceiros",0,"Nm³/t cana",null,null,null,null,null,null,"Biometano de terceiros",0,"Nm³/t cana"]
[null,null,"Biometano próprio",0,"Nm³/t cana",null,null,null,null,null,null,"Biometano próprio",0,"Nm³/t cana",null,null,null,null,null,null,"Biometano próprio",0,"Nm³/t cana",null,null,null,null,null,null,null,null,"Biometano próprio",0,"Nm³/t cana",null,null,null,null,null,null,"Biometano próprio",0,"Nm³/t cana"]
[null,null,"Eletricidade da rede - mix médio",0,"kWh/t cana",null,null,null,null,null,null,"Eletricidade da rede - mix médio",0,"kWh/t cana",null,null,null,null,null,null,"Eletricidade da rede - mix médio",0,"kWh/t cana",null,null,null,null,null,null,null,null,"Eletricidade da rede - mix médio",0,"kWh/t cana",null,null,null,null,null,null,"Eletricidade da rede - mix médio",0,"kWh/t cana"]
[null,null,"Eletricidade - PCH",0,"kWh/t cana",null,null,null,null,null,null,"Eletricidade - PCH",0,"kWh/t cana",null,null,null,null,null,null,"Eletricidade - PCH",0,"kWh/t cana",null,null,null,null,null,null,null,null,"Eletricidade - PCH",0,"kWh/t cana",null,null,null,null,null,null,"Eletricidade - PCH",0,"kWh/t cana"]
[null,null,"Eletricidade - biomassa",0,"kWh/t cana",null,null,null,null,null,null,"Eletricidade - biomassa",0,"kWh/t cana",null,null,null,null,null,null,"Eletricidade - biomassa",0,"kWh/t cana",null,null,null,null,null,null,null,null,"Eletricidade - biomassa",0,"kWh/t cana",null,null,null,null,null,null,"Eletricidade - biomassa",0,"kWh/t cana"]
[null,null,"Eletricidade - eólica",0,"kWh/t cana",null,null,null,null,null,null,"Eletricidade - eólica",0,"kWh/t cana",null,null,null,null,null,null,"Eletricidade - eólica",0,"kWh/t cana",null,null,null,null,null,null,null,null,"Eletricidade - eólica",0,"kWh/t cana",null,null,null,null,null,null,"Eletricidade - eólica",0,"kWh/t cana"]
[null,null,"Eletricidade - solar",0,"kWh/t cana",null,null,null,null,null,null,"Eletricidade - solar",0,"kWh/t cana",null,null,null,null,null,null,"Eletricidade - solar",0,"kWh/t cana",null,null,null,null,null,null,null,null,"Eletricidade - solar",0,"kWh/t cana",null,null,null,null,null,null,"Eletricidade - solar",0,"kWh/t cana"]
[]
[]
[null,"Fornecedores de milho - Dados consolidados",null,null,null,null,null,null,null,null,"Default - Milho"]
[null,"Informações gerais",null,null,null,null,null,null,null,null," Informações gerais"]
[null,"Houve supressão de vegetação nativa a partir de 26 de dezembro de 2017?",null,"Não"]
[]
[null,null,"Número de registro no CAR","Cadastro de fornecedores"]
[]
[null,null,"Situação do CAR","Ativo"]
[]
[null,null,"Sistema de plantio","Convencional"]
[null,null,"Área total",1,"ha"]
[]
[null,null,"Produção total (base úmida)",5.25262206186013,"t milho","Umidade",0.13]
[null,null,"Palha recolhida (base seca)",0,"t palha"]
[]
[null,"Tipo de preenchimento",null,null,null,null,null,null,null,null,"Tipo de preenchimento"]
[null,"Tipo de dados forneceidos pelos fornecedores:",null,null,null,null,null,null,null,null,null,null,"Padrão"]
[null,"Em função das informações de cada fornecedor"]
[]
[null,"Corretivos",null,null,null,null,null,null,null,null,"Corretivos"]
[null,null,"Calcário calcítico",0,"kg/t milho",null,null,null,null,null,null,"Calcário calcítico",0,"kg/t milho"]
[null,null,"Calcário dolomítico",42.306912548649237,"kg/t milho",null,null,null,null,null,null,"Calcário dolomítico",105.8,"kg/t milho"]
[null,null,"Gesso",0,"kg/t milho",null,null,null,null,null,null,"Gesso",0,"kg/t milho"]
[]
[null,"Sementes",null,null,null,null,null,null,null,null,"Sementes"]
[null,null,"Sementes",4.6433761724416271,"kg/t milho",null,null,null,null,null,null,"Sementes",11.6,"kg/t milho"]
[]
[null,"Fertilizantes Sintéticos",null,null,null,null,null,null,null,null,"Fertilizantes Sintéticos"]
[null,null,"Ureia",12.572838281743252,"kg N/t milho",null,null,null,null,null,null,"Ureia",31.4,"kg N/t milho"]
[null,null,"Fosfato Monoamônico (MAP)",0,"kg N/t milho",null,null,null,null,null,null,"Fosfato Monoamônico (MAP)",0,"kg N/t milho"]
[null,null,"Fosfato Monoamônico (MAP)",0,"kg P₂O₅/t milho",null,null,null,null,null,null,"Fosfato Monoamônico (MAP)",0,"kg P₂O₅/t milho"]
[null,null,"Fosfato diamônico (DAP)",0,"kg N/t milho",null,null,null,null,null,null,"Fosfato diamônico (DAP)",0,"kg N/t milho"]
[null,null,"Fosfato diamônico (DAP)",0,"kg P₂O₅/t milho",null,null,null,null,null,null,"Fosfato diamônico (DAP)",0,"kg P₂O₅/t milho"]
[null,null,"Nitrato de amônio",0,"kg N/t milho",null,null,null,null,null,null,"Nitrato de amônio",0,"kg N/t milho"]
[null,null,"Solução de nitrato de amônio e ureia (UAN)",0,"kg N/t milho",null,null,null,null,null,null,"Solução de nitrato de amônio e ureia (UAN)",0,"kg N/t milho"]
[null,null,"Amônia anidra",0,"kg N/t milho",null,null,null,null,null,null,"Amônia anidra",0,"kg N/t milho"]
[null,null,"Sulfato de amônio",0,"kg N/t milho",null,null,null,null,null,null,"Sulfato de amônio",0,"kg N/t milho"]
[null,null,"Nitrato de amônio e cálcio (CAN)",0,"kg N/t milho",null,null,null,null,null,null,"Nitrato de amônio e cálcio (CAN)",0,"kg N/t milho"]
[null,null,"Superfosfato simples (SSP)",10.914972489850966,"kg P₂O₅/t milho",null,null,null,null,null,null,"Superfosfato simples (SSP)",27.3,"kg P₂O₅/t milho"]
[null,null,"Superfosfato triplo (TSP)",0,"kg P₂O₅/t milho",null,null,null,null,null,null,"Superfosfato triplo (TSP)",0,"kg P₂O₅/t milho"]
[null,null,"Cloreto de potássio (KCl)",11.208923042124352,"kg K₂O/t milho",null,null,null,null,null,null,"Cloreto de potássio (KCl)",28,"kg K₂O/t milho"]
[null,"Outros","especificar",0,"kg N/t milho",null,null,null,null,null,"Outros","especificar",0,"kg N/t milho"]
[null,"Outros","especificar",0,"kg P₂O₅/t milho",null,null,null,null,null,"Outros","especificar",0,"kg P₂O₅/t milho"]
[null,"Outros","especificar",0,"kg K₂O/t milho",null,null,null,null,null,"Outros","especificar",0,"kg K₂O/t milho"]
[]
[null,"              Fertilizantes Orgânicos/Organominerais",null,null,null,null,null,null,null,null,"              Fertilizantes Orgânicos/Organominerais"]
[null,"Outros","especificar",0,"kg/t milho","Concentração de N",null,"g N/kg",null,null,"Outros","especificar",0,"kg/t milho","Concentração de N",null,"g N/kg"]
[null,"Outros","especificar",0,"kg/t milho","Concentração de N",null,"g N/kg",null,null,"Outros","especificar",0,"kg/t milho","Concentração de N",null,"g N/kg"]
[null,"Outros","especificar",0,"kg/t milho","Concentração de N",null,"g N/kg",null,null,"Outros","especificar",0,"kg/t milho","Concentração de N",null,"g N/kg"]
[null,"Outros","especificar",0,"kg/t milho","Concentração de N",null,"g N/kg",null,null,"Outros","especificar",0,"kg/t milho","Concentração de N",null,"g N/kg"]
[null,"Outros","especificar",0,"kg/t milho","Concentração de N",null,"g N/kg",null,null,"Outros","especificar",0,"kg/t milho","Concentração de N",null,"g N/kg"]
[]
[null,"              Combustíveis e eletricidade da rede",null,null,null,null,null,null,null,null,"              Combustíveis e eletricidade da rede"]
[null,null,"Diesel - B8",4.8,"L/t milho",null,null,null,null,null,null,"Diesel - B8",12,"L/t soja"]
[null,null,"Diesel - B10",0,"L/t milho",null,null,null,null,null,null,"Diesel - B10",0,"L/t soja"]
[null,null,"Diesel - BX",0,"L/t milho","Teor de biodiesel na mistura",0.11,null,null,null,null,"Diesel - BX",0,"L/t soja","Teor de biodiesel na mistura",0.11]
[null,null,"Diesel - B20",0,"L/t milho",null,null,null,null,null,null,"Diesel - B20",0,"L/t soja"]
[null,null,"Diesel - B30",0,"L/t milho",null,null,null,null,null,null,"Diesel - B30",0,"L/t soja"]
[null,null,"Biodiesel - B100",0,"L/t milho",null,null,null,null,null,null,"Biodiesel - B100",0,"L/t soja"]
[null,null,"Gasolina C",0,"L/t milho",null,null,null,null,null,null,"Gasolina C",0,"L/t soja"]
[null,null,"Etanol hidratado",0,"L/t milho",null,null,null,null,null,null,"Etanol hidratado",0,"L/t soja"]
[null,null,"Biometano de terceiros",0,"Nm³/t milho",null,null,null,null,null,null,"Biometano de terceiros",0,"Nm³/t soja"]
[null,null,"Biometano próprio",0,"Nm³/t milho",null,null,null,null,null,null,"Biometano próprio",0,"Nm³/t soja"]
[null,null,"Eletricidade da rede - mix médio",0,"kWh/t milho",null,null,null,null,null,null,"Eletricidade da rede - mix médio",0,"kWh/t soja"]
[null,null,"Eletricidade - PCH",0,"kWh/t milho",null,null,null,null,null,null,"Eletricidade - PCH",0,"kWh/t soja"]
[null,null,"Eletricidade - biomassa",0,"kWh/t milho",null,null,null,null,null,null,"Eletricidade - biomassa",0,"kWh/t soja"]
[null,null,"Eletricidade - eólica",0,"kWh/t milho",null,null,null,null,null,null,"Eletricidade - eólica",0,"kWh/t soja"]
[null,null,"Eletricidade - solar",0,"kWh/t milho",null,null,null,null,null,null,"Eletricidade - solar",0,"kWh/t soja"]
[]
[]
[]
[null,"Fase industrial - processamento do etanol"]
[null,"Processamento e rendimentos"]
[null,null,"Quantidade de cana processada",1,"t cana/ano"]
[null,null,"Quantidade de palha processada (base seca)",0,"t palha/ano"]
[null,null,"Quantidade de milho processado",0.13,"t milho/ano","Umidade",0.13]
[null,null,"Distância de transporte - milho",300,"km"]
[null,null,"Produção de  Etanol Anidro",68.146802149178242,"L/ano"]
[null,null,"Produção de Etanol Hidratado",68.587724037494809,"L/ano"]
[null,null,"Rendimento Açúcar",0,"kg/ano"]
[null,null,"Energia Elétrica Comercializada",51.428752950000003,"kWh/ano"]
[null,null,"Produção de DDG (Distillers Dried Grains) ",36.786493333333297,"kg/ano","Umidade",0.1]
[null,null,"Produção de DDGS (Distillers Dried Grains with Solubles)",0,"kg/ano","Umidade",0.1]
[null,null,"Produção de CGM (Corn Gluten Meal)",0,"kg/ano","Umidade",0.1]
[null,null,"Produção de CGF (Corn Gluten Feed)",0,"kg/ano","Umidade",0.1]
[null,null,"Produção de Óleo de milho",0,"kg/ano"]
[null,null,"Bagaço Comercializado (base úmida)",0,"kg/ano","Umidade",0.5]
[]
[null,"Combustíveis"]
[null,null,"Bagaço próprio"]
[null,null,"Quantidade (base úmida)",253,"kg/ano"]
[null,null,"Umidade",0.5]
[]
[null,null,"Palha própria"]
[null,null,"Quantidade (base úmida)",0,"kg/ano"]
[null,null,"Umidade",0]
[]
[null,null,"Bagaço de terceiros"]
[null,null,"Quantidade (base úmida)",0,"kg/ano"]
[null,null,"Umidade",0]
[null,null,"Distância de transporte",0," km"]
[]
[null,null,"Palha de terceiros"]
[null,null,"Quantidade (base úmida)",0,"kg/ano"]
[null,null,"Umidade",0]
[null,null,"Distância de transporte",0," km"]
[]
[null,null,"Cavaco de madeira"]
[null,null,"Quantidade (base úmida)",0,"kg/ano"]
[null,null,"Umidade",0]
[null,null,"Distância de transporte",0," km"]
[]
[null,null,"Lenha"]
[null,null,"Quantidade (base úmida)",0,"kg/ano"]
[null,null,"Umidade",0]
[null,null,"Distância de transporte",0," km"]
[]
[null,null,"Resíduos florestais"]
[null,null,"Quantidade (base úmida)",0,"kg/ano"]
[null,null,"Umidade",0]
[null,null,"Distância de transporte",0," km"]
[]
[]
[null,"Distribuição dos biocombustíveis"]
[]
[null,null,"Etanol anidro"]
[null,null,"Rodoviário",1]
[null,null,"Rodoviário + Dutoviário",0]
[null,null,"Rodoviário + Ferroviário",0]
[]
[]
[null,null,"Etanol hidradado"]
[null,null,"Rodoviário",1,"%"]
[null,null,"Rodoviário + Dutoviário",0,"%"]
[null,null,"Rodoviário + Ferroviário",0,"%"]

{"sheet":"_E1G Flex","index":9,"n_rows":252,"n_cols":7,"rows_kept":252,"cut":false,"hidden":false,"merged":[[89,1,89,5],[168,1,168,5],[224,1,224,5],[1,1,1,5],[2,2,2,3],[2,4,2,5],[3,2,3,3],[3,4,3,5],[11,1,11,5]]}
[]
[null,"Emissões totais - g CO₂ eq"]
[null,null,"Anidro",null,"Hidratado"]
[null,"Total",{"$f":"SUM(C5:C9)","v":22.547811782163262},null,{"$f":"SUM(E5:E9)","v":22.829146483510208}]
[null,"Agrícola - Cana",{"$f":"$G$87","v":9.4087310398467192},{"$f":"C5/$C$4","v":0.41727911917774735},{"$f":"$G$87","v":9.4087310398467192},{"$f":"E5/$E$4","v":0.412136785168152}]
[null,"Agrícola - Milho",{"$f":"$G$166","v":8.9926874745689975},{"$f":"C6/$C$4","v":0.39882750314967502},{"$f":"$G$166","v":8.9926874745689975},{"$f":"E6/$E$4","v":0.39391255739957398}]
[null,"Industrial",{"$f":"($G$222-$G$182-$G$183)","v":2.904710768843378},{"$f":"C7/$C$4","v":0.12882450842263934},{"$f":"($G$222-$G$182-$G$183)","v":2.904710768843378},0.12723694120327664]
[null,"Transporte",{"$f":"$D$252","v":0.80268195850394564},3.5599106745201663E-2,{"$f":"$E$252","v":0.86001638411137038},{"$f":"E8/$E$4","v":3.7671858855195112E-2}]
[null,"Uso",{"$f":"'FE''s queima combustíveis'!$I$7","v":0.43900054040021891},1.9469762504736535E-2,{"$f":"'FE''s queima combustíveis'!$I$8","v":0.66300081613973838},{"$f":"E9/$E$4","v":2.9041857373802063E-2}]
[]
[]
[null,"Etapa agrícola - Cana-de-açúcar"]
[null,"Produto",null,"1 ha médio","1 t cana"]
[null,"Produção de cana","kg",{"$f":"('E1G Flex'!V36/'E1G Flex'!V34)*1000","v":66735.200100000002},1000]
[null,"Entradas da natureza",null,"1 ha médio","1 t cana"]
[null,"Ocupação total","ha",1,{"$f":"(D16*E14)/D14","v":1.4984595813027314E-2}]
[null,"Entradas da tecnosfera",null,"1 ha médio","1 t cana","g CO2 eq/t cana"]
[null,"Fertilizantes e corretivos",null,null,null,null,"1 MJ"]
[null,"Calcário calcítico","kg",null,{"$f":"'E1G Flex'!V49","v":0},{"$f":"E19*'Dados auxiliares'!$H$48","v":0},{"$f":"(F19/$E$171)*$F$171","v":0}]
[null,"Calcário dolomítico","kg",null,{"$f":"'E1G Flex'!V50","v":5.79},{"$f":"E20*'Dados auxiliares'!$H$49","v":213.27834389863816},5.5507832902784042E-2]
[null,"Gesso","kg",null,{"$f":"'E1G Flex'!V51","v":2.79},{"$f":"E21*'Dados auxiliares'!$H$50","v":7.8925593756863481},2.0541179146116614E-3]
[null,"N - Ureia","kg N",null,{"$f":"'E1G Flex'!V54","v":1.107},{"$f":"E22*'Dados auxiliares'!$H$51","v":3554.8141588582216},0.92517611832231095]
[null,"N - Fosfato monoamônico (MAP)","kg N",null,{"$f":"'E1G Flex'!V55","v":0},{"$f":"E23*'Dados auxiliares'!$H$52","v":0},0]
[null,"P₂O₅ - Fosfato monoamônico (MAP)","kg P₂O₅",null,{"$f":"'E1G Flex'!V56","v":0},{"$f":"E24*'Dados auxiliares'!$H$53","v":0},0]
[null,"N - Fosfato diamônico (DAP)","kg N",null,{"$f":"'E1G Flex'!V57","v":0},{"$f":"E25*'Dados auxiliares'!$H$54","v":0},0]
[null,"P₂O₅ - Fosfato diamônico (DAP)","kg P₂O₅",null,{"$f":"'E1G Flex'!V58","v":0},{"$f":"E26*'Dados auxiliares'!$H$55","v":0},0]
[null,"N - Nitrato de amônio","kg N",null,{"$f":"'E1G Flex'!V59","v":0},{"$f":"E27*'Dados auxiliares'!$H$56","v":0},0]
[null,"N - Solução de nitrato de amônio e ureia (UAN)","kg N",null,{"$f":"'E1G Flex'!V60","v":0},{"$f":"E28*'Dados auxiliares'!$H$57","v":0},0]
[null,"N - Amônia anidra","kg N",null,{"$f":"'E1G Flex'!V61","v":0},{"$f":"E29*'Dados auxiliares'!$H$58","v":0},0]
[null,"N - Sulfato de amônio","kg N",null,{"$f":"'E1G Flex'!V62","v":0},{"$f":"E30*'Dados auxiliares'!$H$59","v":0},0]
[null,"N - Nitrato de amônio e cálcio (CAN)","kg N",null,{"$f":"'E1G Flex'!V63","v":0},{"$f":"E31*'Dados auxiliares'!$H$60","v":0},0]
[null,"P₂O₅ - Superfosfato simples (SSP)","kg P₂O₅",null,{"$f":"'E1G Flex'!V64","v":0.443898833367118},{"$f":"E32*'Dados auxiliares'!$H$62","v":1050.9999214073316},0.27353329434161006]
[null,"P₂O₅ - Superfosfato triplo (TSP)","kg P₂O₅",null,{"$f":"'E1G Flex'!V65","v":0},{"$f":"E33*'Dados auxiliares'!$H$63","v":0},0]
[null,"K₂O - Cloreto de potássio (KCl)","kg K₂O",null,{"$f":"'E1G Flex'!V66","v":1.3462049016245501},{"$f":"E34*'Dados auxiliares'!H$64","v":612.80291900043176},0.15948811964884854]
[null,"N - Outros","kg N",null,{"$f":"'E1G Flex'!V67","v":0},{"$f":"E35*'Dados auxiliares'!H$65","v":0},0]
[null,"P₂O₅ - Outros","kg P₂O₅",null,{"$f":"'E1G Flex'!V68","v":0},{"$f":"E36*'Dados auxiliares'!H$66","v":0},0]
[null,"K₂O - Outros","kg K₂O",null,{"$f":"'E1G Flex'!V69","v":0},{"$f":"E37*'Dados auxiliares'!H$67","v":0},0]
[null,"Vinhaça","L",null,{"$f":"'E1G Flex'!V72","v":440.2},0,0]
[null,"Torta de filtro","kg",null,{"$f":"'E1G Flex'!V73","v":30.571428571428577},0,0]
[null,"Cinzas e fuligem","kg",null,{"$f":"'E1G Flex'!V74","v":7.2},0,0]
[null,"Outros Fertilizantes Orgânicos/Organominerais","kg",null,{"$f":"'E1G Flex'!V75+'E1G Flex'!V75","v":0},0,0]
[null,"Agroquímicos"]
[null,"Herbicidas e Inseticidas - Total","kg",{"$f":"SUM(D44:D57)","v":1.0831569385065971},{"$f":"SUM(E44:E57)","v":1.6230668925597439E-2},{"$f":"SUM(F44:F57)","v":173.16442846013771},{"$f":"(F43/$E$171)*$F$171","v":4.5067783179334797E-2}]
[null,"Herbicida, Roundup Ready, como glifosato","kg",0.17411826749021314,{"$f":"D44*$E$16","v":2.6090918620054176E-3},{"$f":"E44*'Dados auxiliares'!$H$68","v":30.019445344830356},7.8128624105737992E-3]
[null,"Herbicida, Boral 500 SC, como sulfentrazone","kg",0.51076802087864281,{"$f":"D45*$E$16","v":7.6536523470863583E-3},{"$f":"E45*'Dados auxiliares'!$H$70","v":82.219524027433749},2.1398457610071361E-2]
[null,"Herbicida, Hexaron, como hexazinona","kg",7.3793224880382789E-3,{"$f":"D46*$E$16","v":1.1057616485723669E-4},{"$f":"E46*'Dados auxiliares'!$H$70","v":1.1878668158741317},3.091542794313889E-4]
[null,"Herbicida, Combine 500 SC, como tebuthiuron","kg",0.17491467014644049,2.6210256339134061E-3,{"$f":"E47*'Dados auxiliares'!$H$70","v":28.156423928257052},7.3279923595638086E-3]
[null,"Herbicida, Goal, como oxifluorfen","kg",4.4723166594171377E-3,6.7015857489234344E-5,{"$f":"E48*'Dados auxiliares'!$H$70","v":0.71991928234795854},1.8736622995841752E-4]
[null,"Herbicida, Diuron, como diuron","kg",9.3173263737857046E-3,1.3961636976923825E-4,{"$f":"E49*'Dados auxiliares'!$H$70","v":1.4998318382249138},3.9034631241336988E-4]
[null,"Herbicida, Herburon, como diuron","kg",4.6586631868928516E-2,{"$f":"D50*$E$16","v":6.9808184884619106E-4},{"$f":"E50*'Dados auxiliares'!$H$70","v":7.4991591911245674},1.9517315620668492E-3]
[null,"Herbicida, Hexaron, como diuron","kg",2.616305245759026E-2,{"$f":"D51*$E$16","v":3.92042766312021E-4},{"$f":"E51*'Dados auxiliares'!$H$70","v":4.2115278017355582},1.0960924452567428E-3]
[null,"Herbicida, Herbipak, como ametrina","kg",4.6586631868928516E-2,6.9808184884619106E-4,{"$f":"E52*'Dados auxiliares'!$H$70","v":7.4991591911245674},1.9517315620668492E-3]
[null,"Herbicida, Nortox, como 2,4 D","kg",3.7548825286356391E-2,5.6265397017003012E-4,{"$f":"E53*'Dados auxiliares'!$H$69","v":2.8592224926993826},7.4414139502164628E-4]
[null,"Inseticida, Actara, como thiamethoxan","kg",9.3173263737857046E-3,1.3961636976923825E-4,{"$f":"E54*'Dados auxiliares'!$H$70","v":1.4998318382249138},3.9034631241336988E-4]
[null,"Inseticida, Mirex, como sulfluramida","kg",6.987994780339279E-5,1.0471227732692868E-6,{"$f":"E55*'Dados auxiliares'!$H$70","v":1.1248738786686854E-2},2.9275973431002742E-6]
[null,"Inseticida, Regent 800 WG, como fipronil","kg",3.4051201391909529E-2,{"$f":"D56*$E$16","v":5.1024348980575733E-4},{"$f":"E56*'Dados auxiliares'!$H$70","v":5.4813016018289185},1.4265638406714247E-3]
[null,"Inseticida, Regent 800 WG, como fipronil","kg",1.8634652747571412E-3,{"$f":"D57*$E$16","v":2.7923273953847651E-5},{"$f":"E57*'Dados auxiliares'!$H$70","v":0.2999663676449828},7.8069262482673984E-5]
[null,"Combustíveis e eletricidade"]
[null,"Diesel B0","kg",null,{"$f":"('E1G Flex'!$V$79*(1-0.08)+'E1G Flex'!$V$80*(1-0.1)+'E1G Flex'!$V$81*(1-'E1G Flex'!$Y$81)+'E1G Flex'!V82*(1-0.2)+'E1G Flex'!$V$83*(1-0.3)+'E1G Flex'!$V$84*(1-1))*('Dados auxiliares'!$D$24)","v":2.4575040000000001},{"$f":"E59*'Dados auxiliares'!$H$112","v":1366.6899936687823},{"$f":"(F59/$E$171)*$F$171","v":0.35569480900755512}]
[null,"Biodiesel B100","kg",null,{"$f":"('E1G Flex'!$V$79*(0.08)+'E1G Flex'!$V$80*(0.1)+'E1G Flex'!$V$81*('E1G Flex'!$Y$81)+'E1G Flex'!V83*(0.2)+'E1G Flex'!$V$83*(0.3)+'E1G Flex'!$V$84*(1))*('Dados auxiliares'!$D$17)","v":0.22387200000000002},{"$f":"E60*'Dados auxiliares'!$H$113","v":220.93706816671781},5.7501092880098491E-2]
[null,"Gasolina A","kg",null,{"$f":"'E1G Flex'!V85*(1-'FE''s queima combustíveis'!$D$16)*'Dados auxiliares'!$D$22","v":0},{"$f":"E61*'Dados auxiliares'!$H$116","v":0},0]
[null,"Etanol anidro","kg",null,{"$f":"'E1G Flex'!V85*('FE''s queima combustíveis'!$D$16)*'Dados auxiliares'!$D$15","v":0},{"$f":"E62*'Dados auxiliares'!$H$117","v":0},0]
[null,"Etanol hidratado","kg",null,{"$f":"'E1G Flex'!V86*'Dados auxiliares'!$D$16","v":0},{"$f":"E63*'Dados auxiliares'!$H$118","v":0},0]
[null,"Biometano de terceiros","Nm³",null,{"$f":"'E1G Flex'!V87","v":0},{"$f":"E64*'Dados auxiliares'!$F$18","v":0},0]
[null,"Eletricidade da rede - mix médio","kWh",null,{"$f":"'E1G Flex'!V89","v":0},{"$f":"E65*'Dados auxiliares'!$H$103","v":0},0]
[null,"Eletricidade - PCH","kWh",null,{"$f":"'E1G Flex'!V90","v":0},{"$f":"E66*'Dados auxiliares'!$H$104","v":0},0]
[null,"Eletricidade - biomassa","kWh",null,{"$f":"'E1G Flex'!V91","v":0},{"$f":"E67*'Dados auxiliares'!$H$105","v":0},0]
[null,"Eletricidade - eólica","kWh",null,{"$f":"'E1G Flex'!V92","v":0},{"$f":"E68*'Dados auxiliares'!$H$106","v":0},0]
[null,"Eletricidade - solar","kWh",null,{"$f":"'E1G Flex'!V93","v":0},{"$f":"E69*'Dados auxiliares'!$H$107","v":0},0]
[null,"Emissões",null,"1 ha médio","1 t cana","g CO2 eq/t cana"]
[null,"N2O - Fertilizantes sintéticos","kg",{"$f":"'_Emissões Agrícolas'!$E$54","v":1.538201077704932},{"$f":"D71*$E$16","v":2.3049321428571426E-2},{"$f":"E71*1000*'Dados auxiliares'!$D$9","v":6108.0701785714273},{"$f":"(F71/$E$171)*$F$171","v":1.5896866631323554}]
[null,"N2O - Fertilizantes organominerais","kg",{"$f":"'_Emissões Agrícolas'!$E$58","v":0.88628641811306441},{"$f":"D72*$E$16","v":1.328064375E-2},{"$f":"E72*1000*'Dados auxiliares'!$D$9","v":3519.3705937499999},0.91595157421931872]
[null,"N2O - Resíduos culturais","kg",{"$f":"'_Emissões Agrícolas'!$E$62","v":1.1279183042966199},{"$f":"D73*$E$16","v":1.6901399899999999E-2},{"$f":"E73*1000*'Dados auxiliares'!$D$9","v":4478.8709734999993},1.1656711930786665]
[null,"CO2 - Calcário ","kg",null,{"$f":"$E$19*'_Emissões Agrícolas'!$E$79+$E$20*'_Emissões Agrícolas'!$E$80","v":2.7599},{"$f":"E74*1000","v":2759.9},0.71829171789331347]
[null,"CO2 - Uréia","kg",null,{"$f":"$E$22*'_Emissões Agrícolas'!$E$81","v":1.7272340425531918},{"$f":"E75*1000","v":1727.2340425531918},0.44953002196794978]
[null,"N2O - queima palha","kg",{"$f":"'_Emissões Agrícolas'!$E$73","v":0.12033691282032004},{"$f":"D76*$E$16","v":1.8032000000000005E-3},{"$f":"E76*1000*'Dados auxiliares'!$D$9","v":477.84800000000007},0.12436474539363168]
[null,"CH4 bio - queima palha","kg",{"$f":"'_Emissões Agrícolas'!$E$74","v":4.6415666373552016},{"$f":"D77*$E$16","v":6.9552000000000017E-2},{"$f":"E77*1000*'Dados auxiliares'!$D$8","v":1947.4560000000006},0.50684500009480093]
[null,"CO₂ eq - queima do diesel","kg",null,{"$f":"$E$59*'FE''s queima combustíveis'!$I$53/1000","v":7.7550716476800003},{"$f":"E78*1000","v":7755.0716476800008},2.0183353513525115]
[null,"CO₂ eq - queima do biodiesel","kg",null,{"$f":"$E$60*'FE''s queima combustíveis'!$I$54/1000","v":3.7033011012096002E-3},{"$f":"E79*1000","v":3.7033011012096},9.6382133768036632E-4]
[null,"CO₂ eq - queima da gasolina A","kg",null,{"$f":"$E$61*'FE''s queima combustíveis'!$I$9/1000","v":0},0,0]
[null,"CO₂ eq - queima do etanol anidro","kg",null,{"$f":"$E$62*'FE''s queima combustíveis'!$I$7/1000","v":0},0,0]
[null,"CO₂ eq - queima do etanol hidratado","kg",null,{"$f":"$E$63*'FE''s queima combustíveis'!$I$8/1000","v":0},0,0]
[null,"CO₂ eq - queima do biometano","kg",null,{"$f":"($E$64+'E1G Flex'!V88)*'FE''s queima combustíveis'!$I$55/1000","v":0},0,0]
[]
[null,"Emissões do processo","g CO2 eq/t cana",null,null,{"$f":"SUM(F71:F83)","v":28777.524737155833},{"$f":"(F85/$E$171)*$F$171","v":7.489640088470229}]
[null,"Emissões background","g CO2 eq/t cana",null,null,{"$f":"SUM(F19:F69)","v":7373.7438212960869},{"$f":"(F86/$E$171)*$F$171","v":1.9190909513764889}]
[null,"Emissões totais","g CO2 eq/t cana",null,null,{"$f":"F85+F86","v":36151.26855845192},{"$f":"(F87/$E$171)*$F$171","v":9.4087310398467192}]
[]
[]
[null,"Etapa agrícola - Milho"]
[null,"Produto",null,"1 ha médio","1 t milho"]
[null,"Produção de milho","kg",{"$f":"'E1G Flex'!D107/'E1G Flex'!D105*1000","v":5252.6220618601301},1000]
[null,"Entradas da natureza",null,"1 ha médio","1 t milho","g CO2 eq/t milho"]
[null,"Ocupação total","ha",1,{"$f":"(D94*E92)/D92","v":0.19038110646892162},"-"]
[null,"Entradas da tecnosfera",null,"1 ha médio","1 t milho","g CO2 eq/t milho"]
[null,"Sementes de milho","kg",null,{"$f":"'E1G Flex'!D120","v":4.6433761724416271},{"$f":"E96*'Dados auxiliares'!$H$71","v":7271.9488664009496},{"$f":"(F96/$E$171)*$F$171*$D$183","v":0.24603771284406367}]
[null,"Água","kg",602,{"$f":"D97*$E$16/$D$16","v":9.0207266794424434},{"$f":"E97*'Dados auxiliares'!$H$79","v":7.939657898444899E-2},{"$f":"(F97/$E$171)*$F$171*$D$183","v":2.6862885121805E-6}]
[null,"Fertilizantes e corretivos"]
[null,"Calcário calcítico","kg",null,{"$f":"'E1G Flex'!D115","v":0},{"$f":"E99*'Dados auxiliares'!$H$48","v":0},{"$f":"(F99/$E$171)*$F$171*$D$183","v":0}]
[null,"Calcário dolomítico","kg",null,{"$f":"'E1G Flex'!D116","v":42.306912548649237},{"$f":"E100*'Dados auxiliares'!$H$49","v":1558.4021146529226},5.2726676029327381E-2]
[null,"Gesso","kg",null,{"$f":"'E1G Flex'!D117","v":0},{"$f":"E101*'Dados auxiliares'!$H$50","v":0},0]
[null,"N - Ureia","kg N",null,{"$f":"'E1G Flex'!D123","v":12.572838281743252},{"$f":"E102*'Dados auxiliares'!$H$51","v":40374.077272787341},1.3660087292806313]
[null,"N - Fosfato monoamônico (MAP)","kg N",null,{"$f":"'E1G Flex'!D124","v":0},{"$f":"E103*'Dados auxiliares'!$H$52","v":0},0]
[null,"P₂O₅ - Fosfato monoamônico (MAP)","kg P₂O₅",null,{"$f":"'E1G Flex'!D125","v":0},{"$f":"E104*'Dados auxiliares'!$H$53","v":0},0]
[null,"N - Fosfato diamônico (DAP)","kg N",null,{"$f":"'E1G Flex'!D126","v":0},{"$f":"E105*'Dados auxiliares'!$H$54","v":0},0]
[null,"P₂O₅ - Fosfato diamônico (DAP)","kg P₂O₅",null,{"$f":"'E1G Flex'!D127","v":0},{"$f":"E106*'Dados auxiliares'!$H$55","v":0},0]
[null,"N - Nitrato de amônio","kg N",null,{"$f":"'E1G Flex'!D128","v":0},{"$f":"E107*'Dados auxiliares'!$H$56","v":0},0]
[null,"N - Solução de nitrato de amônio e ureia (UAN)","kg N",null,{"$f":"'E1G Flex'!D129","v":0},{"$f":"E108*'Dados auxiliares'!$H$57","v":0},0]
[null,"N - Amônia anidra","kg N",null,{"$f":"'E1G Flex'!D130","v":0},{"$f":"E109*'Dados auxiliares'!$H$58","v":0},0]
[null,"N - Sulfato de amônio","kg N",null,{"$f":"'E1G Flex'!D131","v":0},{"$f":"E110*'Dados auxiliares'!$H$59","v":0},0]
[null,"N - Nitrato de amônio e cálcio (CAN)","kg N",null,{"$f":"'E1G Flex'!D132","v":0},{"$f":"E111*'Dados auxiliares'!$H$60","v":0},0]
[null,"P₂O₅ - Superfosfato simples (SSP)","kg P₂O₅",null,{"$f":"'E1G Flex'!D133","v":10.914972489850966},{"$f":"E112*'Dados auxiliares'!$H$62","v":25842.904659109921},0.87436384281418666]
[null,"P₂O₅ - Superfosfato triplo (TSP)","kg P₂O₅",null,{"$f":"'E1G Flex'!D134","v":0},{"$f":"E113*'Dados auxiliares'!$H$63","v":0},0]
[null,"K₂O - Cloreto de potássio (KCl)","kg K₂O",null,{"$f":"'E1G Flex'!D135","v":11.208923042124352},{"$f":"E114*'Dados auxiliares'!H$64","v":5102.38876026667},0.17263323542022987]
[null,"N - Outros","kg N",null,{"$f":"'E1G Flex'!D136","v":0},{"$f":"E115*'Dados auxiliares'!H$65","v":0},0]
[null,"P₂O₅ - Outros","kg P₂O₅",null,{"$f":"'E1G Flex'!D137","v":0},{"$f":"E116*'Dados auxiliares'!H$66","v":0},0]
[null,"K₂O - Outros","kg K₂O",null,{"$f":"'E1G Flex'!D138","v":0},{"$f":"E117*'Dados auxiliares'!H$67","v":0},0]
[null,"Outros Fertilizantes Orgânicos/Organominerais","kg",null,{"$f":"SUM('E1G Flex'!D141:D145)","v":0},0,0]
[null,"Agroquímicos"]
[null,"Herbicidas, Fungicidas, Inseticidas, Adjuvantes","kg",{"$f":"SUM(D121:D138)","v":4.0067465003383447},{"$f":"SUM(E121:E138)","v":0.76280883207489358},{"$f":"SUM(F121:F138)","v":8303.7344951943287},{"$f":"(F120/$E$171)*$F$171*$D$183","v":0.28094694844479984}]
[null,"Herbicida, como glifosato","kg",0.75187392980081791,{"$f":"D121*$E$94","v":0.14314259068061602},{"$f":"E121*'Dados auxiliares'!$H$68","v":1646.9566441985451}]
[null,"Herbicida,como atrazina","kg",2.0932993027155846,{"$f":"D122*$E$94","v":0.39852463742161509},{"$f":"E122*'Dados auxiliares'!$H$70","v":4281.1594407583161}]
[null,"Herbicida, como Nicosulfuron","kg",2.36375297890494E-3,4.5001390754313198E-4,{"$f":"E123*'Dados auxiliares'!$H$70","v":4.8342840262410487}]
[null,"Fungicida, como tebuconazol","kg",1.8326164347288825E-2,3.4889554457681491E-3,{"$f":"E124*'Dados auxiliares'!$H$70","v":37.480178494543722}]
[null,"Fungicida, como Fluxapiroxade","kg",5.5545470593427286E-3,1.0574808150913635E-3,{"$f":"E125*'Dados auxiliares'!$H$70","v":11.360010272488218}]
[null,"Fungicida, como Piraclostrobina","kg",1.1075833357851068E-2,2.1086294097330781E-3,{"$f":"E126*'Dados auxiliares'!$H$70","v":22.651996531368724}]
[null,"Fungicida, como azoxistrobina","kg",3.1056518285327604E-2,5.9125743142329655E-3,{"$f":"E127*'Dados auxiliares'!$H$70","v":63.515956023025751}]
[null,"Fungicida, como trifloxistrobina","kg",9.1630821736444126E-3,1.7444777228840746E-3,{"$f":"E128*'Dados auxiliares'!$H$70","v":18.740089247271861}]
[null,"Fungicida, como Difeconazol","kg",1.1264232545823649E-2,2.1444970555971441E-3,{"$f":"E129*'Dados auxiliares'!$H$70","v":23.03730548416571}]
[null,"Fungicida, como ciproconazole","kg",1.2422607314131043E-2,2.3650297256931864E-3,{"$f":"E130*'Dados auxiliares'!$H$70","v":25.406382409210302}]
[null,"Inseticida, como Imidacloprido","kg",0.16669375386154345,3.1735341301618716E-2,{"$f":"E131*'Dados auxiliares'!$H$70","v":340.91758265719534}]
[null,"Inseticida, como tiodicarbe","kg",9.9529583100414848E-2,1.8948552157047462E-2,{"$f":"E132*'Dados auxiliares'!$H$70","v":203.55522680025211}]
[null,"Inseticida, Connect, como beta-ciflutrina","kg",6.649568978198829E-2,1.2659522996109096E-2,{"$f":"E133*'Dados auxiliares'!$H$70","v":135.99519653524413}]
[null,"Inseticida, como teflubenzurom","kg",5.0786136691282468E-3,9.6687208965682539E-4,{"$f":"E134*'Dados auxiliares'!$H$70","v":10.386644101656564}]
[null,"Inseticida, como bifentrina","kg",3.9458648386242615E-3,7.5121811395409974E-4,{"$f":"E135*'Dados auxiliares'!$H$70","v":8.0699766554729386}]
[null,"Inseticida, como lufenuron","kg",1.6362646738650741E-3,3.1151387908644196E-4,{"$f":"E136*'Dados auxiliares'!$H$70","v":3.3464445084414041}]
[null,"Adjuvante, como óleo mineral","kg",0.14463274588837566,2.7535342193867333E-2,{"$f":"E137*'Dados auxiliares'!$H$70","v":295.79900241668776}]
[null,"Adjuvante, como ester metílico","kg",0.57233401394568828,0.10896158284477934,{"$f":"E138*'Dados auxiliares'!$H$70","v":1170.5221340742021}]
[null,"Combustíveis e eletricidade"]
[null,"Diesel B0","kg",null,{"$f":"('E1G Flex'!$D$148*(1-0.08)+'E1G Flex'!$D$149*(1-0.1)+'E1G Flex'!$D$150*(1-'E1G Flex'!$G$150)+'E1G Flex'!$D$151*(1-0.2)+'E1G Flex'!$D$152*(1-0.3)+'E1G Flex'!$D$153*(1-1))*('Dados auxiliares'!$D$24)","v":3.7094400000000003},{"$f":"E140*'Dados auxiliares'!$H$112","v":2062.9282923302376},{"$f":"(F140/$E$171)*$F$171*$D$183","v":6.9796717239218375E-2}]
[null,"Biodiesel B100","kg",null,{"$f":"('E1G Flex'!$D$148*(0.08)+'E1G Flex'!$D$149*(0.1)+'E1G Flex'!$D$150*('E1G Flex'!$G$150)+'E1G Flex'!$D$151*(0.2)+'E1G Flex'!$D$152*(0.3)+'E1G Flex'!$D$153*(1))*('Dados auxiliares'!$D$17)","v":0.33792},{"$f":"E141*'Dados auxiliares'!$H$113","v":333.48991421391366},1.1283233319868385E-2]
[null,"Gasolina A","kg",null,{"$f":"'E1G Flex'!$D$154*(1-'FE''s queima combustíveis'!$D$16)*'Dados auxiliares'!$D$22","v":0},{"$f":"E142*'Dados auxiliares'!$H$116","v":0},0]
[null,"Etanol anidro","kg",null,{"$f":"'E1G Flex'!$D$154*('FE''s queima combustíveis'!$D$16)*'Dados auxiliares'!$D$15","v":0},{"$f":"E143*'Dados auxiliares'!$H$117","v":0},0]
[null,"Etanol hidratado","kg",null,{"$f":"'E1G Flex'!$D$155*'Dados auxiliares'!$D$16","v":0},{"$f":"E144*'Dados auxiliares'!$H$118","v":0},0]
[null,"Biometano de terceiros","Nm³",null,{"$f":"'E1G Flex'!D156","v":0},{"$f":"E145*'Dados auxiliares'!$F$18","v":0},0]
[null,"Eletricidade da rede - mix médio","kWh",null,{"$f":"'E1G Flex'!D158","v":0},{"$f":"E146*'Dados auxiliares'!$H$103","v":0},0]
[null,"Eletricidade - PCH","kWh",null,{"$f":"'E1G Flex'!D159","v":0},{"$f":"E147*'Dados auxiliares'!$H$104","v":0},0]
[null,"Eletricidade - biomassa","kWh",null,{"$f":"'E1G Flex'!D160","v":0},{"$f":"E148*'Dados auxiliares'!$H$105","v":0},0]
[null,"Eletricidade - eólica","kWh",null,{"$f":"'E1G Flex'!D161","v":0},{"$f":"E149*'Dados auxiliares'!$H$106","v":0},0]
[null,"Eletricidade - solar","kWh",null,{"$f":"'E1G Flex'!D162","v":0},{"$f":"E150*'Dados auxiliares'!$H$107","v":0},0]
[null,"Emissões",null,"1 ha médio","1 t milho","g CO2 eq/t milho"]
[null,"N2O - Fertilizantes sintéticos","kg",{"$f":"'_Emissões Agrícolas'!$H$54","v":1.3750547997060536},{"$f":"D152*$E$94","v":0.26178445422343988},{"$f":"E152*1000*'Dados auxiliares'!$D$9","v":69372.880369211562},{"$f":"(F152/$E$171)*$F$171*$D$183","v":2.347148630033363}]
[null,"N2O - Fertilizantes organominerais","kg",{"$f":"'_Emissões Agrícolas'!$H$58","v":0},{"$f":"D153*$E$94","v":0},{"$f":"E153*1000*'Dados auxiliares'!$D$9","v":0},0]
[null,"N2O - Resíduos culturais","kg",{"$f":"'_Emissões Agrícolas'!$H$62","v":0.90718893160880598},0.17271163257604336,{"$f":"E154*1000*'Dados auxiliares'!$D$9","v":45768.582632651487},1.5485253812882389]
[null,"CO2 - Calcário ","kg",null,{"$f":"E99*'_Emissões Agrícolas'!$E$79+E100*'_Emissões Agrícolas'!$E$80","v":20.166294981522803},{"$f":"E155*1000","v":20166.294981522802},0.6823025278295487]
[null,"CO2 - Uréia","kg",null,{"$f":"E102*'_Emissões Agrícolas'!$E$81","v":19.617194482152595},{"$f":"E156*1000","v":19617.194482152594},0.66372436763224762]
[null,"CO₂ eq - queima do diesel","kg",null,{"$f":"E140*'FE''s queima combustíveis'!$I$53/1000","v":11.705768524800002},{"$f":"E157*1000","v":11705.768524800002},0.3960507104540778]
[null,"CO₂ eq - queima do biodiesel","kg",null,{"$f":"E141*'FE''s queima combustíveis'!$I$54/1000","v":5.5898884546559989E-3},{"$f":"E158*1000","v":5.5898884546559993},1.8912720588444923E-4]
[null,"CO₂ eq - queima da gasolina A","kg",null,{"$f":"E142*'FE''s queima combustíveis'!$I$9/1000","v":0},0,0]
[null,"CO₂ eq - queima do etanol anidro","kg",null,{"$f":"E143*'FE''s queima combustíveis'!$I$7/1000","v":0},0,0]
[null,"CO₂ eq - queima do etanol hidratado","kg",null,{"$f":"E144*'FE''s queima combustíveis'!$I$8/1000","v":0},0,0]
[null,"CO₂ eq - queima do biometano","kg",null,{"$f":"(E145+'E1G Flex'!D157)*'FE''s queima combustíveis'!$I$55/1000","v":0},0,0]
[]
[null,"Emissões do processo","g CO2 eq/t milho",null,null,{"$f":"SUM(F152:F162)","v":166636.31087879307},{"$f":"(F164/$E$171)*$F$171*$D$183","v":5.6379407444433598}]
[null,"Emissões background","g CO2 eq/t milho",null,null,{"$f":"SUM(F96:F150)","v":99153.688266729572},3.3547467301256364]
[null,"Emissões totais","g CO2 eq/t milho",null,null,{"$f":"F164+F165","v":265789.99914552266},8.9926874745689975]
[]
[]
[null,"Etapa industrial - Etanol"]
[null,"Produtos","Unidade","1 TC","MJ","Alocação"]
[null,"Etanol anidro","kg",{"$f":"'E1G Flex'!D172*'Dados auxiliares'!$D$15","v":53.904120499999991},{"$f":"D171*'Dados auxiliares'!$F$15","v":1523.3770837917309},{"$f":"E171/SUM($E$171:$E$180)","v":0.39647419925217164}]
[null,"Etanol hidratado","kg",{"$f":"'E1G Flex'!D173*'Dados auxiliares'!$D$16","v":55.487468746333306},{"$f":"D172*'Dados auxiliares'!$F$16","v":1463.5822834865185},0.38091200140720671]
[null,"Açúcar","kg",{"$f":"'E1G Flex'!D174","v":0},{"$f":"D173*'Dados auxiliares'!D33","v":0},0]
[null,"Energia elétrica comercializada","kWh",{"$f":"'E1G Flex'!D175","v":51.428752950000003},{"$f":"CONVERT(D174,\"kWh\",\"MJ\")","v":185.14341833353021},4.8185435708334286E-2]
[null,"DDGS","kg",{"$f":"'E1G Flex'!D177*(1-'E1G Flex'!G177)","v":0},{"$f":"D175*'Dados auxiliares'!$D$35","v":0},0]
[null,"DDG","kg",{"$f":"'E1G Flex'!D176*(1-'E1G Flex'!G176)","v":33.107843999999972},{"$f":"D176*'Dados auxiliares'!$D$34","v":670.2079792882314},0.17442836363228739]
[null,"CGM","kg",{"$f":"'E1G Flex'!D178*(1-'E1G Flex'!G178)","v":0},{"$f":"D177*'Dados auxiliares'!$D$36","v":0},0]
[null,"CGF","kg",{"$f":"'E1G Flex'!D179*(1-'E1G Flex'!G179)","v":0},{"$f":"D178*'Dados auxiliares'!$D$37","v":0},0]
[null,"Óleo de Milho","kg",{"$f":"'E1G Flex'!D180","v":0},{"$f":"D179*'Dados auxiliares'!$D$38","v":0},0]
[null,"Bagaço comercializado","kg base úmida",{"$f":"'E1G Flex'!D181","v":0},"-","-","Resíduo"]
[null,"Entradas ","Unidade","1 TC",null,"g CO2 eq/t cana"]
[null,"Cana-de-açúcar","t",1,null,{"$f":"D182*F87","v":36151.26855845192},{"$f":"(F182/$E$171)*$F$171","v":9.4087310398467192}]
[null,"Milho (grãos)","t",{"$f":"'E1G Flex'!D170/'E1G Flex'!D168","v":0.13},null,{"$f":"D183*F166","v":34552.699888917945},{"$f":"(F183/$E$171)*$F$171","v":8.9926874745689958}]
[null,"Transporte do milho em grãos até a usina","tkm",{"$f":"D183*'E1G Flex'!D171","v":39},null,{"$f":"D184*'Dados auxiliares'!$H$125","v":4683.3140773118494},1.2188795659358189]
[null,"Água","kg",1500,null,{"$f":"D185*'Dados auxiliares'!$H$79","v":13.202358602448482},3.4360465382065604E-3]
[null,"Cal (CaO)","kg",0.82,null,{"$f":"D186*'Dados auxiliares'!$H$80","v":788.62446998560051},0.20524744567508271]
[null,"Ácido sulfúrico","kg",0.26500000000000001,null,{"$f":"D187*'Dados auxiliares'!$H$84","v":28.980362820546588},7.5424307386289073E-3]
[null,"Ácido fosfórico","kg",{"$f":"176.5/1000","v":0.17649999999999999},null,{"$f":"D188*'Dados auxiliares'!$H$85","v":267.03160716266467},6.9497660002421399E-2]
[null,"Floculante ","kg",{"$f":"2.555/1000","v":2.555E-3},null,{"$f":"D189*'Dados auxiliares'!$H$87","v":5.495541825757118},1.4302700020934224E-3]
[null,"Antibióticos","kg",{"$f":"0.297/1000","v":2.9700000000000001E-4},null,{"$f":"D190*'Dados auxiliares'!$H$88","v":0.63881640792558292},1.6625839163277752E-4]
[null,"Óleo lubrificante","kg",{"$f":"13/1000","v":1.2999999999999999E-2},null,{"$f":"D191*'Dados auxiliares'!$H$89","v":14.708242207038198},3.8279678836495553E-3]
[null,"Zeolita","kg",{"$f":"(D171*0.03)/67.2","v":2.4064339508928567E-2},null,{"$f":"D192*'Dados auxiliares'!$H$90","v":120.5702659322918},3.137962369772801E-2]
[null,"Alfa-amilase","kg",{"$f":"(0.0282467716666667/0.131380333333333)*D183","v":2.795000000000011E-2},null,{"$f":"D193*'Dados auxiliares'!$H$95","v":36.614500000000142},9.5292916789756262E-3]
[null,"Glucoamilase","kg",{"$f":"(0.0564935433333333/0.131380333333333)/D183","v":3.3076923076923141},null,{"$f":"D194*'Dados auxiliares'!$H$95","v":4333.076923076932},1.127726825914273]
[null,"Ácido sulfúrico","kg",{"$f":"(0.01576564/0.131380333333333)*D183","v":1.5600000000000043E-2},null,{"$f":"D195*'Dados auxiliares'!$H$84","v":1.7060138113227472},4.4400724348155198E-4]
[null,"Hidróxido de sódio","kg",{"$f":"(0.02758987/0.131380333333333)*D183","v":2.7300000000000071E-2},null,{"$f":"D196*'Dados auxiliares'!$H$93","v":13.990108646841511},3.6410664058313304E-3]
[null,"Levedura","kg",{"$f":"(0.024436742/0.131380333333333)*D183","v":2.4180000000000066E-2},null,{"$f":"D197*'Dados auxiliares'!$H$94","v":25.381913895864574},6.6058982338783037E-3]
[null,"Zeolita","kg",{"$f":"(0.00814558066666667/0.131380333333333)*D183","v":8.0600000000000237E-3},null,{"$f":"D198*'Dados auxiliares'!$H$90","v":40.383254360823415},1.0510147885415592E-2]
[null,"Bagaço próprio","kg base seca",{"$f":"'E1G Flex'!$D$185*(1-'E1G Flex'!$D$186)","v":126.5},null,0,0]
[null,"Palha própria","kg base seca",{"$f":"'E1G Flex'!$D$189*(1-'E1G Flex'!$D$190)","v":0},null,0,0]
[null,"Bagaço de terceiros","kg base seca",{"$f":"'E1G Flex'!$D$193*(1-'E1G Flex'!$D$194)","v":0},null,0,0]
[null,"Transporte de bagaço de terceiros","tkm",{"$f":"((D201/1000)*'E1G Flex'!$D$195)","v":0},null,{"$f":"D202*'Dados auxiliares'!$H$125","v":0},0]
[null,"Palha de terceiros","kg base seca",{"$f":"'E1G Flex'!$D$198*(1-'E1G Flex'!$D$199)","v":0},null,{"$f":"D203*'Dados auxiliares'!$H$74","v":0},0]
[null,"Transporte de palha de terceiros","tkm",{"$f":"((D203/1000)*'E1G Flex'!$D$200)","v":0},null,{"$f":"D204*'Dados auxiliares'!$H$125","v":0},0]
[null,"Cavaco de madeira","kg base seca",{"$f":"'E1G Flex'!$D$203*(1-'E1G Flex'!$D$204)","v":0},null,{"$f":"D205*'Dados auxiliares'!$H$119","v":0},0]
[null,"Transporte de cavaco de madeira","tkm",{"$f":"((D205/1000)*'E1G Flex'!$D$205)","v":0},null,{"$f":"D206*'Dados auxiliares'!$H$125","v":0},0]
[null,"Lenha","kg base seca",{"$f":"'E1G Flex'!$D$208*(1-'E1G Flex'!$D$209)","v":0},null,{"$f":"D207*'Dados auxiliares'!$H$120","v":0},0]
[null,"Transporte de lenha","tkm",{"$f":"((D207/1000)*'E1G Flex'!$D$210)","v":0},null,{"$f":"D208*'Dados auxiliares'!$H$125","v":0},0]
[null,"Resíduos florestais","kg base seca",{"$f":"'E1G Flex'!$D$213*(1-'E1G Flex'!$D$214)","v":0},null,0,0]
[null,"Transporte de resíduos florestais","tkm",{"$f":"((D209/1000)*'E1G Flex'!$D$215)","v":0},null,{"$f":"D210*'Dados auxiliares'!$H$125","v":0},0]
[null,"Emissões","Unidade","1 TC",null,"g CO2 eq/t cana"]
[null,"CO₂ eq - queima do bagaço próprio","kg",{"$f":"$D$199*'FE''s queima combustíveis'!$I$33/1000","v":0.78708300000000009},null,{"$f":"D212*1000","v":787.08300000000008},0.20484626261626251]
[null,"CO₂ eq - queima da palha própria","kg",{"$f":"$D$200*'FE''s queima combustíveis'!$I$34/1000","v":0},null,{"$f":"D213*1000","v":0},0]
[null,"CO₂ eq - queima do bagaço de terceiros","kg",{"$f":"$D$201*'FE''s queima combustíveis'!$I$33/1000","v":0},null,0,0]
[null,"CO₂ eq - queima da palha de terceiros","kg",{"$f":"$D$203*'FE''s queima combustíveis'!$I$34/1000","v":0},null,0,0]
[null,"CO₂ eq - queima dos cavacos de madeira","kg",{"$f":"$D$205*'FE''s queima combustíveis'!$I$35/1000","v":0},null,0,0]
[null,"CO₂ eq - queima da lenha","kg",{"$f":"$D$207*'FE''s queima combustíveis'!$I$36/1000","v":0},null,0,0]
[null,"CO₂ eq - queima dos resíduos florestais","kg",{"$f":"$D$209*'FE''s queima combustíveis'!$I$37/1000","v":0},null,0,0]
[]
[null,"Emissões do processo","g CO2 eq/t cana",null,null,{"$f":"SUM(F212:F218)","v":787.08300000000008},0.20484626261626251]
[null,"Emissões background","g CO2 eq/t cana",null,null,{"$f":"SUM(F182:F210)","v":81077.686903417765},21.101283020642832]
[null,"Emissões totais","g CO2 eq/t cana",null,null,{"$f":"F220+F221","v":81864.769903417764},21.306129283259093]
[]
[]
[null,"Etapa distribuição"]
[null,"Sistema logiístico rodoviário"]
[null,"Parâmetro","Unidade","Etanol anidro","Etanol hidratado"]
[null,"Massa","kg/t cana",{"$f":"$D$171*'E1G Flex'!$D$221","v":53.904120499999991},{"$f":"$D$172*'E1G Flex'!$D$227","v":55.487468746333306}]
[null,"Distância de transporte rodoviário","km",700,700]
[null,"Transporte rodoviário","tkm/t cana",{"$f":"D228/1000*D229","v":37.732884349999992},{"$f":"E228/1000*E229","v":38.841228122433314}]
[null,"Emissões","g CO2 eq/t cana",{"$f":"D230*'Dados auxiliares'!$H$126","v":1222.7873011579759},{"$f":"E230*'Dados auxiliares'!$H$126","v":1258.7047432935383}]
[null,"Emissões","g CO2 eq/MJ",{"$f":"D231/$E$171","v":0.80268195850394564},{"$f":"E231/$E$172","v":0.86001638411137038}]
[null,"Sistema logiístico rodoviário + dutoviário"]
[null,"Parâmetro","Unidade","Etanol anidro","Etanol hidratado"]
[null,"Massa","kg/t cana",{"$f":"$D$171*'E1G Flex'!$D$222","v":0},{"$f":"$D$172*'E1G Flex'!$D$228","v":0}]
[null,"Distância de transporte rodoviário","km",400,400]
[null,"Transporte rodoviário","tkm/t cana",{"$f":"D235/1000*D236","v":0},{"$f":"E235/1000*E236","v":0}]
[null,"Distância de transporte dutoviário","km",300,300]
[null,"Transporte dutoviário","tkm/t cana",{"$f":"D235/1000*D238","v":0},{"$f":"E235/1000*E238","v":0}]
[null,"Emissões","g CO2 eq/t cana",{"$f":"D237*'Dados auxiliares'!$H$126+D239*'Dados auxiliares'!$H$130","v":0},{"$f":"E237*'Dados auxiliares'!$H$126+E239*'Dados auxiliares'!$H$130","v":0}]
[null,"Emissões","g CO2 eq/MJ",{"$f":"D240/$E$171","v":0},{"$f":"E240/$E$172","v":0}]
[null,"Sistema logiístico rodoviário + ferroviário"]
[null,"Parâmetro","Unidade","Etanol anidro","Etanol hidratado"]
[null,"Massa","kg/t cana",{"$f":"$D$171*'E1G Flex'!$D$223","v":0},{"$f":"$D$172*'E1G Flex'!$D$229","v":0}]
[null,"Distância de transporte rodoviário","km",400,400]
[null,"Transporte rodoviário","tkm/t cana",{"$f":"D244/1000*D245","v":0},{"$f":"E244/1000*E245","v":0}]
[null,"Distância de transporte ferroviário","km",300,300]
[null,"Transporte ferroviário","tkm/t cana",{"$f":"D244/1000*D247","v":0},{"$f":"E244/1000*E247","v":0}]
[null,"Emissões","g CO2 eq/t cana",{"$f":"D246*'Dados auxiliares'!$H$126+D248*'Dados auxiliares'!$H$129","v":0},{"$f":"E246*'Dados auxiliares'!$H$126+E248*'Dados auxiliares'!$H$129","v":0}]
[null,"Emissões","g CO2 eq/MJ",{"$f":"D249/$E$171","v":0},{"$f":"E249/$E$172","v":0}]
[]
[null,"Emissões totais","g CO2 eq/MJ",{"$f":"D232+D241+D250","v":0.80268195850394564},{"$f":"E232+E241+E250","v":0.86001638411137038}]

{"sheet":"E1GM","index":10,"n_rows":153,"n_cols":17,"rows_kept":153,"cut":false,"hidden":false,"merged":[[14,3,14,5],[26,3,26,4],[143,2,143,4],[127,2,127,4],[149,2,149,4],[23,1,23,7],[22,1,22,7],[141,1,141,7],[119,2,119,4],[131,2,131,4],[135,2,135,4],[92,1,92,7],[123,2,123,4],[91,1,91,7],[104,1,104,7],[31,22,31,23],[23,10,23,16],[73,10,73,16],[22,10,22,16],[36,1,36,7],[40,1,40,7],[45,1,45,7],[36,10,36,16],[40,10,40,16],[45,10,45,16],[48,1,48,7],[66,1,66,7],[66,10,66,16],[73,1,73,7],[24,1,24,2],[48,10,48,16],[3,2,3,7],[5,2,5,7],[7,2,7,7],[9,2,9,3],[12,2,12,3]]}
[""]
[null,"Produção de Etanol de milho em usina dedicada"]
[]
[null,"Nome da Usina:","Usina Hipotética"]
[]
[null,"CNPJ","00.000.000/0000-00"]
[]
[null,"Responsável pelo preenchimento:","GT ACV RenovaCalc"]
[]
[null,"Telefone :","(00) 0000-0000"]
[]
[]
[null,null,"Etanol Anidro"]
[]
[null,"Intensidade de Carbono\n(g CO₂eq/MJ)",{"$f":"SUM(C17:C20)","v":26.128007869560392},"Nota de Eficiência Energético-Ambiental\n(g CO₂eq/MJ)",null,null,{"$f":"G18-C15","v":61.271992130439614}]
[]
[null,"agrícola",{"$f":"IF(C13=\"Etanol Anidro\",_E1GM!C5,IF(C13=\"Etanol Hidratado\",_E1GM!E5,\"\"))","v":19.063394957124423},null,null,null,"Fóssil de referência: Gasolina"]
[null,"industrial",{"$f":"IF(C13=\"Etanol Anidro\",_E1GM!C6,IF(C13=\"Etanol Hidratado\",_E1GM!E6,\"\"))","v":4.9055796038130097},null,null,null,87.4]
[null,"transporte",{"$f":"IF(C13=\"Etanol Anidro\",_E1GM!C7,IF(C13=\"Etanol Hidratado\",_E1GM!E7,\"\"))","v":1.720032768222741},null,null,null,"Redução de emissões"]
[null,"uso",{"$f":"IF(C13=\"Etanol Anidro\",_E1GM!C8,IF(C13=\"Etanol Hidratado\",_E1GM!E8,\"\"))","v":0.43900054040021891},null,null,null,{"$f":"(G18-C15)/G18","v":0.70105254153821062}]
[]
[]
[null,"Fornecedores - Dados consolidados",null,null,null,null,null,null,null,null,"Default - Milho"]
[null,"Informações gerais",null,null,null,null,null,null,null,null," Informações gerais"]
[null,"Houve supressão de vegetação nativa a partir de 26 de dezembro de 2017?",null,"Não"]
[]
[null,null,"Número de registro no CAR","Cadastro de fornecedores"]
[]
[null,null,"Situação do CAR","Ativo"]
[]
[null,null,"Sistema de plantio","Convencional"]
[null,null,"Área total",1,"ha"]
[]
[null,null,"Produção total (base úmida)",5.25262206186013,"t milho","Umidade",0.13]
[null,null,"Palha recolhida (base seca)",0,"t palha"]
[]
[null,"Tipo de preenchimento",null,null,null,null,null,null,null,null,"Tipo de preenchimento"]
[null,"Tipo de dados forneceidos pelos fornecedores:",null,null,null,null,null,null,null,null,null,null,"Padrão"]
[null,"Em função das informações de cada fornecedor"]
[]
[null,"Corretivos",null,null,null,null,null,null,null,null,"Corretivos"]
[null,null,"Calcário calcítico",0,"kg/t milho",null,null,null,null,null,null,"Calcário calcítico",0,"kg/t milho"]
[null,null,"Calcário dolomítico",42.306912548649237,"kg/t milho",null,null,null,null,null,null,"Calcário dolomítico",105.8,"kg/t milho"]
[null,null,"Gesso",0,"kg/t milho",null,null,null,null,null,null,"Gesso",0,"kg/t milho"]
[]
[null,"Sementes",null,null,null,null,null,null,null,null,"Sementes"]
[null,null,"Sementes",4.6433761724416271,"kg/t milho",null,null,null,null,null,null,"Sementes",11.6,"kg/t milho"]
[]
[null,"Fertilizantes Sintéticos",null,null,null,null,null,null,null,null,"Fertilizantes Sintéticos"]
[null,null,"Ureia",12.572838281743252,"kg N/t milho",null,null,null,null,null,null,"Ureia",31.4,"kg N/t milho"]
[null,null,"Fosfato Monoamônico (MAP)",0,"kg N/t milho",null,null,null,null,null,null,"Fosfato Monoamônico (MAP)",0,"kg N/t milho"]
[null,null,"Fosfato Monoamônico (MAP)",0,"kg P₂O₅/t milho",null,null,null,null,null,null,"Fosfato Monoamônico (MAP)",0,"kg P₂O₅/t milho"]
[null,null,"Fosfato diamônico (DAP)",0,"kg N/t milho",null,null,null,null,null,null,"Fosfato diamônico (DAP)",0,"kg N/t milho"]
[null,null,"Fosfato diamônico (DAP)",0,"kg P₂O₅/t milho",null,null,null,null,null,null,"Fosfato diamônico (DAP)",0,"kg P₂O₅/t milho"]
[null,null,"Nitrato de amônio",0,"kg N/t milho",null,null,null,null,null,null,"Nitrato de amônio",0,"kg N/t milho"]
[null,null,"Solução de nitrato de amônio e ureia (UAN)",0,"kg N/t milho",null,null,null,null,null,null,"Solução de nitrato de amônio e ureia (UAN)",0,"kg N/t milho"]
[null,null,"Amônia anidra",0,"kg N/t milho",null,null,null,null,null,null,"Amônia anidra",0,"kg N/t milho"]
[null,null,"Sulfato de amônio",0,"kg N/t milho",null,null,null,null,null,null,"Sulfato de amônio",0,"kg N/t milho"]
[null,null,"Nitrato de amônio e cálcio (CAN)",0,"kg N/t milho",null,null,null,null,null,null,"Nitrato de amônio e cálcio (CAN)",0,"kg N/t milho"]
[null,null,"Superfosfato simples (SSP)",10.914972489850966,"kg P₂O₅/t milho",null,null,null,null,null,null,"Superfosfato simples (SSP)",27.3,"kg P₂O₅/t milho"]
[null,null,"Superfosfato triplo (TSP)",0,"kg P₂O₅/t milho",null,null,null,null,null,null,"Superfosfato triplo (TSP)",0,"kg P₂O₅/t milho"]
[null,null,"Cloreto de potássio (KCl)",11.208923042124352,"kg K₂O/t milho",null,null,null,null,null,null,"Cloreto de potássio (KCl)",28,"kg K₂O/t milho"]
[null,"Outros","especificar",0,"kg N/t milho",null,null,null,null,null,"Outros","especificar",0,"kg N/t milho"]
[null,"Outros","especificar",0,"kg P₂O₅/t milho",null,null,null,null,null,"Outros","especificar",0,"kg P₂O₅/t milho"]
[null,"Outros","especificar",0,"kg K₂O/t milho",null,null,null,null,null,"Outros","especificar",0,"kg K₂O/t milho"]
[]
[null,"              Fertilizantes Orgânicos/Organominerais",null,null,null,null,null,null,null,null,"              Fertilizantes Orgânicos/Organominerais"]
[null,"Outros","especificar",0,"kg/t milho","Concentração de N",null,"g N/kg",null,null,"Outros","especificar",0,"kg/t milho","Concentração de N",null,"g N/kg"]
[null,"Outros","especificar",0,"kg/t milho","Concentração de N",null,"g N/kg",null,null,"Outros","especificar",0,"kg/t milho","Concentração de N",null,"g N/kg"]
[null,"Outros","especificar",0,"kg/t milho","Concentração de N",null,"g N/kg",null,null,"Outros","especificar",0,"kg/t milho","Concentração de N",null,"g N/kg"]
[null,"Outros","especificar",0,"kg/t milho","Concentração de N",null,"g N/kg",null,null,"Outros","especificar",0,"kg/t milho","Concentração de N",null,"g N/kg"]
[null,"Outros","especificar",0,"kg/t milho","Concentração de N",null,"g N/kg",null,null,"Outros","especificar",0,"kg/t milho","Concentração de N",null,"g N/kg"]
[]
[null,"              Combustíveis e eletricidade da rede",null,null,null,null,null,null,null,null,"              Combustíveis e eletricidade da rede"]
[null,null,"Diesel - B8",4.8,"L/t milho",null,null,null,null,null,null,"Diesel - B8",12,"L/t soja"]
[null,null,"Diesel - B10",0,"L/t milho",null,null,null,null,null,null,"Diesel - B10",0,"L/t soja"]
[null,null,"Diesel - BX",0,"L/t milho","Teor de biodiesel na mistura",0.11,null,null,null,null,"Diesel - BX",0,"L/t soja","Teor de biodiesel na mistura",0.11]
[null,null,"Diesel - B20",0,"L/t milho",null,null,null,null,null,null,"Diesel - B20",0,"L/t soja"]
[null,null,"Diesel - B30",0,"L/t milho",null,null,null,null,null,null,"Diesel - B30",0,"L/t soja"]
[null,null,"Biodiesel - B100",0,"L/t milho",null,null,null,null,null,null,"Biodiesel - B100",0,"L/t soja"]
[null,null,"Gasolina C",0,"L/t milho",null,null,null,null,null,null,"Gasolina C",0,"L/t soja"]
[null,null,"Etanol hidratado",0,"L/t milho",null,null,null,null,null,null,"Etanol hidratado",0,"L/t soja"]
[null,null,"Biometano de terceiros",0,"Nm³/t milho",null,null,null,null,null,null,"Biometano de terceiros",0,"Nm³/t soja"]
[null,null,"Biometano próprio",0,"Nm³/t milho",null,null,null,null,null,null,"Biometano próprio",0,"Nm³/t soja"]
[null,null,"Eletricidade da rede - mix médio",0,"kWh/t milho",null,null,null,null,null,null,"Eletricidade da rede - mix médio",0,"kWh/t soja"]
[null,null,"Eletricidade - PCH",0,"kWh/t milho",null,null,null,null,null,null,"Eletricidade - PCH",0,"kWh/t soja"]
[null,null,"Eletricidade - biomassa",0,"kWh/t milho",null,null,null,null,null,null,"Eletricidade - biomassa",0,"kWh/t soja"]
[null,null,"Eletricidade - eólica",0,"kWh/t milho",null,null,null,null,null,null,"Eletricidade - eólica",0,"kWh/t soja"]
[null,null,"Eletricidade - solar",0,"kWh/t milho",null,null,null,null,null,null,"Eletricidade - solar",0,"kWh/t soja"]
[]
[]
[null,"Fase industrial - processamento do etanol"]
[null,"Processamento e rendimentos"]
[null,null,"Quantidade de milho processado",1," t milho/ano","Umidade",0.13]
[null,null,"Distância de transporte - milho",300,"km"]
[null,null,"Rendimento - Etanol anidro",125.91656131479139,"L/ t milho"]
[null,null,"Rendimento - Etanol hidratado",263.69592088998763,"L/ t milho"]
[null,null,"Energia elétrica comercializada",82.82,"kWh/ t milho"]
[null,null," Rendimento - DDG (Distillers Dried Grains) ",0,"kg/ t milho","Umidade",0.1]
[null,null," Rendimento - DDGS (Distillers Dried Grains with Solubles)",285.56,"kg/ t milho","Umidade",0.1]
[null,null,"Rendimento - CGM (Corn Gluten Meal)",0,"kg/ t milho","Umidade",0.1]
[null,null,"Rendimento - CGF (Corn Gluten Feed)",0,"kg/ t milho","Umidade",0.1]
[null,null,"Rendimento - Óleo de milho",0,"kg/ t milho"]
[]
[null,"Combustíveis e eletricidade"]
[null,null,"Eletricidade da rede - mix médio",0,"kWh/t milho"]
[null,null,"Eletricidade - PCH",0,"kWh/t milho"]
[null,null,"Eletricidade - biomassa",0,"kWh/t milho"]
[null,null,"Eletricidade - eólica",0,"kWh/t milho"]
[null,null,"Eletricidade - solar",0,"kWh/t milho"]
[null,null,"Diesel - B8",0.114249154554665,"L/t milho"]
[null,null,"Diesel - B10",0,"L/t milho"]
[null,null,"Diesel - BX",0,"L/t milho","Teor de biodiesel na mistura",0.11]
[null,null,"Diesel - B20",0,"L/t milho"]
[null,null,"Diesel - B30",0,"L/t milho"]
[null,null,"Biodiesel - B100",0,"L/t milho"]
[null,null,"Biometano de terceiros",0,"Nm³/t milho"]
[null,null,"Biometano próprio",0,"Nm³/t milho"]
[null,null,"Gás natural",0,"Nm³/t milho"]
[null,null,"Cavaco de madeira"]
[null,null,"Quantidade (base úmida)",711.6,"kg/t milho"]
[null,null,"Umidade",0.5]
[null,null,"Distância de transporte",330,"km"]
[null,null," Lenha"]
[null,null,"Quantidade (base úmida)",null,"kg/t milho"]
[null,null,"Umidade"]
[null,null,"Distância de transporte",null,"km"]
[null,null,"Resíduos florestais"]
[null,null,"Quantidade (base úmida)",null,"kg/t milho"]
[null,null,"Umidade"]
[null,null,"Distância de transporte",null,"km"]
[null,null,"Bagaço de cana"]
[null,null,"Quantidade (base úmida)",null,"kg/t milho"]
[null,null,"Umidade"]
[null,null,"Distância de transporte",null,"km"]
[null,null,"Palha de cana"]
[null,null,"Quantidade (base úmida)",null,"kg/t milho"]
[null,null,"Umidade"]
[null,null,"Distância de transporte",null,"km"]
[]
[]
[null,"Distribuição dos biocombustíveis"]
[]
[null,null,"Etanol anidro"]
[null,null,"Rodoviário",1]
[null,null,"Rodoviário + Dutoviário",0]
[null,null,"Rodoviário + Ferroviário",0]
[]
[]
[null,null,"Etanol hidradado"]
[null,null,"Rodoviário",1]
[null,null,"Rodoviário + Dutoviário",0]
[null,null,"Rodoviário + Ferroviário",0]

{"sheet":"_E1GM","index":11,"n_rows":176,"n_cols":7,"rows_kept":176,"cut":false,"hidden":false,"merged":[[1,1,1,5],[99,7,99,9],[10,1,10,5],[89,1,89,5],[148,1,148,5],[2,2,2,3],[2,4,2,5],[3,2,3,3],[3,4,3,5]]}
[]
[null,"Emissões totais - g CO₂ eq"]
[null,null,"Anidro",null,"Hidratado"]
[null,"Total",{"$f":"C5+C6+C7+C8","v":26.128007869560392},null,{"$f":"E5+E6+E7+E8","v":26.474867628744395}]
[null,"Agrícola",{"$f":"$G$87","v":19.063394957124423},{"$f":"C5/$C$4","v":0.72961532514438754},{"$f":"$G$87","v":19.063394957124423},{"$f":"E5/$E$4","v":0.72005628977826652}]
[null,"Industrial",{"$f":"$G$146-$G$105","v":4.9055796038130097},{"$f":"C6/$C$4","v":0.18775176539685981},{"$f":"$G$146-$G$105","v":4.9055796038130097},{"$f":"E6/$E$4","v":0.18529194074182659}]
[null,"Transporte",{"$f":"$D$176","v":1.720032768222741},6.583099548996274E-2,{"$f":"$E$176","v":1.8428922516672224},6.9609120525548934E-2]
[null,"Uso",{"$f":"'FE''s queima combustíveis'!$I$7","v":0.43900054040021891},1.680191396878989E-2,{"$f":"'FE''s queima combustíveis'!$I$8","v":0.66300081613973838},2.5042648954357854E-2]
[]
[]
[null,"Etapa agrícola - Milho"]
[null,"Produto",null,"1 ha médio","1 t milho"]
[null,"Produção de milho","kg",{"$f":"E1GM!D34/E1GM!D32*1000","v":5252.6220618601301},1000]
[null,"Entradas da natureza",null,"1 ha médio","1 t milho","g CO2 eq/t milho"]
[null,"Ocupação total","ha",1,{"$f":"(D15*E13)/D13","v":0.19038110646892162},"-"]
[null,"Entradas da tecnosfera",null,"1 ha médio","1 t milho","g CO2 eq/t milho"]
[null,"Sementes de milho","kg",null,{"$f":"E1GM!D47","v":4.6433761724416271},{"$f":"E17*'Dados auxiliares'!$H$71","v":7271.9488664009496},{"$f":"(F17/$E$92)*$F$92","v":0.52156796371751324}]
[null,"Água","kg",602,{"$f":"D18*$E$15/$D$15","v":114.60942609429081},{"$f":"E18*'Dados auxiliares'!$H$79","v":1.0087431616784293},7.2350359775147482E-5]
[null,"Fertilizantes e corretivos"]
[null,"Calcário calcítico","kg",null,{"$f":"E1GM!D42","v":0},{"$f":"E20*'Dados auxiliares'!$H$48","v":0},{"$f":"(F20/$E$92)*$F$92","v":0}]
[null,"Calcário dolomítico","kg",null,{"$f":"E1GM!D43","v":42.306912548649237},{"$f":"E21*'Dados auxiliares'!$H$49","v":1558.4021146529226},0.11177369815512339]
[null,"Gesso","kg",null,{"$f":"E1GM!D44","v":0},{"$f":"E22*'Dados auxiliares'!$H$50","v":0},0]
[null,"N - Ureia","kg N",null,{"$f":"E1GM!D50","v":12.572838281743252},{"$f":"E23*'Dados auxiliares'!$H$51","v":40374.077272787341},2.8957609104535975]
[null,"N - Fosfato monoamônico (MAP)","kg N",null,{"$f":"E1GM!D51","v":0},{"$f":"E24*'Dados auxiliares'!$H$52","v":0},0]
[null,"P₂O₅ - Fosfato monoamônico (MAP)","kg P₂O₅",null,{"$f":"E1GM!D52","v":0},{"$f":"E25*'Dados auxiliares'!$H$53","v":0},0]
[null,"N - Fosfato diamônico (DAP)","kg N",null,{"$f":"E1GM!D53","v":0},{"$f":"E26*'Dados auxiliares'!$H$54","v":0},0]
[null,"P₂O₅ - Fosfato diamônico (DAP)","kg P₂O₅",null,{"$f":"E1GM!D54","v":0},{"$f":"E27*'Dados auxiliares'!$H$55","v":0},0]
[null,"N - Nitrato de amônio","kg N",null,{"$f":"E1GM!D55","v":0},{"$f":"E28*'Dados auxiliares'!$H$56","v":0},0]
[null,"N - Solução de nitrato de amônio e ureia (UAN)","kg N",null,{"$f":"E1GM!D56","v":0},{"$f":"E29*'Dados auxiliares'!$H$57","v":0},0]
[null,"N - Amônia anidra","kg N",null,{"$f":"E1GM!D57","v":0},{"$f":"E30*'Dados auxiliares'!$H$58","v":0},0]
[null,"N - Sulfato de amônio","kg N",null,{"$f":"E1GM!D58","v":0},{"$f":"E31*'Dados auxiliares'!$H$59","v":0},0]
[null,"N - Nitrato de amônio e cálcio (CAN)","kg N",null,{"$f":"E1GM!D59","v":0},{"$f":"E32*'Dados auxiliares'!$H$60","v":0},0]
[null,"P₂O₅ - Superfosfato simples (SSP)","kg P₂O₅",null,{"$f":"E1GM!D60","v":10.914972489850966},{"$f":"E33*'Dados auxiliares'!$H$62","v":25842.904659109921},1.8535376701938737]
[null,"P₂O₅ - Superfosfato triplo (TSP)","kg P₂O₅",null,{"$f":"E1GM!D61","v":0},{"$f":"E34*'Dados auxiliares'!$H$63","v":0},0]
[null,"K₂O - Cloreto de potássio (KCl)","kg K₂O",null,{"$f":"E1GM!D62","v":11.208923042124352},{"$f":"E35*'Dados auxiliares'!H$64","v":5102.38876026667},0.36596001493950581]
[null,"N - Outros","kg N",null,{"$f":"E1GM!D63","v":0},{"$f":"E36*'Dados auxiliares'!H$65","v":0},0]
[null,"P₂O₅ - Outros","kg P₂O₅",null,{"$f":"E1GM!D64","v":0},{"$f":"E37*'Dados auxiliares'!H$66","v":0},0]
[null,"K₂O - Outros","kg K₂O",null,{"$f":"E1GM!D65","v":0},{"$f":"E38*'Dados auxiliares'!H$67","v":0},0]
[null,"Outros Fertilizantes Orgânicos/Organominerais","kg",null,{"$f":"SUM(E1GM!D68:D72)","v":0},0,0]
[null,"Agroquímicos"]
[null,"Herbicidas, Fungicidas, Inseticidas, Adjuvantes","kg",{"$f":"SUM(D42:D59)","v":4.0067465003383447},{"$f":"SUM(E42:E59)","v":0.76280883207489358},{"$f":"SUM(F42:F59)","v":8303.7344951943287},{"$f":"(F41/$E$92)*$F$92","v":0.59557100462023305}]
[null,"Herbicida, como glifosato","kg",0.75187392980081791,{"$f":"D42*$E$15","v":0.14314259068061602},{"$f":"E42*'Dados auxiliares'!$H$68","v":1646.9566441985451}]
[null,"Herbicida,como atrazina","kg",2.0932993027155846,{"$f":"D43*$E$15","v":0.39852463742161509},{"$f":"E43*'Dados auxiliares'!$H$70","v":4281.1594407583161}]
[null,"Herbicida, como Nicosulfuron","kg",2.36375297890494E-3,4.5001390754313198E-4,{"$f":"E44*'Dados auxiliares'!$H$70","v":4.8342840262410487}]
[null,"Fungicida, como tebuconazol","kg",1.8326164347288825E-2,3.4889554457681491E-3,{"$f":"E45*'Dados auxiliares'!$H$70","v":37.480178494543722}]
[null,"Fungicida, como Fluxapiroxade","kg",5.5545470593427286E-3,1.0574808150913635E-3,{"$f":"E46*'Dados auxiliares'!$H$70","v":11.360010272488218}]
[null,"Fungicida, como Piraclostrobina","kg",1.1075833357851068E-2,2.1086294097330781E-3,{"$f":"E47*'Dados auxiliares'!$H$70","v":22.651996531368724}]
[null,"Fungicida, como azoxistrobina","kg",3.1056518285327604E-2,5.9125743142329655E-3,{"$f":"E48*'Dados auxiliares'!$H$70","v":63.515956023025751}]
[null,"Fungicida, como trifloxistrobina","kg",9.1630821736444126E-3,1.7444777228840746E-3,{"$f":"E49*'Dados auxiliares'!$H$70","v":18.740089247271861}]
[null,"Fungicida, como Difeconazol","kg",1.1264232545823649E-2,2.1444970555971441E-3,{"$f":"E50*'Dados auxiliares'!$H$70","v":23.03730548416571}]
[null,"Fungicida, como ciproconazole","kg",1.2422607314131043E-2,2.3650297256931864E-3,{"$f":"E51*'Dados auxiliares'!$H$70","v":25.406382409210302}]
[null,"Inseticida, como Imidacloprido","kg",0.16669375386154345,3.1735341301618716E-2,{"$f":"E52*'Dados auxiliares'!$H$70","v":340.91758265719534}]
[null,"Inseticida, como tiodicarbe","kg",9.9529583100414848E-2,1.8948552157047462E-2,{"$f":"E53*'Dados auxiliares'!$H$70","v":203.55522680025211}]
[null,"Inseticida, Connect, como beta-ciflutrina","kg",6.649568978198829E-2,1.2659522996109096E-2,{"$f":"E54*'Dados auxiliares'!$H$70","v":135.99519653524413}]
[null,"Inseticida, como teflubenzurom","kg",5.0786136691282468E-3,9.6687208965682539E-4,{"$f":"E55*'Dados auxiliares'!$H$70","v":10.386644101656564}]
[null,"Inseticida, como bifentrina","kg",3.9458648386242615E-3,7.5121811395409974E-4,{"$f":"E56*'Dados auxiliares'!$H$70","v":8.0699766554729386}]
[null,"Inseticida, como lufenuron","kg",1.6362646738650741E-3,3.1151387908644196E-4,{"$f":"E57*'Dados auxiliares'!$H$70","v":3.3464445084414041}]
[null,"Adjuvante, como óleo mineral","kg",0.14463274588837566,2.7535342193867333E-2,{"$f":"E58*'Dados auxiliares'!$H$70","v":295.79900241668776}]
[null,"Adjuvante, como ester metílico","kg",0.57233401394568828,{"$f":"D59*$E$15","v":0.10896158284477934},{"$f":"E59*'Dados auxiliares'!$H$70","v":1170.5221340742021}]
[null,"Combustíveis e eletricidade"]
[null,"Diesel B0","kg",null,{"$f":"(E1GM!$D$75*(1-0.08)+E1GM!$D$76*(1-0.1)+E1GM!$D$77*(1-E1GM!$G$77)+E1GM!$D$78*(1-0.2)+E1GM!$D$79*(1-0.3)+E1GM!$D$80*(1-1))*('Dados auxiliares'!$D$24)","v":3.7094400000000003},{"$f":"E61*'Dados auxiliares'!$H$112","v":2062.9282923302376},{"$f":"(F61/$E$92)*$F$92","v":0.14795996623370705}]
[null,"Biodiesel B100","kg",null,{"$f":"(E1GM!$D$75*(0.08)+E1GM!$D$76*(0.1)+E1GM!$D$77*(E1GM!$G$77)+E1GM!$D$78*(0.2)+E1GM!$D$79*(0.3)+E1GM!$D$80*(1))*('Dados auxiliares'!$D$17)","v":0.33792},{"$f":"E62*'Dados auxiliares'!$H$113","v":333.48991421391366},2.3918987698130605E-2]
[null,"Gasolina A","kg",null,{"$f":"E1GM!$D$81*(1-'FE''s queima combustíveis'!$D$16)*'Dados auxiliares'!$D$22","v":0},{"$f":"E63*'Dados auxiliares'!$H$116","v":0},0]
[null,"Etanol anidro","kg",null,{"$f":"E1GM!$D$81*('FE''s queima combustíveis'!$D$16)*'Dados auxiliares'!$D$15","v":0},{"$f":"E64*'Dados auxiliares'!$H$117","v":0},0]
[null,"Etanol hidratado","kg",null,{"$f":"E1GM!$D$82*'Dados auxiliares'!$D$16","v":0},{"$f":"E65*'Dados auxiliares'!$H$118","v":0},0]
[null,"Biometano de terceiros","Nm³",null,{"$f":"E1GM!D83","v":0},{"$f":"E66*'Dados auxiliares'!$F$18","v":0},0]
[null,"Eletricidade da rede - mix médio","kWh",null,{"$f":"E1GM!D85","v":0},{"$f":"E67*'Dados auxiliares'!$H$103","v":0},0]
[null,"Eletricidade - PCH","kWh",null,{"$f":"E1GM!D86","v":0},{"$f":"E68*'Dados auxiliares'!$H$104","v":0},0]
[null,"Eletricidade - biomassa","kWh",null,{"$f":"E1GM!D87","v":0},{"$f":"E69*'Dados auxiliares'!$H$105","v":0},0]
[null,"Eletricidade - eólica","kWh",null,{"$f":"E1GM!D88","v":0},{"$f":"E70*'Dados auxiliares'!$H$106","v":0},0]
[null,"Eletricidade - solar","kWh",null,{"$f":"E1GM!D89","v":0},{"$f":"E71*'Dados auxiliares'!$H$107","v":0},0]
[null,"Emissões",null,"1 ha médio","1 t milho","g CO2 eq/t milho"]
[null,"N2O - Fertilizantes sintéticos","kg",{"$f":"'_Emissões Agrícolas'!$G$54","v":1.3750547997060536},{"$f":"D73*$E$15","v":0.26178445422343988},{"$f":"E73*1000*'Dados auxiliares'!$D$9","v":69372.880369211562},{"$f":"(F73/$E$92)*$F$92","v":4.9756499414572941}]
[null,"N2O - Fertilizantes organominerais","kg",{"$f":"'_Emissões Agrícolas'!$G$58","v":0},{"$f":"D74*$E$15","v":0},{"$f":"E74*1000*'Dados auxiliares'!$D$9","v":0},0]
[null,"N2O - Resíduos culturais","kg",{"$f":"'_Emissões Agrícolas'!$G$62","v":0.90718893160880598},0.17271163257604336,{"$f":"E75*1000*'Dados auxiliares'!$D$9","v":45768.582632651487},3.2826724836093737]
[null,"CO2 - Calcário ","kg",null,{"$f":"$E$20*'_Emissões Agrícolas'!$E$79+$E$21*'_Emissões Agrícolas'!$E$80","v":20.166294981522803},{"$f":"E76*1000","v":20166.294981522802},1.4463926524342015]
[null,"CO2 - Uréia","kg",null,{"$f":"$E$23*'_Emissões Agrícolas'!$E$81","v":19.617194482152595},{"$f":"E77*1000","v":19617.194482152594},1.4070093681737703]
[null,"CO₂ eq - queima do diesel","kg",null,{"$f":"$E$61*'FE''s queima combustíveis'!$I$53/1000","v":11.705768524800002},{"$f":"E78*1000","v":11705.768524800002},0.83957601537016469]
[null,"CO₂ eq - queima do biodiesel","kg",null,{"$f":"$E$62*'FE''s queima combustíveis'!$I$54/1000","v":5.5898884546559989E-3},{"$f":"E79*1000","v":5.5898884546559993},4.0092508793257171E-4]
[null,"CO₂ eq - queima da gasolina A","kg",null,{"$f":"$E$63*'FE''s queima combustíveis'!$I$9/1000","v":0},0,0]
[null,"CO₂ eq - queima do etanol anidro","kg",null,{"$f":"$E$64*'FE''s queima combustíveis'!$I$7/1000","v":0},0,0]
[null,"CO₂ eq - queima do etanol hidratado","kg",null,{"$f":"$E$65*'FE''s queima combustíveis'!$I$8/1000","v":0},0,0]
[null,"CO₂ eq - queima do biometano","kg",null,{"$f":"($E$66+E1GM!D84)*'FE''s queima combustíveis'!$I$55/1000","v":0},0,0]
[]
[null,"Emissões do processo","g CO2 eq/t milho",null,null,{"$f":"SUM(F73:F83)","v":166636.31087879307},{"$f":"(F85/$E$92)*$F$92","v":11.951701386132735}]
[null,"Emissões background","g CO2 eq/t milho",null,null,{"$f":"SUM(F17:F71)","v":99154.617613312264},7.1116935709916911]
[null,"Emissões totais","g CO2 eq/t milho",null,null,{"$f":"F85+F86","v":265790.92849210533},19.063394957124423]
[]
[]
[null,"Etapa industrial - Etanol de milho"]
[null,"Produtos","Unidade","1 t milho","MJ","Alocação"]
[null,"Etanol Anidro","kg",{"$f":"E1GM!D96*'Dados auxiliares'!$D$15","v":99.6},{"$f":"D92*'Dados auxiliares'!$F$15","v":2814.7821750594449},{"$f":"E92/SUM($E$92:$E$99)","v":0.20188538647971863}]
[null,"Etanol Hidratado","kg",{"$f":"E1GM!D97*'Dados auxiliares'!$D$16","v":213.33},{"$f":"D93*'Dados auxiliares'!$F$16","v":5626.9643505194381},{"$f":"E93/SUM($E$92:$E$99)","v":0.40358429248196609}]
[null,"Eletricidade","kWh",{"$f":"E1GM!D98","v":82.82},{"$f":"CONVERT(D94,\"kWh\",\"MJ\")","v":298.15185138341894},2.1384426219380182E-2]
[null,"DDGS","kg",{"$f":"E1GM!D100*(1-E1GM!G100)","v":257.00400000000002},{"$f":"D95*'Dados auxiliares'!D35","v":5202.5777187120002},0.37314589481893512]
[null,"DDG","kg",{"$f":"E1GM!D99*(1-E1GM!G99)","v":0},{"$f":"D96*'Dados auxiliares'!D34","v":0},0]
[null,"CGM","kg",{"$f":"E1GM!D101*(1-E1GM!G101)","v":0},{"$f":"D97*'Dados auxiliares'!D36","v":0},0]
[null,"CGF","kg",{"$f":"E1GM!D102*(1-E1GM!G102)","v":0},{"$f":"D98*'Dados auxiliares'!D37","v":0},0]
[null,"Óleo de Milho","kg",{"$f":"E1GM!D103","v":0},{"$f":"D99*'Dados auxiliares'!D38","v":0},0]
[null,"Entradas ","Unidade","1 t milho",null,"g CO2 eq/t milho"]
[null,"Processamento dos grãos"]
[null,"Processamento com secagem","m³",{"$f":"(0.00004878*0.65)","v":3.1707E-5},null,{"$f":"D102*'Dados auxiliares'!$H$77","v":1.018120869909E-6},{"$f":"(F102/$E$92)*$F$92","v":7.3022959689697824E-11}]
[null,"Processamento sem secagem","m³",{"$f":"(0.00004878*0.35)","v":1.7072999999999997E-5},null,{"$f":"D103*'Dados auxiliares'!$H$76","v":2.6994354200100001E-7},1.9361233983736282E-11]
[null,"Insumos"]
[null,"Milho (grãos)","t",1,null,{"$f":"D105*F87","v":265790.92849210533},{"$f":"(F105/$E$92)*$F$92","v":19.063394957124423}]
[null,"Transporte do milho em grãos até a usina","tkm",{"$f":"D105*E1GM!D95","v":300},null,{"$f":"D106*'Dados auxiliares'!$H$125","v":36025.492902398837},{"$f":"(F106/$E$92)*$F$92","v":2.5838662125141361}]
[null,"Enzimas","kg",0.57199999999999995,null,{"$f":"D107*'Dados auxiliares'!$H$95","v":749.31999999999994},5.374368188678328E-2]
[null,"Ácido sulfúrico","kg",0.90900000000000003,null,{"$f":"D108*'Dados auxiliares'!$H$84","v":99.408112467459816},7.129875051268799E-3]
[null,"Hidróxido de sódio","kg",0.33300000000000002,null,{"$f":"D109*'Dados auxiliares'!$H$93","v":170.64857799993447},1.2239474310655533E-2]
[null,"Amônia","kg",0.72499999999999998,null,{"$f":"D110*'Dados auxiliares'!$H$91","v":2218.0197988132104},0.15908363647841275]
[null,"Levedura","kg",1E-3,null,{"$f":"D111*'Dados auxiliares'!$H$94","v":1.04970694358414},7.5288416231161044E-5]
[null,"Zeolita","kg",6.2E-2,null,{"$f":"D112*'Dados auxiliares'!$H$90","v":310.64041816017919},2.2280147086395679E-2]
[null,"Combustíveis e eletricidade"]
[null,"Eletricidade da rede - mix médio","kWh",{"$f":"E1GM!D106","v":0},null,{"$f":"D114*'Dados auxiliares'!$H$103","v":0},{"$f":"(F114/$E$92)*$F$92","v":0}]
[null,"Eletricidade - PCH","kWh",{"$f":"E1GM!D107","v":0},null,{"$f":"D115*'Dados auxiliares'!$H$104","v":0},0]
[null,"Eletricidade - biomassa","kWh",{"$f":"E1GM!D108","v":0},null,{"$f":"D116*'Dados auxiliares'!$H$105","v":0},0]
[null,"Eletricidade - eólica","kWh",{"$f":"E1GM!D109","v":0},null,{"$f":"D117*'Dados auxiliares'!$H$106","v":0},0]
[null,"Eletricidade - solar","kWh",{"$f":"E1GM!D110","v":0},null,{"$f":"D118*'Dados auxiliares'!$H$107","v":0},0]
[null,"Diesel B0","kg",{"$f":"(E1GM!$D$111*(1-0.08)+E1GM!$D$112*(1-0.1)+E1GM!$D$113*(1-E1GM!$G$113)+E1GM!$D$114*(1-0.2)+E1GM!$D$115*(1-0.3)+E1GM!$D$116*(1-1))*('Dados auxiliares'!$D$24)","v":8.8291746639845112E-2},null,{"$f":"D119*'Dados auxiliares'!$H$112","v":49.101627772005926},3.5217293854453774E-3]
[null,"Biodiesel B100","kg",{"$f":"(E1GM!$D$111*(0.08)+E1GM!$D$112*(0.1)+E1GM!$D$113*(E1GM!$G$113)+E1GM!$D$114*(0.2)+E1GM!$D$115*(0.3)+E1GM!$D$116*(1))*('Dados auxiliares'!$D$17)","v":8.0431404806484159E-3},null,{"$f":"D120*'Dados auxiliares'!$H$113","v":7.9376959898848733},5.6931752548226129E-4]
[null,"Biometano de terceiros","Nm³",{"$f":"E1GM!D117","v":0},null,{"$f":"E121*'Dados auxiliares'!$F$18","v":0},0]
[null,"Gás natural","Nm³",{"$f":"E1GM!D119","v":0},null,{"$f":"D122*'Dados auxiliares'!$H$111","v":0},0]
[null,"Cavaco de madeira","kg base seca",{"$f":"E1GM!$D$121*(1-E1GM!$D$122)","v":355.8},null,{"$f":"D123*'Dados auxiliares'!$H$119","v":12173.179449581461},0.87310025608422814]
[null,"Transporte de cavaco de madeira","tkm",{"$f":"((D123/1000)*E1GM!$D$123)","v":117.414},null,{"$f":"D124*'Dados auxiliares'!$H$125","v":14099.657412140858},1.0112735582537826]
[null,"Lenha","kg base seca",{"$f":"E1GM!$D$125*(1-E1GM!$D$126)","v":0},null,{"$f":"D125*'Dados auxiliares'!$H$120","v":0},0]
[null,"Transporte de lenha","tkm",{"$f":"((D125/1000)*E1GM!$D$127)","v":0},null,{"$f":"D126*'Dados auxiliares'!$H$125","v":0},0]
[null,"Resíduos florestais","kg base seca",{"$f":"E1GM!$D$129*(1-E1GM!$D$130)","v":0},null,0,0]
[null,"Transporte de resíduos florestais","tkm",{"$f":"((D127/1000)*E1GM!$D$131)","v":0},null,{"$f":"D128*'Dados auxiliares'!$H$125","v":0},0]
[null,"Bagaço de cana-de-açúcar","kg base seca",{"$f":"E1GM!$D$133*(1-E1GM!$D$134)","v":0},null,0,0]
[null,"Transporte de bagaço de cana-de-açúcar","tkm",{"$f":"((D129/1000)*E1GM!$D$135)","v":0},null,{"$f":"D130*'Dados auxiliares'!$H$125","v":0},0]
[null,"Palha de cana-de-açúcar","kg base seca",{"$f":"E1GM!$D$137*(1-E1GM!$D$138)","v":0},null,{"$f":"D131*'Dados auxiliares'!$H$74","v":0},0]
[null,"Transporte de palha de cana-de-açúcar","tkm",{"$f":"((D131/1000)*E1GM!$D$139)","v":0},null,{"$f":"D132*'Dados auxiliares'!$H$125","v":0},0]
[null,"Emissões","Unidade","1 t milho",null,"g CO2 eq/t milho"]
[null,"CO₂ eq - queima do diesel","kg",{"$f":"D119*'FE''s queima combustíveis'!$I$45/1000","v":0.2776011708214694},null,{"$f":"D134*1000","v":277.6011708214694},{"$f":"(F134/$E$92)*$F$92","v":1.9910464175556024E-2}]
[null,"CO₂ eq - queima do biodiesel","kg",{"$f":"D120*'FE''s queima combustíveis'!$I$46/1000","v":8.1887213233481528E-5},null,8.1887213233481526E-2,5.8732188365657156E-6]
[null,"CO₂ eq - queima do biometano","kg",{"$f":"(D121+E1GM!D118)*'FE''s queima combustíveis'!$I$39/1000","v":0},null,0,0]
[null,"CO₂ eq - queima da gás natural","kg",{"$f":"D122*'FE''s queima combustíveis'!$I$41*('Dados auxiliares'!$D$25*1000)/1000","v":0},null,0,0]
[null,"CO₂ eq - queima do bagaço de cana-de-açúcar","kg",{"$f":"D129*'FE''s queima combustíveis'!$I$33/1000","v":0},null,0,0]
[null,"CO₂ eq - queima da palha de cana-de-açúcar","kg",{"$f":"D131*'FE''s queima combustíveis'!$I$34/1000","v":0},null,0,0]
[null,"CO₂ eq - queima dos cavacos de madeira","kg",{"$f":"D123*'FE''s queima combustíveis'!$I$35/1000","v":2.2137876000000003},null,2213.7876000000001,0.1587800893334029]
[null,"CO₂ eq - queima da lenha","kg",{"$f":"D125*'FE''s queima combustíveis'!$I$36/1000","v":0},null,0,0]
[null,"CO₂ eq - queima dos resíduos florestais","kg",{"$f":"D127*'FE''s queima combustíveis'!$I$37/1000","v":0},null,0,0]
[]
[null,"Emissões do processo","g CO2 eq/t milho",null,null,{"$f":"SUM(F134:F142)","v":2491.4706580347029},0.17869642672779548]
[null,"Emissões background","g CO2 eq/t milho",null,null,{"$f":"SUM(F102:F132)","v":331695.38419566088},23.790278134209636]
[null,"Emissões totais","g CO2 eq/t milho",null,null,{"$f":"F144+F145","v":334186.85485369561},23.968974560937433]
[]
[]
[null,"Etapa distribuição"]
[null,"Sistema logiístico rodoviário"]
[null,"Parâmetro","Unidade","Etanol anidro","Etanol hidratado"]
[null,"Massa","kg/t milho",{"$f":"$D$92*E1GM!$D$145","v":99.6},{"$f":"$D$93*E1GM!$D$151","v":213.33}]
[null,"Distância de transporte rodoviário","km",1500,1500]
[null,"Transporte rodoviário","tkm/t milho",{"$f":"D152/1000*D153","v":149.39999999999998},{"$f":"E152/1000*E153","v":319.995}]
[null,"Emissões","g CO2 eq/t milho",{"$f":"D154*'Dados auxiliares'!$H$126","v":4841.5175765115246},{"$f":"E154*'Dados auxiliares'!$H$126","v":10369.889001979956}]
[null,"Emissões","g CO2 eq/MJ",{"$f":"D155/$E$92","v":1.720032768222741},{"$f":"E155/$E$93","v":1.8428922516672224}]
[null,"Sistema logiístico rodoviário + dutoviário"]
[null,"Parâmetro","Unidade","Etanol anidro","Etanol hidratado"]
[null,"Massa","kg/t milho",{"$f":"$D$92*E1GM!$D$146","v":0},{"$f":"$D$93*E1GM!$D$152","v":0}]
[null,"Distância de transporte rodoviário","km",900,9000]
[null,"Transporte rodoviário","tkm/t milho",{"$f":"D159/1000*D160","v":0},{"$f":"E159/1000*E160","v":0}]
[null,"Distância de transporte dutoviário","km",600,600]
[null,"Transporte dutoviário","tkm/t milho",{"$f":"D159/1000*D162","v":0},{"$f":"E159/1000*E162","v":0}]
[null,"Emissões","g CO2 eq/t milho",{"$f":"D161*'Dados auxiliares'!$H$126+D163*'Dados auxiliares'!$H$130","v":0},{"$f":"E161*'Dados auxiliares'!$H$126+E163*'Dados auxiliares'!$H$130","v":0}]
[null,"Emissões","g CO2 eq/MJ",{"$f":"D164/$E$92","v":0},{"$f":"E164/$E$93","v":0}]
[null,"Sistema logiístico rodoviário + ferroviário"]
[null,"Parâmetro","Unidade","Etanol anidro","Etanol hidratado"]
[null,"Massa","kg/t milho",{"$f":"$D$92*E1GM!$D$147","v":0},{"$f":"$D$93*E1GM!$D$153","v":0}]
[null,"Distância de transporte rodoviário","km",900,900]
[null,"Transporte rodoviário","tkm/t milho",{"$f":"D168/1000*D169","v":0},{"$f":"E168/1000*E169","v":0}]
[null,"Distância de transporte ferroviário","km",600,600]
[null,"Transporte ferroviário","tkm/t milho",{"$f":"D168/1000*D171","v":0},{"$f":"E168/1000*E171","v":0}]
[null,"Emissões","g CO2 eq/t milho",{"$f":"D170*'Dados auxiliares'!$H$126+D172*'Dados auxiliares'!$H$129","v":0},{"$f":"E170*'Dados auxiliares'!$H$126+E172*'Dados auxiliares'!$H$129","v":0}]
[null,"Emissões","g CO2 eq/MJ",{"$f":"D173/$E$92","v":0},{"$f":"E173/$E$93","v":0}]
[]
[null,"Emissões totais","g CO2 eq/MJ",{"$f":"D156+D165+D174","v":1.720032768222741},{"$f":"E156+E165+E174","v":1.8428922516672224}]

{"sheet":"E1GMI","index":12,"n_rows":132,"n_cols":17,"rows_kept":132,"cut":false,"hidden":false,"merged":[[14,3,14,5],[3,2,3,7],[5,2,5,7],[7,2,7,7],[9,2,9,3],[12,2,12,3],[22,10,22,16],[23,1,23,7],[23,10,23,16],[27,22,27,23],[32,1,32,7],[32,10,32,16],[22,1,22,7],[110,2,110,4],[36,1,36,7],[36,10,36,16],[41,1,41,7],[41,10,41,16],[44,1,44,7],[62,1,62,7],[62,10,62,16],[69,1,69,7],[69,10,69,16],[85,1,85,7],[86,1,86,7],[98,1,98,7],[44,10,44,16],[130,2,130,4],[114,2,114,4],[118,2,118,4],[124,1,124,7],[126,2,126,4]]}
[""]
[null,"Produção de Etanol de milho importado"]
[]
[null,"Nome da Usina:","Usina Hipotética"]
[]
[null,"CNPJ","00.000.000/0000-00"]
[]
[null,"Responsável pelo preenchimento:","GT ACV RenovaCalc"]
[]
[null,"Telefone :","(00) 0000-0000"]
[]
[]
[null,null,"Etanol Anidro"]
[]
[null,"Intensidade de Carbono\n(g CO₂eq/MJ)",{"$f":"SUM(C17:C20)","v":43.198938840404843},"Nota de Eficiência Energético-Ambiental\n(g CO₂eq/MJ)",null,null,{"$f":"G18-C15","v":44.201061159595163}]
[]
[null,"agrícola",{"$f":"IF(C13=\"Etanol Anidro\",_E1GMI!C5,IF(C13=\"Etanol Hidratado\",_E1GMI!E5,\"\"))","v":18.325190344158088},null,null,null,"Fóssil de referência: Gasolina"]
[null,"industrial",{"$f":"IF(C13=\"Etanol Anidro\",_E1GMI!C6,IF(C13=\"Etanol Hidratado\",_E1GMI!E6,\"\"))","v":18.962975681222417},null,null,null,87.4]
[null,"transporte",{"$f":"IF(C13=\"Etanol Anidro\",_E1GMI!C7,IF(C13=\"Etanol Hidratado\",_E1GMI!E7,\"\"))","v":5.4717722746241133},null,null,null,"Redução de emissões"]
[null,"uso",{"$f":"IF(C13=\"Etanol Anidro\",_E1GMI!C8,IF(C13=\"Etanol Hidratado\",_E1GMI!E8,\"\"))","v":0.43900054040021891},null,null,null,{"$f":"(G18-C15)/G18","v":0.50573296521275923}]
[]
[]
[null,"Fornecedores - Dados consolidados",null,null,null,null,null,null,null,null,"Default - Milho"]
[null,"Informações gerais",null,null,null,null,null,null,null,null," Informações gerais"]
[null,"Houve supressão de vegetação nativa a partir de 26 de dezembro de 2017?","Houve avanço sobre vegetação nativa?","Não"]
[]
[null,null,"Sistema de plantio","Convencional"]
[null,null,"Área total",1,"ha"]
[]
[null,null,"Produção total (base úmida)",10.5,"t milho","Umidade",0.13]
[null,null,"Palha recolhida (base seca)",0,"t palha"]
[]
[null,"Tipo de preenchimento",null,null,null,null,null,null,null,null,"Tipo de preenchimento"]
[null,"Tipo de dados forneceidos pelos fornecedores:",null,null,null,null,null,null,null,null,null,null,"Padrão"]
[null,"Em função das informações de cada fornecedor"]
[]
[null,"Corretivos",null,null,null,null,null,null,null,null,"Corretivos"]
[null,null,"Calcário calcítico",0,"kg/t milho",null,null,null,null,null,null,"Calcário calcítico",0,"kg/t milho"]
[null,null,"Calcário dolomítico",45.3,"kg/t milho",null,null,null,null,null,null,"Calcário dolomítico",113.3,"kg/t milho"]
[null,null,"Gesso",0,"kg/t milho",null,null,null,null,null,null,"Gesso",0,"kg/t milho"]
[]
[null,"Sementes",null,null,null,null,null,null,null,null,"Sementes"]
[null,null,"Sementes",0,"kg/t milho",null,null,null,null,null,null,"Sementes",6.5007266414182778,"kg/t milho"]
[]
[null,"Fertilizantes Sintéticos",null,null,null,null,null,null,null,null,"Fertilizantes Sintéticos"]
[null,null,"Ureia",16.7,"kg N/t milho",null,null,null,null,null,null,"Ureia",41.8,"kg N/t milho"]
[null,null,"Fosfato Monoamônico (MAP)",0,"kg N/t milho",null,null,null,null,null,null,"Fosfato Monoamônico (MAP)",0,"kg N/t milho"]
[null,null,"Fosfato Monoamônico (MAP)",0,"kg P₂O₅/t milho",null,null,null,null,null,null,"Fosfato Monoamônico (MAP)",0,"kg P₂O₅/t milho"]
[null,null,"Fosfato diamônico (DAP)",0,"kg N/t milho",null,null,null,null,null,null,"Fosfato diamônico (DAP)",0,"kg N/t milho"]
[null,null,"Fosfato diamônico (DAP)",0,"kg P₂O₅/t milho",null,null,null,null,null,null,"Fosfato diamônico (DAP)",0,"kg P₂O₅/t milho"]
[null,null,"Nitrato de amônio",0,"kg N/t milho",null,null,null,null,null,null,"Nitrato de amônio",0,"kg N/t milho"]
[null,null,"Solução de nitrato de amônio e ureia (UAN)",0,"kg N/t milho",null,null,null,null,null,null,"Solução de nitrato de amônio e ureia (UAN)",0,"kg N/t milho"]
[null,null,"Amônia anidra",0,"kg N/t milho",null,null,null,null,null,null,"Amônia anidra",0,"kg N/t milho"]
[null,null,"Sulfato de amônio",0,"kg N/t milho",null,null,null,null,null,null,"Sulfato de amônio",0,"kg N/t milho"]
[null,null,"Nitrato de amônio e cálcio (CAN)",0,"kg N/t milho",null,null,null,null,null,null,"Nitrato de amônio e cálcio (CAN)",0,"kg N/t milho"]
[null,null,"Superfosfato simples (SSP)",11,"kg P₂O₅/t milho",null,null,null,null,null,null,"Superfosfato simples (SSP)",27.5,"kg P₂O₅/t milho"]
[null,null,"Superfosfato triplo (TSP)",0,"kg P₂O₅/t milho",null,null,null,null,null,null,"Superfosfato triplo (TSP)",0,"kg P₂O₅/t milho"]
[null,null,"Cloreto de potássio (KCl)",8,"kg K₂O/t milho",null,null,null,null,null,null,"Cloreto de potássio (KCl)",20,"kg K₂O/t milho"]
[null,"Outros","especificar",0,"kg N/t milho",null,null,null,null,null,"Outros","especificar",0,"kg N/t milho"]
[null,"Outros","especificar",0,"kg P₂O₅/t milho",null,null,null,null,null,"Outros","especificar",0,"kg P₂O₅/t milho"]
[null,"Outros","especificar",0,"kg K₂O/t milho",null,null,null,null,null,"Outros","especificar",0,"kg K₂O/t milho"]
[]
[null,"              Fertilizantes Orgânicos/Organominerais",null,null,null,null,null,null,null,null,"              Fertilizantes Orgânicos/Organominerais"]
[null,"Outros","especificar",0,"kg/t milho","Concentração de N",null,"g N/kg",null,null,"Outros","especificar",0,"kg/t milho","Concentração de N",null,"g N/kg"]
[null,"Outros","especificar",0,"kg/t milho","Concentração de N",null,"g N/kg",null,null,"Outros","especificar",0,"kg/t milho","Concentração de N",null,"g N/kg"]
[null,"Outros","especificar",0,"kg/t milho","Concentração de N",null,"g N/kg",null,null,"Outros","especificar",0,"kg/t milho","Concentração de N",null,"g N/kg"]
[null,"Outros","especificar",0,"kg/t milho","Concentração de N",null,"g N/kg",null,null,"Outros","especificar",0,"kg/t milho","Concentração de N",null,"g N/kg"]
[null,"Outros","especificar",0,"kg/t milho","Concentração de N",null,"g N/kg",null,null,"Outros","especificar",0,"kg/t milho","Concentração de N",null,"g N/kg"]
[]
[null,"              Combustíveis e eletricidade da rede",null,null,null,null,null,null,null,null,"              Combustíveis e eletricidade da rede"]
[null,null,"Diesel - B8",4.2,"L/t milho",null,null,null,null,null,null,"Diesel - B8",10.5,"L/t milho"]
[null,null,"Diesel - B10",0,"L/t milho",null,null,null,null,null,null,"Diesel - B10",0,"L/t milho"]
[null,null,"Diesel - BX",0,"L/t milho","Teor de biodiesel na mistura",0.11,null,null,null,null,"Diesel - BX",0,"L/t milho","Teor de biodiesel na mistura",0.11]
[null,null,"Diesel - B20",0,"L/t milho",null,null,null,null,null,null,"Diesel - B20",0,"L/t milho"]
[null,null,"Diesel - B30",0,"L/t milho",null,null,null,null,null,null,"Diesel - B30",0,"L/t milho"]
[null,null,"Biodiesel - B100",0,"L/t milho",null,null,null,null,null,null,"Biodiesel - B100",0,"L/t milho"]
[null,null,"Gasolina C",0,"L/t milho",null,null,null,null,null,null,"Gasolina C",0,"L/t milho"]
[null,null,"Etanol hidratado",0,"L/t milho",null,null,null,null,null,null,"Etanol hidratado",0,"L/t milho"]
[null,null,"Biometano de terceiros",0,"Nm³/t milho",null,null,null,null,null,null,"Biometano de terceiros",0,"Nm³/t milho"]
[null,null,"Biometano próprio",0,"Nm³/t milho",null,null,null,null,null,null,"Biometano próprio",0,"Nm³/t milho"]
[null,null,"Gás Natural",{"$f":"(2.1*0.001)","v":2.1000000000000003E-3},"Nm³/t milho",null,null,null,null,null,null,"Gás Natural",0,"Nm³/t milho"]
[null,null,"GLP",2,"L/t milho",null,null,null,null,null,null,"GPL",4,"L/t milho"]
[null,null,"Eletricidade da rede - mix médio EUA",5,"kWh/t milho",null,null,null,null,null,null,"Eletricidade da rede - mix médio EUA",12,"kWh/t milho"]
[]
[]
[null,"Fase industrial - processamento do etanol"]
[null,"Processamento e rendimentos"]
[null,null,"Quantidade de milho processado",1," t milho/ano","Umidade",0.13]
[null,null,"Distância de transporte - milho",300,"km"]
[null,null,"Rendimento - Etanol anidro",426.3,"L/ t milho"]
[null,null,"Rendimento - Etanol hidratado",0,"L/ t milho"]
[null,null,"Energia elétrica comercializada",0,"kWh/ t milho"]
[null,null," Rendimento - DDG (Distillers Dried Grains) ",0,"kg/ t milho","Umidade",0.1]
[null,null," Rendimento - DDGS (Distillers Dried Grains with Solubles)",305.278978666667,"kg/ t milho","Umidade",0.1]
[null,null,"Rendimento - CGM (Corn Gluten Meal)",7.0711666666666702,"kg/ t milho","Umidade",0.1]
[null,null,"Rendimento - CGF (Corn Gluten Feed)",30.791716666666701,"kg/ t milho","Umidade",0.1]
[null,null,"Rendimento - Óleo de milho",12.522979777777801,"kg/ t milho"]
[]
[null,"Combustíveis e eletricidade"]
[null,null,"Eletricidade da rede - mix médio EUA",73.75,"kWh/t milho"]
[null,null,"Diesel - B8",0,"L/t milho"]
[null,null,"Diesel - B10",0,"L/t milho"]
[null,null,"Diesel - BX",0,"L/t milho","Teor de biodiesel na mistura",0.11]
[null,null,"Diesel - B20",0,"L/t milho"]
[null,null,"Diesel - B30",0,"L/t milho"]
[null,null,"Biodiesel - B100",0,"L/t milho"]
[null,null,"Biometano de terceiros",0,"Nm³/t milho"]
[null,null,"Biometano próprio",0,"Nm³/t milho"]
[null,null,"Gás natural",102.16563412272208,"Nm³/t milho"]
[null,null,"Calor (carvão)",376.86284160000002,"MJ/t milho"]
[null,null,"Cavaco de madeira"]
[null,null,"Quantidade (base úmida)",null,"kg/t milho"]
[null,null,"Umidade"]
[null,null,"Distância de transporte",null,"km"]
[null,null," Lenha"]
[null,null,"Quantidade (base úmida)",null,"kg/t milho"]
[null,null,"Umidade"]
[null,null,"Distância de transporte",null,"km"]
[null,null,"Resíduos florestais"]
[null,null,"Quantidade (base úmida)",null,"kg/t milho"]
[null,null,"Umidade"]
[null,null,"Distância de transporte",null,"km"]
[]
[]
[null,"Distribuição dos biocombustíveis"]
[]
[null,null,"Etanol anidro"]
[null,null,"Marítimo + Ferroviário + Rodoviário",1]
[]
[]
[null,null,"Etanol hidradado"]
[null,null,"Marítimo + Ferroviário + Rodoviário",1]

{"sheet":"_E1GMI","index":13,"n_rows":154,"n_cols":7,"rows_kept":154,"cut":false,"hidden":false,"merged":[[89,1,89,5],[99,7,99,9],[140,1,140,5],[1,1,1,5],[2,2,2,3],[2,4,2,5],[3,2,3,3],[3,4,3,5],[10,1,10,5]]}
[]
[null,"Emissões totais - g CO₂ eq"]
[null,null,"Anidro",null,"Hidratado"]
[null,"Total",{"$f":"C5+C6+C7+C8","v":43.198938840404843},null,{"$f":"E5+E6+E7+E8","v":{"$error":"#DIV/0!"}}]
[null,"Agrícola",{"$f":"$G$87","v":18.325190344158088},{"$f":"C5/$C$4","v":0.4242046410412787},{"$f":"$G$87","v":18.325190344158088},{"$f":"E5/$E$4","v":{"$error":"#DIV/0!"}}]
[null,"Industrial",{"$f":"$G$138-$G$105","v":18.962975681222417},{"$f":"C6/$C$4","v":0.4389685531693191},{"$f":"$G$138-$G$105","v":18.962975681222417},{"$f":"E6/$E$4","v":{"$error":"#DIV/0!"}}]
[null,"Transporte",{"$f":"$D$154","v":5.4717722746241133},0.12666450661760825,{"$f":"$E$154","v":{"$error":"#DIV/0!"}},{"$error":"#DIV/0!"}]
[null,"Uso",{"$f":"'FE''s queima combustíveis'!$I$7","v":0.43900054040021891},1.0162299171793841E-2,{"$f":"'FE''s queima combustíveis'!$I$8","v":0.66300081613973838},{"$error":"#DIV/0!"}]
[]
[]
[null,"Etapa agrícola - Milho"]
[null,"Produto",null,"1 ha médio","1 t milho"]
[null,"Produção de milho","kg",{"$f":"E1GMI!D30/E1GMI!D28*1000","v":10500},1000]
[null,"Entradas da natureza",null,"1 ha médio","1 t milho","g CO2 eq/t milho"]
[null,"Ocupação total","ha",1,{"$f":"(D15*E13)/D13","v":9.5238095238095233E-2},"-"]
[null,"Entradas da tecnosfera",null,"1 ha médio","1 t milho","g CO2 eq/t milho"]
[null,"Sementes de milho","kg",null,{"$f":"E1GMI!D43","v":0},{"$f":"E17*'Dados auxiliares'!$H$71","v":0},{"$f":"(F17/$E$92)*$F$92","v":0}]
[null,"Água","kg",602,{"$f":"D18*$E$15/$D$15","v":57.333333333333329},{"$f":"E18*'Dados auxiliares'!$H$79","v":0.50462348436025306},{"$f":"(F18/$E$92)*$F$92","v":3.1165672092451927E-5}]
[null,"Fertilizantes e corretivos"]
[null,"Calcário calcítico","kg",null,{"$f":"E1GMI!D38","v":0},{"$f":"E20*'Dados auxiliares'!$H$48","v":0},{"$f":"(F20/$E$92)*$F$92","v":0}]
[null,"Calcário dolomítico","kg",null,{"$f":"E1GMI!D39","v":45.3},{"$f":"E21*'Dados auxiliares'!$H$49","v":1668.6544004504849},0.10305651142256463]
[null,"Gesso","kg",null,{"$f":"E1GMI!D40","v":0},{"$f":"E22*'Dados auxiliares'!$H$50","v":0},0]
[null,"N - Ureia","kg N",null,{"$f":"E1GMI!D46","v":16.7},{"$f":"E23*'Dados auxiliares'!$H$51","v":53627.277735259529},3.312034031128793]
[null,"N - Fosfato monoamônico (MAP)","kg N",null,{"$f":"E1GMI!D47","v":0},{"$f":"E24*'Dados auxiliares'!$H$52","v":0},0]
[null,"P₂O₅ - Fosfato monoamônico (MAP)","kg P₂O₅",null,{"$f":"E1GMI!D48","v":0},{"$f":"E25*'Dados auxiliares'!$H$53","v":0},0]
[null,"N - Fosfato diamônico (DAP)","kg N",null,{"$f":"E1GMI!D49","v":0},{"$f":"E26*'Dados auxiliares'!$H$54","v":0},0]
[null,"P₂O₅ - Fosfato diamônico (DAP)","kg P₂O₅",null,{"$f":"E1GMI!D50","v":0},{"$f":"E27*'Dados auxiliares'!$H$55","v":0},0]
[null,"N - Nitrato de amônio","kg N",null,{"$f":"E1GMI!D51","v":0},{"$f":"E28*'Dados auxiliares'!$H$56","v":0},0]
[null,"N - Solução de nitrato de amônio e ureia (UAN)","kg N",null,{"$f":"E1GMI!D52","v":0},{"$f":"E29*'Dados auxiliares'!$H$57","v":0},0]
[null,"N - Amônia anidra","kg N",null,{"$f":"E1GMI!D53","v":0},{"$f":"E30*'Dados auxiliares'!$H$58","v":0},0]
[null,"N - Sulfato de amônio","kg N",null,{"$f":"E1GMI!D54","v":0},{"$f":"E31*'Dados auxiliares'!$H$59","v":0},0]
[null,"N - Nitrato de amônio e cálcio (CAN)","kg N",null,{"$f":"E1GMI!D55","v":0},{"$f":"E32*'Dados auxiliares'!$H$60","v":0},0]
[null,"P₂O₅ - Superfosfato simples (SSP)","kg P₂O₅",null,{"$f":"E1GMI!D56","v":11},{"$f":"E33*'Dados auxiliares'!$H$62","v":26044.220589152454},1.6084975510286483]
[null,"P₂O₅ - Superfosfato triplo (TSP)","kg P₂O₅",null,{"$f":"E1GMI!D57","v":0},{"$f":"E34*'Dados auxiliares'!$H$63","v":0},0]
[null,"K₂O - Cloreto de potássio (KCl)","kg K₂O",null,{"$f":"E1GMI!D58","v":8},{"$f":"E35*'Dados auxiliares'!H$64","v":3641.6620873147849},0.22490995762643129]
[null,"N - Outros","kg N",null,{"$f":"E1GMI!D59","v":0},{"$f":"E36*'Dados auxiliares'!H$65","v":0},0]
[null,"P₂O₅ - Outros","kg P₂O₅",null,{"$f":"E1GMI!D60","v":0},{"$f":"E37*'Dados auxiliares'!H$66","v":0},0]
[null,"K₂O - Outros","kg K₂O",null,{"$f":"E1GMI!D61","v":0},{"$f":"E38*'Dados auxiliares'!H$67","v":0},0]
[null,"Outros Fertilizantes Orgânicos/Organominerais","kg",null,{"$f":"SUM(E1GMI!D64:D68)","v":0},0,0]
[null,"Agroquímicos"]
[null,"Herbicidas, Fungicidas, Inseticidas, Adjuvantes","kg",{"$f":"SUM(D42:D59)","v":4.0067465003383447},{"$f":"SUM(E42:E59)","v":0.38159490479412811},{"$f":"SUM(F42:F59)","v":4153.9408576463547},{"$f":"(F41/$E$92)*$F$92","v":0.25654842208735268}]
[null,"Herbicida, como glifosato","kg",0.75187392980081791,{"$f":"D42*$E$15","v":7.160704093341122E-2},{"$f":"E42*'Dados auxiliares'!$H$68","v":823.88960040422864}]
[null,"Herbicida,como atrazina","kg",2.0932993027155846,{"$f":"D43*$E$15","v":0.1993618383538652},{"$f":"E43*'Dados auxiliares'!$H$70","v":2141.6488122731339}]
[null,"Herbicida, como Nicosulfuron","kg",2.36375297890494E-3,2.2511933132427999E-4,{"$f":"E44*'Dados auxiliares'!$H$70","v":2.4183492313839761}]
[null,"Fungicida, como tebuconazol","kg",1.8326164347288825E-2,1.7453489854560786E-3,{"$f":"E45*'Dados auxiliares'!$H$70","v":18.749448804085326}]
[null,"Fungicida, como Fluxapiroxade","kg",5.5545470593427286E-3,5.290044818421646E-4,{"$f":"E46*'Dados auxiliares'!$H$70","v":5.6828419600218396}]
[null,"Fungicida, como Piraclostrobina","kg",1.1075833357851068E-2,1.0548412721762921E-3,{"$f":"E47*'Dados auxiliares'!$H$70","v":11.331654926271092}]
[null,"Fungicida, como azoxistrobina","kg",3.1056518285327604E-2,2.9577636462216764E-3,{"$f":"E48*'Dados auxiliares'!$H$70","v":31.773839227303128}]
[null,"Fungicida, como trifloxistrobina","kg",9.1630821736444126E-3,8.7267449272803929E-4,{"$f":"E49*'Dados auxiliares'!$H$70","v":9.3747244020426628}]
[null,"Fungicida, como Difeconazol","kg",1.1264232545823649E-2,1.0727840519832047E-3,{"$f":"E50*'Dados auxiliares'!$H$70","v":11.524405622089541}]
[null,"Fungicida, como ciproconazole","kg",1.2422607314131043E-2,1.1831054584886707E-3,{"$f":"E51*'Dados auxiliares'!$H$70","v":12.709535690921253}]
[null,"Inseticida, como Imidacloprido","kg",0.16669375386154345,1.5875595605861281E-2,{"$f":"E52*'Dados auxiliares'!$H$70","v":170.54392532773417}]
[null,"Inseticida, como tiodicarbe","kg",9.9529583100414848E-2,9.4790079143252225E-3,{"$f":"E53*'Dados auxiliares'!$H$70","v":101.82844524742347}]
[null,"Inseticida, Connect, como beta-ciflutrina","kg",6.649568978198829E-2,6.3329228363798364E-3,{"$f":"E54*'Dados auxiliares'!$H$70","v":68.031559012193114}]
[null,"Inseticida, como teflubenzurom","kg",5.0786136691282468E-3,4.8367749229792824E-4,{"$f":"E55*'Dados auxiliares'!$H$70","v":5.1959158054333958}]
[null,"Inseticida, como bifentrina","kg",3.9458648386242615E-3,3.7579665129754868E-4,{"$f":"E56*'Dados auxiliares'!$H$70","v":4.037003563736512}]
[null,"Inseticida, como lufenuron","kg",1.6362646738650741E-3,1.5583473084429276E-4,{"$f":"E57*'Dados auxiliares'!$H$70","v":1.6740579289361903}]
[null,"Adjuvante, como óleo mineral","kg",0.14463274588837566,1.3774547227464348E-2,{"$f":"E58*'Dados auxiliares'!$H$70","v":147.97336818762969}]
[null,"Adjuvante, como ester metílico","kg",0.57233401394568828,{"$f":"D59*$E$15","v":5.4508001328160784E-2},{"$f":"E59*'Dados auxiliares'!$H$70","v":585.55337003178613}]
[null,"Combustíveis e eletricidade"]
[null,"Diesel B0","kg",null,{"$f":"(E1GMI!$D$71*(1-0.08)+E1GMI!$D$72*(1-0.1)+E1GMI!$D$73*(1-E1GMI!$G$73)+E1GMI!$D$74*(1-0.2)+E1GMI!$D$75*(1-0.3)+E1GMI!$D$76*(1-1))*('Dados auxiliares'!$D$24)","v":3.2457600000000002},{"$f":"E61*'Dados auxiliares'!$H$112","v":1805.0622557889578},{"$f":"(F61/$E$92)*$F$92","v":0.11148109454656065}]
[null,"Biodiesel B100","kg",null,{"$f":"(E1GMI!$D$71*(0.08)+E1GMI!$D$72*(0.1)+E1GMI!$D$73*(E1GMI!$G$73)+E1GMI!$D$74*(0.2)+E1GMI!$D$75*(0.3)+E1GMI!$D$76*(1))*('Dados auxiliares'!$D$17)","v":0.29568},{"$f":"E62*'Dados auxiliares'!$H$113","v":291.80367493717443},1.8021867650479733E-2]
[null,"Gasolina A","kg",null,{"$f":"E1GMI!$D$77*(1-'FE''s queima combustíveis'!$D$16)*'Dados auxiliares'!$D$22","v":0},{"$f":"E63*'Dados auxiliares'!$H$116","v":0},0]
[null,"Etanol anidro","kg",null,{"$f":"E1GMI!$D$77*('FE''s queima combustíveis'!$D$16)*'Dados auxiliares'!$D$15","v":0},{"$f":"E64*'Dados auxiliares'!$H$117","v":0},0]
[null,"Etanol hidratado","kg",null,{"$f":"E1GMI!$D$78*'Dados auxiliares'!$D$16","v":0},{"$f":"E65*'Dados auxiliares'!$H$118","v":0},0]
[null,"Biometano de terceiros","Nm³",null,{"$f":"E1GMI!D79","v":0},{"$f":"E66*'Dados auxiliares'!$F$18","v":0},0]
[null,"Gás Natural","Nm³",null,{"$f":"E1GMI!D81","v":2.1000000000000003E-3},{"$f":"E67*'Dados auxiliares'!$H$111","v":0.25357243381372246},1.5660696675546773E-5]
[null,"GPL","kg",null,{"$f":"E1GMI!D82*'Dados auxiliares'!$D$27","v":1.1040000000000001},{"$f":"E68*'Dados auxiliares'!$H$115","v":766.08171472013214},4.7313397526988939E-2]
[null,"Eletricidade da rede - mix médio EUA","kWh",null,{"$f":"E1GMI!D83","v":5},{"$f":"E69*'Dados auxiliares'!$H$109","v":3798.8872024643547},0.23462021990180199]
[null,"Emissões",null,"1 ha médio","1 t milho","g CO2 eq/t milho"]
[null,"N2O - Fertilizantes sintéticos","kg",{"$f":"'_Emissões Agrícolas'!$I$54","v":3.6510374999999997},{"$f":"D71*$E$15","v":0.34771785714285708},{"$f":"E71*1000*'Dados auxiliares'!$D$9","v":92145.23214285713},{"$f":"(F71/$E$92)*$F$92","v":5.6909124899089676}]
[null,"N2O - Fertilizantes organominerais","kg",{"$f":"'_Emissões Agrícolas'!$I$58","v":0},{"$f":"D72*$E$15","v":0},{"$f":"E72*1000*'Dados auxiliares'!$D$9","v":0},0]
[null,"N2O - Resíduos culturais","kg",{"$f":"'_Emissões Agrícolas'!$I$62","v":1.7250220872499999},0.16428781783333332,{"$f":"E73*1000*'Dados auxiliares'!$D$9","v":43536.271725833329},2.6888109863839693]
[null,"CO2 - Calcário ","kg",null,{"$f":"$E$20*'_Emissões Agrícolas'!$E$79+$E$21*'_Emissões Agrícolas'!$E$80","v":21.593},{"$f":"E74*1000","v":21593},1.3335890586730696]
[null,"CO2 - Uréia","kg",null,{"$f":"$E$23*'_Emissões Agrícolas'!$E$81","v":26.056737588652485},{"$f":"E75*1000","v":26056.737588652486},1.6092706040356721]
[null,"CO₂ eq - queima do diesel","kg",null,{"$f":"$E$61*'FE''s queima combustíveis'!$I$53/1000","v":10.242547459200001},{"$f":"E76*1000","v":10242.547459200001},0.63258228243082348]
[null,"CO₂ eq - queima do biodiesel","kg",null,{"$f":"$E$62*'FE''s queima combustíveis'!$I$54/1000","v":4.8911523978239996E-3},{"$f":"E77*1000","v":4.8911523978239995},3.0207879044322867E-4]
[null,"CO₂ eq - queima da gasolina A","kg",null,{"$f":"$E$63*'FE''s queima combustíveis'!$I$9/1000","v":0},0,0]
[null,"CO₂ eq - queima do etanol anidro","kg",null,{"$f":"$E$64*'FE''s queima combustíveis'!$I$7/1000","v":0},0,0]
[null,"CO₂ eq - queima do etanol hidratado","kg",null,{"$f":"$E$65*'FE''s queima combustíveis'!$I$8/1000","v":0},0,0]
[null,"CO₂ eq - queima do biometano","kg",null,{"$f":"($E$66+E1GMI!D80)*'FE''s queima combustíveis'!$I$55/1000","v":0},0,0]
[null,"CO₂ eq - queima do gás natural","kg",null,{"$f":"$E$67*'FE''s queima combustíveis'!$I$56/1000","v":6.0450202702702713E-3},6.0450202702702711,3.7334195766634359E-4]
[null,"CO₂ eq - queima do GLP","kg",null,{"$f":"$E$68*'FE''s queima combustíveis'!$I$57/1000","v":3.177953513513514},3177.9535135135138,0.19627120060173489]
[]
[null,"Emissões do processo","g CO2 eq/t milho",null,null,{"$f":"SUM(F71:F83)","v":196762.67860272457},{"$f":"(F85/$E$92)*$F$92","v":12.152112042782347}]
[null,"Emissões background","g CO2 eq/t milho",null,null,{"$f":"SUM(F17:F69)","v":99952.289571298737},6.1730783013757407]
[null,"Emissões totais","g CO2 eq/t milho",null,null,{"$f":"F85+F86","v":296714.96817402332},18.325190344158088]
[]
[]
[null,"Etapa industrial - Etanol de milho"]
[null,"Produtos","Unidade","1 t milho","MJ","Alocação"]
[null,"Etanol Anidro","kg",{"$f":"E1GMI!D90*'Dados auxiliares'!$D$15","v":337.20330000000001},{"$f":"D92*'Dados auxiliares'!$F$15","v":9529.6570101528378},{"$f":"E92/SUM($E$92:$E$99)","v":0.58855399072138859}]
[null,"Etanol Hidratado","kg",{"$f":"E1GMI!D91*'Dados auxiliares'!$D$16","v":0},{"$f":"D93*'Dados auxiliares'!$F$16","v":0},{"$f":"E93/SUM($E$92:$E$99)","v":0}]
[null,"Eletricidade","kWh",{"$f":"E1GMI!D92","v":0},{"$f":"CONVERT(D94,\"kWh\",\"MJ\")","v":0},0]
[null,"DDGS","kg base seca",{"$f":"E1GMI!D94*(1-E1GMI!G94)","v":274.7510808000003},{"$f":"D95*'Dados auxiliares'!D35","v":5561.8350343267884},0.34350031713623685]
[null,"DDG","kg base seca",{"$f":"E1GMI!D93*(1-E1GMI!G93)","v":0},{"$f":"D96*'Dados auxiliares'!D34","v":0},0]
[null,"CGM","kg base seca",{"$f":"E1GMI!D95*(1-E1GMI!G95)","v":6.3640500000000033},{"$f":"D97*'Dados auxiliares'!D36","v":118.42224240000006},7.3137871888190693E-3]
[null,"CGF","kg base seca",{"$f":"E1GMI!D96*(1-E1GMI!G96)","v":27.712545000000031},{"$f":"D98*'Dados auxiliares'!D37","v":515.6750373600006},3.184821875858488E-2]
[null,"Óleo de Milho","kg",{"$f":"E1GMI!D97","v":12.522979777777801},{"$f":"D99*'Dados auxiliares'!D38","v":466.05521540977867},2.878368619497066E-2]
[null,"Entradas ","Unidade","1 t milho",null,"g CO2 eq/t milho"]
[null,"Processamento dos grãos"]
[null,"Processamento com secagem","m³",{"$f":"(0.00004878*0.65)","v":3.1707E-5},null,{"$f":"D102*'Dados auxiliares'!$H$77","v":1.018120869909E-6},{"$f":"(F102/$E$92)*$F$92","v":6.2879398532735161E-11}]
[null,"Processamento sem secagem","m³",{"$f":"(0.00004878*0.35)","v":1.7072999999999997E-5},null,{"$f":"D103*'Dados auxiliares'!$H$76","v":2.6994354200100001E-7},1.6671780395127489E-11]
[null,"Insumos"]
[null,"Milho (grãos)","t",1,null,{"$f":"D105*F87","v":296714.96817402332},{"$f":"(F105/$E$92)*$F$92","v":18.325190344158088}]
[null,"Transporte do milho em grãos até a usina","tkm",{"$f":"D105*E1GMI!D89","v":300},null,{"$f":"D106*'Dados auxiliares'!$H$125","v":36025.492902398837},{"$f":"(F106/$E$92)*$F$92","v":2.2249434153634708}]
[null,"CaO","kg",1.2023348147999999,null,{"$f":"D107*'Dados auxiliares'!$H$80","v":1156.3300683742502}]
[null,"Enzimas","kg",0.9,null,{"$f":"D108*'Dados auxiliares'!$H$95","v":1179},7.281533368107948E-2]
[null,"Ácido sulfúrico","kg",0.53,null,{"$f":"D109*'Dados auxiliares'!$H$84","v":57.960725641093177},3.5796688532262078E-3]
[null,"Hidróxido de sódio","kg",2.52,null,{"$f":"D110*'Dados auxiliares'!$H$93","v":1291.3946443238285},7.9756854911279498E-2]
[null,"Amônia","kg",2.0099999999999998,null,{"$f":"D111*'Dados auxiliares'!$H$91","v":6149.2686836062794},0.3797803656415637]
[null,"Levedura","kg",0.31,null,{"$f":"D112*'Dados auxiliares'!$H$94","v":325.40915251108339},2.0097350316345904E-2]
[null,"Zeolita","kg",6.2E-2,null,{"$f":"D113*'Dados auxiliares'!$H$90","v":310.64041816017919},1.9185229604040299E-2]
[null,"Combustíveis e eletricidade"]
[null,"Eletricidade da rede - mix médio EUA","kWh",{"$f":"E1GMI!D100","v":73.75},null,{"$f":"D115*'Dados auxiliares'!$H$109","v":56033.586236349234},{"$f":"(F115/$E$92)*$F$92","v":3.4606482435515793}]
[null,"Diesel B0","kg",{"$f":"(E1GMI!$D$101*(1-0.08)+E1GMI!$D$102*(1-0.1)+E1GMI!$D$103*(1-E1GMI!$G$103)+E1GMI!$D$104*(1-0.2)+E1GMI!$D$105*(1-0.3)+E1GMI!$D$106*(1-1))*('Dados auxiliares'!$D$24)","v":0},null,{"$f":"D116*'Dados auxiliares'!$H$112","v":0},0]
[null,"Biodiesel B100","kg",{"$f":"(E1GMI!$D$101*(0.08)+E1GMI!$D$102*(0.1)+E1GMI!$D$103*(E1GMI!$G$103)+E1GMI!$D$104*(0.2)+E1GMI!$D$105*(0.3)+E1GMI!$D$106*(1))*('Dados auxiliares'!$D$17)","v":0},null,{"$f":"D117*'Dados auxiliares'!$H$113","v":0},0]
[null,"Biometano de terceiros","Nm³",{"$f":"E1GMI!D107","v":0},null,{"$f":"E118*'Dados auxiliares'!$F$18","v":0},0]
[null,"Gás natural","Nm³",{"$f":"E1GMI!D109","v":102.16563412272208},null,{"$f":"D119*'Dados auxiliares'!$H$111","v":12336.375474581393},0.76189762221944812]
[null,"Calor (carvão)","MJ",{"$f":"E1GMI!D110","v":376.86284160000002},null,{"$f":"D120*'Dados auxiliares'!H121","v":35418.926559797757},2.1874817269527753]
[null,"Cavaco de madeira","kg base seca",{"$f":"E1GMI!$D$112*(1-E1GMI!$D$113)","v":0},null,{"$f":"D121*'Dados auxiliares'!$H$119","v":0},0]
[null,"Transporte de cavaco de madeira","tkm",{"$f":"((D121/1000)*E1GMI!$D$114)","v":0},null,{"$f":"D122*'Dados auxiliares'!$H$125","v":0},0]
[null,"Lenha","kg base seca",{"$f":"E1GMI!$D$116*(1-E1GMI!$D$117)","v":0},null,{"$f":"D123*'Dados auxiliares'!$H$120","v":0},0]
[null,"Transporte de lenha","tkm",{"$f":"((D123/1000)*E1GMI!$D$118)","v":0},null,{"$f":"D124*'Dados auxiliares'!$H$125","v":0},0]
[null,"Resíduos florestais","kg base seca",{"$f":"E1GMI!$D$120*(1-E1GMI!$D$121)","v":0},null,0,0]
[null,"Transporte de resíduos florestais","tkm",{"$f":"((D125/1000)*E1GMI!$D$122)","v":0},null,{"$f":"D126*'Dados auxiliares'!$H$125","v":0},0]
[null,"Emissões","Unidade","1 t milho",null,"g CO2 eq/t milho"]
[null,"CO₂ eq - queima do diesel","kg",{"$f":"D116*'FE''s queima combustíveis'!$I$45/1000","v":0},null,{"$f":"D128*1000","v":0},{"$f":"(F128/$E$92)*$F$92","v":0}]
[null,"CO₂ eq - queima do biodiesel","kg",{"$f":"D117*'FE''s queima combustíveis'!$I$46/1000","v":0},null,0,0]
[null,"CO₂ eq - queima do biometano","kg",{"$f":"(D118+E1GMI!D108)*'FE''s queima combustíveis'!$I$39/1000","v":0},null,0,0]
[null,"CO₂ eq - queima da gás natural","kg",{"$f":"D119*'FE''s queima combustíveis'!$I$41*('Dados auxiliares'!$D$25*1000)/1000","v":156.75737677733719},null,156757.37677733719,9.6813746369910998]
[null,"CO₂ eq - queima dos cavacos de madeira","kg",{"$f":"D121*'FE''s queima combustíveis'!$I$35/1000","v":0},null,0,0]
[null,"CO₂ eq - queima da lenha","kg",{"$f":"D123*'FE''s queima combustíveis'!$I$36/1000","v":0},null,0,0]
[null,"CO₂ eq - queima dos resíduos florestais","kg",{"$f":"D125*'FE''s queima combustíveis'!$I$37/1000","v":0},null,0,0]
[]
[null,"Emissões do processo","g CO2 eq/t milho",null,null,{"$f":"SUM(F128:F134)","v":156757.37677733719},9.6813746369910998]
[null,"Emissões background","g CO2 eq/t milho",null,null,{"$f":"SUM(F102:F126)","v":446999.35304105544},27.606791388389404]
[null,"Emissões totais","g CO2 eq/t milho",null,null,{"$f":"F136+F137","v":603756.72981839266},37.288166025380505]
[]
[]
[null,"Etapa distribuição"]
[null,"Sistema logiístico rodoviário + marítimo + ferroviário"]
[null,"Parâmetro","Unidade","Etanol anidro","Etanol hidratado"]
[null,"Massa","kg/t milho",{"$f":"$D$92*E1GMI!$D$128","v":337.20330000000001},{"$f":"$D$93*E1GMI!$E$128","v":0}]
[null,"Distância de transporte rodoviário","km",600,600]
[null,"Transporte rodoviário","tkm/t milho",{"$f":"D144/1000*D145","v":202.32198000000002},{"$f":"E144/1000*E145","v":0}]
[null,"Distância de transporte marítimo","km",13000,13000]
[null,"Transporte marítimo","tkm/t milho",{"$f":"D144/1000*D147","v":4383.6429000000007},{"$f":"E144/1000*E147","v":0}]
[null,"Distância de transporte ferroviário","km",1400,1400]
[null,"Transporte ferroviário","tkm/t milho",{"$f":"D144/1000*D149","v":472.08462000000003},{"$f":"E144/1000*E149","v":0}]
[null,"Emissões","g CO2 eq/t milho",{"$f":"D146*'Dados auxiliares'!$H$126+D148*'Dados auxiliares'!$H$127+D150*'Dados auxiliares'!$H$129","v":52144.113014831622},{"$f":"E146*'Dados auxiliares'!$H$126+E148*'Dados auxiliares'!$H$127+E150*'Dados auxiliares'!$H$129","v":0}]
[null,"Emissões","g CO2 eq/MJ",{"$f":"D151/$E$92","v":5.4717722746241133},{"$f":"E151/$E$93","v":{"$error":"#DIV/0!"}}]
[]
[null,"Emissões totais","g CO2 eq/MJ",{"$f":"D152","v":5.4717722746241133},{"$f":"E152","v":{"$error":"#DIV/0!"}}]

{"sheet":"Biodiesel","index":14,"n_rows":212,"n_cols":19,"rows_kept":212,"cut":false,"hidden":false,"merged":[[165,1,165,7],[135,1,135,7],[25,1,25,2],[201,2,201,4],[136,1,136,7],[185,2,185,4],[189,2,189,4],[27,3,27,4],[40,12,40,18],[36,12,36,18],[45,12,45,18],[125,2,125,4],[129,2,129,4],[92,1,92,7],[98,1,98,7],[117,2,117,4],[113,2,113,4],[121,2,121,4],[48,12,48,18],[23,1,23,7],[3,2,3,7],[5,2,5,7],[7,2,7,7],[9,2,9,3],[12,2,12,3],[14,3,14,5],[23,12,23,18],[207,1,207,7],[66,12,66,18],[73,12,73,18],[24,12,24,18],[40,1,40,7],[45,1,45,7],[91,1,91,7],[24,1,24,7],[66,1,66,7],[73,1,73,7],[36,1,36,7],[48,1,48,7],[170,1,170,7],[193,2,193,4],[197,2,197,4]]}
[]
[null,"Produção de Biodiesel de Soja"]
[]
[null,"Nome da Usina:","Usina Hipotética"]
[]
[null,"CNPJ","00.000.000/0000-00"]
[]
[null,"Responsável pelo preenchimento:","GT ACV RenovaCalc"]
[]
[null,"Telefone :","(00) 0000-0000"]
[]
[]
[null,null,"Biodiesel"]
[]
[null,"Intensidade de Carbono\n(g CO₂eq/MJ)",{"$f":"SUM(C17:C21)","v":25.115725284794635},"Nota de Eficiência Energético-Ambiental\n(g CO₂eq/MJ)",null,null,{"$f":"G18-C15","v":61.384274715205365}]
[]
[null,"agrícola",{"$f":"_Biodiesel!C5","v":18.716396625256085},null,null,null,"Fóssil de referência: Diesel"]
[null,"industrial - extração do óleo",{"$f":"_Biodiesel!C6","v":2.3819249156738671},null,null,null,86.5]
[null,"industrial - transesterificação",{"$f":"_Biodiesel!C7","v":2.2883786272974085},null,null,null,"Redução de emissões"]
[null,"transporte",{"$f":"_Biodiesel!C8","v":1.2900245761670559},null,null,null,{"$f":"(G18-C15)/G18","v":0.70964479439543771}]
[null,"uso",{"$f":"_Biodiesel!C9","v":0.43900054040021891}]
[]
[]
[null,"Fornecedores - Dados consolidados",null,null,null,null,null,null,null,null,null,null,"Default - Soja"]
[null,"Informações gerais",null,null,null,null,null,null,null,null,null,null,"Informações gerais"]
[null,"Houve supressão de vegetação nativa a partir de 26 de dezembro de 2017?",null,"Não"]
[]
[null,null,"Número de registro no CAR","Cadastro de fornecedores"]
[]
[null,null,"Situação do CAR","Ativo"]
[]
[null,null,"Sistema de plantio","Convencional"]
[null,null,"Área total",1,"ha"]
[]
[null,null,"Produção total (base úmida)",{"$f":"2.97930010943612","v":2.97930010943612},"t soja","Umidade",0.09]
[]
[null,"Tipo de preenchimento",null,null,null,null,null,null,null,null,null,null,"Tipo de preenchimento"]
[null,"Tipo de dados forneceidos pelos fornecedores:",null,null,null,null,null,null,null,null,null,null,null,null,"Padrão"]
[null,"Em função das informações de cada fornecedor"]
[]
[null,"Corretivos",null,null,null,null,null,null,null,null,null,null,"Corretivos"]
[null,null,"Calcário calcítico",0,"kg/t soja",null,null,null,null,null,null,null,null,"Calcário calcítico",0,"kg/t soja"]
[null,null,"Calcário dolomítico",249.02339519997128,"kg/t soja",null,null,null,null,null,null,null,null,"Calcário dolomítico",423.3,"kg/t soja"]
[null,null,"Gesso",53.298851923114903,"kg/t soja",null,null,null,null,null,null,null,null,"Gesso",90.6,"kg/t soja"]
[]
[null,"Sementes",null,null,null,null,null,null,null,null,null,null,"Sementes"]
[null,null,"Sementes",17.389904788056221,"kg/t soja",null,null,null,null,null,null,null,null,"Sementes",29.6,"kg/t soja"]
[]
[null,"Fertilizantes Sintéticos",null,null,null,null,null,null,null,null,null,null,"Fertilizantes Sintéticos"]
[null,null,"Ureia",2.803282775428722,"kg N/t soja",null,null,null,null,null,null,null,null,"Ureia",4.8,"kg N/t soja"]
[null,null,"Fosfato Monoamônico (MAP)",0,"kg N/t soja",null,null,null,null,null,null,null,null,"Fosfato Monoamônico (MAP)",0,"kg N/t soja"]
[null,null,"Fosfato Monoamônico (MAP)",0,"kg P₂O₅/t soja",null,null,null,null,null,null,null,null,"Fosfato Monoamônico (MAP)",0,"kg P₂O₅/t soja"]
[null,null,"Fosfato diamônico (DAP)",0,"kg N/t soja",null,null,null,null,null,null,null,null,"Fosfato diamônico (DAP)",0,"kg N/t soja"]
[null,null,"Fosfato diamônico (DAP)",0,"kg P₂O₅/t soja",null,null,null,null,null,null,null,null,"Fosfato diamônico (DAP)",0,"kg P₂O₅/t soja"]
[null,null,"Nitrato de amônio",0,"kg N/t soja",null,null,null,null,null,null,null,null,"Nitrato de amônio",0,"kg N/t soja"]
[null,null,"Solução de nitrato de amônio e ureia (UAN)",0,"kg N/t soja",null,null,null,null,null,null,null,null,"Solução de nitrato de amônio e ureia (UAN)",0,"kg N/t soja"]
[null,null,"Amônia anidra",0,"kg N/t soja",null,null,null,null,null,null,null,null,"Amônia anidra",0,"kg N/t soja"]
[null,null,"Sulfato de amônio",0,"kg N/t soja",null,null,null,null,null,null,null,null,"Sulfato de amônio",0,"kg N/t soja"]
[null,null,"Nitrato de amônio e cálcio (CAN)",0,"kg N/t soja",null,null,null,null,null,null,null,null,"Nitrato de amônio e cálcio (CAN)",0,"kg N/t soja"]
[null,null,"Superfosfato simples (SSP)",27.234071010911354,"kg P₂O₅/t soja",null,null,null,null,null,null,null,null,"Superfosfato simples (SSP)",46.3,"kg P₂O₅/t soja"]
[null,null,"Superfosfato triplo (TSP)",0,"kg P₂O₅/t soja",null,null,null,null,null,null,null,null,"Superfosfato triplo (TSP)",0,"kg P₂O₅/t soja"]
[null,null,"Cloreto de potássio (KCl)",32.695663276764343,"kg K₂O/t soja",null,null,null,null,null,null,null,null,"Cloreto de potássio (KCl)",55.6,"kg K₂O/t soja"]
[null,"Outros","especificar",0,"kg N/t soja",null,null,null,null,null,null,null,"Outros","especificar",0,"kg N/t soja"]
[null,"Outros","especificar",0,"kg P₂O₅/t soja",null,null,null,null,null,null,null,"Outros","especificar",0,"kg P₂O₅/t soja"]
[null,"Outros","especificar",0,"kg K₂O/t soja",null,null,null,null,null,null,null,"Outros","especificar",0,"kg K₂O/t soja"]
[]
[null,"              Fertilizantes Orgânicos/Organominerais",null,null,null,null,null,null,null,null,null,null,"              Fertilizantes Orgânicos/Organominerais"]
[null,"Outros","especificar",0,"kg/t soja","Concentração de N",null,"g N/kg",null,null,null,null,"Outros","especificar",0,"kg/t soja","Concentração de N",null,"g N/kg"]
[null,"Outros","especificar",0,"kg/t soja","Concentração de N",null,"g N/kg",null,null,null,null,"Outros","especificar",0,"kg/t soja","Concentração de N",null,"g N/kg"]
[null,"Outros","especificar",0,"kg/t soja","Concentração de N",null,"g N/kg",null,null,null,null,"Outros","especificar",0,"kg/t soja","Concentração de N",null,"g N/kg"]
[null,"Outros","especificar",0,"kg/t soja","Concentração de N",null,"g N/kg",null,null,null,null,"Outros","especificar",0,"kg/t soja","Concentração de N",null,"g N/kg"]
[null,"Outros","especificar",0,"kg/t soja","Concentração de N",null,"g N/kg",null,null,null,null,"Outros","especificar",0,"kg/t soja","Concentração de N",null,"g N/kg"]
[]
[null,"              Combustíveis e eletricidade da rede",null,null,null,null,null,null,null,null,null,null,"              Combustíveis e eletricidade da rede"]
[null,null,"Diesel - B8",10.7004997244248,"L/t soja",null,null,null,null,null,null,null,null,"Diesel - B8",18.2,"L/t soja"]
[null,null,"Diesel - B10",0,"L/t soja",null,null,null,null,null,null,null,null,"Diesel - B10",0,"L/t soja"]
[null,null,"Diesel - BX",0,"L/t soja","Teor de biodiesel na mistura",0.11,null,null,null,null,null,null,"Diesel - BX",0,"L/t soja","Teor de biodiesel na mistura",0.11]
[null,null,"Diesel - B20",0,"L/t soja",null,null,null,null,null,null,null,null,"Diesel - B20",0,"L/t soja"]
[null,null,"Diesel - B30",0,"L/t soja",null,null,null,null,null,null,null,null,"Diesel - B30",0,"L/t soja"]
[null,null,"Biodiesel - B100",0,"L/t soja",null,null,null,null,null,null,null,null,"Biodiesel - B100",0,"L/t soja"]
[null,null,"Gasolina C",0,"L/t soja",null,null,null,null,null,null,null,null,"Gasolina C",0,"L/t soja"]
[null,null,"Etanol hidratado",0,"L/t soja",null,null,null,null,null,null,null,null,"Etanol hidratado",0,"L/t soja"]
[null,null,"Biometano de terceiros",0,"Nm³/t soja",null,null,null,null,null,null,null,null,"Biometano de terceiros",0,"Nm³/t soja"]
[null,null,"Biometano próprio",0,"Nm³/t soja",null,null,null,null,null,null,null,null,"Biometano próprio",0,"Nm³/t soja"]
[null,null,"Eletricidade da rede - mix médio",0,"kWh/t soja",null,null,null,null,null,null,null,null,"Eletricidade da rede - mix médio",0,"kWh/t soja"]
[null,null,"Eletricidade - PCH",0,"kWh/t soja",null,null,null,null,null,null,null,null,"Eletricidade - PCH",0,"kWh/t soja"]
[null,null,"Eletricidade - biomassa",0,"kWh/t soja",null,null,null,null,null,null,null,null,"Eletricidade - biomassa",0,"kWh/t soja"]
[null,null,"Eletricidade - eólica",0,"kWh/t soja",null,null,null,null,null,null,null,null,"Eletricidade - eólica",0,"kWh/t soja"]
[null,null,"Eletricidade - solar",0,"kWh/t soja",null,null,null,null,null,null,null,null,"Eletricidade - solar",0,"kWh/t soja"]
[]
[]
[null,"Fase industrial - extração do óleo de soja"]
[null,"Processamento e rendimentos"]
[null,null,"Processamento efetivo - soja",1,"t soja","Umidade",0.09]
[null,null,"Distância de transporte - soja",334.92499999999995,"km"]
[null,null,"Rendimento Óleo",191.93856,"kg/t soja"]
[null,null,"Rendimento Farelo",800.38390000000004,"kg/t soja"]
[]
[null,"Combustíveis e eletricidade"]
[null,null,"Eletricidade da rede - mix médio",34.548944337330752,"kWh/t soja"]
[null,null,"Eletricidade - PCH",0,"kWh/t soja"]
[null,null,"Eletricidade - biomassa",0,"kWh/t soja"]
[null,null,"Eletricidade - eólica",0,"kWh/t soja"]
[null,null,"Eletricidade - solar",0,"kWh/t soja"]
[null,null,"Diesel - B8",0.114249154554665,"L/t soja"]
[null,null,"Diesel - B10",0,"L/t soja"]
[null,null,"Diesel - BX",0,"L/t soja","Teor de biodiesel na mistura",0.11]
[null,null,"Diesel - B20",0,"L/t soja"]
[null,null,"Diesel - B30",0,"L/t soja"]
[null,null,"Biodiesel - B100",0,"L/t soja"]
[null,null,"Biometano de terceiros",0,"Nm³/t soja"]
[null,null,"Biometano próprio",0,"Nm³/t soja"]
[null,null,"Gás natural",0,"Nm³/t soja"]
[null,null,"Cavaco de madeira"]
[null,null,"Quantidade (base úmida)",86.372360843326888,"kg/t soja"]
[null,null,"Umidade",0.35]
[null,null,"Distância de transporte",150,"km"]
[null,null," Lenha"]
[null,null,"Quantidade (base úmida)",null,"kg/t soja"]
[null,null,"Umidade"]
[null,null,"Distância de transporte",null,"km"]
[null,null,"Resíduos florestais"]
[null,null,"Quantidade (base úmida)",null,"kg/t soja"]
[null,null,"Umidade"]
[null,null,"Distância de transporte",null,"km"]
[null,null,"Bagaço de cana"]
[null,null,"Quantidade (base úmida)",null,"kg/t soja"]
[null,null,"Umidade"]
[null,null,"Distância de transporte",null,"km"]
[null,null,"Palha de cana"]
[null,null,"Quantidade (base úmida)",null,"kg/t soja"]
[null,null,"Umidade"]
[null,null,"Distância de transporte",null,"km"]
[]
[]
[null,"Fase industrial - produção do biodiesel"]
[null,"Processamento e rendimentos"]
[null,null,null,"Óleo de soja"]
[null,null,"Quantidade de óleo de soja processado",1,"mil t óleo/ano"]
[null,null,"Distância de transporte - óleo de soja",116.2,"km"]
[null,null,null,"Óleo de palma"]
[null,null,"Quantidade de óleo de palma processado",null,"mil t óleo/ano"]
[null,null,"Distância de transporte - óleo de palma",null,"km"]
[null,null,null,"Óleo de algodão"]
[null,null,"Quantidade de óleo de algodão processado",null,"mil t óleo/ano"]
[null,null,"Distância de transporte - óleo de algodão",null,"km"]
[null,null,null,"Outros óleos vegetais"]
[null,null,"Quantidade de outros óleos vegetais processado",null,"mil t óleo/ano"]
[null,null,"Distância de transporte - outros óleos vegetais",null,"km"]
[null,null,null,"Óleo de fritura usado"]
[null,null,"Quantidade de óleo de fritura usado processado",null,"mil t óleo/ano"]
[null,null,"Distância de transporte - óleo de fritura usado ",null,"km"]
[null,null,null,"Gordura anima"]
[null,null,"Quantidade de gordura animal processada",null,"mil t gordura animal/ano"]
[null,null,"Distância de transporte - gordura animal",null,"km"]
[null,null,null,"Outros óleos residuais"]
[null,null,"Quantidade de outros óleos residuais processado",null,"mil t óleo/ano"]
[null,null,"Distância de transporte - outros óleos residuais",null,"km"]
[]
[]
[null,null,"Rota de produção","Etílica"]
[null,null,"Produção de Biodiesel",1067.0454545454545,"m³/ano"]
[null,null,"Produção de Glicerina purificada",118,"t/ano"]
[null,null,"Produção de  Glicerina bruta",0,"t/ano"]
[]
[null,"Insumos"]
[null,null,"Metanol",0,"t/ano",null,null,null,{"$f":"IF(Biodiesel!D161=\"Metílica\",103.192488262911,0)","v":0}]
[null,null,"Metilato de sódio",0,"t/ano",null,null,null,{"$f":"IF(Biodiesel!D161=\"Metílica\",21.8779342723005,0)","v":0}]
[null,null,"Etanol anidro",125.7545272,"t/ano",null,null,null,{"$f":"IF(Biodiesel!D161=\"Etílica\",125.7545272,0)","v":125.7545272}]
[null,null,"Hidróxido de sódio",8.0482897384305794,"t/ano",null,null,null,{"$f":"IF(Biodiesel!D161=\"Metílica\",1.407789770061,IF(Biodiesel!D161=\"Etílica\",8.04828973843058,\"0\"))","v":8.0482897384305794}]
[null,"Combustíveis e energia"]
[null,null,"Eletricidade da rede - mix médio",40.927480000000003,"MWh/ano"]
[null,null,"Eletricidade - PCH",0,"MWh/ano"]
[null,null,"Eletricidade - biomassa",0,"MWh/ano"]
[null,null,"Eletricidade - eólica",0,"MWh/ano"]
[null,null,"Eletricidade - solar",0,"MWh/ano"]
[null,null,"Diesel - B8",6.1971830985915501E-3,"m³/ano"]
[null,null,"Diesel - B10",0,"m³/ano"]
[null,null,"Diesel - BX",0,"m³/ano","Teor de biodiesel na mistura",0.11]
[null,null,"Diesel - B20",0,"m³/ano"]
[null,null,"Diesel - B30",0,"m³/ano"]
[null,null,"Biodiesel - B100",0,"m³/ano"]
[null,null,"Biometano de terceiros",0,"Nm³/ano"]
[null,null,"Biometano próprio",0,"Nm³/ano"]
[null,null,"Gás natural",0,"Nm³/ano"]
[null,null,"Cavaco de madeira"]
[null,null,"Quantidade (base úmida)",68.866784037558688,"t/ano"]
[null,null,"Umidade",0.35]
[null,null,"Distância de transporte",150,"km"]
[null,null," Lenha"]
[null,null,"Quantidade (base úmida)",null,"t/ano"]
[null,null,"Umidade"]
[null,null,"Distância de transporte",null,"km"]
[null,null,"Resíduos florestais"]
[null,null,"Quantidade (base úmida)",null,"t/ano"]
[null,null,"Umidade"]
[null,null,"Distância de transporte",null,"km"]
[null,null,"Bagaço de cana"]
[null,null,"Quantidade (base úmida)",null,"t/ano"]
[null,null,"Umidade"]
[null,null,"Distância de transporte",null,"km"]
[null,null,"Palha de cana"]
[null,null,"Quantidade (base úmida)",null,"t/ano"]
[null,null,"Umidade"]
[null,null,"Distância de transporte",null,"km"]
[]
[]
[null,"Distribuição do biodiesel"]
[]
[null,null,"Rodoviário",1,"%"]
[null,null,"Rodoviário + Dutoviário",0,"%"]
[null,null,"Rodoviário + Ferroviário",0,"%"]

{"sheet":"_Biodiesel","index":15,"n_rows":217,"n_cols":81,"rows_kept":217,"cut":false,"hidden":false,"merged":[[189,1,189,5],[11,1,11,5],[2,2,2,3],[3,2,3,3],[1,1,1,5],[73,1,73,5],[124,1,124,5]]}
[]
[null,"Emissões totais - g CO₂ eq"]
[null,null,"Biodiesel"]
[null,"Total",{"$f":"SUM(C5:C9)","v":25.115725284794635}]
[null,"Agrícola",{"$f":"G71","v":18.716396625256085},{"$f":"C5/$C$4","v":0.74520629657417137}]
[null,"Industrial - extração do óleo",{"$f":"G120-G83","v":2.3819249156738671},{"$f":"C6/$C$4","v":9.4837990488608873E-2}]
[null,"Industrial - transesterificação",{"$f":"G186-G132","v":2.2883786272974085},{"$f":"C7/$C$4","v":9.1113380216928108E-2}]
[null,"Transporte",{"$f":"$D$217","v":1.2900245761670559},5.1363222106432752E-2]
[null,"Uso",{"$f":"'FE''s queima combustíveis'!$I$6","v":0.43900054040021891},1.7479110613858925E-2]
[]
[]
[null,"Etapa agrícola - Soja"]
[null,"Produto",null,"1 ha médio","1 t soja"]
[null,"Produção de soja","kg",{"$f":"(Biodiesel!D35*1000)/Biodiesel!D33","v":2979.3001094361198},1000]
[null,"Entradas da natureza",null,"1 ha médio","1 t soja","g CO2 eq/t soja"]
[null,"Ocupação total","ha",1,{"$f":"(D16*E14)/D14","v":0.33564930126803039}]
[null,"Entradas da tecnosfera",null,"1 ha médio","1 t soja","g CO2 eq/t soja"]
[null,"Sementes de soja","kg",null,{"$f":"Biodiesel!D47","v":17.389904788056221},{"$f":"E18*'Dados auxiliares'!$H$72","v":31343.871996755483},{"$f":"(((F18*$F$76)/$D$76)*1000*$F$127)/$E$127","v":1.5169479303956868}]
[null,"Fertilizantes e corretivos"]
[null,"Calcário calcítico","kg",null,{"$f":"Biodiesel!D42","v":0},{"$f":"E20*'Dados auxiliares'!$H$48","v":0},{"$f":"(((F20*$F$76)/$D$76)*1000*$F$127)/$E$127","v":0}]
[null,"Calcário dolomítico","kg",null,{"$f":"Biodiesel!D43","v":249.02339519997128},{"$f":"E21*'Dados auxiliares'!$H$49","v":9172.9356338974012},0.44394214368071333]
[null,"Gesso","kg",null,{"$f":"Biodiesel!D44","v":53.298851923114903},{"$f":"E22*'Dados auxiliares'!$H$50","v":150.77575392799244},7.2970872232566856E-3]
[null,"N - Ureia","kg N",null,{"$f":"Biodiesel!D50","v":2.803282775428722},{"$f":"E23*'Dados auxiliares'!$H$51","v":9001.9415549931291},0.43566655111414715]
[null,"N - Fosfato monoamônico (MAP)","kg N",null,{"$f":"Biodiesel!D51","v":0},{"$f":"E24*'Dados auxiliares'!$H$52","v":0},0]
[null,"P₂O₅ - Fosfato monoamônico (MAP)","kg P₂O₅",null,{"$f":"Biodiesel!D52","v":0},{"$f":"E25*'Dados auxiliares'!$H$53","v":0},0]
[null,"N - Fosfato diamônico (DAP)","kg N",null,{"$f":"Biodiesel!D53","v":0},{"$f":"E26*'Dados auxiliares'!$H$54","v":0},0]
[null,"P₂O₅ - Fosfato diamônico (DAP)","kg P₂O₅",null,{"$f":"Biodiesel!D54","v":0},{"$f":"E27*'Dados auxiliares'!$H$55","v":0},0]
[null,"N - Nitrato de amônio","kg N",null,{"$f":"Biodiesel!D55","v":0},{"$f":"E28*'Dados auxiliares'!$H$56","v":0},0]
[null,"N - Solução de nitrato de amônio e ureia (UAN)","kg N",null,{"$f":"Biodiesel!D56","v":0},{"$f":"E29*'Dados auxiliares'!$H$57","v":0},0]
[null,"N - Amônia anidra","kg N",null,{"$f":"Biodiesel!D57","v":0},{"$f":"E30*'Dados auxiliares'!$H$58","v":0},0]
[null,"N - Sulfato de amônio","kg N",null,{"$f":"Biodiesel!D58","v":0},{"$f":"E31*'Dados auxiliares'!$H$59","v":0},0]
[null,"N - Nitrato de amônio e cálcio (CAN)","kg N",null,{"$f":"Biodiesel!D59","v":0},{"$f":"E32*'Dados auxiliares'!$H$60","v":0},0]
[null,"P₂O₅ - Superfosfato simples (SSP)","kg P₂O₅",null,{"$f":"Biodiesel!D60","v":27.234071010911354},{"$f":"E33*'Dados auxiliares'!$H$62","v":64480.922995347035},3.1206802624104784]
[null,"P₂O₅ - Superfosfato triplo (TSP)","kg P₂O₅",null,{"$f":"Biodiesel!D61","v":0},{"$f":"E34*'Dados auxiliares'!$H$63","v":0},0]
[null,"K₂O - Cloreto de potássio (KCl)","kg K₂O",null,{"$f":"Biodiesel!D62","v":32.695663276764343},{"$f":"E35*'Dados auxiliares'!H$64","v":14883.319671825375},0.72030733713849915]
[null,"N - Outros","kg N",null,{"$f":"Biodiesel!D63","v":0},{"$f":"E36*'Dados auxiliares'!H$65","v":0},0]
[null,"P₂O₅ - Outros","kg P₂O₅",null,{"$f":"Biodiesel!D64","v":0},{"$f":"E37*'Dados auxiliares'!H$66","v":0},0]
[null,"K₂O - Outros","kg K₂O",null,{"$f":"Biodiesel!D65","v":0},{"$f":"E38*'Dados auxiliares'!H$67","v":0},0]
[null,"Outros Fertilizantes Orgânicos/Organominerais","kg",null,{"$f":"Biodiesel!D68+Biodiesel!D69+Biodiesel!D70+Biodiesel!D71+Biodiesel!D72","v":0},0]
[null,"Agroquímicos"]
[null,"Pesticidas, geral","kg",null,{"$f":"0.000674630945913558*1000","v":0.6746309459135581},{"$f":"E41*'Dados auxiliares'!$H$70","v":7247.2373648256971},{"$f":"(((F41*$F$76)/$D$76)*1000*$F$127)/$E$127","v":0.35074421318453025}]
[null,"Glifosato","kg",null,{"$f":"0.00086569230646321*1000","v":0.86569230646321005},{"$f":"E42*'Dados auxiliares'!$H$68","v":9960.4016469307826},{"$f":"(((F42*$F$76)/$D$76)*1000*$F$127)/$E$127","v":0.48205310006962349}]
[null,"2,4-D","kg",null,{"$f":"0.0000652020791723256*1000","v":6.5202079172325594E-2},{"$f":"E43*'Dados auxiliares'!$H$69","v":331.3355298709476},{"$f":"(((F43*$F$76)/$D$76)*1000*$F$127)/$E$127","v":1.6035630389133804E-2}]
[null,"Combustíveis e eletricidade"]
[null,"Diesel B0","kg",null,{"$f":"(Biodiesel!$D$75*(1-0.08)+Biodiesel!$D$76*(1-0.1)+Biodiesel!$D$77*(1-Biodiesel!$G$77)+Biodiesel!$D$78*(1-0.2)+Biodiesel!$D$79*(1-0.3)+Biodiesel!$D$80*(1-1))*('Dados auxiliares'!$D$24)","v":8.2693461870354863},{"$f":"E45*'Dados auxiliares'!$H$112","v":4598.8257549141317},{"$f":"(((F45*$F$76)/$D$76)*1000*$F$127)/$E$127","v":0.22256915839528388}]
[null,"Biodiesel B100","kg",null,{"$f":"(Biodiesel!$D$75*(0.08)+Biodiesel!$D$76*(0.1)+Biodiesel!$D$77*(Biodiesel!$G$77)+Biodiesel!$D$78*(0.2)+Biodiesel!$D$79*(0.3)+Biodiesel!$D$80*(1))*('Dados auxiliares'!$D$17)","v":0.75331518059950597},{"$f":"E46*'Dados auxiliares'!$H$113","v":743.43931982175695},3.5980198543917277E-2]
[null,"Gasolina A","kg",null,{"$f":"Biodiesel!$D$81*(1-'FE''s queima combustíveis'!$D$16)*'Dados auxiliares'!$D$22","v":0},{"$f":"E47*'Dados auxiliares'!$H$116","v":0},0]
[null,"Etanol anidro","kg",null,{"$f":"Biodiesel!$D$81*('FE''s queima combustíveis'!$D$16)*'Dados auxiliares'!$D$15","v":0},{"$f":"E48*'Dados auxiliares'!$H$117","v":0},0]
[null,"Etanol hidratado","kg",null,{"$f":"Biodiesel!$D$82*'Dados auxiliares'!$D$16","v":0},{"$f":"E49*'Dados auxiliares'!$H$118","v":0},0]
[null,"Biometano de terceiros","Nm³",null,{"$f":"Biodiesel!D83","v":0},{"$f":"E50*'Dados auxiliares'!$F$18","v":0},0]
[null,"Eletricidade da rede - mix médio","kWh",null,{"$f":"Biodiesel!D85","v":0},{"$f":"E51*'Dados auxiliares'!$H$103","v":0},0]
[null,"Eletricidade - PCH","kWh",null,{"$f":"Biodiesel!D86","v":0},{"$f":"E52*'Dados auxiliares'!$H$104","v":0},0]
[null,"Eletricidade - biomassa","kWh",null,{"$f":"Biodiesel!D87","v":0},{"$f":"E53*'Dados auxiliares'!$H$105","v":0},0]
[null,"Eletricidade - eólica","kWh",null,{"$f":"Biodiesel!D88","v":0},{"$f":"E54*'Dados auxiliares'!$H$106","v":0},0]
[null,"Eletricidade - solar","kWh",null,{"$f":"Biodiesel!D89","v":0},{"$f":"E55*'Dados auxiliares'!$H$107","v":0},0]
[null,"Emissões",null,"1 ha médio","1 t soja","g CO2 eq/t soja"]
[null,"N2O - Fertilizantes sintéticos","kg",{"$f":"'_Emissões Agrícolas'!$J$54","v":0.17389683772198755},{"$f":"D57*$E$16","v":5.8368352074105193E-2},{"$f":"E57*1000*'Dados auxiliares'!$D$9","v":15467.613299637875},{"$f":"(((F57*$F$76)/$D$76)*1000*$F$127)/$E$127","v":0.74858536895107508}]
[null,"N2O - Fertilizantes organominerais","kg",{"$f":"'_Emissões Agrícolas'!$J$58","v":0},{"$f":"D58*$E$16","v":0},{"$f":"E58*1000*'Dados auxiliares'!$D$9","v":0},0]
[null,"N2O - Resíduos culturais","kg",{"$f":"'_Emissões Agrícolas'!$J$62","v":0.7887980394500812},0.26475951078301202,{"$f":"E59*1000*'Dados auxiliares'!$D$9","v":70161.270357498186},3.3955917722531588]
[null,"CO2 - Calcário ","kg",null,{"$f":"$E$20*'_Emissões Agrícolas'!$E$79+$E$21*'_Emissões Agrícolas'!$E$80","v":118.70115171198631},{"$f":"E60*1000","v":118701.15171198631},5.7447741760724744]
[null,"CO2 - Uréia","kg",null,{"$f":"$E$23*'_Emissões Agrícolas'!$E$81","v":4.3739163871937512},{"$f":"E61*1000","v":4373.9163871937508},0.21168423007738651]
[null,"CO₂ eq - queima do diesel","kg",null,{"$f":"$E$45*'FE''s queima combustíveis'!$I$53/1000","v":26.095327682042271},{"$f":"E62*1000","v":26095.327682042272},1.2629343727657167]
[null,"CO₂ eq - queima do biodiesel","kg",null,{"$f":"$E$46*'FE''s queima combustíveis'!$I$54/1000","v":1.2461374972627478E-2},{"$f":"E63*1000","v":12.461374972627478},6.0309259100370892E-4]
[null,"CO₂ eq - queima da gasolina A","kg",null,{"$f":"$E$47*'FE''s queima combustíveis'!$I$9/1000","v":0},0,0]
[null,"CO₂ eq - queima do etanol anidro","kg",null,{"$f":"$E$48*'FE''s queima combustíveis'!$I$7/1000","v":0},0,0]
[null,"CO₂ eq - queima do etanol hidratado","kg",null,{"$f":"$E$49*'FE''s queima combustíveis'!$I$8/1000","v":0},0,0]
[null,"CO₂ eq - queima do biometano","kg",null,{"$f":"($E$50+Biodiesel!$D$84)*'FE''s queima combustíveis'!$I$55/1000","v":0},0,0]
[]
[null,"Emissões do processo","g CO2 eq/t soja",null,null,{"$f":"SUM(F57:F67)","v":234811.74081333101},{"$f":"(((F69*$F$76)/$D$76)*1000*$F$127)/$E$127","v":11.364173012710815}]
[null,"Emissões background","g CO2 eq/t soja",null,null,{"$f":"SUM(F18:F55)","v":151915.00722310971},{"$f":"(((F70*$F$76)/$D$76)*1000*$F$127)/$E$127","v":7.3522236125452682}]
[null,"Emissões totais","g CO2 eq/t soja",null,null,{"$f":"F69+F70","v":386726.74803644069},{"$f":"(((F71*$F$76)/$D$76)*1000*$F$127)/$E$127","v":18.716396625256085}]
[]
[]
[null,"Etapa industrial - Extração do óleo de soja"]
[null,"Produtos","Unidade","1 t soja","MJ","Alocação"]
[null,"Óleo de soja","kg",{"$f":"Biodiesel!D96","v":191.93856},{"$f":"D76*'Dados auxiliares'!$D$39","v":6533.5885823999997},{"$f":"E76/SUM($E$76:$E$77)","v":0.34643486623983888}]
[null,"Farelo de soja","kg",{"$f":"Biodiesel!D97","v":800.38390000000004},{"$f":"D77*'Dados auxiliares'!$D$40","v":12325.912060000001},{"$f":"E77/SUM($E$76:$E$77)","v":0.65356513376016101}]
[null,"Entradas ","Unidade","1 t soja",null,"g CO2 eq/t soja",null,null,null,null,null,null,null,null,null,null,null,null,null,null,null,null,null,null,null,null,null,null,null,null,null,null,null,null,null,null,null,null,null,null,null,null,null,null,null,null,null,null,null,null,null,null,null,null,null,null,null,null,null,null,null,null,null,null,null,null,null,null,null,null,null,null,null,null,null,null,null,null,{"$f":"(D76+D77)*F76","v":343.77509869688788}]
[null,"Processamento dos grãos"]
[null,"Processamento com secagem","m³",{"$f":"0.00004878*0.6","v":2.9267999999999998E-5},null,{"$f":"D80*'Dados auxiliares'!$H$77","v":9.3980387991599993E-7},{"$f":"(((F80*$F$76)/$D$76)*1000*$F$127)/$E$127","v":4.5483645120934166E-11}]
[null,"Processamento sem secagem","m³",{"$f":"0.00004878*0.4","v":1.9511999999999999E-5},null,{"$f":"D81*'Dados auxiliares'!$H$76","v":3.0850690514400005E-7},{"$f":"(((F81*$F$76)/$D$76)*1000*$F$127)/$E$127","v":1.4930794488932718E-11}]
[null,"Insumos"]
[null,"Soja (grãos)","t",1,null,{"$f":"D83*F71","v":386726.74803644069},{"$f":"(((F83*$F$76)/$D$76)*1000*$F$127)/$E$127","v":18.716396625256085},null,null,null,null,null,null,null,null,null,null,null,null,null,null,null,null,null,null,null,null,null,null,null,null,null,null,null,null,null,null,null,null,null,null,null,null,null,null,null,null,null,null,null,null,null,null,null,null,null,null,null,null,null,null,null,null,null,null,null,null,null,null,null,null,null,null,null,null,null,null,null,{"$f":"CA78*F122","v":270497.74904800294},{"$f":"(CA78*CC153)/1000","v":{"$error":"#REF!"}}]
[null,"Transporte da soja em grãos até a usina","tkm",{"$f":"D83*Biodiesel!$D$95","v":334.92499999999995},null,{"$f":"D84*'Dados auxiliares'!$H$125","v":40219.460701119766},{"$f":"(((F84*$F$76)/$D$76)*1000*$F$127)/$E$127","v":1.9464993884134589}]
[null,"Hexano","kg",1.1000000000000001,null,{"$f":"D85*'Dados auxiliares'!$H$96","v":339.58162909820237},{"$f":"(((F85*$F$76)/$D$76)*1000*$F$127)/$E$127","v":1.6434716473900757E-2}]
[null,"Água","kg",{"$f":"(2.34*992.3224568)/5.17","v":449.13627638529982},null,{"$f":"D86*'Dados auxiliares'!H79","v":3.9531054548047617},{"$f":"(((F86*$F$76)/$D$76)*1000*$F$127)/$E$127","v":1.9131826275077687E-4}]
[null,"Combustíveis e eletricidade"]
[null,"Eletricidade da rede - mix médio","kWh",{"$f":"Biodiesel!D100","v":34.548944337330752},null,{"$f":"D88*'Dados auxiliares'!$H$103","v":5037.2982724826306},{"$f":"(((F88*$F$76)/$D$76)*1000*$F$127)/$E$127","v":0.24378989264693507}]
[null,"Eletricidade - PCH","kWh",{"$f":"Biodiesel!D101","v":0},null,{"$f":"D89*'Dados auxiliares'!$H$104","v":0},0]
[null,"Eletricidade - biomassa","kWh",{"$f":"Biodiesel!D102","v":0},null,{"$f":"D90*'Dados auxiliares'!$H$105","v":0},0]
[null,"Eletricidade - eólica","kWh",{"$f":"Biodiesel!D103","v":0},null,{"$f":"D91*'Dados auxiliares'!$H$106","v":0},0]
[null,"Eletricidade - solar","kWh",{"$f":"Biodiesel!D104","v":0},null,{"$f":"D92*'Dados auxiliares'!$H$107","v":0},0]
[null,"Diesel B0","kg",{"$f":"(Biodiesel!$D$105*(1-0.08)+Biodiesel!$D$106*(1-0.1)+Biodiesel!$D$107*(1-Biodiesel!$G$107)+Biodiesel!$D$108*(1-0.2)+Biodiesel!$D$109*(1-0.3)+Biodiesel!$D$110*(1-1))*('Dados auxiliares'!$D$24)","v":8.8291746639845112E-2},null,{"$f":"D93*'Dados auxiliares'!$H$112","v":49.101627772005926},2.3763692193330146E-3]
[null,"Biodiesel B100","kg",{"$f":"(Biodiesel!$D$105*(0.08)+Biodiesel!$D$106*(0.1)+Biodiesel!$D$107*(Biodiesel!$G$107)+Biodiesel!$D$108*(0.2)+Biodiesel!$D$109*(0.3)+Biodiesel!$D$110*(1))*('Dados auxiliares'!$D$17)","v":8.0431404806484159E-3},null,{"$f":"D94*'Dados auxiliares'!$H$113","v":7.9376959898848733},3.8416030748250932E-4]
[null,"Biometano de terceiros","Nm³",{"$f":"Biodiesel!D111","v":0},null,{"$f":"E95*'Dados auxiliares'!$F$18","v":0},0]
[null,"Gás natural","Nm³",{"$f":"Biodiesel!D113","v":0},null,{"$f":"D96*'Dados auxiliares'!$H$111","v":0},0]
[null,"Cavaco de madeira","kg base seca",{"$f":"Biodiesel!$D$115*(1-Biodiesel!$D$116)","v":56.142034548162478},null,{"$f":"D97*'Dados auxiliares'!$H$119","v":1920.8180472720176},9.2961742626360505E-2]
[null,"Transporte de cavaco de madeira","tkm",{"$f":"((D97/1000)*Biodiesel!$D$117)","v":8.4213051822243727},null,{"$f":"D98*'Dados auxiliares'!$H$125","v":1011.272233570529},4.8942495743353992E-2]
[null,"Lenha","kg base seca",{"$f":"Biodiesel!$D$119*(1-Biodiesel!$D$120)","v":0},null,{"$f":"D99*'Dados auxiliares'!$H$120","v":0},0]
[null,"Transporte de lenha","tkm",{"$f":"((D99/1000)*Biodiesel!$D$121)","v":0},null,{"$f":"D100*'Dados auxiliares'!$H$125","v":0},0]
[null,"Resíduos florestais","kg base seca",{"$f":"Biodiesel!$D$123*(1-Biodiesel!$D$124)","v":0},null,0,0]
[null,"Transporte de resíduos florestais","tkm",{"$f":"((D101/1000)*Biodiesel!$D$125)","v":0},null,{"$f":"D102*'Dados auxiliares'!$H$125","v":0},0]
[null,"Bagaço de cana-de-açúcar","kg base seca",{"$f":"Biodiesel!$D$127*(1-Biodiesel!$D$128)","v":0},null,0,0]
[null,"Transporte de bagaço de cana-de-açúcar","tkm",{"$f":"((D103/1000)*Biodiesel!$D$129)","v":0},null,{"$f":"D104*'Dados auxiliares'!$H$125","v":0},0]
[null,"Palha de cana-de-açúcar","kg base seca",{"$f":"Biodiesel!$D$131*(1-Biodiesel!$D$132)","v":0},null,{"$f":"D105*'Dados auxiliares'!$H$74","v":0},0]
[null,"Transporte de palha de cana-de-açúcar","tkm",{"$f":"((D105/1000)*Biodiesel!$D$133)","v":0},null,{"$f":"D106*'Dados auxiliares'!$H$125","v":0},0]
[null,"Emissões","Unidade","1 t soja",null,"g CO2 eq/t soja",null,null,null,null,null,null,null,null,null,null,null,null,null,null,null,null,null,null,null,null,null,null,null,null,null,null,null,null,null,null,null,null,null,null,null,null,null,null,null,null,null,null,null,null,null,null,null,null,null,null,null,null,null,null,null,null,null,null,null,null,null,null,null,null,null,null,null,null,null,null,null,null,null,"Emissão desconsiderada"]
[null,"CO₂ eq - queima do diesel","kg",{"$f":"D93*'FE''s queima combustíveis'!$I$45/1000","v":0.2776011708214694},null,{"$f":"D108*1000","v":277.6011708214694},{"$f":"(((F108*$F$76)/$D$76)*1000*$F$127)/$E$127","v":1.3435051087390791E-2}]
[null,"CO₂ eq - queima do biodiesel","kg",{"$f":"D94*'FE''s queima combustíveis'!$I$46/1000","v":8.1887213233481528E-5},null,8.1887213233481526E-2,3.9630916899245382E-6]
[null,"CO₂ eq - queima do biometano","kg",{"$f":"(D95+Biodiesel!D112)*'FE''s queima combustíveis'!$I$39/1000","v":0},null,0,0]
[null,"CO₂ eq - queima da gás natural","kg",{"$f":"D96*'FE''s queima combustíveis'!$I$41*('Dados auxiliares'!$D$25*1000)/1000","v":0},null,0,0]
[null,"CO₂ eq - queima do bagaço de cana-de-açúcar","kg",{"$f":"D103*'FE''s queima combustíveis'!$I$33/1000","v":0},null,{"$f":"D112*1000","v":0},0]
[null,"CO₂ eq - queima da palha de cana-de-açúcar","kg",{"$f":"D105*'FE''s queima combustíveis'!$I$34/1000","v":0},null,0,0]
[null,"CO₂ eq - queima dos cavacos de madeira","kg",{"$f":"D97*'FE''s queima combustíveis'!$I$35/1000","v":0.34931573895866697},null,349.31573895866694,1.6905817740796063E-2]
[null,"CO₂ eq - queima da lenha","kg",{"$f":"D99*'FE''s queima combustíveis'!$I$36/1000","v":0},null,0,0]
[null,"CO₂ eq - queima dos resíduos florestais","kg",{"$f":"D101*'FE''s queima combustíveis'!$I$37/1000","v":0},null,0,0]
[]
[null,"Emissões do processo","g CO2 eq/t soja",null,null,{"$f":"SUM(F108:F116)","v":626.99879699336975},{"$f":"(((F118*$F$76)/$D$76)*1000*$F$127)/$E$127","v":3.0344831919876778E-2}]
[null,"Emissões background","g CO2 eq/t soja",null,null,{"$f":"SUM(F80:F106)","v":435316.17135044892},{"$f":"(((F119*$F$76)/$D$76)*1000*$F$127)/$E$127","v":21.067976709010075}]
[null,"Emissões totais","g CO2 eq/t soja",null,null,{"$f":"F118+F119","v":435943.17014744226},{"$f":"(((F120*$F$76)/$D$76)*1000*$F$127)/$E$127","v":21.098321540929952}]
[]
[null,"Emissões totais","g CO2 eq/kg óleo de soja",null,null,{"$f":"F120*F76/$D$76","v":786.8450916699619}]
[]
[]
[null,"Etapa industrial - Produção de biodiesel",null,null,null,null,null,null,null,null,null,null,null,null,null,null,null,null,null,null,null,null,null,null,null,null,null,null,null,null,null,null,null,null,null,null,null,null,null,null,null,null,null,null,null,null,null,null,null,null,null,null,null,null,null,null,null,null,null,null,null,null,null,null,null,null,null,null,null,null,null,null,null,null,null,null,{"$f":"F122*CC130","v":{"$error":"#REF!"}}]
[null,"Produtos","Unidade","1 t matéria-prima","MJ","Alocação"]
[null,"Biodiesel","kg",{"$f":"(Biodiesel!D162*'Dados auxiliares'!$D$17)*1000/((Biodiesel!$D$139+Biodiesel!$D$142+Biodiesel!$D$145+Biodiesel!$D$148+Biodiesel!$D$151+Biodiesel!$D$154+Biodiesel!$D$157)*1000)","v":939},{"$f":"D127*'Dados auxiliares'!$F$17","v":35382.603244723141},{"$f":"E127/SUM($E$127:$E$129)","v":0.94874270439681596}]
[null,"Glicerina purificada","kg",{"$f":"Biodiesel!D163*1000/((Biodiesel!$D$139+Biodiesel!$D$142+Biodiesel!$D$145+Biodiesel!$D$148+Biodiesel!$D$151+Biodiesel!$D$154+Biodiesel!$D$157)*1000)","v":118},{"$f":"D128*'Dados auxiliares'!$D$41","v":1911.6},{"$f":"E128/SUM($E$127:$E$129)","v":5.1257295603184053E-2}]
[null,"Glicerina bruta","kg",{"$f":"Biodiesel!D164*1000/((Biodiesel!$D$139+Biodiesel!$D$142+Biodiesel!$D$145+Biodiesel!$D$148+Biodiesel!$D$151+Biodiesel!$D$154+Biodiesel!$D$157)*1000)","v":0},"-","-","Resíduo"]
[null,"Entradas ","Unidade","1 t matéria-prima",null,"g CO2 eq/t matéria=prima",null,null,null,null,null,null,null,null,null,null,null,null,null,null,null,null,null,null,null,null,null,null,null,null,null,null,null,null,null,null,null,null,null,null,null,null,null,null,null,null,null,null,null,null,null,null,null,null,null,null,null,null,null,null,null,null,null,null,null,null,null,null,null,null,null,null,null,null,null,null,null,{"$error":"#REF!"},{"$f":"D127/BZ130","v":{"$error":"#REF!"}},{"$f":"CA130*1000","v":{"$error":"#REF!"}},{"$f":"CB130/D127","v":{"$error":"#REF!"}}]
[null,"Matérias-primas"]
[null,"Óleo de soja","t",{"$f":"Biodiesel!$D$139*1000/((Biodiesel!$D$139+Biodiesel!$D$142+Biodiesel!$D$145+Biodiesel!$D$148+Biodiesel!$D$151+Biodiesel!$D$154+Biodiesel!$D$157)*1000)","v":1},null,{"$f":"$D$132*$F$122*1000","v":786845.09166996193},{"$f":"(F132*$F$127)/$E$127","v":21.098321540929952}]
[null,"Transporte óleo de soja até a usina","tkm",{"$f":"D132*Biodiesel!$D$140","v":116.2},null,{"$f":"D133*'Dados auxiliares'!$H$126","v":3765.624781731186},0.10097077974883388]
[null,"Óleo de palma","t",{"$f":"Biodiesel!$D$142*1000/((Biodiesel!$D$139+Biodiesel!$D$142+Biodiesel!$D$145+Biodiesel!$D$148+Biodiesel!$D$151+Biodiesel!$D$154+Biodiesel!$D$157)*1000)","v":0},null,{"$f":"D134*'Dados auxiliares'!$H$100","v":0},0]
[null,"Transporte óleo de palma até a usina","tkm",{"$f":"D134*Biodiesel!$D$143","v":0},null,{"$f":"D135*'Dados auxiliares'!$H$126","v":0},0]
[null,"Óleo de algodão","t",{"$f":"Biodiesel!$D$145*1000/((Biodiesel!$D$139+Biodiesel!$D$142+Biodiesel!$D$145+Biodiesel!$D$148+Biodiesel!$D$151+Biodiesel!$D$154+Biodiesel!$D$157)*1000)","v":0},null,{"$f":"D136*'Dados auxiliares'!$H$99","v":0},0]
[null,"Transporte óleo de algodão até a usina","tkm",{"$f":"D136*Biodiesel!$D$146","v":0},null,{"$f":"D137*'Dados auxiliares'!$H$126","v":0},0]
[null,"Outros óleos vegetais","t",{"$f":"Biodiesel!$D$148*1000/((Biodiesel!$D$139+Biodiesel!$D$142+Biodiesel!$D$145+Biodiesel!$D$148+Biodiesel!$D$151+Biodiesel!$D$154+Biodiesel!$D$157)*1000)","v":0},null,{"$f":"D138*'Dados auxiliares'!$H$101","v":0},0]
[null,"Transporte outros óleos vegetais até a usina","tkm",{"$f":"D138*Biodiesel!$D$149","v":0},null,{"$f":"D139*'Dados auxiliares'!$H$126","v":0},0]
[null,"Óleo de fritura usado","t",{"$f":"Biodiesel!$D$151*1000/((Biodiesel!$D$139+Biodiesel!$D$142+Biodiesel!$D$145+Biodiesel!$D$148+Biodiesel!$D$151+Biodiesel!$D$154+Biodiesel!$D$157)*1000)","v":0},null,0,0]
[null,"Transporte óleo de fritura usado até a usina","tkm",{"$f":"D140*Biodiesel!$D$152","v":0},null,{"$f":"D141*'Dados auxiliares'!$H$126","v":0},0]
[null,"Gordura animal","t",{"$f":"Biodiesel!$D$154*1000/((Biodiesel!$D$139+Biodiesel!$D$142+Biodiesel!$D$145+Biodiesel!$D$148+Biodiesel!$D$151+Biodiesel!$D$154+Biodiesel!$D$157)*1000)","v":0},null,0,0]
[null,"Transporte gordura animal até a usina","tkm",{"$f":"D142*Biodiesel!$D$155","v":0},null,{"$f":"D143*'Dados auxiliares'!$H$126","v":0},0]
[null,"Outros óleos residuais","t",{"$f":"Biodiesel!$D$157*1000/((Biodiesel!$D$139+Biodiesel!$D$142+Biodiesel!$D$145+Biodiesel!$D$148+Biodiesel!$D$151+Biodiesel!$D$154+Biodiesel!$D$157)*1000)","v":0},null,0,0]
[null,"Transporte outros óleos residiais até a usina","tkm",{"$f":"D144*Biodiesel!$D$158","v":0},null,{"$f":"D145*'Dados auxiliares'!$H$126","v":0},0]
[null,"Insumos"]
[null,"Água","kg",328.63849765258215,null,{"$f":"D147*'Dados auxiliares'!$H$79","v":2.8925355310528755},7.7559922974414217E-5]
[null,"Metanol","kg",{"$f":"Biodiesel!D167*1000/((Biodiesel!$D$139+Biodiesel!$D$142+Biodiesel!$D$145+Biodiesel!$D$148+Biodiesel!$D$151+Biodiesel!$D$154+Biodiesel!$D$157)*1000)","v":0},null,{"$f":"D148*'Dados auxiliares'!$H$97","v":0},0]
[null,"Metilato de sódio","kg",{"$f":"Biodiesel!D168*1000/((Biodiesel!$D$139+Biodiesel!$D$142+Biodiesel!$D$145+Biodiesel!$D$148+Biodiesel!$D$151+Biodiesel!$D$154+Biodiesel!$D$157)*1000)","v":0},null,{"$f":"D149*'Dados auxiliares'!$H$86","v":0},0]
[null,"Ácido clorídrico","kg",{"$f":"IF(Biodiesel!$D$161=\"Metílica\",13.0516431924883,0)","v":0},null,{"$f":"D150*'Dados auxiliares'!$H$82","v":0},0]
[null,"Ácido fosfórico","kg",{"$f":"IF(Biodiesel!$D$161=\"Metílica\",0.5,IF(Biodiesel!$D$161=\"Etílica\",0.0301810865191147,0))","v":3.0181086519114698E-2},null,{"$f":"D151*'Dados auxiliares'!$H$85","v":45.661779258439836},1.2243666652109171E-3,null,null,null,null,null,null,null,null,null,null,null,null,null,null,null,null,null,null,null,null,null,null,null,null,null,null,null,null,null,null,null,null,null,null,null,null,null,null,null,null,null,null,null,null,null,null,null,null,null,null,null,null,null,null,null,null,null,null,null,null,null,null,null,null,null,null,null,null,null,null,null,{"$f":"D127+D128","v":1057}]
[null,"Etanol anidro","kg",{"$f":"Biodiesel!D169*1000/((Biodiesel!$D$139+Biodiesel!$D$142+Biodiesel!$D$145+Biodiesel!$D$148+Biodiesel!$D$151+Biodiesel!$D$154+Biodiesel!$D$157)*1000)","v":125.7545272},null,{"$f":"D152*'Dados auxiliares'!$H$117","v":68802.865191066041},1.8448675452210164]
[null,"Hidróxido de sódio","kg",{"$f":"Biodiesel!D170*1000/((Biodiesel!$D$139+Biodiesel!$D$142+Biodiesel!$D$145+Biodiesel!$D$148+Biodiesel!$D$151+Biodiesel!$D$154+Biodiesel!$D$157)*1000)","v":8.0482897384305794},null,{"$f":"D153*'Dados auxiliares'!$H$93","v":4124.4120095935223},0.11059123538661726,null,null,null,null,null,null,null,null,null,null,null,null,null,null,null,null,null,null,null,null,null,null,null,null,null,null,null,null,null,null,null,null,null,null,null,null,null,null,null,null,null,null,null,null,null,null,null,null,null,null,null,null,null,null,null,null,null,null,null,null,null,null,null,null,null,null,null,null,null,null,null,{"$f":"CA151*#REF!","v":{"$error":"#REF!"}},null,{"$error":"#REF!"}]
[null,"Eletricidade da rede - mix médio","kWh",{"$f":"Biodiesel!D172*1000/((Biodiesel!$D$139+Biodiesel!$D$142+Biodiesel!$D$145+Biodiesel!$D$148+Biodiesel!$D$151+Biodiesel!$D$154+Biodiesel!$D$157)*1000)","v":40.927480000000003},null,{"$f":"D154*'Dados auxiliares'!$H$103","v":5967.300253464},0.16000610642642779]
[null,"Eletricidade - PCH","kWh",{"$f":"Biodiesel!D173*1000/((Biodiesel!$D$139+Biodiesel!$D$142+Biodiesel!$D$145+Biodiesel!$D$148+Biodiesel!$D$151+Biodiesel!$D$154+Biodiesel!$D$157)*1000)","v":0},null,{"$f":"D155*'Dados auxiliares'!$H$104","v":0},0]
[null,"Eletricidade - biomassa","kWh",{"$f":"Biodiesel!D174*1000/((Biodiesel!$D$139+Biodiesel!$D$142+Biodiesel!$D$145+Biodiesel!$D$148+Biodiesel!$D$151+Biodiesel!$D$154+Biodiesel!$D$157)*1000)","v":0},null,{"$f":"D156*'Dados auxiliares'!$H$105","v":0},0]
[null,"Eletricidade - eólica","kWh",{"$f":"Biodiesel!D175*1000/((Biodiesel!$D$139+Biodiesel!$D$142+Biodiesel!$D$145+Biodiesel!$D$148+Biodiesel!$D$151+Biodiesel!$D$154+Biodiesel!$D$157)*1000)","v":0},null,{"$f":"D157*'Dados auxiliares'!$H$106","v":0},0]
[null,"Eletricidade - solar","kWh",{"$f":"Biodiesel!D176*1000/((Biodiesel!$D$139+Biodiesel!$D$142+Biodiesel!$D$145+Biodiesel!$D$148+Biodiesel!$D$151+Biodiesel!$D$154+Biodiesel!$D$157)*1000)","v":0},null,{"$f":"D158*'Dados auxiliares'!$H$107","v":0},0]
[null,"Diesel B0","kg",{"$f":"((Biodiesel!$D$177*(1-0.08)+Biodiesel!$D$178*(1-0.1)+Biodiesel!$D$179*(1-Biodiesel!$G$179)+Biodiesel!$D$180*(1-0.2)+Biodiesel!$D$181*(1-0.3)+Biodiesel!$D$182*(1-1))*('Dados auxiliares'!$D$24))*1000/((Biodiesel!$D$139+Biodiesel!$D$142+Biodiesel!$D$145+Biodiesel!$D$148+Biodiesel!$D$151+Biodiesel!$D$154+Biodiesel!$D$157)*1000)","v":4.7891830985915497E-3},null,{"$f":"D159*'Dados auxiliares'!$H$112","v":2.663405072257349},7.1416060420440849E-5]
[null,"Biodiesel B100","kg",{"$f":"((Biodiesel!$D$177*(0.08)+Biodiesel!$D$178*(0.1)+Biodiesel!$D$179*(Biodiesel!$G$179)+Biodiesel!$D$180*(0.2)+Biodiesel!$D$181*(0.3)+Biodiesel!$D$182*(1))*('Dados auxiliares'!$D$17))*1000/((Biodiesel!$D$139+Biodiesel!$D$142+Biodiesel!$D$145+Biodiesel!$D$148+Biodiesel!$D$151+Biodiesel!$D$154+Biodiesel!$D$157)*1000)","v":4.3628169014084514E-4},null,{"$f":"D160*'Dados auxiliares'!$H$113","v":0.43056209581608579},1.1545013925911052E-5]
[null,"Biometano de terceiros","Nm³",{"$f":"Biodiesel!D183/((Biodiesel!$D$139+Biodiesel!$D$142+Biodiesel!$D$145+Biodiesel!$D$148+Biodiesel!$D$151+Biodiesel!$D$154+Biodiesel!$D$157)*1000)","v":0},null,{"$f":"E161*'Dados auxiliares'!$F$18","v":0},0]
[null,"Gás natural","Nm³",{"$f":"Biodiesel!D185/((Biodiesel!$D$139+Biodiesel!$D$142+Biodiesel!$D$145+Biodiesel!$D$148+Biodiesel!$D$151+Biodiesel!$D$154+Biodiesel!$D$157)*1000)","v":0},null,{"$f":"D162*'Dados auxiliares'!$H$111","v":0},0]
[null,"Cavaco de madeira","kg base seca",{"$f":"Biodiesel!$D$187*(1-Biodiesel!$D$188)*1000/((Biodiesel!$D$139+Biodiesel!$D$142+Biodiesel!$D$145+Biodiesel!$D$148+Biodiesel!$D$151+Biodiesel!$D$154+Biodiesel!$D$157)*1000)","v":44.76340962441315},null,{"$f":"D163*'Dados auxiliares'!$H$119","v":1531.5149469733083},4.1065763945232071E-2]
[null,"Transporte de cavaco de madeira","tkm",{"$f":"((D163/1000)*Biodiesel!$D$189)","v":6.7145114436619728},null,{"$f":"D164*'Dados auxiliares'!$H$125","v":806.31194785573393},2.1620302291075793E-2]
[null,"Lenha","kg base seca",{"$f":"Biodiesel!$D$191*(1-Biodiesel!$D$192)*1000/((Biodiesel!$D$139+Biodiesel!$D$142+Biodiesel!$D$145+Biodiesel!$D$148+Biodiesel!$D$151+Biodiesel!$D$154+Biodiesel!$D$157)*1000)","v":0},null,{"$f":"D165*'Dados auxiliares'!$H$120","v":0},0]
[null,"Transporte de lenha","tkm",{"$f":"((D165/1000)*Biodiesel!$D$193)","v":0},null,{"$f":"D166*'Dados auxiliares'!$H$125","v":0},0]
[null,"Resíduos florestais","kg base seca",{"$f":"Biodiesel!$D$195*(1-Biodiesel!$D$196)*1000/((Biodiesel!$D$139+Biodiesel!$D$142+Biodiesel!$D$145+Biodiesel!$D$148+Biodiesel!$D$151+Biodiesel!$D$154+Biodiesel!$D$157)*1000)","v":0},null,0,0]
[null,"Transporte de resíduos florestais","tkm",{"$f":"((D167/1000)*Biodiesel!$D$197)","v":0},null,{"$f":"D168*'Dados auxiliares'!$H$125","v":0},0]
[null,"Bagaço de cana-de-açúcar","kg base seca",{"$f":"Biodiesel!$D$199*(1-Biodiesel!$D$200)*1000/((Biodiesel!$D$139+Biodiesel!$D$142+Biodiesel!$D$145+Biodiesel!$D$148+Biodiesel!$D$151+Biodiesel!$D$154+Biodiesel!$D$157)*1000)","v":0},null,0,0]
[null,"Transporte de bagaço de cana-de-açúcar","tkm",{"$f":"((D169/1000)*Biodiesel!$D$201)","v":0},null,{"$f":"D170*'Dados auxiliares'!$H$125","v":0},0]
[null,"Palha de cana-de-açúcar","kg base seca",{"$f":"Biodiesel!$D$203*(1-Biodiesel!$D$204)*1000/((Biodiesel!$D$139+Biodiesel!$D$142+Biodiesel!$D$145+Biodiesel!$D$148+Biodiesel!$D$151+Biodiesel!$D$154+Biodiesel!$D$157)*1000)","v":0},null,{"$f":"D171*'Dados auxiliares'!$H$74","v":0},0]
[null,"Transporte de palha de cana-de-açúcar","tkm",{"$f":"((D171/1000)*Biodiesel!$D$205)","v":0},null,{"$f":"D172*'Dados auxiliares'!$H$125","v":0},0]
[null,"Emissões","Unidade","1 t óleo",null,"g CO2 eq/t óleo"]
[null,"CO₂ eq - queima do diesel","kg",{"$f":"D159*'FE''s queima combustíveis'!$I$45/1000","v":1.5057838201690141E-2},null,{"$f":"D174*1000","v":15.05783820169014},{"$f":"(((F174*$F$76)/$D$76)*1000*$F$127)/$E$127","v":7.2875350239598425E-4}]
[null,"CO₂ eq - queima do biodiesel","kg",{"$f":"D160*'FE''s queima combustíveis'!$I$46/1000","v":4.4417838873239444E-6},null,4.4417838873239447E-3,2.1496881035752178E-7]
[null,"CO₂ eq - queima do biometano","kg",{"$f":"(D161+Biodiesel!D184)*'FE''s queima combustíveis'!$I$39/1000","v":0},null,0,0]
[null,"CO₂ eq - queima da gás natural","kg",{"$f":"D162*'FE''s queima combustíveis'!$I$41*('Dados auxiliares'!$D$25/1000)/1000","v":0},null,0,0]
[null,"CO₂ eq - queima do bagaço de cana-de-açúcar","kg",{"$f":"D169*'FE''s queima combustíveis'!$I$33/1000","v":0},null,0,0]
[null,"CO₂ eq - queima da palha de cana-de-açúcar","kg",{"$f":"D171*'FE''s queima combustíveis'!$I$34/1000","v":0},null,0,0]
[null,"CO₂ eq - queima dos cavacos de madeira","kg",{"$f":"D163*'FE''s queima combustíveis'!$I$35/1000","v":0.27851793468309866},null,278.51793468309864,1.3479419665807138E-2]
[null,"CO₂ eq - queima da lenha","kg",{"$f":"D165*'FE''s queima combustíveis'!$I$36/1000","v":0},null,0,0]
[null,"CO₂ eq - queima dos resíduos florestais","kg",{"$f":"D167*'FE''s queima combustíveis'!$I$37/1000","v":0},null,0,0]
[]
[null,"Emissões do processo","g CO2 eq/kg óleo",null,null,{"$f":"SUM(F174:F182)","v":293.58021466867609},{"$f":"(F184*$F$127)/$E$127","v":7.872006615671983E-3}]
[null,"Emissões background","g CO2 eq/kg óleo",null,null,{"$f":"SUM(F132:F172)","v":871894.76908260339},{"$f":"(F185*$F$127)/$E$127","v":23.37882816161169}]
[null,"Emissões totais","g CO2 eq/kg óleo",null,null,{"$f":"F185+F184","v":872188.34929727204},23.38670016822736]
[]
[null,"Emissões totais","g CO2 eq/kg óleo de soja"]
[]
[null,"Etapa distribuição"]
[null,"Sistema logiístico rodoviário"]
[null,"Parâmetro","Unidade","Etanol anidro"]
[null,"Massa","kg/t óleo",{"$f":"$D$127*Biodiesel!D210","v":939}]
[null,"Distância de transporte rodoviário","km",1500]
[null,"Transporte rodoviário","tkm/t óleo",{"$f":"D193/1000*D194","v":1408.5}]
[null,"Emissões","g CO2 eq/t óleo",{"$f":"D195*'Dados auxiliares'!$H$126","v":45644.427754461067}]
[null,"Emissões","g CO2 eq/MJ",{"$f":"D196/$E$127","v":1.2900245761670559}]
[null,"Sistema logiístico rodoviário + dutoviário"]
[null,"Parâmetro","Unidade","Etanol anidro"]
[null,"Massa","kg/t óleo",{"$f":"$D$127*Biodiesel!D211","v":0}]
[null,"Distância de transporte rodoviário","km",900]
[null,"Transporte rodoviário","tkm/t óleo",{"$f":"D200/1000*D201","v":0}]
[null,"Distância de transporte dutoviário","km",600]
[null,"Transporte dutoviário","tkm/t óleo",{"$f":"D200/1000*D203","v":0}]
[null,"Emissões","g CO2 eq/t óleo",{"$f":"D202*'Dados auxiliares'!$H$126+D204*'Dados auxiliares'!$H$130","v":0}]
[null,"Emissões","g CO2 eq/MJ",{"$f":"D205/$E$127","v":0}]
[null,"Sistema logiístico rodoviário + ferroviário"]
[null,"Parâmetro","Unidade","Etanol anidro"]
[null,"Massa","kg/t óleo",{"$f":"$D$127*Biodiesel!D212","v":0}]
[null,"Distância de transporte rodoviário","km",900]
[null,"Transporte rodoviário","tkm/t óleo",{"$f":"D209/1000*D210","v":0}]
[null,"Distância de transporte ferroviário","km",600]
[null,"Transporte ferroviário","tkm/t óleo",{"$f":"D209/1000*D212","v":0}]
[null,"Emissões","g CO2 eq/t óleo",{"$f":"D211*'Dados auxiliares'!$H$126+D213*'Dados auxiliares'!$H$129","v":0}]
[null,"Emissões","g CO2 eq/MJ",{"$f":"D214/$E$127","v":0}]
[]
[null,"Emissões totais","g CO2 eq/MJ",{"$f":"D197+D206+D215","v":1.2900245761670559}]

{"sheet":"BioQavHEFA","index":16,"n_rows":187,"n_cols":19,"rows_kept":187,"cut":false,"hidden":false,"merged":[[14,3,14,5],[40,1,40,7],[40,12,40,18],[3,2,3,7],[5,2,5,7],[7,2,7,7],[9,2,9,3],[12,2,12,3],[23,1,23,7],[23,12,23,18],[24,1,24,7],[24,12,24,18],[36,1,36,7],[36,12,36,18],[25,1,25,2],[27,3,27,4],[121,2,121,4],[45,1,45,7],[45,12,45,18],[48,1,48,7],[66,1,66,7],[66,12,66,18],[73,1,73,7],[73,12,73,18],[91,1,91,7],[92,1,92,7],[98,1,98,7],[113,2,113,4],[117,2,117,4],[48,12,48,18],[182,1,182,7],[125,2,125,4],[129,2,129,4],[135,1,135,7],[136,1,136,7],[143,1,143,7],[145,1,145,7],[160,2,160,4],[164,2,164,4],[168,2,168,4],[172,2,172,4],[176,2,176,4]]}
[]
[null,"Produção de Bioquerosene de HEFA de Soja"]
[]
[null,"Nome da Usina:","Usina Hipotética"]
[]
[null,"CNPJ","00.000.000/0000-00"]
[]
[null,"Responsável pelo preenchimento:","GT ACV RenovaCalc"]
[]
[null,"Telefone :","(00) 0000-0000"]
[]
[]
[null,null,"Bioquerosene"]
[]
[null,"Intensidade de Carbono\n(g CO₂eq/MJ)",{"$f":"SUM(C17:C21)","v":34.645300413470913},"Nota de Eficiência Energético-Ambiental\n(g CO₂eq/MJ)",null,null,{"$f":"G18-C15","v":52.854699586529087}]
[]
[null,"agrícola",{"$f":"_BioQavHEFA!C5","v":20.605803259232012},null,null,null,"Fóssil de referência: Querosene de Aviação"]
[null,"industrial - extração do óleo",{"$f":"_BioQavHEFA!C6","v":2.6223785044396593},null,null,null,87.5]
[null,"industrial - transesterificação",{"$f":"_BioQavHEFA!C7","v":9.8617506877159897},null,null,null,"Redução de emissões"]
[null,"transporte",{"$f":"_BioQavHEFA!C8","v":1.1163674216830288},null,null,null,{"$f":"(G18-C15)/G18","v":0.60405370956033244}]
[null,"uso",{"$f":"_BioQavHEFA!C9","v":0.43900054040021891}]
[]
[]
[null,"Fornecedores - Dados consolidados",null,null,null,null,null,null,null,null,null,null,"Default - Soja"]
[null,"Informações gerais",null,null,null,null,null,null,null,null,null,null,"Informações gerais"]
[null,"Houve supressão de vegetação nativa a partir de 26 de dezembro de 2017?",null,"Não"]
[]
[null,null,"Número de registro no CAR","Cadastro de fornecedores"]
[]
[null,null,"Situação do CAR","Ativo"]
[]
[null,null,"Sistema de plantio","Convencional"]
[null,null,"Área total",1,"ha"]
[]
[null,null,"Produção total (base úmida)",{"$f":"2.97930010943612","v":2.97930010943612},"t soja","Umidade",0.09]
[]
[null,"Tipo de preenchimento",null,null,null,null,null,null,null,null,null,null,"Tipo de preenchimento"]
[null,"Tipo de dados forneceidos pelos fornecedores:",null,null,null,null,null,null,null,null,null,null,null,null,"Padrão"]
[null,"Em função das informações de cada fornecedor"]
[]
[null,"Corretivos",null,null,null,null,null,null,null,null,null,null,"Corretivos"]
[null,null,"Calcário calcítico",0,"kg/t soja",null,null,null,null,null,null,null,null,"Calcário calcítico",0,"kg/t soja"]
[null,null,"Calcário dolomítico",249.02339519997128,"kg/t soja",null,null,null,null,null,null,null,null,"Calcário dolomítico",423.3,"kg/t soja"]
[null,null,"Gesso",53.298851923114903,"kg/t soja",null,null,null,null,null,null,null,null,"Gesso",90.6,"kg/t soja"]
[]
[null,"Sementes",null,null,null,null,null,null,null,null,null,null,"Sementes"]
[null,null,"Sementes",17.389904788056221,"kg/t soja",null,null,null,null,null,null,null,null,"Sementes",29.6,"kg/t soja"]
[]
[null,"Fertilizantes Sintéticos",null,null,null,null,null,null,null,null,null,null,"Fertilizantes Sintéticos"]
[null,null,"Ureia",2.803282775428722,"kg N/t soja",null,null,null,null,null,null,null,null,"Ureia",4.8,"kg N/t soja"]
[null,null,"Fosfato Monoamônico (MAP)",0,"kg N/t soja",null,null,null,null,null,null,null,null,"Fosfato Monoamônico (MAP)",0,"kg N/t soja"]
[null,null,"Fosfato Monoamônico (MAP)",0,"kg P₂O₅/t soja",null,null,null,null,null,null,null,null,"Fosfato Monoamônico (MAP)",0,"kg P₂O₅/t soja"]
[null,null,"Fosfato diamônico (DAP)",0,"kg N/t soja",null,null,null,null,null,null,null,null,"Fosfato diamônico (DAP)",0,"kg N/t soja"]
[null,null,"Fosfato diamônico (DAP)",0,"kg P₂O₅/t soja",null,null,null,null,null,null,null,null,"Fosfato diamônico (DAP)",0,"kg P₂O₅/t soja"]
[null,null,"Nitrato de amônio",0,"kg N/t soja",null,null,null,null,null,null,null,null,"Nitrato de amônio",0,"kg N/t soja"]
[null,null,"Solução de nitrato de amônio e ureia (UAN)",0,"kg N/t soja",null,null,null,null,null,null,null,null,"Solução de nitrato de amônio e ureia (UAN)",0,"kg N/t soja"]
[null,null,"Amônia anidra",0,"kg N/t soja",null,null,null,null,null,null,null,null,"Amônia anidra",0,"kg N/t soja"]
[null,null,"Sulfato de amônio",0,"kg N/t soja",null,null,null,null,null,null,null,null,"Sulfato de amônio",0,"kg N/t soja"]
[null,null,"Nitrato de amônio e cálcio (CAN)",0,"kg N/t soja",null,null,null,null,null,null,null,null,"Nitrato de amônio e cálcio (CAN)",0,"kg N/t soja"]
[null,null,"Superfosfato simples (SSP)",27.234071010911354,"kg P₂O₅/t soja",null,null,null,null,null,null,null,null,"Superfosfato simples (SSP)",46.3,"kg P₂O₅/t soja"]
[null,null,"Superfosfato triplo (TSP)",0,"kg P₂O₅/t soja",null,null,null,null,null,null,null,null,"Superfosfato triplo (TSP)",0,"kg P₂O₅/t soja"]
[null,null,"Cloreto de potássio (KCl)",32.695663276764343,"kg K₂O/t soja",null,null,null,null,null,null,null,null,"Cloreto de potássio (KCl)",55.6,"kg K₂O/t soja"]
[null,"Outros","especificar",0,"kg N/t soja",null,null,null,null,null,null,null,"Outros","especificar",0,"kg N/t soja"]
[null,"Outros","especificar",0,"kg P₂O₅/t soja",null,null,null,null,null,null,null,"Outros","especificar",0,"kg P₂O₅/t soja"]
[null,"Outros","especificar",0,"kg K₂O/t soja",null,null,null,null,null,null,null,"Outros","especificar",0,"kg K₂O/t soja"]
[]
[null,"              Fertilizantes Orgânicos/Organominerais",null,null,null,null,null,null,null,null,null,null,"              Fertilizantes Orgânicos/Organominerais"]
[null,"Outros","especificar",0,"kg/t soja","Concentração de N",null,"g N/kg",null,null,null,null,"Outros","especificar",0,"kg/t soja","Concentração de N",null,"g N/kg"]
[null,"Outros","especificar",0,"kg/t soja","Concentração de N",null,"g N/kg",null,null,null,null,"Outros","especificar",0,"kg/t soja","Concentração de N",null,"g N/kg"]
[null,"Outros","especificar",0,"kg/t soja","Concentração de N",null,"g N/kg",null,null,null,null,"Outros","especificar",0,"kg/t soja","Concentração de N",null,"g N/kg"]
[null,"Outros","especificar",0,"kg/t soja","Concentração de N",null,"g N/kg",null,null,null,null,"Outros","especificar",0,"kg/t soja","Concentração de N",null,"g N/kg"]
[null,"Outros","especificar",0,"kg/t soja","Concentração de N",null,"g N/kg",null,null,null,null,"Outros","especificar",0,"kg/t soja","Concentração de N",null,"g N/kg"]
[]
[null,"              Combustíveis e eletricidade da rede",null,null,null,null,null,null,null,null,null,null,"              Combustíveis e eletricidade da rede"]
[null,null,"Diesel - B8",10.7004997244248,"L/t soja",null,null,null,null,null,null,null,null,"Diesel - B8",18.2,"L/t soja"]
[null,null,"Diesel - B10",0,"L/t soja",null,null,null,null,null,null,null,null,"Diesel - B10",0,"L/t soja"]
[null,null,"Diesel - BX",0,"L/t soja","Teor de biodiesel na mistura",0.11,null,null,null,null,null,null,"Diesel - BX",0,"L/t soja","Teor de biodiesel na mistura",0.11]
[null,null,"Diesel - B20",0,"L/t soja",null,null,null,null,null,null,null,null,"Diesel - B20",0,"L/t soja"]
[null,null,"Diesel - B30",0,"L/t soja",null,null,null,null,null,null,null,null,"Diesel - B30",0,"L/t soja"]
[null,null,"Biodiesel - B100",0,"L/t soja",null,null,null,null,null,null,null,null,"Biodiesel - B100",0,"L/t soja"]
[null,null,"Gasolina C",0,"L/t soja",null,null,null,null,null,null,null,null,"Gasolina C",0,"L/t soja"]
[null,null,"Etanol hidratado",0,"L/t soja",null,null,null,null,null,null,null,null,"Etanol hidratado",0,"L/t soja"]
[null,null,"Biometano de terceiros",0,"Nm³/t soja",null,null,null,null,null,null,null,null,"Biometano de terceiros",0,"Nm³/t soja"]
[null,null,"Biometano próprio",0,"Nm³/t soja",null,null,null,null,null,null,null,null,"Biometano próprio",0,"Nm³/t soja"]
[null,null,"Eletricidade da rede - mix médio",0,"kWh/t soja",null,null,null,null,null,null,null,null,"Eletricidade da rede - mix médio",0,"kWh/t soja"]
[null,null,"Eletricidade - PCH",0,"kWh/t soja",null,null,null,null,null,null,null,null,"Eletricidade - PCH",0,"kWh/t soja"]
[null,null,"Eletricidade - biomassa",0,"kWh/t soja",null,null,null,null,null,null,null,null,"Eletricidade - biomassa",0,"kWh/t soja"]
[null,null,"Eletricidade - eólica",0,"kWh/t soja",null,null,null,null,null,null,null,null,"Eletricidade - eólica",0,"kWh/t soja"]
[null,null,"Eletricidade - solar",0,"kWh/t soja",null,null,null,null,null,null,null,null,"Eletricidade - solar",0,"kWh/t soja"]
[]
[]
[null,"Fase industrial - extração do óleo de soja"]
[null,"Processamento e rendimentos"]
[null,null,"Processamento efetivo - soja",1,"t soja","Umidade",0.09]
[null,null,"Distância de transporte - soja",334.92499999999995,"km"]
[null,null,"Rendimento Óleo",191.93856,"kg/t soja"]
[null,null,"Rendimento Farelo",800.38390000000004,"kg/t soja"]
[]
[null,"Combustíveis e eletricidade"]
[null,null,"Eletricidade da rede - mix médio",34.548944337330752,"kWh/t soja"]
[null,null,"Eletricidade - PCH",0,"kWh/t soja"]
[null,null,"Eletricidade - biomassa",0,"kWh/t soja"]
[null,null,"Eletricidade - eólica",0,"kWh/t soja"]
[null,null,"Eletricidade - solar",0,"kWh/t soja"]
[null,null,"Diesel - B8",0.114249154554665,"L/t soja"]
[null,null,"Diesel - B10",0,"L/t soja"]
[null,null,"Diesel - BX",0,"L/t soja","Teor de biodiesel na mistura",0.11]
[null,null,"Diesel - B20",0,"L/t soja"]
[null,null,"Diesel - B30",0,"L/t soja"]
[null,null,"Biodiesel - B100",0,"L/t soja"]
[null,null,"Biometano de terceiros",0,"Nm³/t soja"]
[null,null,"Biometano próprio",0,"Nm³/t soja"]
[null,null,"Gás natural",0,"Nm³/t soja"]
[null,null,"Cavaco de madeira"]
[null,null,"Quantidade (base úmida)",86.372360843326888,"kg/t soja"]
[null,null,"Umidade",0.35]
[null,null,"Distância de transporte",150,"km"]
[null,null," Lenha"]
[null,null,"Quantidade (base úmida)",null,"kg/t soja"]
[null,null,"Umidade"]
[null,null,"Distância de transporte",null,"km"]
[null,null,"Resíduos florestais"]
[null,null,"Quantidade (base úmida)",null,"kg/t soja"]
[null,null,"Umidade"]
[null,null,"Distância de transporte",null,"km"]
[null,null,"Bagaço de cana"]
[null,null,"Quantidade (base úmida)",null,"kg/t soja"]
[null,null,"Umidade"]
[null,null,"Distância de transporte",null,"km"]
[null,null,"Palha de cana"]
[null,null,"Quantidade (base úmida)",null,"kg/t soja"]
[null,null,"Umidade"]
[null,null,"Distância de transporte",null,"km"]
[]
[]
[null,"Fase industrial - produção do bioquerosene"]
[null,"Processamento e rendimentos"]
[null,null,"Processamento efetivo - óleo de soja",1,"t óleo"]
[null,null,"Distância de transporte - óleo de soja",0,"km"]
[null,null,"Rendimento - Bioquerosene",492.79069767441899,"kg/t óleo"]
[null,null,"Rendimento - Gasolina verde",59.348837209302303,"kg/t óleo"]
[null,null,"Rendimento - Diesel verde",232.39534883720901,"kg/t óleo"]
[]
[null,"Insumos"]
[null,null,"Hidrogênio",0,"kg/t óleo"]
[null,"Combustíveis e energia"]
[null,null,"Eletricidade da rede - mix médio",2259.25107209302,"kWh/t óleo"]
[null,null,"Eletricidade - PCH",0,"kWh/t óleo"]
[null,null,"Eletricidade - biomassa",0,"kWh/t óleo"]
[null,null,"Eletricidade - eólica",0,"kWh/t óleo"]
[null,null,"Eletricidade - solar",0,"kWh/t óleo"]
[null,null,"Diesel - B8",6.1971830985915501E-3,"L/t óleo"]
[null,null,"Diesel - B10",0,"L/t óleo"]
[null,null,"Diesel - BX",0,"L/t óleo","Teor de biodiesel na mistura",0.11]
[null,null,"Diesel - B20",0,"L/t óleo"]
[null,null,"Diesel - B30",0,"L/t óleo"]
[null,null,"Biodiesel - B100",0,"L/t óleo"]
[null,null,"Biometano de terceiros",0,"Nm³/t soja"]
[null,null,"Biometano próprio",149.327315010571,"Nm³/t soja"]
[null,null,"Gás natural",0,"Nm³/t soja"]
[null,null,"Cavaco de madeira"]
[null,null,"Quantidade (base úmida)",68.866784037558688,"kg/t soja"]
[null,null,"Umidade",0.35]
[null,null,"Distância de transporte",150,"km"]
[null,null," Lenha"]
[null,null,"Quantidade (base úmida)",null,"kg/t soja"]
[null,null,"Umidade"]
[null,null,"Distância de transporte",null,"km"]
[null,null,"Resíduos florestais"]
[null,null,"Quantidade (base úmida)",null,"kg/t soja"]
[null,null,"Umidade"]
[null,null,"Distância de transporte",null,"km"]
[null,null,"Bagaço de cana"]
[null,null,"Quantidade (base úmida)",null,"kg/t soja"]
[null,null,"Umidade"]
[null,null,"Distância de transporte",null,"km"]
[null,null,"Palha de cana"]
[null,null,"Quantidade (base úmida)",null,"kg/t soja"]
[null,null,"Umidade"]
[null,null,"Distância de transporte",null,"km"]
[]
[]
[null,"Distribuição do bioquerosene"]
[]
[null,null,"Rodoviário",1,"%"]
[null,null,"Rodoviário + Dutoviário",0,"%"]
[null,null,"Rodoviário + Ferroviário",0,"%"]

{"sheet":"_BioQavHEFA","index":17,"n_rows":198,"n_cols":81,"rows_kept":198,"cut":false,"hidden":false,"merged":[[170,1,170,5],[1,1,1,5],[2,2,2,3],[3,2,3,3],[11,1,11,5],[73,1,73,5],[124,1,124,5]]}
[]
[null,"Emissões totais - g CO₂ eq"]
[null,null,"Biodiesel"]
[null,"Total",{"$f":"SUM(C5:C9)","v":34.645300413470913}]
[null,"Agrícola",{"$f":"G71","v":20.605803259232012},{"$f":"C5/$C$4","v":0.59476474480850472}]
[null,"Industrial - extração do óleo",{"$f":"G120-G83","v":2.6223785044396593},{"$f":"C6/$C$4","v":7.5692185466517597E-2}]
[null,"Industrial - HEFA",{"$f":"G167-G131","v":9.8617506877159897},{"$f":"C7/$C$4","v":0.2846490164617394}]
[null,"Transporte",{"$f":"$D$198","v":1.1163674216830288},3.2222766388510196E-2]
[null,"Uso",{"$f":"'FE''s queima combustíveis'!$I$6","v":0.43900054040021891},1.2671286874727895E-2]
[]
[]
[null,"Etapa agrícola - Soja"]
[null,"Produto",null,"1 ha médio","1 t soja"]
[null,"Produção de soja","kg",{"$f":"(BioQavHEFA!D35*1000)/BioQavHEFA!D33","v":2979.3001094361198},1000]
[null,"Entradas da natureza",null,"1 ha médio","1 t soja","g CO2 eq/t soja"]
[null,"Ocupação total","ha",1,{"$f":"(D16*E14)/D14","v":0.33564930126803039}]
[null,"Entradas da tecnosfera",null,"1 ha médio","1 t soja","g CO2 eq/t soja"]
[null,"Sementes de soja","kg",null,{"$f":"BioQavHEFA!D47","v":17.389904788056221},{"$f":"E18*'Dados auxiliares'!$H$72","v":31343.871996755483},{"$f":"(((F18*$F$76)/$D$76)*1000*$F$127)/$E$127","v":1.670082721267669}]
[null,"Fertilizantes e corretivos"]
[null,"Calcário calcítico","kg",null,{"$f":"BioQavHEFA!D42","v":0},{"$f":"E20*'Dados auxiliares'!$H$48","v":0},{"$f":"(((F20*$F$76)/$D$76)*1000*$F$127)/$E$127","v":0}]
[null,"Calcário dolomítico","kg",null,{"$f":"BioQavHEFA!D43","v":249.02339519997128},{"$f":"E21*'Dados auxiliares'!$H$49","v":9172.9356338974012},0.48875778037436873]
[null,"Gesso","kg",null,{"$f":"BioQavHEFA!D44","v":53.298851923114903},{"$f":"E22*'Dados auxiliares'!$H$50","v":150.77575392799244},8.0337228740377572E-3]
[null,"N - Ureia","kg N",null,{"$f":"BioQavHEFA!D50","v":2.803282775428722},{"$f":"E23*'Dados auxiliares'!$H$51","v":9001.9415549931291},0.47964677275391054]
[null,"N - Fosfato monoamônico (MAP)","kg N",null,{"$f":"BioQavHEFA!D51","v":0},{"$f":"E24*'Dados auxiliares'!$H$52","v":0},0]
[null,"P₂O₅ - Fosfato monoamônico (MAP)","kg P₂O₅",null,{"$f":"BioQavHEFA!D52","v":0},{"$f":"E25*'Dados auxiliares'!$H$53","v":0},0]
[null,"N - Fosfato diamônico (DAP)","kg N",null,{"$f":"BioQavHEFA!D53","v":0},{"$f":"E26*'Dados auxiliares'!$H$54","v":0},0]
[null,"P₂O₅ - Fosfato diamônico (DAP)","kg P₂O₅",null,{"$f":"BioQavHEFA!D54","v":0},{"$f":"E27*'Dados auxiliares'!$H$55","v":0},0]
[null,"N - Nitrato de amônio","kg N",null,{"$f":"BioQavHEFA!D55","v":0},{"$f":"E28*'Dados auxiliares'!$H$56","v":0},0]
[null,"N - Solução de nitrato de amônio e ureia (UAN)","kg N",null,{"$f":"BioQavHEFA!D56","v":0},{"$f":"E29*'Dados auxiliares'!$H$57","v":0},0]
[null,"N - Amônia anidra","kg N",null,{"$f":"BioQavHEFA!D57","v":0},{"$f":"E30*'Dados auxiliares'!$H$58","v":0},0]
[null,"N - Sulfato de amônio","kg N",null,{"$f":"BioQavHEFA!D58","v":0},{"$f":"E31*'Dados auxiliares'!$H$59","v":0},0]
[null,"N - Nitrato de amônio e cálcio (CAN)","kg N",null,{"$f":"BioQavHEFA!D59","v":0},{"$f":"E32*'Dados auxiliares'!$H$60","v":0},0]
[null,"P₂O₅ - Superfosfato simples (SSP)","kg P₂O₅",null,{"$f":"BioQavHEFA!D60","v":27.234071010911354},{"$f":"E33*'Dados auxiliares'!$H$62","v":64480.922995347035},3.4357106664124779]
[null,"P₂O₅ - Superfosfato triplo (TSP)","kg P₂O₅",null,{"$f":"BioQavHEFA!D61","v":0},{"$f":"E34*'Dados auxiliares'!$H$63","v":0},0]
[null,"K₂O - Cloreto de potássio (KCl)","kg K₂O",null,{"$f":"BioQavHEFA!D62","v":32.695663276764343},{"$f":"E35*'Dados auxiliares'!H$64","v":14883.319671825375},0.79302183921602676]
[null,"N - Outros","kg N",null,{"$f":"BioQavHEFA!D63","v":0},{"$f":"E36*'Dados auxiliares'!H$65","v":0},0]
[null,"P₂O₅ - Outros","kg P₂O₅",null,{"$f":"BioQavHEFA!D64","v":0},{"$f":"E37*'Dados auxiliares'!H$66","v":0},0]
[null,"K₂O - Outros","kg K₂O",null,{"$f":"BioQavHEFA!D65","v":0},{"$f":"E38*'Dados auxiliares'!H$67","v":0},0]
[null,"Outros Fertilizantes Orgânicos/Organominerais","kg",null,{"$f":"BioQavHEFA!D68+BioQavHEFA!D69+BioQavHEFA!D70+BioQavHEFA!D71+BioQavHEFA!D72","v":0},0]
[null,"Agroquímicos"]
[null,"Pesticidas, geral","kg",null,{"$f":"0.000674630945913558*1000","v":0.6746309459135581},{"$f":"E41*'Dados auxiliares'!$H$70","v":7247.2373648256971},{"$f":"(((F41*$F$76)/$D$76)*1000*$F$127)/$E$127","v":0.38615158654213833}]
[null,"Glifosato","kg",null,{"$f":"0.00086569230646321*1000","v":0.86569230646321005},{"$f":"E42*'Dados auxiliares'!$H$68","v":9960.4016469307826},{"$f":"(((F42*$F$76)/$D$76)*1000*$F$127)/$E$127","v":0.53071601010708103}]
[null,"2,4-D","kg",null,{"$f":"0.0000652020791723256*1000","v":6.5202079172325594E-2},{"$f":"E43*'Dados auxiliares'!$H$69","v":331.3355298709476},{"$f":"(((F43*$F$76)/$D$76)*1000*$F$127)/$E$127","v":1.7654415620278734E-2}]
[null,"Combustíveis e eletricidade"]
[null,"Diesel B0","kg",null,{"$f":"(BioQavHEFA!$D$75*(1-0.08)+BioQavHEFA!$D$76*(1-0.1)+BioQavHEFA!$D$77*(1-BioQavHEFA!$G$77)+BioQavHEFA!$D$78*(1-0.2)+BioQavHEFA!$D$79*(1-0.3)+BioQavHEFA!$D$80*(1-1))*('Dados auxiliares'!$D$24)","v":8.2693461870354863},{"$f":"E45*'Dados auxiliares'!$H$112","v":4598.8257549141317},{"$f":"(((F45*$F$76)/$D$76)*1000*$F$127)/$E$127","v":0.24503735314506975}]
[null,"Biodiesel B100","kg",null,{"$f":"(BioQavHEFA!$D$75*(0.08)+BioQavHEFA!$D$76*(0.1)+BioQavHEFA!$D$77*(BioQavHEFA!$G$77)+BioQavHEFA!$D$78*(0.2)+BioQavHEFA!$D$79*(0.3)+BioQavHEFA!$D$80*(1))*('Dados auxiliares'!$D$17)","v":0.75331518059950597},{"$f":"E46*'Dados auxiliares'!$H$113","v":743.43931982175695},3.9612373432160126E-2]
[null,"Gasolina A","kg",null,{"$f":"BioQavHEFA!$D$81*(1-'FE''s queima combustíveis'!$D$16)*'Dados auxiliares'!$D$22","v":0},{"$f":"E47*'Dados auxiliares'!$H$116","v":0},0]
[null,"Etanol anidro","kg",null,{"$f":"BioQavHEFA!$D$81*('FE''s queima combustíveis'!$D$16)*'Dados auxiliares'!$D$15","v":0},{"$f":"E48*'Dados auxiliares'!$H$117","v":0},0]
[null,"Etanol hidratado","kg",null,{"$f":"BioQavHEFA!$D$82*'Dados auxiliares'!$D$16","v":0},{"$f":"E49*'Dados auxiliares'!$H$118","v":0},0]
[null,"Biometano de terceiros","Nm³",null,{"$f":"BioQavHEFA!D83","v":0},{"$f":"E50*'Dados auxiliares'!$F$18","v":0},0]
[null,"Eletricidade da rede - mix médio","kWh",null,{"$f":"BioQavHEFA!D85","v":0},{"$f":"E51*'Dados auxiliares'!$H$103","v":0},0]
[null,"Eletricidade - PCH","kWh",null,{"$f":"BioQavHEFA!D86","v":0},{"$f":"E52*'Dados auxiliares'!$H$104","v":0},0]
[null,"Eletricidade - biomassa","kWh",null,{"$f":"BioQavHEFA!D87","v":0},{"$f":"E53*'Dados auxiliares'!$H$105","v":0},0]
[null,"Eletricidade - eólica","kWh",null,{"$f":"BioQavHEFA!D88","v":0},{"$f":"E54*'Dados auxiliares'!$H$106","v":0},0]
[null,"Eletricidade - solar","kWh",null,{"$f":"BioQavHEFA!D89","v":0},{"$f":"E55*'Dados auxiliares'!$H$107","v":0},0]
[null,"Emissões",null,"1 ha médio","1 t soja","g CO2 eq/t soja"]
[null,"N2O - Fertilizantes sintéticos","kg",{"$f":"'_Emissões Agrícolas'!$K$54","v":0.17389683772198755},{"$f":"D57*$E$16","v":5.8368352074105193E-2},{"$f":"E57*1000*'Dados auxiliares'!$D$9","v":15467.613299637875},{"$f":"(((F57*$F$76)/$D$76)*1000*$F$127)/$E$127","v":0.82415451778418425}]
[null,"N2O - Fertilizantes organominerais","kg",{"$f":"'_Emissões Agrícolas'!$K$58","v":0},{"$f":"D58*$E$16","v":0},{"$f":"E58*1000*'Dados auxiliares'!$D$9","v":0},0]
[null,"N2O - Resíduos culturais","kg",{"$f":"'_Emissões Agrícolas'!$K$62","v":0.7887980394500812},0.26475951078301202,{"$f":"E59*1000*'Dados auxiliares'!$D$9","v":70161.270357498186},3.7383742933347994]
[null,"CO2 - Calcário ","kg",null,{"$f":"$E$20*'_Emissões Agrícolas'!$E$79+$E$21*'_Emissões Agrícolas'!$E$80","v":118.70115171198631},{"$f":"E60*1000","v":118701.15171198631},6.3247049531494106]
[null,"CO2 - Uréia","kg",null,{"$f":"$E$23*'_Emissões Agrícolas'!$E$81","v":4.3739163871937512},{"$f":"E61*1000","v":4373.9163871937508},0.23305359922596472]
[null,"CO₂ eq - queima do diesel","kg",null,{"$f":"$E$45*'FE''s queima combustíveis'!$I$53/1000","v":26.095327682042271},{"$f":"E62*1000","v":26095.327682042272},1.3904266796427689]
[null,"CO₂ eq - queima do biodiesel","kg",null,{"$f":"$E$46*'FE''s queima combustíveis'!$I$54/1000","v":1.2461374972627478E-2},{"$f":"E63*1000","v":12.461374972627478},6.6397434966480201E-4]
[null,"CO₂ eq - queima da gasolina A","kg",null,{"$f":"$E$47*'FE''s queima combustíveis'!$I$9/1000","v":0},0,0]
[null,"CO₂ eq - queima do etanol anidro","kg",null,{"$f":"$E$48*'FE''s queima combustíveis'!$I$7/1000","v":0},0,0]
[null,"CO₂ eq - queima do etanol hidratado","kg",null,{"$f":"$E$49*'FE''s queima combustíveis'!$I$8/1000","v":0},0,0]
[null,"CO₂ eq - queima do biometano","kg",null,{"$f":"($E$50+BioQavHEFA!$D$84)*'FE''s queima combustíveis'!$I$55/1000","v":0},0,0]
[]
[null,"Emissões do processo","g CO2 eq/t soja",null,null,{"$f":"SUM(F57:F67)","v":234811.74081333101},{"$f":"(((F69*$F$76)/$D$76)*1000*$F$127)/$E$127","v":12.511378017486793}]
[null,"Emissões background","g CO2 eq/t soja",null,null,{"$f":"SUM(F18:F55)","v":151915.00722310971},{"$f":"(((F70*$F$76)/$D$76)*1000*$F$127)/$E$127","v":8.0944252417452187}]
[null,"Emissões totais","g CO2 eq/t soja",null,null,{"$f":"F69+F70","v":386726.74803644069},{"$f":"(((F71*$F$76)/$D$76)*1000*$F$127)/$E$127","v":20.605803259232012}]
[]
[]
[null,"Etapa industrial - Extração do óleo de soja"]
[null,"Produtos","Unidade","1 t soja","MJ","Alocação"]
[null,"Óleo de soja","kg",{"$f":"BioQavHEFA!D96","v":191.93856},{"$f":"D76*'Dados auxiliares'!$D$39","v":6533.5885823999997},{"$f":"E76/SUM($E$76:$E$77)","v":0.34643486623983888}]
[null,"Farelo de soja","kg",{"$f":"BioQavHEFA!D97","v":800.38390000000004},{"$f":"D77*'Dados auxiliares'!$D$40","v":12325.912060000001},{"$f":"E77/SUM($E$76:$E$77)","v":0.65356513376016101}]
[null,"Entradas ","Unidade","1 t soja",null,"g CO2 eq/t soja",null,null,null,null,null,null,null,null,null,null,null,null,null,null,null,null,null,null,null,null,null,null,null,null,null,null,null,null,null,null,null,null,null,null,null,null,null,null,null,null,null,null,null,null,null,null,null,null,null,null,null,null,null,null,null,null,null,null,null,null,null,null,null,null,null,null,null,null,null,null,null,null,{"$f":"(D76+D77)*F76","v":343.77509869688788}]
[null,"Processamento dos grãos"]
[null,"Processamento com secagem","m³",{"$f":"0.00004878*0.6","v":2.9267999999999998E-5},null,{"$f":"D80*'Dados auxiliares'!$H$77","v":9.3980387991599993E-7},{"$f":"(((F80*$F$76)/$D$76)*1000*$F$127)/$E$127","v":5.0075186032870997E-11}]
[null,"Processamento sem secagem","m³",{"$f":"0.00004878*0.4","v":1.9511999999999999E-5},null,{"$f":"D81*'Dados auxiliares'!$H$76","v":3.0850690514400005E-7},{"$f":"(((F81*$F$76)/$D$76)*1000*$F$127)/$E$127","v":1.6438047339080879E-11}]
[null,"Insumos"]
[null,"Soja (grãos)","t",1,null,{"$f":"D83*F71","v":386726.74803644069},{"$f":"(((F83*$F$76)/$D$76)*1000*$F$127)/$E$127","v":20.605803259232012},null,null,null,null,null,null,null,null,null,null,null,null,null,null,null,null,null,null,null,null,null,null,null,null,null,null,null,null,null,null,null,null,null,null,null,null,null,null,null,null,null,null,null,null,null,null,null,null,null,null,null,null,null,null,null,null,null,null,null,null,null,null,null,null,null,null,null,null,null,null,null,{"$f":"CA78*F122","v":270497.74904800294},{"$f":"(CA78*#REF!)/1000","v":{"$error":"#REF!"}}]
[null,"Transporte da soja em grãos até a usina","tkm",{"$f":"D83*BioQavHEFA!$D$95","v":334.92499999999995},null,{"$f":"D84*'Dados auxiliares'!$H$125","v":40219.460701119766},{"$f":"(((F84*$F$76)/$D$76)*1000*$F$127)/$E$127","v":2.1429970867223154}]
[null,"Hexano","kg",1.1000000000000001,null,{"$f":"D85*'Dados auxiliares'!$H$96","v":339.58162909820237},{"$f":"(((F85*$F$76)/$D$76)*1000*$F$127)/$E$127","v":1.8093789155198815E-2}]
[null,"Água","kg",{"$f":"(2.34*992.3224568)/5.17","v":449.13627638529982},null,{"$f":"D86*'Dados auxiliares'!H79","v":3.9531054548047617},{"$f":"(((F86*$F$76)/$D$76)*1000*$F$127)/$E$127","v":2.1063170230218526E-4}]
[null,"Combustíveis e eletricidade"]
[null,"Eletricidade da rede - mix médio","kWh",{"$f":"BioQavHEFA!D100","v":34.548944337330752},null,{"$f":"D88*'Dados auxiliares'!$H$103","v":5037.2982724826306},{"$f":"(((F88*$F$76)/$D$76)*1000*$F$127)/$E$127","v":0.26840030509362556}]
[null,"Eletricidade - PCH","kWh",{"$f":"BioQavHEFA!D101","v":0},null,{"$f":"D89*'Dados auxiliares'!$H$104","v":0},0]
[null,"Eletricidade - biomassa","kWh",{"$f":"BioQavHEFA!D102","v":0},null,{"$f":"D90*'Dados auxiliares'!$H$105","v":0},0]
[null,"Eletricidade - eólica","kWh",{"$f":"BioQavHEFA!D103","v":0},null,{"$f":"D91*'Dados auxiliares'!$H$106","v":0},0]
[null,"Eletricidade - solar","kWh",{"$f":"BioQavHEFA!D104","v":0},null,{"$f":"D92*'Dados auxiliares'!$H$107","v":0},0]
[null,"Diesel B0","kg",{"$f":"(BioQavHEFA!$D$105*(1-0.08)+BioQavHEFA!$D$106*(1-0.1)+BioQavHEFA!$D$107*(1-BioQavHEFA!$G$107)+BioQavHEFA!$D$108*(1-0.2)+BioQavHEFA!$D$109*(1-0.3)+BioQavHEFA!$D$110*(1-1))*('Dados auxiliares'!$D$24)","v":8.8291746639845112E-2},null,{"$f":"D93*'Dados auxiliares'!$H$112","v":49.101627772005926},2.6162619645917489E-3]
[null,"Biodiesel B100","kg",{"$f":"(BioQavHEFA!$D$105*(0.08)+BioQavHEFA!$D$106*(0.1)+BioQavHEFA!$D$107*(BioQavHEFA!$G$107)+BioQavHEFA!$D$108*(0.2)+BioQavHEFA!$D$109*(0.3)+BioQavHEFA!$D$110*(1))*('Dados auxiliares'!$D$17)","v":8.0431404806484159E-3},null,{"$f":"D94*'Dados auxiliares'!$H$113","v":7.9376959898848733},4.2294101126863433E-4]
[null,"Biometano de terceiros","Nm³",{"$f":"BioQavHEFA!D111","v":0},null,{"$f":"E95*'Dados auxiliares'!$F$18","v":0},0]
[null,"Gás natural","Nm³",{"$f":"BioQavHEFA!D113","v":0},null,{"$f":"D96*'Dados auxiliares'!$H$111","v":0},0]
[null,"Cavaco de madeira","kg base seca",{"$f":"BioQavHEFA!$D$115*(1-BioQavHEFA!$D$116)","v":56.142034548162478},null,{"$f":"D97*'Dados auxiliares'!$H$119","v":1920.8180472720176},0.10234616296863912]
[null,"Transporte de cavaco de madeira","tkm",{"$f":"((D97/1000)*BioQavHEFA!$D$117)","v":8.4213051822243727},null,{"$f":"D98*'Dados auxiliares'!$H$125","v":1011.272233570529},5.3883205111312601E-2]
[null,"Lenha","kg base seca",{"$f":"BioQavHEFA!$D$119*(1-BioQavHEFA!$D$120)","v":0},null,{"$f":"D99*'Dados auxiliares'!$H$120","v":0},0]
[null,"Transporte de lenha","tkm",{"$f":"((D99/1000)*BioQavHEFA!$D$121)","v":0},null,{"$f":"D100*'Dados auxiliares'!$H$125","v":0},0]
[null,"Resíduos florestais","kg base seca",{"$f":"BioQavHEFA!$D$123*(1-BioQavHEFA!$D$124)","v":0},null,0,0]
[null,"Transporte de resíduos florestais","tkm",{"$f":"((D101/1000)*BioQavHEFA!$D$125)","v":0},null,{"$f":"D102*'Dados auxiliares'!$H$125","v":0},0]
[null,"Bagaço de cana-de-açúcar","kg base seca",{"$f":"BioQavHEFA!$D$127*(1-BioQavHEFA!$D$128)","v":0},null,0,0]
[null,"Transporte de bagaço de cana-de-açúcar","tkm",{"$f":"((D103/1000)*BioQavHEFA!$D$129)","v":0},null,{"$f":"D104*'Dados auxiliares'!$H$125","v":0},0]
[null,"Palha de cana-de-açúcar","kg base seca",{"$f":"BioQavHEFA!$D$131*(1-BioQavHEFA!$D$132)","v":0},null,{"$f":"D105*'Dados auxiliares'!$H$74","v":0},0]
[null,"Transporte de palha de cana-de-açúcar","tkm",{"$f":"((D105/1000)*BioQavHEFA!$D$133)","v":0},null,{"$f":"D106*'Dados auxiliares'!$H$125","v":0},0]
[null,"Emissões","Unidade","1 t soja",null,"g CO2 eq/t soja",null,null,null,null,null,null,null,null,null,null,null,null,null,null,null,null,null,null,null,null,null,null,null,null,null,null,null,null,null,null,null,null,null,null,null,null,null,null,null,null,null,null,null,null,null,null,null,null,null,null,null,null,null,null,null,null,null,null,null,null,null,null,null,null,null,null,null,null,null,null,null,null,null,"Emissão desconsiderada"]
[null,"CO₂ eq - queima do diesel","kg",{"$f":"D93*'FE''s queima combustíveis'!$I$45/1000","v":0.2776011708214694},null,{"$f":"D108*1000","v":277.6011708214694},{"$f":"(((F108*$F$76)/$D$76)*1000*$F$127)/$E$127","v":1.4791309728440737E-2}]
[null,"CO₂ eq - queima do biodiesel","kg",{"$f":"D94*'FE''s queima combustíveis'!$I$46/1000","v":8.1887213233481528E-5},null,8.1887213233481526E-2,4.3631629151674392E-6]
[null,"CO₂ eq - queima do biometano","kg",{"$f":"(D95+BioQavHEFA!D112)*'FE''s queima combustíveis'!$I$39/1000","v":0},null,0,0]
[null,"CO₂ eq - queima da gás natural","kg",{"$f":"D96*'FE''s queima combustíveis'!$I$41*('Dados auxiliares'!$D$25/1000)/1000","v":0},null,0,0]
[null,"CO₂ eq - queima do bagaço de cana-de-açúcar","kg",{"$f":"D103*'FE''s queima combustíveis'!$I$33/1000","v":0},null,0,0]
[null,"CO₂ eq - queima da palha de cana-de-açúcar","kg",{"$f":"D105*'FE''s queima combustíveis'!$I$34/1000","v":0},null,0,0]
[null,"CO₂ eq - queima dos cavacos de madeira","kg",{"$f":"D97*'FE''s queima combustíveis'!$I$35/1000","v":0.34931573895866697},null,349.31573895866694,1.8612447752533755E-2]
[null,"CO₂ eq - queima da lenha","kg",{"$f":"D99*'FE''s queima combustíveis'!$I$36/1000","v":0},null,0,0]
[null,"CO₂ eq - queima dos resíduos florestais","kg",{"$f":"D101*'FE''s queima combustíveis'!$I$37/1000","v":0},null,0,0]
[]
[null,"Emissões do processo","g CO2 eq/t soja",null,null,{"$f":"SUM(F108:F116)","v":626.99879699336975},{"$f":"(((F118*$F$76)/$D$76)*1000*$F$127)/$E$127","v":3.3408120643889656E-2}]
[null,"Emissões background","g CO2 eq/t soja",null,null,{"$f":"SUM(F80:F106)","v":435316.17135044892},{"$f":"(((F119*$F$76)/$D$76)*1000*$F$127)/$E$127","v":23.19477364302778}]
[null,"Emissões totais","g CO2 eq/t soja",null,null,{"$f":"F118+F119","v":435943.17014744226},{"$f":"(((F120*$F$76)/$D$76)*1000*$F$127)/$E$127","v":23.228181763671671}]
[]
[null,"Emissões totais","g CO2 eq/kg óleo de soja",null,null,{"$f":"F120*F76/$D$76","v":786.8450916699619}]
[]
[]
[null,"Etapa industrial - Produção de bioquerosene",null,null,null,null,null,null,null,null,null,null,null,null,null,null,null,null,null,null,null,null,null,null,null,null,null,null,null,null,null,null,null,null,null,null,null,null,null,null,null,null,null,null,null,null,null,null,null,null,null,null,null,null,null,null,null,null,null,null,null,null,null,null,null,null,null,null,null,null,null,null,null,null,null,null,{"$f":"F122*CC130","v":{"$error":"#REF!"}}]
[null,"Produtos","Unidade","1 t soja","MJ","Alocação"]
[null,"Bioquerosene","kg",{"$f":"BioQavHEFA!D140","v":492.79069767441899},{"$f":"D127*'Dados auxiliares'!$F$19","v":21457.420953785888},{"$f":"E127/SUM($E$127:$E$129)","v":0.63343710136939391}]
[null,"Gasolina verde","kg",{"$f":"BioQavHEFA!D141","v":59.348837209302303},{"$f":"D128*'Dados auxiliares'!$F$21","v":2596.5116279069757},{"$f":"E128/SUM($E$127:$E$129)","v":7.665072157533126E-2}]
[null,"Diesel verde","kg",{"$f":"BioQavHEFA!D142","v":232.39534883720901},{"$f":"D129*'Dados auxiliares'!$F$20","v":9820.6556093023137},0.28991217705527478]
[null,"Entradas ","Unidade","1 t óleo",null,"g CO2 eq/t óleo",null,null,null,null,null,null,null,null,null,null,null,null,null,null,null,null,null,null,null,null,null,null,null,null,null,null,null,null,null,null,null,null,null,null,null,null,null,null,null,null,null,null,null,null,null,null,null,null,null,null,null,null,null,null,null,null,null,null,null,null,null,null,null,null,null,null,null,null,null,null,null,{"$error":"#REF!"},{"$f":"D127/BZ130","v":{"$error":"#REF!"}},{"$f":"CA130*1000","v":{"$error":"#REF!"}},{"$f":"CB130/D127","v":{"$error":"#REF!"}}]
[null,"Óleo de soja","kg",1,null,{"$f":"$D$131*$F$122*1000","v":786845.09166996193},{"$f":"(F131*$F$127)/$E$127","v":23.228181763671671}]
[null,"Transporte da soja em grãos até a usina","tkm",{"$f":"D131*BioQavHEFA!D139","v":0},null,{"$f":"D132*'Dados auxiliares'!$H$126","v":0},0]
[null,"Água","kg",383.53488372093,null,{"$f":"D133*'Dados auxiliares'!$H$79","v":3.375710047621399},9.9653168581360286E-5]
[null,"Hidrogênio","kg",{"$f":"BioQavHEFA!D145","v":0},null,{"$f":"D134*'Dados auxiliares'!$H$98","v":0},0]
[null,"Eletricidade da rede - mix médio","kWh",{"$f":"BioQavHEFA!D147","v":2259.25107209302},null,{"$f":"D135*'Dados auxiliares'!$H$103","v":329402.87296309206},9.7241882648379061]
[null,"Eletricidade - PCH","kWh",{"$f":"BioQavHEFA!D148","v":0},null,{"$f":"D136*'Dados auxiliares'!$H$104","v":0},0]
[null,"Eletricidade - biomassa","kWh",{"$f":"BioQavHEFA!D149","v":0},null,{"$f":"D137*'Dados auxiliares'!$H$105","v":0},0]
[null,"Eletricidade - eólica","kWh",{"$f":"BioQavHEFA!D150","v":0},null,{"$f":"D138*'Dados auxiliares'!$H$106","v":0},0]
[null,"Eletricidade - solar","kWh",{"$f":"BioQavHEFA!D151","v":0},null,{"$f":"D139*'Dados auxiliares'!$H$107","v":0},0]
[null,"Diesel B0","kg",{"$f":"(BioQavHEFA!$D$152*(1-0.08)+BioQavHEFA!$D$153*(1-0.1)+BioQavHEFA!$D$154*(1-BioQavHEFA!$G$154)+BioQavHEFA!$D$155*(1-0.2)+BioQavHEFA!$D$156*(1-0.3)+BioQavHEFA!$D$157*(1-1))*('Dados auxiliares'!$D$24)","v":4.7891830985915497E-3},null,{"$f":"D140*'Dados auxiliares'!$H$112","v":2.663405072257349},7.8625459806042959E-5]
[null,"Biodiesel B100","kg",{"$f":"(BioQavHEFA!$D$152*(0.08)+BioQavHEFA!$D$153*(0.1)+BioQavHEFA!$D$154*(BioQavHEFA!$G$154)+BioQavHEFA!$D$155*(0.2)+BioQavHEFA!$D$156*(0.3)+BioQavHEFA!$D$157*(1))*('Dados auxiliares'!$D$17)","v":4.3628169014084514E-4},null,{"$f":"D141*'Dados auxiliares'!$H$113","v":0.43056209581608579},1.2710474689417517E-5]
[null,"Biometano de terceiros","Nm³",{"$f":"BioQavHEFA!D158","v":0},null,{"$f":"E142*'Dados auxiliares'!$F$18","v":0},0]
[null,"Gás natural","Nm³",{"$f":"BioQavHEFA!D160","v":0},null,{"$f":"D143*'Dados auxiliares'!$H$111","v":0},0]
[null,"Cavaco de madeira","kg base seca",{"$f":"BioQavHEFA!$D$162*(1-BioQavHEFA!$D$163)","v":44.76340962441315},null,{"$f":"D144*'Dados auxiliares'!$H$119","v":1531.5149469733083},4.5211322963932828E-2]
[null,"Transporte de cavaco de madeira","tkm",{"$f":"((D144/1000)*BioQavHEFA!$D$164)","v":6.7145114436619728},null,{"$f":"D145*'Dados auxiliares'!$H$125","v":806.31194785573393},2.3802856091105908E-2]
[null,"Lenha","kg base seca",{"$f":"BioQavHEFA!$D$166*(1-BioQavHEFA!$D$167)","v":0},null,{"$f":"D146*'Dados auxiliares'!$H$120","v":0},0]
[null,"Transporte de lenha","tkm",{"$f":"((D146/1000)*BioQavHEFA!$D$168)","v":0},null,{"$f":"D147*'Dados auxiliares'!$H$125","v":0},0]
[null,"Resíduos florestais","kg base seca",{"$f":"BioQavHEFA!$D$170*(1-BioQavHEFA!$D$171)","v":0},null,0,0]
[null,"Transporte de resíduos florestais","tkm",{"$f":"((D148/1000)*BioQavHEFA!$D$172)","v":0},null,{"$f":"D149*'Dados auxiliares'!$H$125","v":0},0]
[null,"Bagaço de cana-de-açúcar","kg base seca",{"$f":"BioQavHEFA!$D$174*(1-BioQavHEFA!$D$175)","v":0},null,0,0]
[null,"Transporte de bagaço de cana-de-açúcar","tkm",{"$f":"((D150/1000)*BioQavHEFA!$D$176)","v":0},null,{"$f":"D151*'Dados auxiliares'!$H$125","v":0},0]
[null,"Palha de cana-de-açúcar","kg base seca",{"$f":"BioQavHEFA!$D$178*(1-BioQavHEFA!$D$179)","v":0},null,{"$f":"D152*'Dados auxiliares'!$H$74","v":0},0]
[null,"Transporte de palha de cana-de-açúcar","tkm",{"$f":"((D152/1000)*BioQavHEFA!$D$180)","v":0},null,{"$f":"D153*'Dados auxiliares'!$H$125","v":0},0]
[null,"Emissões","Unidade","1 t óleo",null,"g CO2 eq/t óleo"]
[null,"CO₂ eq - queima do diesel","kg",{"$f":"D140*'FE''s queima combustíveis'!$I$45/1000","v":1.5057838201690141E-2},null,{"$f":"D155*1000","v":15.05783820169014},{"$f":"(((F155*$F$76)/$D$76)*1000*$F$127)/$E$127","v":8.0232063871655927E-4}]
[null,"CO₂ eq - queima do biodiesel","kg",{"$f":"D141*'FE''s queima combustíveis'!$I$46/1000","v":4.4417838873239444E-6},null,4.4417838873239447E-3,{"$f":"(((F156*$F$76)/$D$76)*1000*$F$127)/$E$127","v":2.366697554977489E-7}]
[null,"CO₂ eq - queima do biometano","kg",{"$f":"(D142+BioQavHEFA!D159)*'FE''s queima combustíveis'!$I$39/1000","v":2.0219936388374062},null,2021.9936388374063,0.10773706066324691]
[null,"CO₂ eq - queima da gás natural","kg",{"$f":"D143*'FE''s queima combustíveis'!$I$41*('Dados auxiliares'!$D$25/1000)/1000","v":0},null,0,0]
[null,"CO₂ eq - queima do bagaço de cana-de-açúcar","kg",{"$f":"D150*'FE''s queima combustíveis'!$I$33/1000","v":0},null,0,0]
[null,"CO₂ eq - queima da palha de cana-de-açúcar","kg",{"$f":"D152*'FE''s queima combustíveis'!$I$34/1000","v":0},null,0,0]
[null,"CO₂ eq - queima dos cavacos de madeira","kg",{"$f":"D144*'FE''s queima combustíveis'!$I$35/1000","v":0.27851793468309866},null,278.51793468309864,1.4840157282595761E-2]
[null,"CO₂ eq - queima da lenha","kg",{"$f":"D146*'FE''s queima combustíveis'!$I$36/1000","v":0},null,0,0]
[null,"CO₂ eq - queima dos resíduos florestais","kg",{"$f":"D148*'FE''s queima combustíveis'!$I$37/1000","v":0},null,0,0]
[]
[null,"Emissões do processo","g CO2 eq/kg óleo",null,null,{"$f":"SUM(F155:F163)","v":2315.5738535060823},{"$f":"(F165*$F$127)/$E$127","v":6.8357254719974045E-2}]
[null,"Emissões background","g CO2 eq/kg óleo",null,null,{"$f":"SUM(F131:F153)","v":1118592.2612050986},33.021575196667683]
[null,"Emissões totais","g CO2 eq/kg óleo",null,null,{"$f":"F166+F165","v":1120907.8350586046},33.089932451387661]
[]
[null,"Emissões totais","g CO2 eq/kg óleo de soja"]
[]
[null,"Etapa distribuição"]
[null,"Sistema logiístico rodoviário"]
[null,"Parâmetro","Unidade","Etanol anidro"]
[null,"Massa","kg/t óleo",{"$f":"$D$127*BioQavHEFA!D185","v":492.79069767441899}]
[null,"Distância de transporte rodoviário","km",1500]
[null,"Transporte rodoviário","tkm/t óleo",{"$f":"D174/1000*D175","v":739.18604651162855}]
[null,"Emissões","g CO2 eq/t óleo",{"$f":"D176*'Dados auxiliares'!$H$126","v":23954.365706145349}]
[null,"Emissões","g CO2 eq/MJ",{"$f":"D177/$E$127","v":1.1163674216830288}]
[null,"Sistema logiístico rodoviário + dutoviário"]
[null,"Parâmetro","Unidade","Etanol anidro"]
[null,"Massa","kg/t óleo",{"$f":"$D$127*BioQavHEFA!D186","v":0}]
[null,"Distância de transporte rodoviário","km",900]
[null,"Transporte rodoviário","tkm/t óleo",{"$f":"D181/1000*D182","v":0}]
[null,"Distância de transporte dutoviário","km",600]
[null,"Transporte dutoviário","tkm/t óleo",{"$f":"D181/1000*D184","v":0}]
[null,"Emissões","g CO2 eq/t óleo",{"$f":"D183*'Dados auxiliares'!$H$126+D185*'Dados auxiliares'!$H$130","v":0}]
[null,"Emissões","g CO2 eq/MJ",{"$f":"D186/$E$127","v":0}]
[null,"Sistema logiístico rodoviário + ferroviário"]
[null,"Parâmetro","Unidade","Etanol anidro"]
[null,"Massa","kg/t óleo",{"$f":"$D$127*BioQavHEFA!D187","v":0}]
[null,"Distância de transporte rodoviário","km",900]
[null,"Transporte rodoviário","tkm/t óleo",{"$f":"D190/1000*D191","v":0}]
[null,"Distância de transporte ferroviário","km",600]
[null,"Transporte ferroviário","tkm/t óleo",{"$f":"D190/1000*D193","v":0}]
[null,"Emissões","g CO2 eq/t óleo",{"$f":"D192*'Dados auxiliares'!$H$126+D194*'Dados auxiliares'!$H$129","v":0}]
[null,"Emissões","g CO2 eq/MJ",{"$f":"D195/$E$127","v":0}]
[]
[null,"Emissões totais","g CO2 eq/MJ",{"$f":"D178+D187+D196","v":1.1163674216830288}]

{"sheet":"Biometano","index":18,"n_rows":95,"n_cols":8,"rows_kept":95,"cut":false,"hidden":false,"merged":[[30,2,30,4],[35,2,35,4],[40,2,40,4],[45,2,45,4],[77,2,77,4],[81,2,81,4],[85,2,85,4],[91,1,91,7],[49,1,49,7],[54,1,54,7],[69,2,69,4],[73,2,73,4],[22,1,22,7],[23,1,23,7],[25,2,25,4],[3,2,3,7],[5,2,5,7],[7,2,7,7],[9,2,9,3],[12,2,12,3],[14,3,14,5]]}
[]
[null,"Produção de Biometano de Resíduos"]
[]
[null,"Nome da Usina:","Usina Hipotética"]
[]
[null,"CNPJ","00.000.000/0000-00"]
[]
[null,"Responsável pelo preenchimento:","GT ACV RenovaCalc"]
[]
[null,"Telefone :","(00) 0000-0000"]
[]
[]
[null,null,"Biometano"]
[]
[null,"Intensidade de Carbono\n(g CO₂eq/MJ)",{"$f":"SUM(C18:C20)","v":7.4394140679399561},"Nota de Eficiência Energético-Ambiental\n(g CO₂eq/MJ)",null,null,{"$f":"G18-C15","v":79.260585932060053}]
[]
[null,null,null,null,null,null,"Fóssil de referência: Média entre Gasolina, Diesel e GNV"]
[null,"industrial",{"$f":"_Biometano!C5","v":3.671391479230079},null,null,null,86.7]
[null,"transporte",{"$f":"_Biometano!C6","v":7.129100925353464E-2},null,null,null,"Redução de emissões"]
[null,"uso",{"$f":"_Biometano!C7","v":3.6967315794563422},null,null,null,{"$f":"(G18-C15)/G18","v":0.91419360936632121}]
[]
[]
[null,"Fase industrial - produção de biometano"]
[null,"Biomassas"]
[null,null,null,"Biomassa 1"]
[null,null,"Biogás de Aterro Sanitário"]
[null,null,"Quantidade",null,"t/ano"]
[null,null,"Distância de transporte",0," km"]
[]
[null,null,null,"Biomassa 2"]
[null,null,"Especificar"]
[null,null,"Quantidade",0,"t/ano"]
[null,null,"Distância de transporte",0," km"]
[]
[null,null,null,"Biomassa 3"]
[null,null,"Especificar"]
[null,null,"Quantidade",0,"t/ano"]
[null,null,"Distância de transporte",0," km"]
[]
[null,null,null,"Biomassa 4"]
[null,null,"Especificar"]
[null,null,"Quantidade",0,"t/ano"]
[null,null,"Distância de transporte",0," km"]
[]
[null,null,null,"Biomassa 5"]
[null,null,"Especificar"]
[null,null,"Quantidade",0,"t/ano"]
[null,null,"Distância de transporte",0," km"]
[]
[null,"Produtos"]
[null,null,"Produção de biometano",5895000,"Nm³/ano","Poder calorífico inferior",34.438103401554876,"MJ/Nm³"]
[null,null,null,null,null,"Teor de metano",0.96499999999999997,"% molar"]
[null,null,"Eletricidade comercializada",0,"kWh/ano"]
[]
[null,"Combustíveis e energia"]
[null,null,"Eletricidade da rede - mix médio",{"$f":"(149+263+4700)","v":5112},"MWh/ano"]
[null,null,"Eletricidade - PCH",0,"MWh/ano"]
[null,null,"Eletricidade - biomassa",0,"MWh/ano"]
[null,null,"Eletricidade - eólica",0,"MWh/ano"]
[null,null,"Eletricidade - solar",0,"MWh/ano"]
[null,null,"Diesel - B8",0,"m³/ano"]
[null,null,"Diesel - B10",0,"m³/ano"]
[null,null,"Diesel - BX",0,"m³/ano","Teor de biodiesel na mistura",0.11]
[null,null,"Diesel - B20",0,"m³/ano"]
[null,null,"Diesel - B30",0,"m³/ano"]
[null,null,"Biodiesel - B100",0,"m³/ano"]
[null,null,"Biometano de terceiros",0,"Nm³/ano"]
[null,null,"Biometano próprio",0,"Nm³/ano"]
[null,null,"Gás natural",0,"Nm³/ano"]
[null,null,"Cavaco de madeira"]
[null,null,"Quantidade (base úmida)",0,"t/ano"]
[null,null,"Umidade",0]
[null,null,"Distância de transporte",0,"km"]
[null,null," Lenha"]
[null,null,"Quantidade (base úmida)",0,"t/ano"]
[null,null,"Umidade",0]
[null,null,"Distância de transporte",0,"km"]
[null,null,"Resíduos florestais"]
[null,null,"Quantidade (base úmida)",0,"t/ano"]
[null,null,"Umidade",0]
[null,null,"Distância de transporte",0,"km"]
[null,null,"Bagaço de cana"]
[null,null,"Quantidade (base úmida)",0,"t/ano"]
[null,null,"Umidade",0]
[null,null,"Distância de transporte",0,"km"]
[null,null,"Palha de cana"]
[null,null,"Quantidade (base úmida)",0,"t/ano"]
[null,null,"Umidade",0]
[null,null,"Distância de transporte",0,"km"]
[]
[]
[null,"Distribuição do biometano"]
[]
[null,null,"Rodoviário",1,"%"]
[null,null,"Dutoviário",0,"%"]

{"sheet":"_Biometano","index":19,"n_rows":79,"n_cols":81,"rows_kept":79,"cut":false,"hidden":false,"merged":[[9,1,9,5],[62,1,62,5],[1,1,1,5],[2,2,2,3],[3,2,3,3]]}
[]
[null,"Emissões totais - g CO₂ eq"]
[null,null,"Biodiesel"]
[null,"Total",{"$f":"SUM(C5:C7)","v":7.4394140679399561}]
[null,"Industrial",{"$f":"G59","v":3.671391479230079},{"$f":"C5/$C$4","v":0.49350546235245674}]
[null,"Transporte",{"$f":"D79","v":7.129100925353464E-2},9.5828795927305858E-3]
[null,"Uso",{"$f":"'FE''s queima combustíveis'!$I$12","v":3.6967315794563422},0.49691165805481263]
[]
[]
[null,"Etapa industrial - Produção de biogás",null,null,null,null,null,null,null,null,null,null,null,null,null,null,null,null,null,null,null,null,null,null,null,null,null,null,null,null,null,null,null,null,null,null,null,null,null,null,null,null,null,null,null,null,null,null,null,null,null,null,null,null,null,null,null,null,null,null,null,null,null,null,null,null,null,null,null,null,null,null,null,null,null,null,{"$f":"#REF!*CC14","v":{"$error":"#REF!"}}]
[null,"Produtos","Unidade","Unidade/ano","MJ","Alocação"]
[null,"Biogás","Nm³",{"$f":"Biometano!D51","v":5895000},{"$f":"D12*Biometano!G51","v":203012619.55216599},{"$f":"E12/SUM($E$12:$E$13)","v":1}]
[null,"Eletricidade","kWh",{"$f":"Biometano!D53","v":0},{"$f":"CONVERT(D13,\"kWh\",\"MJ\")","v":0},{"$f":"E13/SUM($E$12:$E$13)","v":0}]
[null,"Entradas ","Unidade","Unidade/ano",null,"g CO2 eq/ano",null,null,null,null,null,null,null,null,null,null,null,null,null,null,null,null,null,null,null,null,null,null,null,null,null,null,null,null,null,null,null,null,null,null,null,null,null,null,null,null,null,null,null,null,null,null,null,null,null,null,null,null,null,null,null,null,null,null,null,null,null,null,null,null,null,null,null,null,null,null,null,{"$error":"#REF!"},{"$f":"D12/BZ14","v":{"$error":"#REF!"}},{"$f":"CA14*1000","v":{"$error":"#REF!"}},{"$f":"CB14/D12","v":{"$error":"#REF!"}}]
[null,"Matérias-primas"]
[null,"Matéria-prima 1","t",{"$f":"Biometano!$D$27","v":0},null,0,{"$f":"(F16*$F$12)/$E$12","v":0}]
[null,"Transporte matéria-prima 1 até a usina","tkm",{"$f":"D16*Biometano!$D$28","v":0},null,{"$f":"D17*'Dados auxiliares'!$H$126","v":0},{"$f":"(F17*$F$12)/$E$12","v":0}]
[null,"Matéria-prima 2","t",{"$f":"Biometano!$D$32","v":0},null,0,0]
[null,"Transporte matéria-prima 2 até a usina","tkm",{"$f":"D18*Biometano!$D$33","v":0},null,{"$f":"D19*'Dados auxiliares'!$H$126","v":0},0]
[null,"Matéria-prima 3","t",{"$f":"Biometano!$D$37","v":0},null,0,0]
[null,"Transporte matéria-prima 3 até a usina","tkm",{"$f":"D20*Biometano!$D$38","v":0},null,{"$f":"D21*'Dados auxiliares'!$H$126","v":0},0]
[null,"Matéria-prima 4","t",{"$f":"Biometano!$D$42","v":0},null,0,0]
[null,"Transporte matéria-prima 4 até a usina","tkm",{"$f":"D22*Biometano!$D$43","v":0},null,{"$f":"D23*'Dados auxiliares'!$H$126","v":0},0]
[null,"Matéria-prima 5","t",{"$f":"Biometano!$D$47","v":0},null,0,0]
[null,"Transporte matéria-prima 5 até a usina","tkm",{"$f":"D24*Biometano!$D$48","v":0},null,{"$f":"D25*'Dados auxiliares'!$H$126","v":0},0]
[null,"Insumos"]
[null,"Eletricidade da rede - mix médio","kWh",{"$f":"Biometano!D56*1000","v":5112000},null,{"$f":"D27*'Dados auxiliares'!$H$103","v":745338801.5999999},3.671391479230079]
[null,"Eletricidade - PCH","kWh",{"$f":"Biometano!D57*1000","v":0},null,{"$f":"D28*'Dados auxiliares'!$H$104","v":0},0]
[null,"Eletricidade - biomassa","kWh",{"$f":"Biometano!D58*1000","v":0},null,{"$f":"D29*'Dados auxiliares'!$H$105","v":0},0]
[null,"Eletricidade - eólica","kWh",{"$f":"Biometano!D59*1000","v":0},null,{"$f":"D30*'Dados auxiliares'!$H$106","v":0},0]
[null,"Eletricidade - solar","kWh",{"$f":"Biometano!D60*1000","v":0},null,{"$f":"D31*'Dados auxiliares'!$H$107","v":0},0]
[null,"Diesel B0","kg",{"$f":"((Biometano!$D$61*(1-0.08)+Biometano!$D$62*(1-0.1)+Biometano!$D$63*(1-Biometano!$G$63)+Biometano!$D$64*(1-0.2)+Biometano!$D$65*(1-0.3)+Biometano!$D$66*(1-1))*('Dados auxiliares'!$D$24))*1000","v":0},null,{"$f":"D32*'Dados auxiliares'!$H$112","v":0},0]
[null,"Biodiesel B100","kg",{"$f":"((Biometano!$D$61*(0.08)+Biometano!$D$62*(0.1)+Biometano!$D$63*(Biometano!$G$63)+Biometano!$D$64*(0.2)+Biometano!$D$65*(0.3)+Biometano!$D$66*(1))*('Dados auxiliares'!$D$17))*1000","v":0},null,{"$f":"D33*'Dados auxiliares'!$H$113","v":0},0]
[null,"Biometano de terceiros","Nm³",{"$f":"Biometano!D67","v":0},null,{"$f":"E34*'Dados auxiliares'!$F$18","v":0},0]
[null,"Gás natural","Nm³",{"$f":"Biometano!D69","v":0},null,{"$f":"D35*'Dados auxiliares'!$H$111","v":0},0]
[null,"Cavaco de madeira","kg base seca",{"$f":"Biometano!$D$71*(1-Biometano!$D$72)*1000","v":0},null,{"$f":"D36*'Dados auxiliares'!$H$119","v":0},0]
[null,"Transporte de cavaco de madeira","tkm",{"$f":"((D36/1000)*Biometano!$D$73)","v":0},null,{"$f":"D37*'Dados auxiliares'!$H$125","v":0},0]
[null,"Lenha","kg base seca",{"$f":"Biometano!$D$75*(1-Biometano!$D$76)*1000","v":0},null,{"$f":"D38*'Dados auxiliares'!$H$120","v":0},0]
[null,"Transporte de lenha","tkm",{"$f":"((D38/1000)*Biometano!$D$77)","v":0},null,{"$f":"D39*'Dados auxiliares'!$H$125","v":0},0]
[null,"Resíduos florestais","kg base seca",{"$f":"Biometano!$D$79*(1-Biometano!$D$80)*1000","v":0},null,0,0]
[null,"Transporte de resíduos florestais","tkm",{"$f":"((D40/1000)*Biometano!$D$81)","v":0},null,{"$f":"D41*'Dados auxiliares'!$H$125","v":0},0]
[null,"Bagaço de cana-de-açúcar","kg base seca",{"$f":"Biometano!$D$83*(1-Biometano!$D$84)*1000","v":0},null,0,0]
[null,"Transporte de bagaço de cana-de-açúcar","tkm",{"$f":"((D42/1000)*Biometano!$D$85)","v":0},null,{"$f":"D43*'Dados auxiliares'!$H$125","v":0},0]
[null,"Palha de cana-de-açúcar","kg base seca",{"$f":"Biometano!$D$87*(1-Biometano!$D$88)*1000","v":0},null,{"$f":"D44*'Dados auxiliares'!$H$74","v":0},0]
[null,"Transporte de palha de cana-de-açúcar","tkm",{"$f":"((D44/1000)*Biometano!$D$89)","v":0},null,{"$f":"D45*'Dados auxiliares'!$H$125","v":0},0]
[null,"Emissões","Unidade","1 t óleo",null,"g CO2 eq/t óleo"]
[null,"CO₂ eq - queima do diesel","kg",{"$f":"D32*'FE''s queima combustíveis'!$I$45/1000","v":0},null,{"$f":"D47*1000","v":0},0]
[null,"CO₂ eq - queima do biodiesel","kg",{"$f":"D33*'FE''s queima combustíveis'!$I$46/1000","v":0},null,0,0]
[null,"CO₂ eq - queima do biometano","kg",{"$f":"(D34+Biometano!$D$68)*'FE''s queima combustíveis'!$I$39/1000","v":0},null,0,0]
[null,"CO₂ eq - queima da gás natural","kg",{"$f":"D35*'FE''s queima combustíveis'!$I$41*('Dados auxiliares'!$D$25/1000)/1000","v":0},null,0,0]
[null,"CO₂ eq - queima do bagaço de cana-de-açúcar","kg",{"$f":"D42*'FE''s queima combustíveis'!$I$33/1000","v":0},null,0,0]
[null,"CO₂ eq - queima da palha de cana-de-açúcar","kg",{"$f":"D44*'FE''s queima combustíveis'!$I$34/1000","v":0},null,0,0]
[null,"CO₂ eq - queima dos cavacos de madeira","kg",{"$f":"D36*'FE''s queima combustíveis'!$I$35/1000","v":0},null,0,0]
[null,"CO₂ eq - queima da lenha","kg",{"$f":"D38*'FE''s queima combustíveis'!$I$36/1000","v":0},null,0,0]
[null,"CO₂ eq - queima dos resíduos florestais","kg",{"$f":"D40*'FE''s queima combustíveis'!$I$37/1000","v":0},null,0,0]
[]
[null,"Emissões do processo","g CO2 eq/kg óleo",null,null,{"$f":"SUM(F47:F55)","v":0},0]
[null,"Emissões background","g CO2 eq/kg óleo",null,null,{"$f":"SUM(F16:F45)","v":745338801.5999999},3.671391479230079]
[null,"Emissões totais","g CO2 eq/kg óleo",null,null,{"$f":"F58+F57","v":745338801.5999999},3.671391479230079]
[]
[null,"Emissões totais","g CO2 eq/kg óleo de soja"]
[]
[null,"Etapa distribuição"]
[null,"Sistema logiístico rodoviário"]
[null,"Parâmetro","Unidade","Etanol anidro"]
[null,"Massa","t",{"$f":"$D$12*'Dados auxiliares'!D18*Biometano!$D$94","v":4466.0839539824656}]
[null,"Distância de transporte rodoviário","km",100]
[null,"Transporte rodoviário","tkm",{"$f":"D66*D67","v":446608.39539824653}]
[null,"Emissões","g CO2 eq",{"$f":"D68*'Dados auxiliares'!$H$126","v":14472974.539077774}]
[null,"Emissões","g CO2 eq/MJ",{"$f":"D69/E12","v":7.129100925353464E-2}]
[null,"Sistema logiístico rodoviário + dutoviário"]
[null,"Parâmetro","Unidade","Etanol anidro"]
[null,"Massa","t",{"$f":"$D$12*'Dados auxiliares'!D25*Biometano!$D$95","v":0}]
[null,"Distância de transporte dutoviário","km",100]
[null,"Transporte dutoviário","tkm/t óleo",{"$f":"D73*D74","v":0}]
[null,"Emissões","g CO2 eq/t óleo",{"$f":"D75*'Dados auxiliares'!$H$130","v":0}]
[null,"Emissões","g CO2 eq/MJ",{"$f":"D76/E12","v":0}]
[]
[null,"Emissões totais","g CO2 eq/MJ",{"$f":"D70+D77","v":7.129100925353464E-2}]

{"sheet":"Dados auxiliares","index":20,"n_rows":140,"n_cols":10,"rows_kept":140,"cut":false,"hidden":false,"merged":[[44,9,45,9],[44,8,45,8],[12,1,13,1],[12,4,12,5],[44,2,45,2],[44,3,44,6],[44,7,45,7],[44,1,45,1],[3,1,4,1],[12,6,13,6],[30,1,31,1],[3,4,4,4],[30,4,31,4]]}
[]
[]
[null,"Fatores de caracterização dos gases causadores do efeito estufa"]
[null,"Gases de Efeito Estufa",null,"GWP","Referência"]
[null,null,null,"kg CO2eq/kg"]
[null,"CO2 - Dióxido de Carbono Fóssil",null,1,"AR5 (IPCC)"]
[null,"CH4 - Metano Fóssil",null,30,"AR5 (IPCC)"]
[null,"CH4 - biogênico - Metano Biogênico",null,28,"AR5 (IPCC)"]
[null,"N2O - Óxido Nitroso",null,265,"AR5 (IPCC)"]
[]
[]
[null,"Massa específica e poder calorífico inferior dos combustíveis"]
[null,"Combustíveis",null,"Massa específica","PCI",null,"Referência"]
[null,null,null,"kg/L","kcal/kg","MJ/kg"]
[null,"Etanol anidro",null,{"$f":"0.791","v":0.79100000000000004},6750,{"$f":"CONVERT(E15,\"kcal\",\"MJ\")","v":28.260865211440212},"ANP"]
[null,"Etanol hidratado",null,{"$f":"0.809","v":0.80900000000000005},6300,{"$f":"CONVERT(E16,\"kcal\",\"MJ\")","v":26.376807530677532},"ANP"]
[null,"Biodiesel (B100)",null,{"$f":"0.88","v":0.88},9000,{"$f":"CONVERT(E17,\"kcal\",\"MJ\")","v":37.681153615253614},"ANP"]
[null,"Biometano (96,5% metano)",null,7.5760542052289489E-4,{"$f":"CONVERT(F18,\"MJ\",\"kcal\")","v":10857.115838374209},45.456516636042409,"RenovaBio"]
[null,"BioQav",null,0.73499999999999999,10400,{"$f":"CONVERT(E19,\"kcal\",\"MJ\")","v":43.542666399848628},"KLEIN et al. (2018) - CTBE"]
[null,"Diesel verde",null,0.75700000000000001,{"$f":"CONVERT(F20,\"MJ\",\"kcal\")","v":10093.257862626619},42.258400000000002,"KLEIN et al. (2018) - CTBE"]
[null,"Gasolina verde ",null,0.67800000000000005,{"$f":"CONVERT(F21,\"MJ\",\"kcal\")","v":10449.520840588251},43.75,"KLEIN et al. (2018) - CTBE"]
[null,"Gasolina A",null,0.74199999999999999,10400,{"$f":"CONVERT(E22,\"kcal\",\"MJ\")","v":43.542666399848628},"ANP"]
[null,"Gasolina C",null,0.75424999999999998,9400,39.355871553709335,"ANP"]
[null,"Diesel A (B0)",null,{"$f":"0.84","v":0.84},10100,42.286627946006838,"ANP"]
[null,"Gás natural seco",null,7.3999999999999999E-4,8800,36.843794646025763,"ANP"]
[null,"Querosene de Aviação",null,0.79900000000000004,10400,43.542666399848628,"ANP"]
[null,"GLP",null,{"$f":"0.552","v":0.55200000000000005},11100,46.473422792146124,"ANP"]
[]
[]
[null,"Poder calorífico inferior de outros co-produtos"]
[null,"Produto",null,"PCI","Referência"]
[null,null,null,"MJ/kg"]
[null,"Açúcar",null,16.190000000000001,"TACO (2011)"]
[null,"DDG – “Dried Distillers Grains”",null,20.243178,"Assumido igual ao do DDGS"]
[null,"DDGS – “Dried Distillers Grains with Solubles”",null,20.243178,"Aurora et al (2010) "]
[null,"CGM - \"Corn Gluten Meal\"",null,18.608000000000001,"Shapouri et al (2002)"]
[null,"CGF - \"Corn Gluten Feed\"",null,18.608000000000001,"Shapouri et al (2002)"]
[null,"Óleo de Milho",null,37.216000000000001,"Aurora et al (2010) "]
[null,"Óleo de Soja",null,34.04,"Mourad & Walter (2011)"]
[null,"Farelo de Soja",null,15.4,"Mourad & Walter (2011)"]
[null,"Glicerina purificada",null,16.2,"Mourad & Walter (2011)"]
[]
[]
[null,"Emissões do ciclo de vida dos insumos e outros processos à montante"]
[null,"Insumo","Unidade ","Emissões do ciclo de vida [kg/unidade]",null,null,null,"g CO₂ eq/\nunidade","Fonte dos dados","Processo de referência"]
[null,null,null,"CO₂","N₂O","CH₄ biog","CH₄"]
[null,"Insumos agrícolas"]
[null,"Calcário calcítico","kg",3.4001956956061605E-2,1.4506696592221881E-6,1.7868832448844824E-6,7.9974027747571944E-5,{"$f":"(D48+(E48*$D$9)+(F48*$D$8)+(G48*$D$7))*1000","v":36.835637979039404},"Ecoinvent V.3.1","Lime {RoW}| production, milled, loose | Alloc Rec, U"]
[null,"Calcário dolomítico","kg",3.4001956956061605E-2,1.4506696592221881E-6,1.7868832448844824E-6,7.9974027747571944E-5,36.835637979039404,"Ecoinvent V.3.1","Lime {RoW}| production, milled, loose | Alloc Rec, U"]
[null,"Gesso","kg",2.5513589987704206E-3,6.5994415740673157E-7,1.1401762135279207E-7,3.3145878107303334E-6,2.8288743282029922,"Ecoinvent V.3.1","Gypsum, mineral {RoW}| gypsum quarry operation | Alloc Rec, U"]
[null,"N - Ureia","kg",2.9972536696840462,6.4340382247673818E-5,8.1201794828247067E-5,6.4878904803137502E-3,3211.2142356442832,"Ecoinvent V.3.1","Urea, as N {RoW}| production | Alloc Rec, U"]
[null,"N - MAP - Fosfato Monoamônico","kg",3.0738028152895898,9.6078515947296982E-5,2.01624628251585E-4,5.2532096527840274E-3,3262.5054011901889,"Ecoinvent V.3.1","Nitrogen fertiliser, as N {RER}| monoammonium phosphate production | Alloc Rec, U"]
[null,"P₂O₅ - MAP - Fosfato Monoamônico","kg",1.5661447680282488,4.8953323981758722E-5,1.0273051838542736E-4,2.6765824965501112E-3,1662.29132829471,"Ecoinvent V.3.1","Phosphate fertiliser, as P2O5 {RER}| monoammonium phosphate production | Alloc Rec, U"]
[null,"N - DAP - Fosfato diamônico","kg",3.1966140989888623,9.5270908599350679E-5,1.7106250283347176E-4,4.7753829262318611E-3,3369.9121276339833,"Ecoinvent V.3.1","Nitrogen fertiliser, as N {RER}| diammonium phosphate production | Alloc Rec, U"]
[null,"P₂O₅ - DAP - Fosfato diamônico","kg",1.33449,3.8509173E-5,3.5445092999999998E-5,3.3610197351872997E-3,1446.517985504619,"Ecoinvent V.3.1","Phosphate fertiliser, as P2O5 {RoW}| diammonium phosphate production | Alloc Rec, U"]
[null,"N - Nitrato de Amônio","kg",3.0576798378489443,1.8943252038828219E-2,7.7517877805886474E-5,4.8920608798888061E-3,8226.5739551136521,"Ecoinvent V.3.1","Ammonium nitrate, as N {RoW}| ammonium nitrate production | Alloc Rec, U"]
[null,"N - UAN - Nitrato de amônio Ureia ","kg",2.9974455607599757,9.5453685506574487E-3,8.3533288411955886E-5,5.5893788285244165E-3,5696.9885236154669,"Ecoinvent V.3.1","Nitrogen fertiliser, as N {RoW}| urea ammonium nitrate production | Alloc Rec, U"]
[null,"N - Amônia anidra","kg",1.7437522999999999,2.4352647999999999E-5,3.8942147605336001E-3,3.8942147605336001E-3,1976.0702078309487,"Ecoinvent V.3.2","Ammonia, liquid {RoW}| ammonia production, steam reforming, liquid | Alloc Def, U"]
[null,"N - Sulfato de Amônio","kg",1.6494756315000958,4.8249213331641271E-5,6.9597364670926463E-5,4.6377384857821113E-3,1803.3425538172301,"Ecoinvent V.3.1","Ammonium sulfate, as N {RoW}| ammonium sulfate production | Alloc Rec, U"]
[null,"N - CAN - Nitrato de amônio cálcio","kg",3.1372762231640969,1.8946961417427549E-2,8.6070734432031176E-5,5.0843271092914722E-3,8313.1607926252382,"Ecoinvent V.3.1","Nitrogen fertiliser, as N {RoW}| calcium ammonium nitrate production | Alloc Rec, U"]
[null,"N - Nitrato de cálcio","kg",1.203454486665229,5.7485730595355699E-3,3.6583166366284706E-5,1.7502953573364248E-3,2780.3595368205033,"Ecoinvent V.3.1","Ammonium nitrate, as N {RoW}| calcium nitrate production | Alloc Rec, U"]
[null,"P₂O₅ - SSP - Superfosfato Simples","kg",2.1702881457067429,9.8026882815541264E-5,2.7094541453590764E-4,5.4601558645270276E-3,2367.6564171956775,"Ecoinvent V.3.1","Phosphate fertiliser, as P2O5 {RoW}| single superphosphate production | Alloc Rec, U"]
[null,"P₂O₅ - TSP - Superfosfato Triplo","kg",1.7320158482536403,6.8354524896443953E-5,1.764561319969206E-4,4.0437201773484725E-3,1876.382174367566,"Ecoinvent V.3.1","Phosphate fertiliser, as P2O5 {RoW}| triple superphosphate production | Alloc Rec, U"]
[null,"K₂O - KCl - Cloreto de potássio","kg",0.41050074359161015,2.3264394781915301E-5,2.9799838598700586E-5,1.2569185741588918E-3,455.20776091434811,"Ecoinvent V.3.1","Potassium chloride, as K2O {RoW}| potassium chloride production | Alloc Rec, U"]
[null,"N - Outros","kg",2.9972536696840462,6.4340382247673818E-5,8.1201794828247067E-5,6.4878904803137502E-3,3211.2142356442832,"Ecoinvent V.3.2","Urea, as N {RoW}| production | Alloc Rec, U"]
[null,"P₂O₅ - Outros","kg",2.1702881457067429,9.8026882815541264E-5,2.7094541453590764E-4,5.4601558645270276E-3,2367.6564171956775,"Ecoinvent V.3.3","Phosphate fertiliser, as P2O5 {RoW}| single superphosphate production | Alloc Rec, U"]
[null,"K₂O - Outros","kg",0.41050074359161015,2.3264394781915301E-5,2.9799838598700586E-5,1.2569185741588918E-3,455.20776091434811,"Ecoinvent V.3.4","Potassium chloride, as K2O {RoW}| potassium chloride production | Alloc Rec, U"]
[null,"Glifosato","kg",10.400995928933837,3.8841816913328525E-4,9.5282070183273825E-4,3.2503361124152225E-2,11505.706557130039,"Ecoinvent V.3.1","Glyphosate {RoW}| production | Alloc Rec, U"]
[null,"2,4 - D","kg",4.4718389544682751,1.2780451474074059E-4,3.4853443743727646E-4,1.8873503831672141E-2,5081.6712300729796,"Ecoinvent V.3.1","2,4-dichlorophenol {RoW}| production | Alloc Rec, U"]
[null,"Pesticidas, geral","kg",9.2478390548319371,2.0154475450054766E-3,7.6309833994085295E-4,3.1307399308295E-2,10742.521387025583,"Ecoinvent V.3.1","Pesticide, unspecified {RoW}| production | Alloc Rec, U"]
[null,"Sementes de milho","kg",0.97081551958148959,1.9993345595241342E-3,5.5785387986517651E-5,2.1296555375507498E-3,1566.09083484553,"Ecoinvent V.3.1","Maize seed, Swiss integrated production, at farm {CH}| production | Alloc Rec, U"]
[null,"Sementes de soja","kg",1.5489193388251481,9.0294480709330531E-4,3.8261577147934118E-5,4.3822173157851395E-4,1802.4176888123714,"Ecoinvent V.3.1","Soybean seed, for sowing {RoW}| production | Alloc Rec, U"]
[null,"Operações agrícolas"]
[null,"Recolhimento de palha de cana","kg palha (bs)",null,null,null,null,11.953490289161735,"CTBE","Recolhimento de palha enfardada, com 50% de recolhimento"]
[null,"Secagem de grãos","m³",null,null,null,null,1.6299149999999998E-2,"Embrapa","Drying of maize grain sozinho {BR - Renovabio} "]
[null,"Processamento de grãos secos (limpeza e armazenamento)","m³",null,null,null,null,{"$f":"H77-H75","v":1.5811137000000003E-2},"Embrapa"]
[null,"Processamento de grãos incluindo secagem(limpeza, secagem e armazenamento)","m³",null,null,null,null,3.2110287000000001E-2,"Embrapa","Processamento do milho {BR - Renovabio}| limpeza, secagem e armazenamento | Alloc Def, U"]
[null,"Insumos industriais"]
[null,"Água","kg",8.2616105186804199E-6,1.747185929341839E-10,4.7321769206690297E-10,1.6013712014882334E-8,{"$f":"(D79+(E79*$D$9)+(F79*$D$8)+(G79*$D$7))*1000","v":8.8015724016323217E-3},"Ecoinvent V.3.1.","Water, decarbonised, at user {RoW}| water production and supply, decarbonised | Alloc Rec, U"]
[null,"Cal (CaO)","kg",0.95591663687445805,2.6010503032618892E-6,2.0368970883718792E-6,1.6914033985760804E-4,961.73715851902512,"Ecoinvent V.3.1.","Quicklime, milled, loose {RoW}| production | Alloc Rec, U"]
[null,"Ácido cítrico","kg",24.960930596473098,3.2428778815110772E-3,2.0662232456199999E-3,5.3071686581531947E-2,27470.298083396847,"Ecoinvent V.3.1.","Citric acid {RoW}| production | Alloc Def, U"]
[null,"Ácido Clorídrico","kg",1.5235185592071105,6.9803385937266109E-5,1.8990036807667912E-4,4.2780328972758337E-3,1675.674653704908,"Ecoinvent V.3.1.","Hydrochloric acid, without water, in 30% solution state {RoW}| hydrochloric acid production, from the reaction of hydrogen with chlorine | Alloc Def, U"]
[null,"Ácido Clorídrico - solução 30%","kg",0.64867670528474808,4.2266645249333224E-5,2.8469726323438298E-3,1.3569992940037528E-3,780.30257880156125,"Ecoinvent","Hydrochloric acid, 30% in H2O, at plant/BR U"]
[null,"Ácido sulfúrico","kg",9.8405325111341299E-2,3.3632139678386916E-6,2.7678037501366587E-5,3.0960992791063334E-4,109.3598597001758,"Ecoinvent V.3.1.","Sulfuric acid {RoW}| production | Alloc Def, U"]
[null,"Ácido fosfórico","kg",1.4170396172642701,4.1954966084565433E-5,1.1083658523662765E-4,2.7221948366555749E-3,1512.9269527629726,"Ecoinvent V.3.1.","Phosphoric acid, industrial grade, without water, in 85% solution state {RER}| purification of wet-process phosphoric acid to industrial grade, product in 85% solution state | Alloc Def, U"]
[null,"Metilato de sódio","kg",1.625019718411054,6.5893321423716108E-5,1.5218393201020999E-4,6.2918200474016105E-3,1835.4972001066728,"Ecoinvent V.3.1.","Sodium methoxide {GLO}| production | Alloc Def, U"]
[null,"Floculante (flocculant polymer)","kg",1.6618009884267799,1.4144856756223255E-3,2.3403531466476292E-4,3.5901438368374722E-3,2150.8969963824338,"Ecoinvent V.3.1.","Chemical, inorganic {GLO}| production | Alloc Def, U"]
[null,"Antibióticos","kg",1.6618009884267799,1.4144856756223255E-3,2.3403531466476292E-4,3.5901438368374722E-3,2150.8969963824338,"Ecoinvent V.3.1.","Chemical, inorganic {GLO}| production | Alloc Def, U"]
[null,"Óleo lubrificante","kg",1.0258298046052099,2.2500731860214766E-5,3.5629656486758239E-5,3.2871039255149997E-3,1131.403246695246,"Ecoinvent V.3.1.","Lubricating oil {RER}| production | Alloc Def, U"]
[null,"Zeolita","kg",4.6377024416856099,1.4513408487318893E-4,2.7480308646500004E-4,1.0882395485538527E-2,5010.3293251641808,"Ecoinvent V.3.1.","Zeolite, powder {RER}| production | Alloc Def, U"]
[null,"Amonia","kg",2.4252854314612051,3.312128250833601E-5,4.9045357646018532E-4,2.0384746068955444E-2,3059.3376535354628,"CTBE","Ammonia, liquid, at plant, production mix/CTBE BR"]
[null,"Tratamento de água","kg",1.4598769867760539E-4,5.4773940369108725E-9,1.7277566837368383E-7,2.5457972110534304E-7,0.15991431844501022,"CTBE","Water treatment biorefinery/CTBE BR U"]
[null,"Hidróxido de sódio","kg",0.41460283441940904,2.6655102009199964E-5,2.7631848736821879E-3,4.4741930923490277E-4,512.45819219199541,"Ecoinvent V.3.1","Sodium hydroxide, 50% in H2O, market mix, at plant/CTBE BR U"]
[null,"Levedura","kg",null,null,null,null,1049.7069435841399,"Ecoinvent V.3.1","Yeast paste, from whey, at fermentation/CH U"]
[null,"Enzima celulase","kg",null,null,null,null,1310,"CTBE","Enzyme, cellulase/CTBE BR U"]
[null,"Hexano","kg",0.27858008310983945,6.7706024330814438E-6,1.1332471593049646E-5,9.3396566494150825E-4,{"$f":"(D96+(E96*$D$9)+(F96*$D$8)+(G96*$D$7))*1000","v":308.71057190745665},"Ecoinvent","Hexane {RoW}| molecular sieve separation of naphtha | Alloc Def, U"]
[null,"Metanol","kg",0.41246262905771303,1.2815293254944498E-5,1.1021495972158117E-5,4.8027567844755557E-3,560.24998719176028,"Ecoinvent V.3.1.","Methanol {GLO}| production | Alloc Def, U"]
[null,"Hidrogênio","kg",1.7803344000000001,2.1070450999999997E-5,8.2710412000000006E-5,1.9627233586178398E-2,2377.0509686363521,"Ecoinvent V.3","Hydrogen, liquid {RoW}| market for | Alloc Def, U"]
[null,"Óleo de algodão","kg",1.6542555000000001,1.3750658E-3,7.6054719999999994E-4,5.8338512350536997E-3,2214.9587956516107,"Ecoinvent V.3","Cottonseed oil, refined {RoW}| cottonseed oil refinery operation | Alloc Def, U"]
[null,"Óleo de palma","kg",0.32519384000000001,8.0655199999999999E-4,7.5718159000000003E-4,9.8284686754489996E-4,589.61661054634703,"Ecoinvent V.3","Palm oil, refined {GLO}| palm oil refinery operation | Alloc Def, U"]
[null,"Outros óleos vegetais","kg",1.6542555000000001,1.3750658E-3,7.6054719999999994E-4,5.8338512350536997E-3,2214.9587956516107,"Ecoinvent V.3","Cottonseed oil, refined {RoW}| cottonseed oil refinery operation | Alloc Def, U"]
[null,"Eletricidade"]
[null,"Eletricidade BR Mix - Alta Voltagem","kWh",{"$f":"91.2/1000","v":9.1200000000000003E-2},{"$f":"8.12/1000000","v":8.1199999999999985E-6},{"$f":"1.69/1000","v":1.6899999999999999E-3},{"$f":"171/1000000","v":1.7100000000000001E-4},{"$f":"(D103+(E103*$D$9)+(F103*$D$8)+(G103*$D$7))*1000","v":145.80179999999999},"Ecoinvent V.3.1","Electricity, high voltage, production BR, at grid/BR U"]
[null,"Eletricidade - PCH","kWh",4.0244853000000001E-3,7.9806566999999999E-8,6.9980357999999997E-8,6.887307865481801E-6,4.2542127262434546,"Ecoinvent V.3","Electricity, high voltage {RoW}| electricity production, hydro, run-of-river | Alloc Def, U"]
[null,"Eletricidade - biomassa","kWh",4.2743054000000003E-2,6.8079306000000007E-5,5.2857906999999999E-4,1.2359392789795999E-4,79.292101886938809,"Ecoinvent V.3","Electricity, high voltage {BR}| cane sugar production with ethanol by-product | Alloc Def, U"]
[null,"Eletricidade - eólica","kWh",1.2991040000000001E-2,4.5145853000000001E-4,4.7898268000000002E-4,4.4753481809233999E-5,147.38166994427701,"Ecoinvent V.3","Electricity, high voltage {BR}| electricity production, wind, 1-3MW turbine, onshore | Alloc Def, U"]
[null,"Eletricidade - solar","kWh",7.1841185999999987E-2,2.4306162E-6,7.7619164999999995E-6,2.6750424406227002E-4,80.727760276868082,"Ecoinvent V.3","Electricity, low voltage {RoW}| electricity production, photovoltaic, 570kWp open ground installation, multi-Si | Alloc Def, U"]
[null,"Eletricidade BR Mix - Média Voltagem","kWh",{"$f":"93.8/1000","v":9.3799999999999994E-2},{"$f":"8.33/1000000","v":8.3299999999999999E-6},{"$f":"1.73/1000","v":1.73E-3},{"$f":"175/1000000","v":1.75E-4},149.69744999999998,"Ecoinvent V.3.1","Electricity, medium voltage, production BR, at grid/BR U"]
[null,"Eletricidade EUA - Alta Voltagem","kWh",0.71886614346805466,2.3568521582651309E-5,1.7229307717794883E-5,1.1394406063105138E-3,759.77744049287094,"Ecoinvent V.3.1","Electricity, high voltage, at grid/US U"]
[null,"Combustíveis"]
[null,"Gás Natural ","Nm³",0.12020699999999999,1.8228707E-6,2.0969834999999999E-6,5.7767815999999997E-11,{"$f":"(D111+(E111*$D$9)+(F111*$D$8)+(G111*$D$7))*1000","v":120.74877800653448},"Ecoinvent V.3.1","Natural gas, high pressure {RoW}| market for | Alloc Def, U"]
[null,"Diesel (B0)","kg",0.55302594999999999,1.0735005999999999E-5,9.2345760000000007E-6,3.7140826000000002E-10,{"$f":"(D112+(E112*$D$9)+(F112*$D$8)+(G112*$D$7))*1000","v":556.12930586024777},"Ecoinvent V.3.1. BEN 2016","Diesel, low-sulfur {RoW}| market for | Alloc Def, U"]
[null,"Biodiesel (B100)","kg",null,null,null,null,986.89013439250016,"RenovaCalc - Típico","BEN 2016 - Tabela VIII.9 – Densidades e Poderes Caloríficos p.226"]
[null,"Diesel B8","kg",null,null,null,null,{"$f":"(D114+(E114*$D$9)+(F114*$D$8)+(G114*$D$7))*1000","v":0},"Ecoinvent V.3.1 + B0 Soja RenovaCalc"]
[null,"GLP","kg",0.63189465223483021,1.0877841558803793E-5,1.7636996664664968E-5,1.9547826837420807E-3,{"$f":"(D115+(E115*$D$9)+(F115*$D$8)+(G115*$D$7))*1000","v":693.91459666678634},"Ecoinvent V.3.1","Liquefied petroleum gas {RoW}| petroleum refinery operation | Alloc Def, U"]
[null,"Gasolina A","kg",0.76136375999999995,1.1447172E-5,1.0571434999999999E-5,2.4931697025600899E-3,{"$f":"(D116+(E116*$D$9)+(F116*$D$8)+(G116*$D$7))*1000","v":839.48835183680262},"Ecoinvent V.3","Petrol, low-sulfur {RoW}| production | Alloc Def, U"]
[null,"Etanol anidro","kg",null,null,null,null,547.12038383828497,"RenovaCalc"]
[null,"Etanol hidratado","kg",null,null,null,null,null,"RenovaCalc"]
[null,"Cavaco de madeira","kg",3.2039432480895129E-2,1.4039664897291242E-6,2.18166665424795E-6,5.8032504083343049E-5,{"$f":"(D119+(E119*$D$9)+(F119*$D$8)+(G119*$D$7))*1000","v":34.21354538949258},"Ecoinvent V.3.1.","Wood chips, wet, measured as dry mass {RoW}| wood chips production, hardwood, at sawmill | Alloc Def, U  "]
[null,"Lenha","kg",3.2039432480895129E-2,1.4039664897291242E-6,2.18166665424795E-6,5.8032504083343049E-5,{"$f":"(D120+(E120*$D$9)+(F120*$D$8)+(G120*$D$7))*1000","v":34.21354538949258},"Ecoinvent V.3.1.","Wood chips, wet, measured as dry mass {RoW}| wood chips production, hardwood, at sawmill | Alloc Def, U  "]
[null,"Calor, MJ","MJ",null,null,null,null,93.983599999999996,"Ecoinvent V.3.1.","Heat, district or industrial, other than natural gas {RoW}| heat production, at hard coal industrial furnace 1-10MW | Alloc Def, U"]
[null,"Transporte"]
[null,"Transporte, caminhão 7.5-16t","tkm",0.22625397202732001,1.0446082640615269E-5,9.590935909830587E-7,2.4945373127764219E-4,{"$f":"(D123+(E123*$D$9)+(F123*$D$8)+(G123*$D$7))*1000","v":236.53265048595983},"Ecoinvent V.3.1.","Transport, lorry 7.5-16t, EURO3/RER U"]
[null,"Transporte caminhão 16-32t","tkm",0.17599043715055801,6.1974612135689929E-6,6.7839375380078499E-7,2.0393876230481527E-4,{"$f":"(D124+(E124*$D$9)+(F124*$D$8)+(G124*$D$7))*1000","v":183.76992226640468},"Ecoinvent V.3.1.","Transport, freight, lorry 16-32 metric ton, EURO3 {RoW}| transport, freight, lorry 16-32 metric ton, EURO3 | Alloc Def, U"]
[null,"Transporte, caminhão  >32t","tkm",0.115015737672319,3.2911580639616445E-6,4.4637468778886174E-7,1.3948610969341806E-4,{"$f":"(D125+(E125*$D$9)+(F125*$D$8)+(G125*$D$7))*1000","v":120.08497634132947},"Ecoinvent V.3.1.","Transport, lorry >32t, EURO3/RER U"]
[null,"Transporte, caminhão  60m³","tkm",null,null,null,null,{"$f":"G137","v":32.406409481335508},"RenovaBio"]
[null,"Transporte, navio","tkm",null,null,null,null,6.1318000000000001,"Ecoinvent V.3.1.","Transport, freight, sea, transoceanic tanker {GLO}| processing | Alloc Def, U"]
[null,"Transporte, balsa","tkm",null,null,null,null,48.605499999999999,"Ecoinvent V.3.1.","Transport, freight, inland waterways, barge tanker {RoW}| processing | Alloc Def, U"]
[null,"Transporte, ferroviário","tkm",null,null,null,null,{"$f":"G139","v":39.628409308604553}]
[null,"Transporte, dutoviário - Combustíveis líquidos","tkm",null,null,null,null,{"$f":"G138","v":2.7666634280629054}]
[null,"Transporte, dutoviário - Biometano","tkm",null,null,null,null,{"$f":"G140","v":14.390054452799999}]
[]
[]
[null,"Processos de transporte"]
[null,"Transporte",null,"Diesel (produção)","Emissões da queima do diesel","Consumo de E.E.","CO2eq"]
[null,null,null,"CO2eq","CO2eq","CO2eq","CO2eq"]
[null,"Transporte rodoviário 60 m³","tkm",{"$f":"0.00875*$H$112","v":4.8661314262771684},{"$f":"(0.00875*$F$24*'FE''s queima combustíveis'!$I$5)","v":27.540278055058337},0,{"$f":"SUM(D137:F137)","v":32.406409481335508}]
[null,"Transporte dutoviário - Combustíveis Líquidos","tkm",{"$f":"0.000139650451744186*$H$112","v":7.7663708791564187E-2},{"$f":"(0.000139650451744186*$F$24*'FE''s queima combustíveis'!$I$5)","v":0.43954425960564442},{"$f":"0.0154281734496124*$H$103","v":2.2494554596656968},{"$f":"SUM(D138:F138)","v":2.7666634280629054}]
[null,"Transporte ferroviário","tkm",{"$f":"0.0107*$H$112","v":5.9505835727046508},{"$f":"(0.0107*$F$24*'FE''s queima combustíveis'!$I$5)","v":33.677825735899901},0,{"$f":"SUM(D139:F139)","v":39.628409308604553}]
[null,"Transporte dutoviário - Biometano","tkm",0,0,{"$f":"0.098696*$H$103","v":14.390054452799999},{"$f":"SUM(D140:F140)","v":14.390054452799999}]

{"sheet":"_Emissões Agrícolas","index":21,"n_rows":82,"n_cols":11,"rows_kept":82,"cut":false,"hidden":false,"merged":[]}
[]
[null,"Emissões de N2O diretas e indiretas "]
[null,"IPCC (2006) V.04 \"Agricultura, floresta e outros usos da terra\""]
[]
[null,"N2O= 44/28*(FE1*(Ntot+Nrc)+FE4*14/17*NH3+FE5*14/62*NO3-)"]
[null,"Onde:"]
[null,"N2O = Emissões de N2O [kg/ha]  "]
[null,"FE1= 0,01"]
[null,"Ntot= Nmin_fert+Norg_fert"]
[null,"Nrc= Quantidade de N em resíduos culturais [kg/ha]"]
[null,"FE4= 0,01"]
[null,"NH3= Perdas de Nitrogênio na forma de amônia [kg/ha]"]
[null,"FE5= 0,0075"]
[null,"NO3-= Perdas de Nitrogênio na forma de nitrato [kg/ha]"]
[]
[null,"NH3= (Nmin_fert*0,1+Norg_fert*0,2)*17/14"]
[null,"NO3= (Nmin_fert+Norg_fert+Nrc)*0,3*62/14"]
[null,"Onde:"]
[null,"Nmin_fert= kg N/ha em fertilizantes minerais"]
[null,"Norg_fert= kg N/ha em fertilizantes orgânicos"]
[null,"0,1= Fração de N em fertilizante mineral (sintético) que volatiliza como NH3 e NOx"]
[null,"0,2= Fração de N em fertilizante orgânico que volatiliza como NH3 e NOx"]
[null,"0,3= Fração de N nos fertilizante minerais e orgânico que é perdida via lixiviação e runnof"]
[null,"Nrc= kg N/ha em resíduos culturais"]
[]
[]
[null,"Resídos culturais"]
[null,"Nrc CANA DE AÇÚCAR =",null,null,null,"Nrc MILHO E SOJA = "]
[null,"[teor de N na raíz * quantidade de raíz)+(teor de N na palha*quantidade de palha*produtividade*(1 - % da área queimada - % de resíduos agrícolas recolhida)]",null,null,null,"[Quantidade de resíduos na parte aérea*1000*Teor de N na parte aérea*(1-Fração de resíduos recolhidos)+(Quantidade de resíduos na parte aérea*1000+Produtividade em massa seca*1000)*Quantidade de raíz*Teor de N na raíz]"]
[null,null,"Cana de açúcar E1G","Cana E1G2G","Cana Flex",null,"Milho BR - Stand Alone","Milho BR - Flex","Milho Importado","Soja","Soja HEFA"]
[null,"Fração de massa seca ",0.3,0.3,0.3,"Fração de massa seca ",{"$f":"(1-E1GM!$G$34)","v":0.87},{"$f":"1-'E1G Flex'!$G$107","v":0.87},{"$f":"(1-E1GMI!$G$30)","v":0.87},{"$f":"(1-Biodiesel!$G$94)","v":0.91},{"$f":"(1-BioQavHEFA!$G$94)","v":0.91}]
[null,"Produtividade (t/ha)",{"$f":"_E1GC!$D$13/1000","v":66.7352001},{"$f":"_E1G2G!$D$13/1000","v":66.7352001},{"$f":"'_E1G Flex'!$D$14/1000","v":66.7352001},"Produtividade (t/ha)",{"$f":"_E1GM!D13/1000","v":5.25262206186013},{"$f":"'_E1G Flex'!D92/1000","v":5.25262206186013},{"$f":"_E1GMI!D13/1000","v":10.5},{"$f":"_Biodiesel!$D$14/1000","v":2.97930010943612},{"$f":"_BioQavHEFA!$D$14/1000","v":2.97930010943612}]
[null,"Produtividade em massa seca (t/ha)",{"$f":"C32*C31","v":20.020560029999999},{"$f":"D32*D31","v":20.020560029999999},{"$f":"E32*E31","v":20.020560029999999},"Produtividade em massa seca (t/ha)",{"$f":"G32*G31","v":4.5697811938183133},{"$f":"H32*H31","v":4.5697811938183133},{"$f":"I32*I31","v":9.1349999999999998},{"$f":"J32*J31","v":2.7111630995868694},{"$f":"K32*K31","v":2.7111630995868694}]
[null,"Quantidade de palha (tpalha (bs) /tcana )",0.14000000000000001,0.14000000000000001,0.14000000000000001,"Quantidade de resíduos na parte aérea (t bs/ha)",{"$f":"(G33*1.03)+0.61","v":5.3168746296328635},{"$f":"(H33*1.03)+0.61","v":5.3168746296328635},{"$f":"(I33*1.03)+0.61","v":10.01905},{"$f":"(J33*0.93)+1.35","v":3.8713816826157887},{"$f":"(K33*0.93)+1.35","v":3.8713816826157887}]
[null,"Quantidade de resíduos na parte aérea (t bs/ha)",{"$f":"C34*C32","v":9.3429280140000017},{"$f":"D34*D32","v":9.3429280140000017},{"$f":"E34*E32","v":9.3429280140000017},"Teor de N nos resíduos da parte aérea (kgN/kg resíduo bs)",6.0000000000000001E-3,6.0000000000000001E-3,6.0000000000000001E-3,8.0000000000000002E-3,8.0000000000000002E-3]
[null,"Teor de N nos resíduos da parte aérea (kgN/tpalha bs)",4.7699999999999996,4.7699999999999996,4.7699999999999996,"Fração de resíduos recolhidos",{"$f":"(E1GM!$D$35/E1GM!$D$32)/G34","v":0},0,{"$f":"(E1GMI!$D$31/E1GMI!$D$28)/I34","v":0},0,0]
[null,"Razão entre as raízes e a parte aérea (kgraízes/kgparte aérea)",0.2,0.2,0.2,"Razão entre as raízes e a parte aérea (kgraízes/kgparte aérea)",0.22,0.22,0.22,0.19,0.19]
[null,"Teor de N na raíz (kgN / traíz bs)",5.14,5.14,5.14,"Teor de N na raíz (kgN/kg raíz)",7.0000000000000001E-3,7.0000000000000001E-3,7.0000000000000001E-3,8.0000000000000002E-3,8.0000000000000002E-3]
[null,"Quantidade de raíz (t(bs)/ha/ano)",{"$f":"(C35+C33)*C37","v":5.8726976088000002},{"$f":"(D35+D33)*D37","v":5.8726976088000002},{"$f":"(E35+E33)*E37","v":5.8726976088000002}]
[null,"Fração da área queimada",{"$f":"E1GC!$V$45/E1GC!$V$33","v":1},{"$f":"E1G2G!$V$45/E1G2G!$V$33","v":0.184},{"$f":"'E1G Flex'!V$46/'E1G Flex'!V$34","v":0.184}]
[null,"Palha retirada como impureza vegetal (tpalha (bs) /ha )",{"$f":"E1GC!$V$36*(1-E1GC!$Y$36)*C32/1000","v":1.6683800025},{"$f":"E1G2G!$V$36*(1-E1G2G!$Y$36)*D32/1000","v":1.6683800025},{"$f":"'E1G Flex'!$V$37*(1-'E1G Flex'!$Y$37)*E32/1000","v":1.6683800025}]
[null,"Palha recolhida (tpalha (bs) /ha)",{"$f":"E1GC!$V$38/E1GC!$V$33","v":0},{"$f":"E1G2G!$V$38/E1G2G!$V$33","v":0},{"$f":"'E1G Flex'!$V$39/'E1G Flex'!$V$34","v":0}]
[null,"Fração de resíduos recolhidos",{"$f":"(C41+C42)/C35","v":0.17857142857142855},{"$f":"(D41+D42)/D35","v":0.17857142857142855},{"$f":"(E41+E42)/E35","v":0.17857142857142855}]
[]
[]
[null,"Emissões de N2O"]
[null,null,"Cana de açúcar E1G","Cana E1G2G","Cana Flex",null,"Milho BR - Stand Alone","Milho BR - Flex","Milho Importado","Soja B100","Soja HEFA"]
[null,"Nmin_fert (kg N/ha)",{"$f":"SUMIF(_E1GC!$C$21:$C$36,_E1GC!$C$21,_E1GC!$E$21:$E$36)*C32","v":103.42621311498},{"$f":"SUMIF(_E1G2G!$C$21:$C$36,_E1G2G!$C$21,_E1G2G!$E$21:$E$36)*D32","v":73.875866510699993},{"$f":"SUMIF('_E1G Flex'!$C$22:$C$37,'_E1G Flex'!$C$22,'_E1G Flex'!$E$22:$E$37)*D32","v":73.875866510699993},"Nmin_fert (kg N/ha)",{"$f":"SUMIF(_E1GM!$C$23:$C$39,_E1GM!$C$23,_E1GM!$E$23:$E$39)*G32","v":66.040367738884214},{"$f":"SUMIF(_E1GM!$C$23:$C$39,_E1GM!$C$23,_E1GM!$E$23:$E$39)*H32","v":66.040367738884214},{"$f":"SUMIF(_E1GMI!$C$23:$C$39,_E1GMI!$C$23,_E1GMI!$E$23:$E$39)*I32","v":175.35},{"$f":"SUMIF(_Biodiesel!$C$23:$C$38,_Biodiesel!$C$23,_Biodiesel!$E$23:$E$38)*J32","v":8.3518206796151819},{"$f":"SUMIF(_BioQavHEFA!$C$23:$C$38,_BioQavHEFA!$C$23,_BioQavHEFA!$E$23:$E$38)*K32","v":8.3518206796151819}]
[null,"Norg_fert (kg N/ha)",{"$f":"SUMPRODUCT(E1GC!$V$71:$V$75,E1GC!$Y$71:$Y$75)*C32/1000","v":55.410570319030505},{"$f":"SUMPRODUCT(E1G2G!$V$71:$V$75,E1G2G!$Y$71:$Y$75)*D32/1000","v":39.5789787993075},{"$f":"SUMPRODUCT('E1G Flex'!$V$72:$V$76,'E1G Flex'!$Y$72:$Y$76)*E32/1000","v":39.5789787993075},"Norg_fert (kg N/ha)",{"$f":"SUMPRODUCT(E1GM!$D$68:$D$72,E1GM!$G$68:$G$72)*G32/1000","v":0},{"$f":"SUMPRODUCT('E1G Flex'!$D$141:$D$145,'E1G Flex'!$G$141:$G$145)*H32/1000","v":0},{"$f":"SUMPRODUCT(E1GMI!$D$64:$D$68,E1GMI!$G$64:$G$68)*I32/1000","v":0},{"$f":"SUMPRODUCT(Biodiesel!$D$68:$D$72,Biodiesel!$G$68:$G$72)*J32/1000","v":0},{"$f":"SUMPRODUCT(BioQavHEFA!$D$68:$D$72,BioQavHEFA!$G$68:$G$72)*K32/1000","v":0}]
[null,"Nrc (kg N/ha)",{"$f":"(C38*C39)+(C36*C35*(1-C40-C43))","v":22.227493097306997},{"$f":"(D38*D39)+(D36*D35*(1-D40-D43))","v":58.593158664759486},{"$f":"(E38*E39)+(E36*E35*(1-E40-E43))","v":58.593158664759486},"Nrc (kg N/ha)",{"$f":"G34*1000*G35*(1-G36)+(G34*1000+G33*1000)*G37*G38","v":47.126697745911997},{"$f":"H34*1000*H35*(1-H36)+(H34*1000+H33*1000)*H37*H38","v":47.126697745911997},89.611536999999998,{"$f":"J34*1000*J35*(1-J36)+(J34*1000+J33*1000)*J37*J38","v":40.976521529874347},{"$f":"K34*1000*K35*(1-K36)+(K34*1000+K33*1000)*K37*K38","v":40.976521529874347}]
[null,"Emissões fertilizantes minerais",null,null,null,"Emissões fertilizantes minerais"]
[null,"NH3",{"$f":"(C48*0.1)*(17/14)","v":12.558897306818999},{"$f":"(D48*0.1)*(17/14)","v":8.9706409334421409},{"$f":"(E48*0.1)*(17/14)","v":8.9706409334421409},"NH3",{"$f":"(G48*0.1)*(17/14)","v":8.0191875111502249},{"$f":"(H48*0.1)*(17/14)","v":8.0191875111502249},{"$f":"(I48*0.1)*(17/14)","v":21.292499999999997},{"$f":"(J48*0.1)*(17/14)","v":1.0141496539532722},{"$f":"(K48*0.1)*(17/14)","v":1.0141496539532722}]
[null,"NO3-",{"$f":"C48*0.3*(62/14)","v":137.40911170990202},{"$f":"D48*0.3*(62/14)","v":98.149365507072844},{"$f":"E48*0.3*(62/14)","v":98.149365507072844},"NO3-",{"$f":"G48*0.3*(62/14)","v":87.739345710231873},{"$f":"H48*0.3*(62/14)","v":87.739345710231873},{"$f":"I48*0.3*(62/14)","v":232.965},{"$f":"J48*0.3*(62/14)","v":11.095990331488741},{"$f":"K48*0.3*(62/14)","v":11.095990331488741}]
[null,"N2O",{"$f":"(44/28)*(0.01*C48+(0.01*(14/17)*C52+(0.0075*(14/62)*C53)))","v":2.1534815087869048},{"$f":"(44/28)*(0.01*D48+(0.01*(14/17)*D52+(0.0075*(14/62)*D53)))","v":1.538201077704932},{"$f":"(44/28)*(0.01*E48+(0.01*(14/17)*E52+(0.0075*(14/62)*E53)))","v":1.538201077704932},"N2O",{"$f":"(44/28)*(0.01*G48+(0.01*(14/17)*G52+(0.0075*(14/62)*G53)))","v":1.3750547997060536},{"$f":"(44/28)*(0.01*H48+(0.01*(14/17)*H52+(0.0075*(14/62)*H53)))","v":1.3750547997060536},{"$f":"(44/28)*(0.01*I48+(0.01*(14/17)*I52+(0.0075*(14/62)*I53)))","v":3.6510374999999997},{"$f":"(44/28)*(0.01*J48+(0.01*(14/17)*J52+(0.0075*(14/62)*J53)))","v":0.17389683772198755},{"$f":"(44/28)*(0.01*K48+(0.01*(14/17)*K52+(0.0075*(14/62)*K53)))","v":0.17389683772198755}]
[null,"Emissões fertilizantes orgânicos",null,null,null,"Emissões fertilizantes orgânicos"]
[null,"NH3",{"$f":"(C49*0.2)*(17/14)","v":13.456852791764552},{"$f":"(D49*0.2)*(17/14)","v":9.6120377084032498},{"$f":"(E49*0.2)*(17/14)","v":9.6120377084032498},"NH3",{"$f":"(G49*0.2)*(17/14)","v":0},{"$f":"(H49*0.2)*(17/14)","v":0},{"$f":"(I49*0.2)*(17/14)","v":0},{"$f":"(J49*0.2)*(17/14)","v":0},{"$f":"(K49*0.2)*(17/14)","v":0}]
[null,"NO3-",{"$f":"C49*0.3*(62/14)","v":73.616900566711948},{"$f":"D49*0.3*(62/14)","v":52.58350040479425},{"$f":"E49*0.3*(62/14)","v":52.58350040479425},"NO3-",{"$f":"G49*0.3*(62/14)","v":0},{"$f":"H49*0.3*(62/14)","v":0},{"$f":"I49*0.3*(62/14)","v":0},{"$f":"J49*0.3*(62/14)","v":0},{"$f":"K49*0.3*(62/14)","v":0}]
[null,"N2O",{"$f":"(44/28)*(0.01*(C49)+(0.01*(14/17)*C56+(0.0075*(14/62)*C57)))","v":1.2408009853582902},{"$f":"(44/28)*(0.01*(D49)+(0.01*(14/17)*D56+(0.0075*(14/62)*D57)))","v":0.88628641811306441},{"$f":"(44/28)*(0.01*(E49)+(0.01*(14/17)*E56+(0.0075*(14/62)*E57)))","v":0.88628641811306441},"N2O",{"$f":"(44/28)*(0.01*(G49)+(0.01*(14/17)*G56+(0.0075*(14/62)*G57)))","v":0},{"$f":"(44/28)*(0.01*(H49)+(0.01*(14/17)*H56+(0.0075*(14/62)*H57)))","v":0},{"$f":"(44/28)*(0.01*(I49)+(0.01*(14/17)*I56+(0.0075*(14/62)*I57)))","v":0},{"$f":"(44/28)*(0.01*(J49)+(0.01*(14/17)*J56+(0.0075*(14/62)*J57)))","v":0},{"$f":"(44/28)*(0.01*(K49)+(0.01*(14/17)*K56+(0.0075*(14/62)*K57)))","v":0}]
[null,"Emissões resíduos culturais",null,null,null,"Emissões resíduos culturais"]
[null,"NH3",null,null,null,"NH3"]
[null,"NO3-",{"$f":"C50*0.3*(62/14)","v":29.530812257850727},{"$f":"D50*0.3*(62/14)","v":77.84519651175188},{"$f":"E50*0.3*(62/14)","v":77.84519651175188},"NO3-",{"$f":"G50*0.3*(62/14)","v":62.611184148140225},{"$f":"H50*0.3*(62/14)","v":62.611184148140225},{"$f":"I50*0.3*(62/14)","v":119.05532772857143},{"$f":"J50*0.3*(62/14)","v":54.440235746833061},{"$f":"K50*0.3*(62/14)","v":54.440235746833061}]
[null,"N2O",{"$f":"(44/28)*(0.01*(C50)+(0.01*(14/17)*C60+(0.0075*(14/62)*C61)))","v":0.4278792421231597},{"$f":"(44/28)*(0.01*(D50)+(0.01*(14/17)*D60+(0.0075*(14/62)*D61)))","v":1.1279183042966199},{"$f":"(44/28)*(0.01*(E50)+(0.01*(14/17)*E60+(0.0075*(14/62)*E61)))","v":1.1279183042966199},"N2O",{"$f":"(44/28)*(0.01*(G50)+(0.01*(14/17)*G60+(0.0075*(14/62)*G61)))","v":0.90718893160880598},{"$f":"(44/28)*(0.01*(H50)+(0.01*(14/17)*H60+(0.0075*(14/62)*H61)))","v":0.90718893160880598},{"$f":"(44/28)*(0.01*(I50)+(0.01*(14/17)*I60+(0.0075*(14/62)*I61)))","v":1.7250220872499999},{"$f":"(44/28)*(0.01*(J50)+(0.01*(14/17)*J60+(0.0075*(14/62)*J61)))","v":0.7887980394500812},{"$f":"(44/28)*(0.01*(K50)+(0.01*(14/17)*K60+(0.0075*(14/62)*K61)))","v":0.7887980394500812}]
[null,"IPCC (2006)"]
[]
[]
[null,"Emissões de N2O e CH4 da palha queimada do campo - Apenas para Cana de Açúcar"]
[null,"Quantidade de palha queimada = quantidade de palha produzida*produtividade*% da área queimada"]
[null,"Fatores de emissão (kg/t palha bs):"]
[null,"N2O",7.0000000000000007E-2]
[null,"CH4 Bio",2.7]
[null,null,"Cana de açúcar E1G","Cana E1G2G","Cana Flex"]
[null,"Quantidade de palha queimada",{"$f":"C34*C32*C40","v":9.3429280140000017},{"$f":"D34*D32*D40","v":1.7190987545760004},1.7190987545760004]
[null,"Emissões de N2O (kg/ha)",{"$f":"C72*$C$69","v":0.65400496098000016},{"$f":"D72*$C$69","v":0.12033691282032004},{"$f":"E72*$C$69","v":0.12033691282032004}]
[null,"Emissões de CH4 (kg/ha)",{"$f":"C72*$C$70","v":25.225905637800007},{"$f":"D72*$C$70","v":4.6415666373552016},{"$f":"E72*$C$70","v":4.6415666373552016}]
[null,"GREET (2010)"]
[]
[]
[null,"Emissões de CO2 fóssil após aplicação de Calcário e Uréia"]
[null,"Calcário Calcítico (kg C/kg)",0.12,"Calcário Calcítico (kg CO₂/kg)",{"$f":"C79*(44/12)","v":0.43999999999999995}]
[null,"Calcário Dolomítico (kg C/kg)",0.13,"Calcário Dolomítico (kg CO₂/kg)",{"$f":"C80*(44/12)","v":0.47666666666666668}]
[null,"Calcário Ureia (kg C/kg)",0.2,"Ureia (kg CO₂/kg N)",{"$f":"C81*(44/12)/0.47","v":1.5602836879432627}]
[null,"IPCC (2006)"]

{"sheet":"FE's queima combustíveis","index":22,"n_rows":57,"n_cols":10,"rows_kept":57,"cut":false,"hidden":false,"merged":[[15,1,15,2]]}
[]
[null,"Fatores de emissão da queima de combustíveis em fontes móveis"]
[null,"Combustível","Unidade","CO2  Fóssil","CO2 Biogênico","CH4 Fóssil","CH4 Biogênico","N2O  ","CO₂ eq/MJ","Referência"]
[null,null,null,"g/unidade","g/unidade","g/unidade","g/unidade","g/unidade","g/MJ"]
[null,"Diesel A (B0)","kg",{"$f":"D21/'Dados auxiliares'!$D$24","v":3098.8095238095239},{"$f":"E21/'Dados auxiliares'!$D$24","v":0},{"$f":"F21/'Dados auxiliares'!$D$24","v":0.16491805200000001},{"$f":"G21/'Dados auxiliares'!$D$24","v":0},{"$f":"H21/'Dados auxiliares'!$D$24","v":0.16491805200000001},{"$f":"(D5+F5*'Dados auxiliares'!$D$7+G5*'Dados auxiliares'!$D$8+H5*'Dados auxiliares'!$D$9)/'Dados auxiliares'!$F$24","v":74.431575702094761}]
[null,"Biodiesel (B100)","kg",{"$f":"D22/'Dados auxiliares'!$D$17","v":0},{"$f":"E22/'Dados auxiliares'!$D$17","v":2762.5},{"$f":"F22/'Dados auxiliares'!$D$17","v":0},{"$f":"G22/'Dados auxiliares'!$D$17","v":0.37681199999999992},{"$f":"H22/'Dados auxiliares'!$D$17","v":2.2608719999999999E-2},{"$f":"(D6+F6*'Dados auxiliares'!$D$7+G6*'Dados auxiliares'!$D$8+H6*'Dados auxiliares'!$D$9)/'Dados auxiliares'!$F$17","v":0.43900054040021891}]
[null,"Etanol Anidro","kg",{"$f":"D23/'Dados auxiliares'!$D$15","v":0},{"$f":"E23/'Dados auxiliares'!$D$15","v":1929.2035398230087},{"$f":"F23/'Dados auxiliares'!$D$15","v":0},{"$f":"G23/'Dados auxiliares'!$D$15","v":0.28260899999999994},{"$f":"H23/'Dados auxiliares'!$D$15","v":1.6956540000000003E-2},{"$f":"(D7+F7*'Dados auxiliares'!$D$7+G7*'Dados auxiliares'!$D$8+H7*'Dados auxiliares'!$D$9)/'Dados auxiliares'!$F$15","v":0.43900054040021891}]
[null,"Etanol Hidratado","kg",{"$f":"D24/'Dados auxiliares'!$D$16","v":0},{"$f":"E24/'Dados auxiliares'!$D$16","v":1800.9888751545116},{"$f":"F24/'Dados auxiliares'!$D$16","v":0},{"$f":"G24/'Dados auxiliares'!$D$16","v":0.47478312},{"$f":"H24/'Dados auxiliares'!$D$16","v":1.5826104000000001E-2},{"$f":"(D8+F8*'Dados auxiliares'!$D$7+G8*'Dados auxiliares'!$D$8+H8*'Dados auxiliares'!$D$9)/'Dados auxiliares'!$F$16","v":0.66300081613973838}]
[null,"Gasolina A","kg",{"$f":"D25/'Dados auxiliares'!$D$22","v":2981.132075471698},{"$f":"E25/'Dados auxiliares'!$D$22","v":0},{"$f":"F25/'Dados auxiliares'!$D$22","v":1.088568},{"$f":"G25/'Dados auxiliares'!$D$22","v":0},{"$f":"H25/'Dados auxiliares'!$D$22","v":0.34834176000000006},{"$f":"(D9+F9*'Dados auxiliares'!$D$7+G9*'Dados auxiliares'!$D$8+H9*'Dados auxiliares'!$D$9)/'Dados auxiliares'!$F$22","v":71.334622766291957}]
[null,"Gasolina C","kg",{"$f":"($D$16*D23+(1-$D$16)*D25)/'Dados auxiliares'!$D$23","v":2140.8816705336426},{"$f":"($D$16*E23+(1-$D$16)*E25)/'Dados auxiliares'!$D$23","v":546.26450116009289},{"$f":"($D$16*F23+(1-$D$16)*F25)/'Dados auxiliares'!$D$23","v":0.781748416148492},{"$f":"($D$16*G23+(1-$D$16)*G25)/'Dados auxiliares'!$D$23","v":8.0022279257540602E-2},{"$f":"($D$16*H23+(1-$D$16)*H25)/'Dados auxiliares'!$D$23","v":0.25496082992296987},{"$f":"(D10+F10*'Dados auxiliares'!$D$7+G10*'Dados auxiliares'!$D$8+H10*'Dados auxiliares'!$D$9)/'Dados auxiliares'!$F$23","v":56.767625225068237}]
[null,"GNV","kg",{"$f":"D27/('Dados auxiliares'!$D$25*1000)","v":2701.3513513513512},{"$f":"E27/('Dados auxiliares'!$D$25*1000)","v":0},{"$f":"F27/('Dados auxiliares'!$D$25*1000)","v":4.5945945945945947},{"$f":"G27/('Dados auxiliares'!$D$25*1000)","v":0},{"$f":"H27/('Dados auxiliares'!$D$25*1000)","v":0.14864864864864866},{"$f":"(D11+F11*'Dados auxiliares'!$D$7+G11*'Dados auxiliares'!$D$8+H11*'Dados auxiliares'!$D$9)/'Dados auxiliares'!$F$25","v":78.129332462544966}]
[null,"Biometano","Nm³",0,{"$f":"D11","v":2701.3513513513512},0,{"$f":"F11","v":4.5945945945945947},{"$f":"H11","v":0.14864864864864866},{"$f":"(D12+F12*'Dados auxiliares'!$D$7+G12*'Dados auxiliares'!$D$8+H12*'Dados auxiliares'!$D$9)/'Dados auxiliares'!F18","v":3.6967315794563422}]
[null,"Querosene de Aviação","kg",{"$f":"D26/'Dados auxiliares'!$D$26","v":3149.9999999999995},{"$f":"E26/'Dados auxiliares'!$D$26","v":0},{"$f":"F26/'Dados auxiliares'!$D$26","v":2.205E-2},{"$f":"G26/'Dados auxiliares'!$D$26","v":0},{"$f":"H26/'Dados auxiliares'!$D$26","v":8.8200000000000001E-2},{"$f":"(D13+F13*'Dados auxiliares'!$D$7+G13*'Dados auxiliares'!$D$8+H13*'Dados auxiliares'!$D$9)/'Dados auxiliares'!$F$26","v":72.894812431859577}]
[null,"BioQav","kg",0,{"$f":"D13","v":3149.9999999999995},0,{"$f":"F13","v":2.205E-2},{"$f":"H13","v":8.8200000000000001E-2},{"$f":"(D14+F14*'Dados auxiliares'!$D$7+G14*'Dados auxiliares'!$D$8+H14*'Dados auxiliares'!$D$9)/'Dados auxiliares'!$F$19","v":0.55096304345944702}]
[]
[null,"Teor de etanol anidro na gasolina C",null,0.27]
[]
[]
[null,"Combustível","Unidade","CO2  Fóssil","CO2 Biogênico","CH4 Fóssil","CH4 Biogênico","N2O  ",null,"Referência"]
[null,null,null,"g/unidade","g/unidade","g/unidade","g/unidade","g/unidade"]
[null,"Diesel A (B0)","L",2603,0,{"$f":"0.00013853116368*1000","v":0.13853116368000001},0,{"$f":"0.00013853116368*1000","v":0.13853116368000001},null,"GHG Protocol"]
[null,"Biodiesel (B100)","L",0,2431,0,0.33159455999999993,1.98956736E-2,null,"GHG Protocol"]
[null,"Etanol Anidro","L",0,1526,0,0.22354371899999997,1.3412623140000001E-2,null,"GHG Protocol"]
[null,"Etanol Hidratado","L",0,1457,0,0.38409954408000002,1.2803318136000002E-2,null,"GHG Protocol"]
[null,"Gasolina A","L",2212,0,0.807717456,0,0.25846958592000002,null,"GHG Protocol"]
[null,"Querosene de aviação","L",{"$f":"2.51685*1000","v":2516.85},0,{"$f":"1000*0.00001761795","v":1.761795E-2},0,{"$f":"1000*0.0000704718","v":7.0471800000000001E-2},null,"GHG Protocol"]
[null,"GNV","Nm³",1999,0,3.4,0,0.11,null,"GHG Protocol"]
[]
[]
[null,"Fatores de emissão da queima de combustíveis em caldeiras"]
[null,"Combustível","Unidade","CO2  Fóssil","CO2 Biogênico","CH4 Fóssil","CH4 Biogênico","N2O  ","CO₂ eq","Referência"]
[null,null,null,"g/unidade","g/unidade","g/unidade","g/unidade","g/unidade","g/unidade"]
[null,"Bagaço","kg base seca",0,null,0,1.4E-2,2.1999999999999999E-2,{"$f":"D33+E33*0+F33*'Dados auxiliares'!$D$7+G33*'Dados auxiliares'!$D$8+H33*'Dados auxiliares'!$D$9","v":6.2220000000000004},"IPCC (2006)"]
[null,"Palha","kg base seca",0,null,0,1.4E-2,2.1999999999999999E-2,{"$f":"D34+E34*0+F34*'Dados auxiliares'!$D$7+G34*'Dados auxiliares'!$D$8+H34*'Dados auxiliares'!$D$9","v":6.2220000000000004},"IPCC (2006)"]
[null,"Cavacos de madeira","kg base seca",0,null,0,1.4E-2,2.1999999999999999E-2,{"$f":"D35+E35*0+F35*'Dados auxiliares'!$D$7+G35*'Dados auxiliares'!$D$8+H35*'Dados auxiliares'!$D$9","v":6.2220000000000004},"IPCC (2006)"]
[null,"Lenha","kg base seca",0,null,0,1.4E-2,2.1999999999999999E-2,{"$f":"D36+E36*0+F36*'Dados auxiliares'!$D$7+G36*'Dados auxiliares'!$D$8+H36*'Dados auxiliares'!$D$9","v":6.2220000000000004},"IPCC (2006)"]
[null,"Resíduos florestais","kg base seca",0,null,0,1.4E-2,2.1999999999999999E-2,{"$f":"D37+E37*0+F37*'Dados auxiliares'!$D$7+G37*'Dados auxiliares'!$D$8+H37*'Dados auxiliares'!$D$9","v":6.2220000000000004},"IPCC (2006)"]
[null,"Biogás","kg",0,{"$f":"E39/('Dados auxiliares'!$D$18*1000)","v":3565.6441706645842},0,{"$f":"0.061","v":6.0999999999999999E-2},{"$f":"0.061","v":6.0999999999999999E-2},{"$f":"D38+E38*0+F38*'Dados auxiliares'!$D$7+G38*'Dados auxiliares'!$D$8+H38*'Dados auxiliares'!$D$9","v":17.872999999999998},"Ecoinvet"]
[null,"Biogás","Nm³",0,{"$f":"E55","v":2701.3513513513512},0,{"$f":"G38*('Dados auxiliares'!$D$18*1000)","v":4.6213930651896593E-2},{"$f":"H38*('Dados auxiliares'!$D$18*1000)","v":4.6213930651896593E-2},{"$f":"D39+E39*0+F39*'Dados auxiliares'!$D$7+G39*'Dados auxiliares'!$D$8+H39*'Dados auxiliares'!$D$9","v":13.540681681005701},"Ecoinvet"]
[null,"Gás Natural","MJ",56.1,0,5.0000000000000001E-3,0,1E-4,{"$f":"D40+E40*0+F40*'Dados auxiliares'!$D$7+G40*'Dados auxiliares'!$D$8+H40*'Dados auxiliares'!$D$9","v":56.276499999999999},"(IPCC, 2006 - Capítulo 2 - Combustão Estacionária)"]
[null,"Gás Natural","kg",{"$f":"D40*'Dados auxiliares'!$F$25","v":2066.9368796420454},{"$f":"E40*'Dados auxiliares'!$F$25","v":0},{"$f":"F40*'Dados auxiliares'!$F$25","v":0.18421897323012881},{"$f":"G40*'Dados auxiliares'!$F$25","v":0},{"$f":"H40*'Dados auxiliares'!$F$25","v":3.6843794646025767E-3},{"$f":"D41+E41*0+F41*'Dados auxiliares'!$D$7+G41*'Dados auxiliares'!$D$8+H41*'Dados auxiliares'!$D$9","v":2073.439809397069},"(IPCC, 2006 - Capítulo 2 - Combustão Estacionária)"]
[null,"GLP","MJ",63.1,0,1.5E-3,0,1E-4,{"$f":"D42+E42*0+F42*'Dados auxiliares'!$D$7+G42*'Dados auxiliares'!$D$8+H42*'Dados auxiliares'!$D$9","v":63.171500000000002},"(IPCC, 2006 - Capítulo 2 - Combustão Estacionária)"]
[null,"GLP","kg",{"$f":"D42*'Dados auxiliares'!$F$27","v":2932.4729781844203},{"$f":"E42*'Dados auxiliares'!$F$27","v":0},{"$f":"F42*'Dados auxiliares'!$F$27","v":6.9710134188219183E-2},{"$f":"G42*'Dados auxiliares'!$F$27","v":0},{"$f":"H42*'Dados auxiliares'!$F$27","v":4.6473422792146129E-3},{"$f":"D43+E43*0+F43*'Dados auxiliares'!$D$7+G43*'Dados auxiliares'!$D$8+H43*'Dados auxiliares'!$D$9","v":2935.7958279140585},"(IPCC, 2006 - Capítulo 2 - Combustão Estacionária)"]
[null,"Carvão de coque","MJ",94.6,0,0.3,0,1.5E-3,{"$f":"D44+E44*0+F44*'Dados auxiliares'!$D$7+G44*'Dados auxiliares'!$D$8+H44*'Dados auxiliares'!$D$9","v":103.99749999999999},"(IPCC, 2006 - Capítulo 2 - Combustão Estacionária)"]
[null,"Diesel A (B0)","kg",3133.7,0,0.127,0,2.5000000000000001E-2,{"$f":"D45+E45*0+F45*'Dados auxiliares'!$D$7+G45*'Dados auxiliares'!$D$8+H45*'Dados auxiliares'!$D$9","v":3144.1349999999998},"(IPCC, 2006 - Capítulo 2 - Combustão Estacionária)"]
[null,"Biodiesel (B100)","kg",0,{"$f":"E54","v":2762.5},0,{"$f":"F45","v":0.127},{"$f":"H45","v":2.5000000000000001E-2},{"$f":"D46+E46*0+F46*'Dados auxiliares'!$D$7+G46*'Dados auxiliares'!$D$8+H46*'Dados auxiliares'!$D$9","v":10.181000000000001},"RenovaBio"]
[]
[]
[]
[null,"Fatores de emissão da queima de combustíveis em caminhões e maquinários agrícolas"]
[null,"Combustível","Unidade","CO2  Fóssil","CO2 Biogênico","CH4 Fóssil","CH4 Biogênico","N2O  ","CO₂ eq","Referência"]
[null,null,null,"g/unidade","g/unidade","g/unidade","g/unidade","g/unidade","g/unidade"]
[null,"Diesel A (B0)","kg",3120,0,0.129,0,0.12,{"$f":"D53+E53*0+F53*'Dados auxiliares'!$D$7+G53*'Dados auxiliares'!$D$8+H53*'Dados auxiliares'!$D$9","v":3155.67},"Ecoinvent (2007) apud CTBE"]
[null,"Biodiesel (B100)","kg",{"$f":"D6","v":0},{"$f":"E6","v":2762.5},{"$f":"F6","v":0},{"$f":"G6","v":0.37681199999999992},{"$f":"H6","v":2.2608719999999999E-2},{"$f":"D54+E54*0+F54*'Dados auxiliares'!$D$7+G54*'Dados auxiliares'!$D$8+H54*'Dados auxiliares'!$D$9","v":16.542046799999998},"GHG protocol"]
[null,"Biometano (Nm³)","Nm³",{"$f":"D12","v":0},{"$f":"E12","v":2701.3513513513512},{"$f":"F12","v":0},{"$f":"G12","v":4.5945945945945947},{"$f":"H12","v":0.14864864864864866},{"$f":"D55+E55*0+F55*'Dados auxiliares'!$D$7+G55*'Dados auxiliares'!$D$8+H55*'Dados auxiliares'!$D$9","v":168.04054054054055},"GHG protocol"]
[null,"Gás Natural","Nm³",{"$f":"D11","v":2701.3513513513512},{"$f":"E11","v":0},4.5945945945945947,0,0.14864864864864866,{"$f":"D56+E56*0+F56*'Dados auxiliares'!$D$7+G56*'Dados auxiliares'!$D$8+H56*'Dados auxiliares'!$D$9","v":2878.5810810810813},"GHG protocol"]
[null,"GLP","kg",{"$f":"D11","v":2701.3513513513512},{"$f":"E11","v":0},4.5945945945945947,0,0.14864864864864866,{"$f":"D57+E57*0+F57*'Dados auxiliares'!$D$7+G57*'Dados auxiliares'!$D$8+H57*'Dados auxiliares'!$D$9","v":2878.5810810810813},"GHG protocol"]

{"sheet":"Enderecos","index":23,"n_rows":72,"n_cols":42,"rows_kept":72,"cut":false,"hidden":true,"merged":[]}
["Não alterar posições das informações nessa planilha!"]
[]
[null,"E1GC"]
[null,null,"Usina","Padrão","Guarda valores primários"]
[null,"Coluna valores",{"$f":"COLUMN(E1GC!$D$45)","v":4},{"$f":"COLUMN(E1GC!$AG$45)","v":33},{"$f":"COLUMN(E1GC!$AP$45)","v":42}]
[null,"Coluna Especificar",{"$f":"COLUMN(E1GC!$C$66)","v":3},{"$f":"COLUMN(E1GC!$AF$66)","v":32},{"$f":"COLUMN(E1GC!$AO$66)","v":41}]
[null,"Colunas %",{"$f":"COLUMN(E1GC!$G$71)","v":7},{"$f":"COLUMN(E1GC!$AJ$71)","v":36},{"$f":"COLUMN(E1GC!$AS$71)","v":45}]
[null,"Linha Área queimada",{"$f":"ROW(E1GC!$D$45)","v":45}]
[null,"Linha Corretivos (inicio)",{"$f":"ROW(E1GC!$D$48)","v":48}]
[null,"Linha Corretivos (fim)",{"$f":"ROW(E1GC!$D$50)","v":50}]
[null,"Linha Fertilizantes (inicio)",{"$f":"ROW(E1GC!$D$53)","v":53}]
[null,"Linha Fertilizantes (fim)",{"$f":"ROW(E1GC!$D$68)","v":68}]
[null,"Linha Fertilizantes (\"especificar\" inicio)",{"$f":"ROW(E1GC!$C$66)","v":66}]
[null,"Linha Fertilizantes (\"especificar\" fim)",{"$f":"ROW(E1GC!$C$68)","v":68}]
[null,"Linha Fertilizantes org. (inicio)",{"$f":"ROW(E1GC!$D$71)","v":71}]
[null,"Linha Fertilizantes org. (fim)",{"$f":"ROW(E1GC!$D$75)","v":75}]
[null,"Linha Fertilizantes org. (\"especificar\" inicio)",{"$f":"ROW(E1GC!$C$74)","v":74}]
[null,"Linha Fertilizantes org. (\"especificar\" fim)",{"$f":"ROW(E1GC!$C$75)","v":75}]
[null,"Linha Combust. (inicio)",{"$f":"ROW(E1GC!$D$78)","v":78}]
[null,"Linha Combust. (fim)",{"$f":"ROW(E1GC!$D$92)","v":92}]
[null,"Linha BX",{"$f":"ROW(E1GC!$G$80)","v":80}]
[null,"Linha default/primario",{"$f":"ROW(E1GC!$AP$41)","v":41}]
[null,"Coluna default/primario",{"$f":"COLUMN(E1GC!$AP$41)","v":42}]
[null,"Área total",{"$f":"ROW(E1GC!$M$33)","v":33}]
[]
[]
[null,"E1G2G"]
[null,null,"Usina","Padrão","Guarda valores primários"]
[null,"Coluna valores",{"$f":"COLUMN(E1G2G!$D$45)","v":4},{"$f":"COLUMN(E1G2G!$AG$45)","v":33},{"$f":"COLUMN(E1G2G!$AP$45)","v":42}]
[null,"Coluna Especificar",{"$f":"COLUMN(E1G2G!$C$66)","v":3},{"$f":"COLUMN(E1G2G!$AF$66)","v":32},{"$f":"COLUMN(E1G2G!$AO$66)","v":41}]
[null,"Colunas %",{"$f":"COLUMN(E1G2G!$G$71)","v":7},{"$f":"COLUMN(E1G2G!$AJ$71)","v":36},{"$f":"COLUMN(E1G2G!$AS$71)","v":45}]
[null,"Linha Área queimada",{"$f":"ROW(E1G2G!$D$45)","v":45}]
[null,"Linha Corretivos (inicio)",{"$f":"ROW(E1G2G!$D$48)","v":48}]
[null,"Linha Corretivos (fim)",{"$f":"ROW(E1G2G!$D$50)","v":50}]
[null,"Linha Fertilizantes (inicio)",{"$f":"ROW(E1G2G!$D$53)","v":53}]
[null,"Linha Fertilizantes (fim)",{"$f":"ROW(E1G2G!$D$68)","v":68}]
[null,"Linha Fertilizantes (\"especificar\" inicio)",{"$f":"ROW(E1G2G!$C$66)","v":66}]
[null,"Linha Fertilizantes (\"especificar\" fim)",{"$f":"ROW(E1G2G!$C$68)","v":68},null,null,null,null,null,null,null,null,null,null,null,null,null,null,null,null,null,null,null,null,null,null,null,null,null,null,null,null,null,null,null,null,null,null,null,null,null,null,"Padrão"]
[null,"Linha Fertilizantes org. (inicio)",{"$f":"ROW(E1G2G!$D$71)","v":71}]
[null,"Linha Fertilizantes org. (fim)",{"$f":"ROW(E1G2G!$D$75)","v":75}]
[null,"Linha Fertilizantes org. (\"especificar\" inicio)",{"$f":"ROW(E1G2G!$C$74)","v":74}]
[null,"Linha Fertilizantes org. (\"especificar\" fim)",{"$f":"ROW(E1G2G!$C$75)","v":75}]
[null,"Linha Combust. (inicio)",{"$f":"ROW(E1G2G!$D$78)","v":78}]
[null,"Linha Combust. (fim)",{"$f":"ROW(E1G2G!$D$92)","v":92}]
[null,"Linha BX",{"$f":"ROW(E1G2G!$G$80)","v":80}]
[null,"Linha default/primario",{"$f":"ROW(E1G2G!$AP$41)","v":41}]
[null,"Coluna default/primario",{"$f":"COLUMN(E1G2G!$AP$41)","v":42}]
[null,"Área total",{"$f":"ROW(E1G2G!$M$33)","v":33}]
[]
[]
[null,"E1G Flex"]
[null,null,"Usina","Padrão","Guarda valores primários"]
[null,"Coluna valores",{"$f":"COLUMN('E1G Flex'!$D$46)","v":4},{"$f":"COLUMN('E1G Flex'!$AG$46)","v":33},{"$f":"COLUMN('E1G Flex'!$AP$46)","v":42}]
[null,"Coluna Especificar",{"$f":"COLUMN('E1G Flex'!$C$67)","v":3},{"$f":"COLUMN('E1G Flex'!$AF$67)","v":32},{"$f":"COLUMN('E1G Flex'!$AO$67)","v":41}]
[null,"Colunas %",{"$f":"COLUMN('E1G Flex'!$G$72)","v":7},{"$f":"COLUMN('E1G Flex'!$AJ$72)","v":36},{"$f":"COLUMN('E1G Flex'!$AS$72)","v":45}]
[null,"Linha Área queimada",{"$f":"ROW('E1G Flex'!$D$46)","v":46}]
[null,"Linha Corretivos (inicio)",{"$f":"ROW('E1G Flex'!$D$49)","v":49}]
[null,"Linha Corretivos (fim)",{"$f":"ROW('E1G Flex'!$D$51)","v":51}]
[null,"Linha Fertilizantes (inicio)",{"$f":"ROW('E1G Flex'!$D$54)","v":54}]
[null,"Linha Fertilizantes (fim)",{"$f":"ROW('E1G Flex'!$D$69)","v":69}]
[null,"Linha Fertilizantes (\"especificar\" inicio)",{"$f":"ROW('E1G Flex'!$C$67)","v":67}]
[null,"Linha Fertilizantes (\"especificar\" fim)",{"$f":"ROW('E1G Flex'!$C$69)","v":69}]
[null,"Linha Fertilizantes org. (inicio)",{"$f":"ROW('E1G Flex'!$D$72)","v":72}]
[null,"Linha Fertilizantes org. (fim)",{"$f":"ROW('E1G Flex'!$D$76)","v":76}]
[null,"Linha Fertilizantes org. (\"especificar\" inicio)",{"$f":"ROW('E1G Flex'!$C$75)","v":75}]
[null,"Linha Fertilizantes org. (\"especificar\" fim)",{"$f":"ROW('E1G Flex'!$C$76)","v":76}]
[null,"Linha Combust. (inicio)",{"$f":"ROW('E1G Flex'!$D$79)","v":79}]
[null,"Linha Combust. (fim)",{"$f":"ROW('E1G Flex'!$D$93)","v":93}]
[null,"Linha BX",{"$f":"ROW('E1G Flex'!$G$81)","v":81}]
[null,"Linha default/primario",{"$f":"ROW('E1G Flex'!$AP$42)","v":42}]
[null,"Coluna default/primario",{"$f":"COLUMN('E1G Flex'!$AP$42)","v":42}]
[null,"Área total",{"$f":"ROW('E1G Flex'!$M$34)","v":34}]

{"sheet":"Listas","index":24,"n_rows":102,"n_cols":8,"rows_kept":102,"cut":false,"hidden":true,"merged":[]}
[]
[null,"SN",null,"Residuos"]
[null,"Sim",null,"Especificar"]
[null,"Não",null,"Biogás de Aterro Sanitário"]
[null,null,null,"Torta de Filtro"]
[null,"CAR",null,"Vinhaça"]
[null,"Ativo",null,"Dejetos Bovinos"]
[null,"Pendente",null,"Dejetos Suínos"]
[null,"Cancelado"]
[]
[null,"Sistema_Plantio"]
[null,"Convencional"]
[null,"Direto"]
[null,"Mínimo/Reduzido"]
[]
[null,"Etanol"]
[null,"Etanol Anidro"]
[null,"Etanol Hidratado"]
[]
[null,"Rota_Biodiesel"]
[null,"Metílica"]
[null,"Etílica"]
[]
[]
[]
[]
[]
[]
[]
[]
[]
[]
[]
[]
[]
[]
[]
[]
[]
[]
[]
[]
[]
[]
[]
[]
[]
[]
[]
[]
[]
[]
[]
[]
[]
[]
[]
[]
[]
[]
[]
[]
[]
[]
[]
[]
[]
[]
[]
[]
[]
[]
[]
[]
[]
[]
[]
[]
[]
[]
[]
[]
[]
[]
[]
[null,null,null,"Emissões uso gasolina pura"]
[]
[null,null,null,"N2O",{"$f":"0.00000231","v":2.3099999999999999E-6},{"$f":"E88*298","v":6.8837999999999994E-4}]
[null,null,null,"CH4",{"$f":"0.00000308","v":3.0800000000000002E-6},{"$f":"E89*36","v":1.1088000000000001E-4}]
[null,null,null,"CO2",6.6000000000000003E-2,{"$f":"E90","v":6.6000000000000003E-2}]
[null,null,null,null,null,{"$f":"SUM(F88:F90)*1000","v":66.799260000000004},"g/MJ","Greet"]
[]
[null,null,"Emissões ciclo de vida gasolina pura (Tab. 4.13)",8.2600000000000007E-2]
[null,null,null,{"$f":"D93*1000","v":82.600000000000009},"g/MJ"]
[]
[null,null,"Wang et al (2012) ","Luo et al (2010)"]
[null,null,"94 g/MJ"]
[]
[null,null,3.5139999999999998,"tCO2eq/tdiesel"]
[null,null,{"$f":"C99*10^6","v":3514000},"gCO2eq/tdiesel"]
[null,null,{"$f":"C100/1000","v":3514},"gCO2eq/kgdiesel"]
[null,null,{"$f":"C101/#REF!","v":{"$error":"#REF!"}},"gCO2eq/MJdiesel"]